Workbook

Sheet Dashboard
A1: Weekly Operations Summary
A2: Dashboard
A5: Process Week | B5: Week 1
A6: Process Year | B6: 2021
A7: *row 1 of Warehouse and Dashboard tabs have white text, do not remove/add text
A8: *keep a blank space above --Totals-- on each tab
A9: * tabs with name warehouse, delivery will be updated -- make a copy and rename to archive years
A11: Location | B11: Region | C11: Owner | D11: Email | E11: BPC Name | F11: Process? | G11: Notes
A12: Atlanta | B12: East | E12: Atlanta DC | F12: Yes
A13: Chicago | B13: East | E13: Chicago DC | F13: Yes
A14: Detroit | B14: East | E14: Detroit DC | F14: Yes
A15: Louisville | B15: East | E15: Louisville DC | F15: No
A16: Miami | B16: East | E16: Florida DC | F16: No
A17: Minneapolis | B17: East | E17: Minneapolis DC | F17: No
A18: New Jersey | B18: East | E18: New Jersey DC | F18: No
A19: Jackson | B19: East | E19: Distribution Services | F19: No
A20: Dallas | B20: West | E20: Dallas DC | F20: No
A21: Denver | B21: West | E21: Denver DC | F21: No
A22: Houston | B22: West | E22: Houston DC | F22: No
A23: Kansas City | B23: West | E23: Kansas City DC | F23: No
A24: Los Angeles | B24: West | E24: Los Angeles DC | F24: No
A25: Phoenix | B25: West | E25: Phoenix DC | F25: No
A26: Salt Lake City | B26: West | E26: Salt Lake City DC | F26: No
A27: San Francisco | B27: West | E27: San Francisco DC | F27: No
A28: Seattle | B28: West | E28: Seattle/Portland DC | F28: No
A29: Calgary | B29: Canada | E29: Calgary DC | F29: No | G29: (convert to USD)
A30: Montreal | B30: Canada | E30: Montreal DC | F30: No | G30: (convert to USD)
A31: Toronto | B31: Canada | E31: Toronto DC | F31: No | G31: (convert to USD)
A32: Vancouver | B32: Canada | E32: Vancouver DC | F32: No | G32: (convert to USD)
A33: Moncton | B33: Canada | E33: Moncton Pool Point | F33: No | G33: (convert to USD)
A34: Winnipeg | B34: Canada | E34: Winnipeg Pool Point | F34: No | G34: (convert to USD)
A37: Windows User | B37: Email Address | C37: First Name
A44: Weeks | B44: Period
A45: Week 1 | B45: P1
A46: Week 2 | B46: P1
A47: Week 3 | B47: P1
A48: Week 4 | B48: P1
A49: Week 5 | B49: P2
A50: Week 6 | B50: P2
A51: Week 7 | B51: P2
A52: Week 8 | B52: P2
A53: Week 9 | B53: P3
A54: Week 10 | B54: P3
A55: Week 11 | B55: P3
A56: Week 12 | B56: P3
A57: Week 13 | B57: P3
A58: Week 14 | B58: P4
A59: Week 15 | B59: P4
A60: Week 16 | B60: P4
A61: Week 17 | B61: P4
A62: Week 18 | B62: P5
A63: Week 19 | B63: P5
A64: Week 20 | B64: P5
A65: Week 21 | B65: P5
A66: Week 22 | B66: P6
A67: Week 23 | B67: P6
A68: Week 24 | B68: P6
A69: Week 25 | B69: P6
A70: Week 26 | B70: P6
A71: Week 27 | B71: P7
A72: Week 28 | B72: P7
A73: Week 29 | B73: P7
A74: Week 30 | B74: P7
A75: Week 31 | B75: P8
A76: Week 32 | B76: P8
A77: Week 33 | B77: P8
A78: Week 34 | B78: P8
A79: Week 35 | B79: P9
A80: Week 36 | B80: P9
A81: Week 37 | B81: P9
A82: Week 38 | B82: P9
A83: Week 39 | B83: P9
A84: Week 40 | B84: P10
A85: Week 41 | B85: P10
A86: Week 42 | B86: P10
A87: Week 43 | B87: P10
A88: Week 44 | B88: P11
A89: Week 45 | B89: P11
A90: Week 46 | B90: P11
A91: Week 47 | B91: P11
A92: Week 48 | B92: P12
A93: Week 49 | B93: P12
A94: Week 50 | B94: P12
A95: Week 51 | B95: P12
A96: Week 52 | B96: P12

Sheet Warehouse
F1: green | H1: green | O1: green | P1: green | Q1: green | R1: green | S1: green | T1: green | Y1: green | AA1: green | AH1: green | AI1: green | AJ1: green | AK1: green | AQ1: green | AR1: green | AV1: green | AW1: green | AX1: green | AY1: green | BA1: green | BB1: green | BF1: green | BJ1: green
A2: Week | B2: 2021 | C2: Inbound Units | D2: Inbound Pallets | E2: Receiving Scans | F2: Receiving Units / Scan | G2: Inbound Scan Time (mins) | H2: Inbound Exception Time (hrs) | I2: Inbound Regular Hours | J2: Inbound OT Hours | K2: Inbound PTO Hours | L2: Inbound Contract Hours | M2: Inbound Headcount | N2: Inbound Contract Labor Headcount | O2: Inbound Hours Worked (REG + OT) | P2: Inbound Hours (REG+OT+PTO) | Q2: Inbound OT% | R2: Inbound Units/ Pallet | S2: Inbound PPMH | T2: Inbound CPMH | V2: Outbound Units | W2: 2 Step Units | X2: Selecting Scans | Y2: Selecting Units / Scan | Z2: Outbound Scan Time (mins) | AA2: Outbound Exception Time (hrs) | AB2: Outbound Regular Hours | AC2: Outbound OT Hours | AD2: Outbound PTO Hours | AE2: Outbound Contract Hours | AF2: Outbound Headcount | AG2: Outbound Contract Labor Headcount | AH2: Outbound Hours Worked (REG + OT) | AI2: Outbound Hours (REG+OT+PTO) | AJ2: Outbound OT% | AK2: Outbound CPMH | AM2: Supervisor & Support Regular Hours | AN2: Supervisor & Support OT Hours | AO2: Supervisor & Support PTO Hours | AP2: Supervisor & Support Headcount | AQ2: Supervisor & Support Hours Worked (REG + OT) | AR2: Supervisor & Support Hours (REG+OT+PTO) | AT2: Turnover | AV2: Overtime Hours | AW2: Regular Hours | AX2: Total Hours Worked (REG+OT) | AY2: OT% | BA2: Direct CPMH | BB2: Economic CPMH | BD2: Total Let Downs | BE2: Preselection Let Downs | BF2: Preselection Replenishment % | BH2: Occupied Bins | BI2: Empty Bins | BJ2: Utilization | BL2: OSHA Recordable Incidents | BN2: Budget Inbound dCPMH | BO2: Budget Outbound dCPMH | BP2: Budget Total dCPMH | BR2: Notes for Budget | BS2: . | BT2: . | BU2: . | BV2: . | BW2: .
A3: Referce row do not remove
A4: xx
A5: Week 1 | B5: Atlanta | C5: 42258 | D5: 1142 | E5: 1153 | F5: 36.65047702 | G5: 6475 | H5: 13.83333333 | I5: 120 | J5: 1.75 | K5: 4 | L5: 0 | M5: 3 | N5: 0 | O5: 121.75 | P5: 125.75 | Q5: 0.01437371663 | R5: 37.00350263 | S5: 9.379876797 | T5: 347.0882957 | V5: 39159 | W5: 7108 | X5: 10550 | Y5: 3.711753555 | Z5: 19474 | AA5: 72.38333333 | AB5: 280.4 | AC5: 72.05 | AD5: 88 | AE5: 44.5 | AF5: 11 | AG5: 1 | AH5: 396.95 | AI5: 484.95 | AJ5: 0.1815090062 | AK5: 98.64970399 | AM5: 300 | AN5: 9.23 | AO5: 40 | AP5: 6 | AQ5: 309.23 | AR5: 349.23 | AT5: 1 | AV5: 83.03 | AW5: 700.4 | AX5: 783.43 | AY5: 0.105982666 | BA5: 156.9635628 | BB5: 84.81555947 | BD5: 689 | BE5: 266 | BF5: 0.3860667634 | BH5: 3506 | BI5: 2312 | BJ5: 0.6026125816 | BL5: 0 | BN5: 330 | BO5: 93 | BP5: 142.6130493 | BR5: Days worked Saturday to help with the selction. 5 out on nights
A6: Week 1 | B6: Chicago | C6: 42258 | D6: 1142 | E6: 1153 | F6: 36.65047702 | G6: 6475 | H6: 13.83333333 | I6: 120 | J6: 1.75 | K6: 4 | L6: 0 | M6: 3 | N6: 0 | O6: 121.75 | P6: 125.75 | Q6: 0.01437371663 | R6: 37.00350263 | S6: 9.379876797 | T6: 347.0882957 | V6: 39159 | W6: 7108 | X6: 10550 | Y6: 3.711753555 | Z6: 19474 | AA6: 72.38333333 | AB6: 280.4 | AC6: 72.05 | AD6: 88 | AE6: 44.5 | AF6: 11 | AG6: 1 | AH6: 396.95 | AI6: 484.95 | AJ6: 0.1815090062 | AK6: 98.64970399 | AM6: 300 | AN6: 9.23 | AO6: 40 | AP6: 6 | AQ6: 309.23 | AR6: 349.23 | AT6: 1 | AV6: 83.03 | AW6: 700.4 | AX6: 783.43 | AY6: 0.105982666 | BA6: 156.9635628 | BB6: 84.81555947 | BD6: 689 | BE6: 266 | BF6: 0.3860667634 | BH6: 3506 | BI6: 2312 | BJ6: 0.6026125816 | BL6: 0 | BN6: 330 | BO6: 93 | BP6: 142.6130493 | BR6: Days worked Saturday to help with the selction. 5 out on nights
A8: --Totals--
A10: P1 TOTAL | B10: Atlanta | C10: =SUM(SUMIFS(C$3:C$8,$A$3:$A$8,IF(Dashboard!$B$44:$B$100=TRIM(SUBSTITUTE($A10,"TOTAL","",1)),Dashboard!$A$44:$A$100),$B$3:$B$8,$B10)) -> 42258 | D10: =SUM(SUMIFS(D$3:D$8,$A$3:$A$8,IF(Dashboard!$B$44:$B$100=TRIM(SUBSTITUTE($A10,"TOTAL","",1)),Dashboard!$A$44:$A$100),$B$3:$B$8,$B10)) -> 1142 | E10: =SUM(SUMIFS(E$3:E$8,$A$3:$A$8,IF(Dashboard!$B$44:$B$100=TRIM(SUBSTITUTE($A10,"TOTAL","",1)),Dashboard!$A$44:$A$100),$B$3:$B$8,$B10)) -> 1153 | F10: =IFERROR(C10/E10,0) -> 36.65047702 | G10: =SUM(SUMIFS(G$3:G$8,$A$3:$A$8,IF(Dashboard!$B$44:$B$100=TRIM(SUBSTITUTE($A10,"TOTAL","",1)),Dashboard!$A$44:$A$100),$B$3:$B$8,$B10)) -> 6475 | H10: =(I10+J10+L10)-(G10/60) -> 13.83333333 | I10: =SUM(SUMIFS(I$3:I$8,$A$3:$A$8,IF(Dashboard!$B$44:$B$100=TRIM(SUBSTITUTE($A10,"TOTAL","",1)),Dashboard!$A$44:$A$100),$B$3:$B$8,$B10)) -> 120 | J10: =SUM(SUMIFS(J$3:J$8,$A$3:$A$8,IF(Dashboard!$B$44:$B$100=TRIM(SUBSTITUTE($A10,"TOTAL","",1)),Dashboard!$A$44:$A$100),$B$3:$B$8,$B10)) -> 1.75 | K10: =SUM(SUMIFS(K$3:K$8,$A$3:$A$8,IF(Dashboard!$B$44:$B$100=TRIM(SUBSTITUTE($A10,"TOTAL","",1)),Dashboard!$A$44:$A$100),$B$3:$B$8,$B10)) -> 4 | L10: =SUM(SUMIFS(L$3:L$8,$A$3:$A$8,IF(Dashboard!$B$44:$B$100=TRIM(SUBSTITUTE($A10,"TOTAL","",1)),Dashboard!$A$44:$A$100),$B$3:$B$8,$B10)) -> 0 | M10: =SUM(SUMIFS(M$3:M$8,$A$3:$A$8,IF(Dashboard!$B$44:$B$100=TRIM(SUBSTITUTE($A10,"TOTAL","",1)),Dashboard!$A$44:$A$100),$B$3:$B$8,$B10)) -> 3 | N10: =SUM(SUMIFS(N$3:N$8,$A$3:$A$8,IF(Dashboard!$B$44:$B$100=TRIM(SUBSTITUTE($A10,"TOTAL","",1)),Dashboard!$A$44:$A$100),$B$3:$B$8,$B10)) -> 0 | O10: =SUM(SUMIFS(O$3:O$8,$A$3:$A$8,IF(Dashboard!$B$44:$B$100=TRIM(SUBSTITUTE($A10,"TOTAL","",1)),Dashboard!$A$44:$A$100),$B$3:$B$8,$B10)) -> 121.75 | P10: =SUM(SUMIFS(P$3:P$8,$A$3:$A$8,IF(Dashboard!$B$44:$B$100=TRIM(SUBSTITUTE($A10,"TOTAL","",1)),Dashboard!$A$44:$A$100),$B$3:$B$8,$B10)) -> 125.75 | Q10: =IFERROR(J10/O10,0) -> 0.01437371663 | R10: =IFERROR(C10/D10,0) -> 37.00350263 | S10: =IFERROR(D10/O10,0) -> 9.379876797 | T10: =IFERROR(C10/O10,0) -> 347.0882957 | V10: =SUM(SUMIFS(V$3:V$8,$A$3:$A$8,IF(Dashboard!$B$44:$B$100=TRIM(SUBSTITUTE($A10,"TOTAL","",1)),Dashboard!$A$44:$A$100),$B$3:$B$8,$B10)) -> 39159 | W10: =SUM(SUMIFS(W$3:W$8,$A$3:$A$8,IF(Dashboard!$B$44:$B$100=TRIM(SUBSTITUTE($A10,"TOTAL","",1)),Dashboard!$A$44:$A$100),$B$3:$B$8,$B10)) -> 7108 | X10: =SUM(SUMIFS(X$3:X$8,$A$3:$A$8,IF(Dashboard!$B$44:$B$100=TRIM(SUBSTITUTE($A10,"TOTAL","",1)),Dashboard!$A$44:$A$100),$B$3:$B$8,$B10)) -> 10550 | Y10: =IFERROR(V10/X10,0) -> 3.711753555 | Z10: =SUM(SUMIFS(Z$3:Z$8,$A$3:$A$8,IF(Dashboard!$B$44:$B$100=TRIM(SUBSTITUTE($A10,"TOTAL","",1)),Dashboard!$A$44:$A$100),$B$3:$B$8,$B10)) -> 19474 | AA10: =(AB10+AC10+AE10)-(Z10/60) -> 72.38333333 | AB10: =SUM(SUMIFS(AB$3:AB$8,$A$3:$A$8,IF(Dashboard!$B$44:$B$100=TRIM(SUBSTITUTE($A10,"TOTAL","",1)),Dashboard!$A$44:$A$100),$B$3:$B$8,$B10)) -> 280.4 | AC10: =SUM(SUMIFS(AC$3:AC$8,$A$3:$A$8,IF(Dashboard!$B$44:$B$100=TRIM(SUBSTITUTE($A10,"TOTAL","",1)),Dashboard!$A$44:$A$100),$B$3:$B$8,$B10)) -> 72.05 | AD10: =SUM(SUMIFS(AD$3:AD$8,$A$3:$A$8,IF(Dashboard!$B$44:$B$100=TRIM(SUBSTITUTE($A10,"TOTAL","",1)),Dashboard!$A$44:$A$100),$B$3:$B$8,$B10)) -> 88 | AE10: =SUM(SUMIFS(AE$3:AE$8,$A$3:$A$8,IF(Dashboard!$B$44:$B$100=TRIM(SUBSTITUTE($A10,"TOTAL","",1)),Dashboard!$A$44:$A$100),$B$3:$B$8,$B10)) -> 44.5 | AF10: =SUM(SUMIFS(AF$3:AF$8,$A$3:$A$8,IF(Dashboard!$B$44:$B$100=TRIM(SUBSTITUTE($A10,"TOTAL","",1)),Dashboard!$A$44:$A$100),$B$3:$B$8,$B10)) -> 11 | AG10: =SUM(SUMIFS(AG$3:AG$8,$A$3:$A$8,IF(Dashboard!$B$44:$B$100=TRIM(SUBSTITUTE($A10,"TOTAL","",1)),Dashboard!$A$44:$A$100),$B$3:$B$8,$B10)) -> 1 | AH10: =SUM(SUMIFS(AH$3:AH$8,$A$3:$A$8,IF(Dashboard!$B$44:$B$100=TRIM(SUBSTITUTE($A10,"TOTAL","",1)),Dashboard!$A$44:$A$100),$B$3:$B$8,$B10)) -> 396.95 | AI10: =SUM(SUMIFS(AI$3:AI$8,$A$3:$A$8,IF(Dashboard!$B$44:$B$100=TRIM(SUBSTITUTE($A10,"TOTAL","",1)),Dashboard!$A$44:$A$100),$B$3:$B$8,$B10)) -> 484.95 | AJ10: =IFERROR(AC10/AH10,0) -> 0.1815090062 | AK10: =IFERROR(V10/AH10,0) -> 98.64970399 | AM10: =SUM(SUMIFS(AM$3:AM$8,$A$3:$A$8,IF(Dashboard!$B$44:$B$100=TRIM(SUBSTITUTE($A10,"TOTAL","",1)),Dashboard!$A$44:$A$100),$B$3:$B$8,$B10)) -> 300 | AN10: =SUM(SUMIFS(AN$3:AN$8,$A$3:$A$8,IF(Dashboard!$B$44:$B$100=TRIM(SUBSTITUTE($A10,"TOTAL","",1)),Dashboard!$A$44:$A$100),$B$3:$B$8,$B10)) -> 9.23 | AO10: =SUM(SUMIFS(AO$3:AO$8,$A$3:$A$8,IF(Dashboard!$B$44:$B$100=TRIM(SUBSTITUTE($A10,"TOTAL","",1)),Dashboard!$A$44:$A$100),$B$3:$B$8,$B10)) -> 40 | AP10: =SUM(SUMIFS(AP$3:AP$8,$A$3:$A$8,IF(Dashboard!$B$44:$B$100=TRIM(SUBSTITUTE($A10,"TOTAL","",1)),Dashboard!$A$44:$A$100),$B$3:$B$8,$B10)) -> 6 | AQ10: =SUM(SUMIFS(AQ$3:AQ$8,$A$3:$A$8,IF(Dashboard!$B$44:$B$100=TRIM(SUBSTITUTE($A10,"TOTAL","",1)),Dashboard!$A$44:$A$100),$B$3:$B$8,$B10)) -> 309.23 | AR10: =SUM(SUMIFS(AR$3:AR$8,$A$3:$A$8,IF(Dashboard!$B$44:$B$100=TRIM(SUBSTITUTE($A10,"TOTAL","",1)),Dashboard!$A$44:$A$100),$B$3:$B$8,$B10)) -> 349.23 | AT10: =SUM(SUMIFS(AT$3:AT$8,$A$3:$A$8,IF(Dashboard!$B$44:$B$100=TRIM(SUBSTITUTE($A10,"TOTAL","",1)),Dashboard!$A$44:$A$100),$B$3:$B$8,$B10)) -> 1 | AV10: =SUM(SUMIFS(AV$3:AV$8,$A$3:$A$8,IF(Dashboard!$B$44:$B$100=TRIM(SUBSTITUTE($A10,"TOTAL","",1)),Dashboard!$A$44:$A$100),$B$3:$B$8,$B10)) -> 83.03 | AW10: =SUM(SUMIFS(AW$3:AW$8,$A$3:$A$8,IF(Dashboard!$B$44:$B$100=TRIM(SUBSTITUTE($A10,"TOTAL","",1)),Dashboard!$A$44:$A$100),$B$3:$B$8,$B10)) -> 700.4 | AX10: =SUM(SUMIFS(AX$3:AX$8,$A$3:$A$8,IF(Dashboard!$B$44:$B$100=TRIM(SUBSTITUTE($A10,"TOTAL","",1)),Dashboard!$A$44:$A$100),$B$3:$B$8,$B10)) -> 783.43 | AY10: =IFERROR(AV10/AX10,0) -> 0.105982666 | BA10: =IFERROR((C10+V10)/(O10+AH10),0) -> 156.9635628 | BB10: =IFERROR((C10+V10)/(P10+AI10+AR10),0) -> 84.81555947 | BD10: =SUM(SUMIFS(BD$3:BD$8,$A$3:$A$8,IF(Dashboard!$B$44:$B$100=TRIM(SUBSTITUTE($A10,"TOTAL","",1)),Dashboard!$A$44:$A$100),$B$3:$B$8,$B10)) -> 689 | BE10: =SUM(SUMIFS(BE$3:BE$8,$A$3:$A$8,IF(Dashboard!$B$44:$B$100=TRIM(SUBSTITUTE($A10,"TOTAL","",1)),Dashboard!$A$44:$A$100),$B$3:$B$8,$B10)) -> 266 | BF10: =IFERROR(BE10/BD10,0) -> 0.3860667634 | BH10: =SUM(SUMIFS(BH$3:BH$8,$A$3:$A$8,IF(Dashboard!$B$44:$B$100=TRIM(SUBSTITUTE($A10,"TOTAL","",1)),Dashboard!$A$44:$A$100),$B$3:$B$8,$B10)) -> 3506 | BI10: =SUM(SUMIFS(BI$3:BI$8,$A$3:$A$8,IF(Dashboard!$B$44:$B$100=TRIM(SUBSTITUTE($A10,"TOTAL","",1)),Dashboard!$A$44:$A$100),$B$3:$B$8,$B10)) -> 2312 | BJ10: =IFERROR(BH10/(BH10+BI10),0) -> 0.6026125816 | BL10: =SUM(SUMIFS(BL$3:BL$8,$A$3:$A$8,IF(Dashboard!$B$44:$B$100=TRIM(SUBSTITUTE($A10,"TOTAL","",1)),Dashboard!$A$44:$A$100),$B$3:$B$8,$B10)) -> 0
A11: P1 TOTAL | B11: Calgary | C11: =SUM(SUMIFS(C$3:C$8,$A$3:$A$8,IF(Dashboard!$B$44:$B$100=TRIM(SUBSTITUTE($A11,"TOTAL","",1)),Dashboard!$A$44:$A$100),$B$3:$B$8,$B11)) -> 0 | D11: =SUM(SUMIFS(D$3:D$8,$A$3:$A$8,IF(Dashboard!$B$44:$B$100=TRIM(SUBSTITUTE($A11,"TOTAL","",1)),Dashboard!$A$44:$A$100),$B$3:$B$8,$B11)) -> 0 | E11: =SUM(SUMIFS(E$3:E$8,$A$3:$A$8,IF(Dashboard!$B$44:$B$100=TRIM(SUBSTITUTE($A11,"TOTAL","",1)),Dashboard!$A$44:$A$100),$B$3:$B$8,$B11)) -> 0 | F11: =IFERROR(C11/E11,0) -> 0 | G11: =SUM(SUMIFS(G$3:G$8,$A$3:$A$8,IF(Dashboard!$B$44:$B$100=TRIM(SUBSTITUTE($A11,"TOTAL","",1)),Dashboard!$A$44:$A$100),$B$3:$B$8,$B11)) -> 0 | H11: =(I11+J11+L11)-(G11/60) -> 0 | I11: =SUM(SUMIFS(I$3:I$8,$A$3:$A$8,IF(Dashboard!$B$44:$B$100=TRIM(SUBSTITUTE($A11,"TOTAL","",1)),Dashboard!$A$44:$A$100),$B$3:$B$8,$B11)) -> 0 | J11: =SUM(SUMIFS(J$3:J$8,$A$3:$A$8,IF(Dashboard!$B$44:$B$100=TRIM(SUBSTITUTE($A11,"TOTAL","",1)),Dashboard!$A$44:$A$100),$B$3:$B$8,$B11)) -> 0 | K11: =SUM(SUMIFS(K$3:K$8,$A$3:$A$8,IF(Dashboard!$B$44:$B$100=TRIM(SUBSTITUTE($A11,"TOTAL","",1)),Dashboard!$A$44:$A$100),$B$3:$B$8,$B11)) -> 0 | L11: =SUM(SUMIFS(L$3:L$8,$A$3:$A$8,IF(Dashboard!$B$44:$B$100=TRIM(SUBSTITUTE($A11,"TOTAL","",1)),Dashboard!$A$44:$A$100),$B$3:$B$8,$B11)) -> 0 | M11: =SUM(SUMIFS(M$3:M$8,$A$3:$A$8,IF(Dashboard!$B$44:$B$100=TRIM(SUBSTITUTE($A11,"TOTAL","",1)),Dashboard!$A$44:$A$100),$B$3:$B$8,$B11)) -> 0 | N11: =SUM(SUMIFS(N$3:N$8,$A$3:$A$8,IF(Dashboard!$B$44:$B$100=TRIM(SUBSTITUTE($A11,"TOTAL","",1)),Dashboard!$A$44:$A$100),$B$3:$B$8,$B11)) -> 0 | O11: =SUM(SUMIFS(O$3:O$8,$A$3:$A$8,IF(Dashboard!$B$44:$B$100=TRIM(SUBSTITUTE($A11,"TOTAL","",1)),Dashboard!$A$44:$A$100),$B$3:$B$8,$B11)) -> 0 | P11: =SUM(SUMIFS(P$3:P$8,$A$3:$A$8,IF(Dashboard!$B$44:$B$100=TRIM(SUBSTITUTE($A11,"TOTAL","",1)),Dashboard!$A$44:$A$100),$B$3:$B$8,$B11)) -> 0 | Q11: =IFERROR(J11/O11,0) -> 0 | R11: =IFERROR(C11/D11,0) -> 0 | S11: =IFERROR(D11/O11,0) -> 0 | T11: =IFERROR(C11/O11,0) -> 0 | V11: =SUM(SUMIFS(V$3:V$8,$A$3:$A$8,IF(Dashboard!$B$44:$B$100=TRIM(SUBSTITUTE($A11,"TOTAL","",1)),Dashboard!$A$44:$A$100),$B$3:$B$8,$B11)) -> 0 | W11: =SUM(SUMIFS(W$3:W$8,$A$3:$A$8,IF(Dashboard!$B$44:$B$100=TRIM(SUBSTITUTE($A11,"TOTAL","",1)),Dashboard!$A$44:$A$100),$B$3:$B$8,$B11)) -> 0 | X11: =SUM(SUMIFS(X$3:X$8,$A$3:$A$8,IF(Dashboard!$B$44:$B$100=TRIM(SUBSTITUTE($A11,"TOTAL","",1)),Dashboard!$A$44:$A$100),$B$3:$B$8,$B11)) -> 0 | Y11: =IFERROR(V11/X11,0) -> 0 | Z11: =SUM(SUMIFS(Z$3:Z$8,$A$3:$A$8,IF(Dashboard!$B$44:$B$100=TRIM(SUBSTITUTE($A11,"TOTAL","",1)),Dashboard!$A$44:$A$100),$B$3:$B$8,$B11)) -> 0 | AA11: =(AB11+AC11+AE11)-(Z11/60) -> 0 | AB11: =SUM(SUMIFS(AB$3:AB$8,$A$3:$A$8,IF(Dashboard!$B$44:$B$100=TRIM(SUBSTITUTE($A11,"TOTAL","",1)),Dashboard!$A$44:$A$100),$B$3:$B$8,$B11)) -> 0 | AC11: =SUM(SUMIFS(AC$3:AC$8,$A$3:$A$8,IF(Dashboard!$B$44:$B$100=TRIM(SUBSTITUTE($A11,"TOTAL","",1)),Dashboard!$A$44:$A$100),$B$3:$B$8,$B11)) -> 0 | AD11: =SUM(SUMIFS(AD$3:AD$8,$A$3:$A$8,IF(Dashboard!$B$44:$B$100=TRIM(SUBSTITUTE($A11,"TOTAL","",1)),Dashboard!$A$44:$A$100),$B$3:$B$8,$B11)) -> 0 | AE11: =SUM(SUMIFS(AE$3:AE$8,$A$3:$A$8,IF(Dashboard!$B$44:$B$100=TRIM(SUBSTITUTE($A11,"TOTAL","",1)),Dashboard!$A$44:$A$100),$B$3:$B$8,$B11)) -> 0 | AF11: =SUM(SUMIFS(AF$3:AF$8,$A$3:$A$8,IF(Dashboard!$B$44:$B$100=TRIM(SUBSTITUTE($A11,"TOTAL","",1)),Dashboard!$A$44:$A$100),$B$3:$B$8,$B11)) -> 0 | AG11: =SUM(SUMIFS(AG$3:AG$8,$A$3:$A$8,IF(Dashboard!$B$44:$B$100=TRIM(SUBSTITUTE($A11,"TOTAL","",1)),Dashboard!$A$44:$A$100),$B$3:$B$8,$B11)) -> 0 | AH11: =SUM(SUMIFS(AH$3:AH$8,$A$3:$A$8,IF(Dashboard!$B$44:$B$100=TRIM(SUBSTITUTE($A11,"TOTAL","",1)),Dashboard!$A$44:$A$100),$B$3:$B$8,$B11)) -> 0 | AI11: =SUM(SUMIFS(AI$3:AI$8,$A$3:$A$8,IF(Dashboard!$B$44:$B$100=TRIM(SUBSTITUTE($A11,"TOTAL","",1)),Dashboard!$A$44:$A$100),$B$3:$B$8,$B11)) -> 0 | AJ11: =IFERROR(AC11/AH11,0) -> 0 | AK11: =IFERROR(V11/AH11,0) -> 0 | AM11: =SUM(SUMIFS(AM$3:AM$8,$A$3:$A$8,IF(Dashboard!$B$44:$B$100=TRIM(SUBSTITUTE($A11,"TOTAL","",1)),Dashboard!$A$44:$A$100),$B$3:$B$8,$B11)) -> 0 | AN11: =SUM(SUMIFS(AN$3:AN$8,$A$3:$A$8,IF(Dashboard!$B$44:$B$100=TRIM(SUBSTITUTE($A11,"TOTAL","",1)),Dashboard!$A$44:$A$100),$B$3:$B$8,$B11)) -> 0 | AO11: =SUM(SUMIFS(AO$3:AO$8,$A$3:$A$8,IF(Dashboard!$B$44:$B$100=TRIM(SUBSTITUTE($A11,"TOTAL","",1)),Dashboard!$A$44:$A$100),$B$3:$B$8,$B11)) -> 0 | AP11: =SUM(SUMIFS(AP$3:AP$8,$A$3:$A$8,IF(Dashboard!$B$44:$B$100=TRIM(SUBSTITUTE($A11,"TOTAL","",1)),Dashboard!$A$44:$A$100),$B$3:$B$8,$B11)) -> 0 | AQ11: =SUM(SUMIFS(AQ$3:AQ$8,$A$3:$A$8,IF(Dashboard!$B$44:$B$100=TRIM(SUBSTITUTE($A11,"TOTAL","",1)),Dashboard!$A$44:$A$100),$B$3:$B$8,$B11)) -> 0 | AR11: =SUM(SUMIFS(AR$3:AR$8,$A$3:$A$8,IF(Dashboard!$B$44:$B$100=TRIM(SUBSTITUTE($A11,"TOTAL","",1)),Dashboard!$A$44:$A$100),$B$3:$B$8,$B11)) -> 0 | AT11: =SUM(SUMIFS(AT$3:AT$8,$A$3:$A$8,IF(Dashboard!$B$44:$B$100=TRIM(SUBSTITUTE($A11,"TOTAL","",1)),Dashboard!$A$44:$A$100),$B$3:$B$8,$B11)) -> 0 | AV11: =SUM(SUMIFS(AV$3:AV$8,$A$3:$A$8,IF(Dashboard!$B$44:$B$100=TRIM(SUBSTITUTE($A11,"TOTAL","",1)),Dashboard!$A$44:$A$100),$B$3:$B$8,$B11)) -> 0 | AW11: =SUM(SUMIFS(AW$3:AW$8,$A$3:$A$8,IF(Dashboard!$B$44:$B$100=TRIM(SUBSTITUTE($A11,"TOTAL","",1)),Dashboard!$A$44:$A$100),$B$3:$B$8,$B11)) -> 0 | AX11: =SUM(SUMIFS(AX$3:AX$8,$A$3:$A$8,IF(Dashboard!$B$44:$B$100=TRIM(SUBSTITUTE($A11,"TOTAL","",1)),Dashboard!$A$44:$A$100),$B$3:$B$8,$B11)) -> 0 | AY11: =IFERROR(AV11/AX11,0) -> 0 | BA11: =IFERROR((C11+V11)/(O11+AH11),0) -> 0 | BB11: =IFERROR((C11+V11)/(P11+AI11+AR11),0) -> 0 | BD11: =SUM(SUMIFS(BD$3:BD$8,$A$3:$A$8,IF(Dashboard!$B$44:$B$100=TRIM(SUBSTITUTE($A11,"TOTAL","",1)),Dashboard!$A$44:$A$100),$B$3:$B$8,$B11)) -> 0 | BE11: =SUM(SUMIFS(BE$3:BE$8,$A$3:$A$8,IF(Dashboard!$B$44:$B$100=TRIM(SUBSTITUTE($A11,"TOTAL","",1)),Dashboard!$A$44:$A$100),$B$3:$B$8,$B11)) -> 0 | BF11: =IFERROR(BE11/BD11,0) -> 0 | BH11: =SUM(SUMIFS(BH$3:BH$8,$A$3:$A$8,IF(Dashboard!$B$44:$B$100=TRIM(SUBSTITUTE($A11,"TOTAL","",1)),Dashboard!$A$44:$A$100),$B$3:$B$8,$B11)) -> 0 | BI11: =SUM(SUMIFS(BI$3:BI$8,$A$3:$A$8,IF(Dashboard!$B$44:$B$100=TRIM(SUBSTITUTE($A11,"TOTAL","",1)),Dashboard!$A$44:$A$100),$B$3:$B$8,$B11)) -> 0 | BJ11: =IFERROR(BH11/(BH11+BI11),0) -> 0 | BL11: =SUM(SUMIFS(BL$3:BL$8,$A$3:$A$8,IF(Dashboard!$B$44:$B$100=TRIM(SUBSTITUTE($A11,"TOTAL","",1)),Dashboard!$A$44:$A$100),$B$3:$B$8,$B11)) -> 0
A12: P1 TOTAL | B12: Chicago | C12: =SUM(SUMIFS(C$3:C$8,$A$3:$A$8,IF(Dashboard!$B$44:$B$100=TRIM(SUBSTITUTE($A12,"TOTAL","",1)),Dashboard!$A$44:$A$100),$B$3:$B$8,$B12)) -> 42258 | D12: =SUM(SUMIFS(D$3:D$8,$A$3:$A$8,IF(Dashboard!$B$44:$B$100=TRIM(SUBSTITUTE($A12,"TOTAL","",1)),Dashboard!$A$44:$A$100),$B$3:$B$8,$B12)) -> 1142 | E12: =SUM(SUMIFS(E$3:E$8,$A$3:$A$8,IF(Dashboard!$B$44:$B$100=TRIM(SUBSTITUTE($A12,"TOTAL","",1)),Dashboard!$A$44:$A$100),$B$3:$B$8,$B12)) -> 1153 | F12: 36.65047702 | G12: =SUM(SUMIFS(G$3:G$8,$A$3:$A$8,IF(Dashboard!$B$44:$B$100=TRIM(SUBSTITUTE($A12,"TOTAL","",1)),Dashboard!$A$44:$A$100),$B$3:$B$8,$B12)) -> 6475 | H12: 13.83333333 | I12: =SUM(SUMIFS(I$3:I$8,$A$3:$A$8,IF(Dashboard!$B$44:$B$100=TRIM(SUBSTITUTE($A12,"TOTAL","",1)),Dashboard!$A$44:$A$100),$B$3:$B$8,$B12)) -> 120 | J12: =SUM(SUMIFS(J$3:J$8,$A$3:$A$8,IF(Dashboard!$B$44:$B$100=TRIM(SUBSTITUTE($A12,"TOTAL","",1)),Dashboard!$A$44:$A$100),$B$3:$B$8,$B12)) -> 1.75 | K12: =SUM(SUMIFS(K$3:K$8,$A$3:$A$8,IF(Dashboard!$B$44:$B$100=TRIM(SUBSTITUTE($A12,"TOTAL","",1)),Dashboard!$A$44:$A$100),$B$3:$B$8,$B12)) -> 4 | L12: =SUM(SUMIFS(L$3:L$8,$A$3:$A$8,IF(Dashboard!$B$44:$B$100=TRIM(SUBSTITUTE($A12,"TOTAL","",1)),Dashboard!$A$44:$A$100),$B$3:$B$8,$B12)) -> 0 | M12: =SUM(SUMIFS(M$3:M$8,$A$3:$A$8,IF(Dashboard!$B$44:$B$100=TRIM(SUBSTITUTE($A12,"TOTAL","",1)),Dashboard!$A$44:$A$100),$B$3:$B$8,$B12)) -> 3 | N12: =SUM(SUMIFS(N$3:N$8,$A$3:$A$8,IF(Dashboard!$B$44:$B$100=TRIM(SUBSTITUTE($A12,"TOTAL","",1)),Dashboard!$A$44:$A$100),$B$3:$B$8,$B12)) -> 0 | O12: =SUM(SUMIFS(O$3:O$8,$A$3:$A$8,IF(Dashboard!$B$44:$B$100=TRIM(SUBSTITUTE($A12,"TOTAL","",1)),Dashboard!$A$44:$A$100),$B$3:$B$8,$B12)) -> 121.75 | P12: =SUM(SUMIFS(P$3:P$8,$A$3:$A$8,IF(Dashboard!$B$44:$B$100=TRIM(SUBSTITUTE($A12,"TOTAL","",1)),Dashboard!$A$44:$A$100),$B$3:$B$8,$B12)) -> 125.75 | Q12: 0.01437371663 | R12: 37.00350263 | S12: 9.379876797 | T12: 347.0882957 | V12: =SUM(SUMIFS(V$3:V$8,$A$3:$A$8,IF(Dashboard!$B$44:$B$100=TRIM(SUBSTITUTE($A12,"TOTAL","",1)),Dashboard!$A$44:$A$100),$B$3:$B$8,$B12)) -> 39159 | W12: =SUM(SUMIFS(W$3:W$8,$A$3:$A$8,IF(Dashboard!$B$44:$B$100=TRIM(SUBSTITUTE($A12,"TOTAL","",1)),Dashboard!$A$44:$A$100),$B$3:$B$8,$B12)) -> 7108 | X12: =SUM(SUMIFS(X$3:X$8,$A$3:$A$8,IF(Dashboard!$B$44:$B$100=TRIM(SUBSTITUTE($A12,"TOTAL","",1)),Dashboard!$A$44:$A$100),$B$3:$B$8,$B12)) -> 10550 | Y12: 3.711753555 | Z12: =SUM(SUMIFS(Z$3:Z$8,$A$3:$A$8,IF(Dashboard!$B$44:$B$100=TRIM(SUBSTITUTE($A12,"TOTAL","",1)),Dashboard!$A$44:$A$100),$B$3:$B$8,$B12)) -> 19474 | AA12: 72.38333333 | AB12: =SUM(SUMIFS(AB$3:AB$8,$A$3:$A$8,IF(Dashboard!$B$44:$B$100=TRIM(SUBSTITUTE($A12,"TOTAL","",1)),Dashboard!$A$44:$A$100),$B$3:$B$8,$B12)) -> 280.4 | AC12: =SUM(SUMIFS(AC$3:AC$8,$A$3:$A$8,IF(Dashboard!$B$44:$B$100=TRIM(SUBSTITUTE($A12,"TOTAL","",1)),Dashboard!$A$44:$A$100),$B$3:$B$8,$B12)) -> 72.05 | AD12: =SUM(SUMIFS(AD$3:AD$8,$A$3:$A$8,IF(Dashboard!$B$44:$B$100=TRIM(SUBSTITUTE($A12,"TOTAL","",1)),Dashboard!$A$44:$A$100),$B$3:$B$8,$B12)) -> 88 | AE12: =SUM(SUMIFS(AE$3:AE$8,$A$3:$A$8,IF(Dashboard!$B$44:$B$100=TRIM(SUBSTITUTE($A12,"TOTAL","",1)),Dashboard!$A$44:$A$100),$B$3:$B$8,$B12)) -> 44.5 | AF12: =SUM(SUMIFS(AF$3:AF$8,$A$3:$A$8,IF(Dashboard!$B$44:$B$100=TRIM(SUBSTITUTE($A12,"TOTAL","",1)),Dashboard!$A$44:$A$100),$B$3:$B$8,$B12)) -> 11 | AG12: =SUM(SUMIFS(AG$3:AG$8,$A$3:$A$8,IF(Dashboard!$B$44:$B$100=TRIM(SUBSTITUTE($A12,"TOTAL","",1)),Dashboard!$A$44:$A$100),$B$3:$B$8,$B12)) -> 1 | AH12: =SUM(SUMIFS(AH$3:AH$8,$A$3:$A$8,IF(Dashboard!$B$44:$B$100=TRIM(SUBSTITUTE($A12,"TOTAL","",1)),Dashboard!$A$44:$A$100),$B$3:$B$8,$B12)) -> 396.95 | AI12: =SUM(SUMIFS(AI$3:AI$8,$A$3:$A$8,IF(Dashboard!$B$44:$B$100=TRIM(SUBSTITUTE($A12,"TOTAL","",1)),Dashboard!$A$44:$A$100),$B$3:$B$8,$B12)) -> 484.95 | AJ12: 0.1815090062 | AK12: 98.64970399 | AM12: =SUM(SUMIFS(AM$3:AM$8,$A$3:$A$8,IF(Dashboard!$B$44:$B$100=TRIM(SUBSTITUTE($A12,"TOTAL","",1)),Dashboard!$A$44:$A$100),$B$3:$B$8,$B12)) -> 300 | AN12: =SUM(SUMIFS(AN$3:AN$8,$A$3:$A$8,IF(Dashboard!$B$44:$B$100=TRIM(SUBSTITUTE($A12,"TOTAL","",1)),Dashboard!$A$44:$A$100),$B$3:$B$8,$B12)) -> 9.23 | AO12: =SUM(SUMIFS(AO$3:AO$8,$A$3:$A$8,IF(Dashboard!$B$44:$B$100=TRIM(SUBSTITUTE($A12,"TOTAL","",1)),Dashboard!$A$44:$A$100),$B$3:$B$8,$B12)) -> 40 | AP12: =SUM(SUMIFS(AP$3:AP$8,$A$3:$A$8,IF(Dashboard!$B$44:$B$100=TRIM(SUBSTITUTE($A12,"TOTAL","",1)),Dashboard!$A$44:$A$100),$B$3:$B$8,$B12)) -> 6 | AQ12: =SUM(SUMIFS(AQ$3:AQ$8,$A$3:$A$8,IF(Dashboard!$B$44:$B$100=TRIM(SUBSTITUTE($A12,"TOTAL","",1)),Dashboard!$A$44:$A$100),$B$3:$B$8,$B12)) -> 309.23 | AR12: =SUM(SUMIFS(AR$3:AR$8,$A$3:$A$8,IF(Dashboard!$B$44:$B$100=TRIM(SUBSTITUTE($A12,"TOTAL","",1)),Dashboard!$A$44:$A$100),$B$3:$B$8,$B12)) -> 349.23 | AT12: =SUM(SUMIFS(AT$3:AT$8,$A$3:$A$8,IF(Dashboard!$B$44:$B$100=TRIM(SUBSTITUTE($A12,"TOTAL","",1)),Dashboard!$A$44:$A$100),$B$3:$B$8,$B12)) -> 1 | AV12: =SUM(SUMIFS(AV$3:AV$8,$A$3:$A$8,IF(Dashboard!$B$44:$B$100=TRIM(SUBSTITUTE($A12,"TOTAL","",1)),Dashboard!$A$44:$A$100),$B$3:$B$8,$B12)) -> 83.03 | AW12: =SUM(SUMIFS(AW$3:AW$8,$A$3:$A$8,IF(Dashboard!$B$44:$B$100=TRIM(SUBSTITUTE($A12,"TOTAL","",1)),Dashboard!$A$44:$A$100),$B$3:$B$8,$B12)) -> 700.4 | AX12: =SUM(SUMIFS(AX$3:AX$8,$A$3:$A$8,IF(Dashboard!$B$44:$B$100=TRIM(SUBSTITUTE($A12,"TOTAL","",1)),Dashboard!$A$44:$A$100),$B$3:$B$8,$B12)) -> 783.43 | AY12: 0.105982666 | BA12: 156.9635628 | BB12: 84.81555947 | BD12: =SUM(SUMIFS(BD$3:BD$8,$A$3:$A$8,IF(Dashboard!$B$44:$B$100=TRIM(SUBSTITUTE($A12,"TOTAL","",1)),Dashboard!$A$44:$A$100),$B$3:$B$8,$B12)) -> 689 | BE12: =SUM(SUMIFS(BE$3:BE$8,$A$3:$A$8,IF(Dashboard!$B$44:$B$100=TRIM(SUBSTITUTE($A12,"TOTAL","",1)),Dashboard!$A$44:$A$100),$B$3:$B$8,$B12)) -> 266 | BF12: 0.3860667634 | BH12: =SUM(SUMIFS(BH$3:BH$8,$A$3:$A$8,IF(Dashboard!$B$44:$B$100=TRIM(SUBSTITUTE($A12,"TOTAL","",1)),Dashboard!$A$44:$A$100),$B$3:$B$8,$B12)) -> 3506 | BI12: =SUM(SUMIFS(BI$3:BI$8,$A$3:$A$8,IF(Dashboard!$B$44:$B$100=TRIM(SUBSTITUTE($A12,"TOTAL","",1)),Dashboard!$A$44:$A$100),$B$3:$B$8,$B12)) -> 2312 | BJ12: 0.6026125816 | BL12: =SUM(SUMIFS(BL$3:BL$8,$A$3:$A$8,IF(Dashboard!$B$44:$B$100=TRIM(SUBSTITUTE($A12,"TOTAL","",1)),Dashboard!$A$44:$A$100),$B$3:$B$8,$B12)) -> 0
A13: P1 TOTAL | B13: Dallas | C13: =SUM(SUMIFS(C$3:C$8,$A$3:$A$8,IF(Dashboard!$B$44:$B$100=TRIM(SUBSTITUTE($A13,"TOTAL","",1)),Dashboard!$A$44:$A$100),$B$3:$B$8,$B13)) -> 0 | D13: =SUM(SUMIFS(D$3:D$8,$A$3:$A$8,IF(Dashboard!$B$44:$B$100=TRIM(SUBSTITUTE($A13,"TOTAL","",1)),Dashboard!$A$44:$A$100),$B$3:$B$8,$B13)) -> 0 | E13: =SUM(SUMIFS(E$3:E$8,$A$3:$A$8,IF(Dashboard!$B$44:$B$100=TRIM(SUBSTITUTE($A13,"TOTAL","",1)),Dashboard!$A$44:$A$100),$B$3:$B$8,$B13)) -> 0 | F13: 0 | G13: =SUM(SUMIFS(G$3:G$8,$A$3:$A$8,IF(Dashboard!$B$44:$B$100=TRIM(SUBSTITUTE($A13,"TOTAL","",1)),Dashboard!$A$44:$A$100),$B$3:$B$8,$B13)) -> 0 | H13: 0 | I13: =SUM(SUMIFS(I$3:I$8,$A$3:$A$8,IF(Dashboard!$B$44:$B$100=TRIM(SUBSTITUTE($A13,"TOTAL","",1)),Dashboard!$A$44:$A$100),$B$3:$B$8,$B13)) -> 0 | J13: =SUM(SUMIFS(J$3:J$8,$A$3:$A$8,IF(Dashboard!$B$44:$B$100=TRIM(SUBSTITUTE($A13,"TOTAL","",1)),Dashboard!$A$44:$A$100),$B$3:$B$8,$B13)) -> 0 | K13: =SUM(SUMIFS(K$3:K$8,$A$3:$A$8,IF(Dashboard!$B$44:$B$100=TRIM(SUBSTITUTE($A13,"TOTAL","",1)),Dashboard!$A$44:$A$100),$B$3:$B$8,$B13)) -> 0 | L13: =SUM(SUMIFS(L$3:L$8,$A$3:$A$8,IF(Dashboard!$B$44:$B$100=TRIM(SUBSTITUTE($A13,"TOTAL","",1)),Dashboard!$A$44:$A$100),$B$3:$B$8,$B13)) -> 0 | M13: =SUM(SUMIFS(M$3:M$8,$A$3:$A$8,IF(Dashboard!$B$44:$B$100=TRIM(SUBSTITUTE($A13,"TOTAL","",1)),Dashboard!$A$44:$A$100),$B$3:$B$8,$B13)) -> 0 | N13: =SUM(SUMIFS(N$3:N$8,$A$3:$A$8,IF(Dashboard!$B$44:$B$100=TRIM(SUBSTITUTE($A13,"TOTAL","",1)),Dashboard!$A$44:$A$100),$B$3:$B$8,$B13)) -> 0 | O13: =SUM(SUMIFS(O$3:O$8,$A$3:$A$8,IF(Dashboard!$B$44:$B$100=TRIM(SUBSTITUTE($A13,"TOTAL","",1)),Dashboard!$A$44:$A$100),$B$3:$B$8,$B13)) -> 0 | P13: =SUM(SUMIFS(P$3:P$8,$A$3:$A$8,IF(Dashboard!$B$44:$B$100=TRIM(SUBSTITUTE($A13,"TOTAL","",1)),Dashboard!$A$44:$A$100),$B$3:$B$8,$B13)) -> 0 | Q13: 0 | R13: 0 | S13: 0 | T13: 0 | V13: =SUM(SUMIFS(V$3:V$8,$A$3:$A$8,IF(Dashboard!$B$44:$B$100=TRIM(SUBSTITUTE($A13,"TOTAL","",1)),Dashboard!$A$44:$A$100),$B$3:$B$8,$B13)) -> 0 | W13: =SUM(SUMIFS(W$3:W$8,$A$3:$A$8,IF(Dashboard!$B$44:$B$100=TRIM(SUBSTITUTE($A13,"TOTAL","",1)),Dashboard!$A$44:$A$100),$B$3:$B$8,$B13)) -> 0 | X13: =SUM(SUMIFS(X$3:X$8,$A$3:$A$8,IF(Dashboard!$B$44:$B$100=TRIM(SUBSTITUTE($A13,"TOTAL","",1)),Dashboard!$A$44:$A$100),$B$3:$B$8,$B13)) -> 0 | Y13: 0 | Z13: =SUM(SUMIFS(Z$3:Z$8,$A$3:$A$8,IF(Dashboard!$B$44:$B$100=TRIM(SUBSTITUTE($A13,"TOTAL","",1)),Dashboard!$A$44:$A$100),$B$3:$B$8,$B13)) -> 0 | AA13: 0 | AB13: =SUM(SUMIFS(AB$3:AB$8,$A$3:$A$8,IF(Dashboard!$B$44:$B$100=TRIM(SUBSTITUTE($A13,"TOTAL","",1)),Dashboard!$A$44:$A$100),$B$3:$B$8,$B13)) -> 0 | AC13: =SUM(SUMIFS(AC$3:AC$8,$A$3:$A$8,IF(Dashboard!$B$44:$B$100=TRIM(SUBSTITUTE($A13,"TOTAL","",1)),Dashboard!$A$44:$A$100),$B$3:$B$8,$B13)) -> 0 | AD13: =SUM(SUMIFS(AD$3:AD$8,$A$3:$A$8,IF(Dashboard!$B$44:$B$100=TRIM(SUBSTITUTE($A13,"TOTAL","",1)),Dashboard!$A$44:$A$100),$B$3:$B$8,$B13)) -> 0 | AE13: =SUM(SUMIFS(AE$3:AE$8,$A$3:$A$8,IF(Dashboard!$B$44:$B$100=TRIM(SUBSTITUTE($A13,"TOTAL","",1)),Dashboard!$A$44:$A$100),$B$3:$B$8,$B13)) -> 0 | AF13: =SUM(SUMIFS(AF$3:AF$8,$A$3:$A$8,IF(Dashboard!$B$44:$B$100=TRIM(SUBSTITUTE($A13,"TOTAL","",1)),Dashboard!$A$44:$A$100),$B$3:$B$8,$B13)) -> 0 | AG13: =SUM(SUMIFS(AG$3:AG$8,$A$3:$A$8,IF(Dashboard!$B$44:$B$100=TRIM(SUBSTITUTE($A13,"TOTAL","",1)),Dashboard!$A$44:$A$100),$B$3:$B$8,$B13)) -> 0 | AH13: =SUM(SUMIFS(AH$3:AH$8,$A$3:$A$8,IF(Dashboard!$B$44:$B$100=TRIM(SUBSTITUTE($A13,"TOTAL","",1)),Dashboard!$A$44:$A$100),$B$3:$B$8,$B13)) -> 0 | AI13: =SUM(SUMIFS(AI$3:AI$8,$A$3:$A$8,IF(Dashboard!$B$44:$B$100=TRIM(SUBSTITUTE($A13,"TOTAL","",1)),Dashboard!$A$44:$A$100),$B$3:$B$8,$B13)) -> 0 | AJ13: 0 | AK13: 0 | AM13: =SUM(SUMIFS(AM$3:AM$8,$A$3:$A$8,IF(Dashboard!$B$44:$B$100=TRIM(SUBSTITUTE($A13,"TOTAL","",1)),Dashboard!$A$44:$A$100),$B$3:$B$8,$B13)) -> 0 | AN13: =SUM(SUMIFS(AN$3:AN$8,$A$3:$A$8,IF(Dashboard!$B$44:$B$100=TRIM(SUBSTITUTE($A13,"TOTAL","",1)),Dashboard!$A$44:$A$100),$B$3:$B$8,$B13)) -> 0 | AO13: =SUM(SUMIFS(AO$3:AO$8,$A$3:$A$8,IF(Dashboard!$B$44:$B$100=TRIM(SUBSTITUTE($A13,"TOTAL","",1)),Dashboard!$A$44:$A$100),$B$3:$B$8,$B13)) -> 0 | AP13: =SUM(SUMIFS(AP$3:AP$8,$A$3:$A$8,IF(Dashboard!$B$44:$B$100=TRIM(SUBSTITUTE($A13,"TOTAL","",1)),Dashboard!$A$44:$A$100),$B$3:$B$8,$B13)) -> 0 | AQ13: =SUM(SUMIFS(AQ$3:AQ$8,$A$3:$A$8,IF(Dashboard!$B$44:$B$100=TRIM(SUBSTITUTE($A13,"TOTAL","",1)),Dashboard!$A$44:$A$100),$B$3:$B$8,$B13)) -> 0 | AR13: =SUM(SUMIFS(AR$3:AR$8,$A$3:$A$8,IF(Dashboard!$B$44:$B$100=TRIM(SUBSTITUTE($A13,"TOTAL","",1)),Dashboard!$A$44:$A$100),$B$3:$B$8,$B13)) -> 0 | AT13: =SUM(SUMIFS(AT$3:AT$8,$A$3:$A$8,IF(Dashboard!$B$44:$B$100=TRIM(SUBSTITUTE($A13,"TOTAL","",1)),Dashboard!$A$44:$A$100),$B$3:$B$8,$B13)) -> 0 | AV13: =SUM(SUMIFS(AV$3:AV$8,$A$3:$A$8,IF(Dashboard!$B$44:$B$100=TRIM(SUBSTITUTE($A13,"TOTAL","",1)),Dashboard!$A$44:$A$100),$B$3:$B$8,$B13)) -> 0 | AW13: =SUM(SUMIFS(AW$3:AW$8,$A$3:$A$8,IF(Dashboard!$B$44:$B$100=TRIM(SUBSTITUTE($A13,"TOTAL","",1)),Dashboard!$A$44:$A$100),$B$3:$B$8,$B13)) -> 0 | AX13: =SUM(SUMIFS(AX$3:AX$8,$A$3:$A$8,IF(Dashboard!$B$44:$B$100=TRIM(SUBSTITUTE($A13,"TOTAL","",1)),Dashboard!$A$44:$A$100),$B$3:$B$8,$B13)) -> 0 | AY13: 0 | BA13: 0 | BB13: 0 | BD13: =SUM(SUMIFS(BD$3:BD$8,$A$3:$A$8,IF(Dashboard!$B$44:$B$100=TRIM(SUBSTITUTE($A13,"TOTAL","",1)),Dashboard!$A$44:$A$100),$B$3:$B$8,$B13)) -> 0 | BE13: =SUM(SUMIFS(BE$3:BE$8,$A$3:$A$8,IF(Dashboard!$B$44:$B$100=TRIM(SUBSTITUTE($A13,"TOTAL","",1)),Dashboard!$A$44:$A$100),$B$3:$B$8,$B13)) -> 0 | BF13: 0 | BH13: =SUM(SUMIFS(BH$3:BH$8,$A$3:$A$8,IF(Dashboard!$B$44:$B$100=TRIM(SUBSTITUTE($A13,"TOTAL","",1)),Dashboard!$A$44:$A$100),$B$3:$B$8,$B13)) -> 0 | BI13: =SUM(SUMIFS(BI$3:BI$8,$A$3:$A$8,IF(Dashboard!$B$44:$B$100=TRIM(SUBSTITUTE($A13,"TOTAL","",1)),Dashboard!$A$44:$A$100),$B$3:$B$8,$B13)) -> 0 | BJ13: 0 | BL13: =SUM(SUMIFS(BL$3:BL$8,$A$3:$A$8,IF(Dashboard!$B$44:$B$100=TRIM(SUBSTITUTE($A13,"TOTAL","",1)),Dashboard!$A$44:$A$100),$B$3:$B$8,$B13)) -> 0
A14: P1 TOTAL | B14: Denver | C14: =SUM(SUMIFS(C$3:C$8,$A$3:$A$8,IF(Dashboard!$B$44:$B$100=TRIM(SUBSTITUTE($A14,"TOTAL","",1)),Dashboard!$A$44:$A$100),$B$3:$B$8,$B14)) -> 0 | D14: =SUM(SUMIFS(D$3:D$8,$A$3:$A$8,IF(Dashboard!$B$44:$B$100=TRIM(SUBSTITUTE($A14,"TOTAL","",1)),Dashboard!$A$44:$A$100),$B$3:$B$8,$B14)) -> 0 | E14: =SUM(SUMIFS(E$3:E$8,$A$3:$A$8,IF(Dashboard!$B$44:$B$100=TRIM(SUBSTITUTE($A14,"TOTAL","",1)),Dashboard!$A$44:$A$100),$B$3:$B$8,$B14)) -> 0 | F14: 0 | G14: =SUM(SUMIFS(G$3:G$8,$A$3:$A$8,IF(Dashboard!$B$44:$B$100=TRIM(SUBSTITUTE($A14,"TOTAL","",1)),Dashboard!$A$44:$A$100),$B$3:$B$8,$B14)) -> 0 | H14: 0 | I14: =SUM(SUMIFS(I$3:I$8,$A$3:$A$8,IF(Dashboard!$B$44:$B$100=TRIM(SUBSTITUTE($A14,"TOTAL","",1)),Dashboard!$A$44:$A$100),$B$3:$B$8,$B14)) -> 0 | J14: =SUM(SUMIFS(J$3:J$8,$A$3:$A$8,IF(Dashboard!$B$44:$B$100=TRIM(SUBSTITUTE($A14,"TOTAL","",1)),Dashboard!$A$44:$A$100),$B$3:$B$8,$B14)) -> 0 | K14: =SUM(SUMIFS(K$3:K$8,$A$3:$A$8,IF(Dashboard!$B$44:$B$100=TRIM(SUBSTITUTE($A14,"TOTAL","",1)),Dashboard!$A$44:$A$100),$B$3:$B$8,$B14)) -> 0 | L14: =SUM(SUMIFS(L$3:L$8,$A$3:$A$8,IF(Dashboard!$B$44:$B$100=TRIM(SUBSTITUTE($A14,"TOTAL","",1)),Dashboard!$A$44:$A$100),$B$3:$B$8,$B14)) -> 0 | M14: =SUM(SUMIFS(M$3:M$8,$A$3:$A$8,IF(Dashboard!$B$44:$B$100=TRIM(SUBSTITUTE($A14,"TOTAL","",1)),Dashboard!$A$44:$A$100),$B$3:$B$8,$B14)) -> 0 | N14: =SUM(SUMIFS(N$3:N$8,$A$3:$A$8,IF(Dashboard!$B$44:$B$100=TRIM(SUBSTITUTE($A14,"TOTAL","",1)),Dashboard!$A$44:$A$100),$B$3:$B$8,$B14)) -> 0 | O14: =SUM(SUMIFS(O$3:O$8,$A$3:$A$8,IF(Dashboard!$B$44:$B$100=TRIM(SUBSTITUTE($A14,"TOTAL","",1)),Dashboard!$A$44:$A$100),$B$3:$B$8,$B14)) -> 0 | P14: =SUM(SUMIFS(P$3:P$8,$A$3:$A$8,IF(Dashboard!$B$44:$B$100=TRIM(SUBSTITUTE($A14,"TOTAL","",1)),Dashboard!$A$44:$A$100),$B$3:$B$8,$B14)) -> 0 | Q14: 0 | R14: 0 | S14: 0 | T14: 0 | V14: =SUM(SUMIFS(V$3:V$8,$A$3:$A$8,IF(Dashboard!$B$44:$B$100=TRIM(SUBSTITUTE($A14,"TOTAL","",1)),Dashboard!$A$44:$A$100),$B$3:$B$8,$B14)) -> 0 | W14: =SUM(SUMIFS(W$3:W$8,$A$3:$A$8,IF(Dashboard!$B$44:$B$100=TRIM(SUBSTITUTE($A14,"TOTAL","",1)),Dashboard!$A$44:$A$100),$B$3:$B$8,$B14)) -> 0 | X14: =SUM(SUMIFS(X$3:X$8,$A$3:$A$8,IF(Dashboard!$B$44:$B$100=TRIM(SUBSTITUTE($A14,"TOTAL","",1)),Dashboard!$A$44:$A$100),$B$3:$B$8,$B14)) -> 0 | Y14: 0 | Z14: =SUM(SUMIFS(Z$3:Z$8,$A$3:$A$8,IF(Dashboard!$B$44:$B$100=TRIM(SUBSTITUTE($A14,"TOTAL","",1)),Dashboard!$A$44:$A$100),$B$3:$B$8,$B14)) -> 0 | AA14: 0 | AB14: =SUM(SUMIFS(AB$3:AB$8,$A$3:$A$8,IF(Dashboard!$B$44:$B$100=TRIM(SUBSTITUTE($A14,"TOTAL","",1)),Dashboard!$A$44:$A$100),$B$3:$B$8,$B14)) -> 0 | AC14: =SUM(SUMIFS(AC$3:AC$8,$A$3:$A$8,IF(Dashboard!$B$44:$B$100=TRIM(SUBSTITUTE($A14,"TOTAL","",1)),Dashboard!$A$44:$A$100),$B$3:$B$8,$B14)) -> 0 | AD14: =SUM(SUMIFS(AD$3:AD$8,$A$3:$A$8,IF(Dashboard!$B$44:$B$100=TRIM(SUBSTITUTE($A14,"TOTAL","",1)),Dashboard!$A$44:$A$100),$B$3:$B$8,$B14)) -> 0 | AE14: =SUM(SUMIFS(AE$3:AE$8,$A$3:$A$8,IF(Dashboard!$B$44:$B$100=TRIM(SUBSTITUTE($A14,"TOTAL","",1)),Dashboard!$A$44:$A$100),$B$3:$B$8,$B14)) -> 0 | AF14: =SUM(SUMIFS(AF$3:AF$8,$A$3:$A$8,IF(Dashboard!$B$44:$B$100=TRIM(SUBSTITUTE($A14,"TOTAL","",1)),Dashboard!$A$44:$A$100),$B$3:$B$8,$B14)) -> 0 | AG14: =SUM(SUMIFS(AG$3:AG$8,$A$3:$A$8,IF(Dashboard!$B$44:$B$100=TRIM(SUBSTITUTE($A14,"TOTAL","",1)),Dashboard!$A$44:$A$100),$B$3:$B$8,$B14)) -> 0 | AH14: =SUM(SUMIFS(AH$3:AH$8,$A$3:$A$8,IF(Dashboard!$B$44:$B$100=TRIM(SUBSTITUTE($A14,"TOTAL","",1)),Dashboard!$A$44:$A$100),$B$3:$B$8,$B14)) -> 0 | AI14: =SUM(SUMIFS(AI$3:AI$8,$A$3:$A$8,IF(Dashboard!$B$44:$B$100=TRIM(SUBSTITUTE($A14,"TOTAL","",1)),Dashboard!$A$44:$A$100),$B$3:$B$8,$B14)) -> 0 | AJ14: 0 | AK14: 0 | AM14: =SUM(SUMIFS(AM$3:AM$8,$A$3:$A$8,IF(Dashboard!$B$44:$B$100=TRIM(SUBSTITUTE($A14,"TOTAL","",1)),Dashboard!$A$44:$A$100),$B$3:$B$8,$B14)) -> 0 | AN14: =SUM(SUMIFS(AN$3:AN$8,$A$3:$A$8,IF(Dashboard!$B$44:$B$100=TRIM(SUBSTITUTE($A14,"TOTAL","",1)),Dashboard!$A$44:$A$100),$B$3:$B$8,$B14)) -> 0 | AO14: =SUM(SUMIFS(AO$3:AO$8,$A$3:$A$8,IF(Dashboard!$B$44:$B$100=TRIM(SUBSTITUTE($A14,"TOTAL","",1)),Dashboard!$A$44:$A$100),$B$3:$B$8,$B14)) -> 0 | AP14: =SUM(SUMIFS(AP$3:AP$8,$A$3:$A$8,IF(Dashboard!$B$44:$B$100=TRIM(SUBSTITUTE($A14,"TOTAL","",1)),Dashboard!$A$44:$A$100),$B$3:$B$8,$B14)) -> 0 | AQ14: =SUM(SUMIFS(AQ$3:AQ$8,$A$3:$A$8,IF(Dashboard!$B$44:$B$100=TRIM(SUBSTITUTE($A14,"TOTAL","",1)),Dashboard!$A$44:$A$100),$B$3:$B$8,$B14)) -> 0 | AR14: =SUM(SUMIFS(AR$3:AR$8,$A$3:$A$8,IF(Dashboard!$B$44:$B$100=TRIM(SUBSTITUTE($A14,"TOTAL","",1)),Dashboard!$A$44:$A$100),$B$3:$B$8,$B14)) -> 0 | AT14: =SUM(SUMIFS(AT$3:AT$8,$A$3:$A$8,IF(Dashboard!$B$44:$B$100=TRIM(SUBSTITUTE($A14,"TOTAL","",1)),Dashboard!$A$44:$A$100),$B$3:$B$8,$B14)) -> 0 | AV14: =SUM(SUMIFS(AV$3:AV$8,$A$3:$A$8,IF(Dashboard!$B$44:$B$100=TRIM(SUBSTITUTE($A14,"TOTAL","",1)),Dashboard!$A$44:$A$100),$B$3:$B$8,$B14)) -> 0 | AW14: =SUM(SUMIFS(AW$3:AW$8,$A$3:$A$8,IF(Dashboard!$B$44:$B$100=TRIM(SUBSTITUTE($A14,"TOTAL","",1)),Dashboard!$A$44:$A$100),$B$3:$B$8,$B14)) -> 0 | AX14: =SUM(SUMIFS(AX$3:AX$8,$A$3:$A$8,IF(Dashboard!$B$44:$B$100=TRIM(SUBSTITUTE($A14,"TOTAL","",1)),Dashboard!$A$44:$A$100),$B$3:$B$8,$B14)) -> 0 | AY14: 0 | BA14: 0 | BB14: 0 | BD14: =SUM(SUMIFS(BD$3:BD$8,$A$3:$A$8,IF(Dashboard!$B$44:$B$100=TRIM(SUBSTITUTE($A14,"TOTAL","",1)),Dashboard!$A$44:$A$100),$B$3:$B$8,$B14)) -> 0 | BE14: =SUM(SUMIFS(BE$3:BE$8,$A$3:$A$8,IF(Dashboard!$B$44:$B$100=TRIM(SUBSTITUTE($A14,"TOTAL","",1)),Dashboard!$A$44:$A$100),$B$3:$B$8,$B14)) -> 0 | BF14: 0 | BH14: =SUM(SUMIFS(BH$3:BH$8,$A$3:$A$8,IF(Dashboard!$B$44:$B$100=TRIM(SUBSTITUTE($A14,"TOTAL","",1)),Dashboard!$A$44:$A$100),$B$3:$B$8,$B14)) -> 0 | BI14: =SUM(SUMIFS(BI$3:BI$8,$A$3:$A$8,IF(Dashboard!$B$44:$B$100=TRIM(SUBSTITUTE($A14,"TOTAL","",1)),Dashboard!$A$44:$A$100),$B$3:$B$8,$B14)) -> 0 | BJ14: 0 | BL14: =SUM(SUMIFS(BL$3:BL$8,$A$3:$A$8,IF(Dashboard!$B$44:$B$100=TRIM(SUBSTITUTE($A14,"TOTAL","",1)),Dashboard!$A$44:$A$100),$B$3:$B$8,$B14)) -> 0
A15: P1 TOTAL | B15: Detroit | C15: =SUM(SUMIFS(C$3:C$8,$A$3:$A$8,IF(Dashboard!$B$44:$B$100=TRIM(SUBSTITUTE($A15,"TOTAL","",1)),Dashboard!$A$44:$A$100),$B$3:$B$8,$B15)) -> 0 | D15: =SUM(SUMIFS(D$3:D$8,$A$3:$A$8,IF(Dashboard!$B$44:$B$100=TRIM(SUBSTITUTE($A15,"TOTAL","",1)),Dashboard!$A$44:$A$100),$B$3:$B$8,$B15)) -> 0 | E15: =SUM(SUMIFS(E$3:E$8,$A$3:$A$8,IF(Dashboard!$B$44:$B$100=TRIM(SUBSTITUTE($A15,"TOTAL","",1)),Dashboard!$A$44:$A$100),$B$3:$B$8,$B15)) -> 0 | F15: 0 | G15: =SUM(SUMIFS(G$3:G$8,$A$3:$A$8,IF(Dashboard!$B$44:$B$100=TRIM(SUBSTITUTE($A15,"TOTAL","",1)),Dashboard!$A$44:$A$100),$B$3:$B$8,$B15)) -> 0 | H15: 0 | I15: =SUM(SUMIFS(I$3:I$8,$A$3:$A$8,IF(Dashboard!$B$44:$B$100=TRIM(SUBSTITUTE($A15,"TOTAL","",1)),Dashboard!$A$44:$A$100),$B$3:$B$8,$B15)) -> 0 | J15: =SUM(SUMIFS(J$3:J$8,$A$3:$A$8,IF(Dashboard!$B$44:$B$100=TRIM(SUBSTITUTE($A15,"TOTAL","",1)),Dashboard!$A$44:$A$100),$B$3:$B$8,$B15)) -> 0 | K15: =SUM(SUMIFS(K$3:K$8,$A$3:$A$8,IF(Dashboard!$B$44:$B$100=TRIM(SUBSTITUTE($A15,"TOTAL","",1)),Dashboard!$A$44:$A$100),$B$3:$B$8,$B15)) -> 0 | L15: =SUM(SUMIFS(L$3:L$8,$A$3:$A$8,IF(Dashboard!$B$44:$B$100=TRIM(SUBSTITUTE($A15,"TOTAL","",1)),Dashboard!$A$44:$A$100),$B$3:$B$8,$B15)) -> 0 | M15: =SUM(SUMIFS(M$3:M$8,$A$3:$A$8,IF(Dashboard!$B$44:$B$100=TRIM(SUBSTITUTE($A15,"TOTAL","",1)),Dashboard!$A$44:$A$100),$B$3:$B$8,$B15)) -> 0 | N15: =SUM(SUMIFS(N$3:N$8,$A$3:$A$8,IF(Dashboard!$B$44:$B$100=TRIM(SUBSTITUTE($A15,"TOTAL","",1)),Dashboard!$A$44:$A$100),$B$3:$B$8,$B15)) -> 0 | O15: =SUM(SUMIFS(O$3:O$8,$A$3:$A$8,IF(Dashboard!$B$44:$B$100=TRIM(SUBSTITUTE($A15,"TOTAL","",1)),Dashboard!$A$44:$A$100),$B$3:$B$8,$B15)) -> 0 | P15: =SUM(SUMIFS(P$3:P$8,$A$3:$A$8,IF(Dashboard!$B$44:$B$100=TRIM(SUBSTITUTE($A15,"TOTAL","",1)),Dashboard!$A$44:$A$100),$B$3:$B$8,$B15)) -> 0 | Q15: 0 | R15: 0 | S15: 0 | T15: 0 | V15: =SUM(SUMIFS(V$3:V$8,$A$3:$A$8,IF(Dashboard!$B$44:$B$100=TRIM(SUBSTITUTE($A15,"TOTAL","",1)),Dashboard!$A$44:$A$100),$B$3:$B$8,$B15)) -> 0 | W15: =SUM(SUMIFS(W$3:W$8,$A$3:$A$8,IF(Dashboard!$B$44:$B$100=TRIM(SUBSTITUTE($A15,"TOTAL","",1)),Dashboard!$A$44:$A$100),$B$3:$B$8,$B15)) -> 0 | X15: =SUM(SUMIFS(X$3:X$8,$A$3:$A$8,IF(Dashboard!$B$44:$B$100=TRIM(SUBSTITUTE($A15,"TOTAL","",1)),Dashboard!$A$44:$A$100),$B$3:$B$8,$B15)) -> 0 | Y15: 0 | Z15: =SUM(SUMIFS(Z$3:Z$8,$A$3:$A$8,IF(Dashboard!$B$44:$B$100=TRIM(SUBSTITUTE($A15,"TOTAL","",1)),Dashboard!$A$44:$A$100),$B$3:$B$8,$B15)) -> 0 | AA15: 0 | AB15: =SUM(SUMIFS(AB$3:AB$8,$A$3:$A$8,IF(Dashboard!$B$44:$B$100=TRIM(SUBSTITUTE($A15,"TOTAL","",1)),Dashboard!$A$44:$A$100),$B$3:$B$8,$B15)) -> 0 | AC15: =SUM(SUMIFS(AC$3:AC$8,$A$3:$A$8,IF(Dashboard!$B$44:$B$100=TRIM(SUBSTITUTE($A15,"TOTAL","",1)),Dashboard!$A$44:$A$100),$B$3:$B$8,$B15)) -> 0 | AD15: =SUM(SUMIFS(AD$3:AD$8,$A$3:$A$8,IF(Dashboard!$B$44:$B$100=TRIM(SUBSTITUTE($A15,"TOTAL","",1)),Dashboard!$A$44:$A$100),$B$3:$B$8,$B15)) -> 0 | AE15: =SUM(SUMIFS(AE$3:AE$8,$A$3:$A$8,IF(Dashboard!$B$44:$B$100=TRIM(SUBSTITUTE($A15,"TOTAL","",1)),Dashboard!$A$44:$A$100),$B$3:$B$8,$B15)) -> 0 | AF15: =SUM(SUMIFS(AF$3:AF$8,$A$3:$A$8,IF(Dashboard!$B$44:$B$100=TRIM(SUBSTITUTE($A15,"TOTAL","",1)),Dashboard!$A$44:$A$100),$B$3:$B$8,$B15)) -> 0 | AG15: =SUM(SUMIFS(AG$3:AG$8,$A$3:$A$8,IF(Dashboard!$B$44:$B$100=TRIM(SUBSTITUTE($A15,"TOTAL","",1)),Dashboard!$A$44:$A$100),$B$3:$B$8,$B15)) -> 0 | AH15: =SUM(SUMIFS(AH$3:AH$8,$A$3:$A$8,IF(Dashboard!$B$44:$B$100=TRIM(SUBSTITUTE($A15,"TOTAL","",1)),Dashboard!$A$44:$A$100),$B$3:$B$8,$B15)) -> 0 | AI15: =SUM(SUMIFS(AI$3:AI$8,$A$3:$A$8,IF(Dashboard!$B$44:$B$100=TRIM(SUBSTITUTE($A15,"TOTAL","",1)),Dashboard!$A$44:$A$100),$B$3:$B$8,$B15)) -> 0 | AJ15: 0 | AK15: 0 | AM15: =SUM(SUMIFS(AM$3:AM$8,$A$3:$A$8,IF(Dashboard!$B$44:$B$100=TRIM(SUBSTITUTE($A15,"TOTAL","",1)),Dashboard!$A$44:$A$100),$B$3:$B$8,$B15)) -> 0 | AN15: =SUM(SUMIFS(AN$3:AN$8,$A$3:$A$8,IF(Dashboard!$B$44:$B$100=TRIM(SUBSTITUTE($A15,"TOTAL","",1)),Dashboard!$A$44:$A$100),$B$3:$B$8,$B15)) -> 0 | AO15: =SUM(SUMIFS(AO$3:AO$8,$A$3:$A$8,IF(Dashboard!$B$44:$B$100=TRIM(SUBSTITUTE($A15,"TOTAL","",1)),Dashboard!$A$44:$A$100),$B$3:$B$8,$B15)) -> 0 | AP15: =SUM(SUMIFS(AP$3:AP$8,$A$3:$A$8,IF(Dashboard!$B$44:$B$100=TRIM(SUBSTITUTE($A15,"TOTAL","",1)),Dashboard!$A$44:$A$100),$B$3:$B$8,$B15)) -> 0 | AQ15: =SUM(SUMIFS(AQ$3:AQ$8,$A$3:$A$8,IF(Dashboard!$B$44:$B$100=TRIM(SUBSTITUTE($A15,"TOTAL","",1)),Dashboard!$A$44:$A$100),$B$3:$B$8,$B15)) -> 0 | AR15: =SUM(SUMIFS(AR$3:AR$8,$A$3:$A$8,IF(Dashboard!$B$44:$B$100=TRIM(SUBSTITUTE($A15,"TOTAL","",1)),Dashboard!$A$44:$A$100),$B$3:$B$8,$B15)) -> 0 | AT15: =SUM(SUMIFS(AT$3:AT$8,$A$3:$A$8,IF(Dashboard!$B$44:$B$100=TRIM(SUBSTITUTE($A15,"TOTAL","",1)),Dashboard!$A$44:$A$100),$B$3:$B$8,$B15)) -> 0 | AV15: =SUM(SUMIFS(AV$3:AV$8,$A$3:$A$8,IF(Dashboard!$B$44:$B$100=TRIM(SUBSTITUTE($A15,"TOTAL","",1)),Dashboard!$A$44:$A$100),$B$3:$B$8,$B15)) -> 0 | AW15: =SUM(SUMIFS(AW$3:AW$8,$A$3:$A$8,IF(Dashboard!$B$44:$B$100=TRIM(SUBSTITUTE($A15,"TOTAL","",1)),Dashboard!$A$44:$A$100),$B$3:$B$8,$B15)) -> 0 | AX15: =SUM(SUMIFS(AX$3:AX$8,$A$3:$A$8,IF(Dashboard!$B$44:$B$100=TRIM(SUBSTITUTE($A15,"TOTAL","",1)),Dashboard!$A$44:$A$100),$B$3:$B$8,$B15)) -> 0 | AY15: 0 | BA15: 0 | BB15: 0 | BD15: =SUM(SUMIFS(BD$3:BD$8,$A$3:$A$8,IF(Dashboard!$B$44:$B$100=TRIM(SUBSTITUTE($A15,"TOTAL","",1)),Dashboard!$A$44:$A$100),$B$3:$B$8,$B15)) -> 0 | BE15: =SUM(SUMIFS(BE$3:BE$8,$A$3:$A$8,IF(Dashboard!$B$44:$B$100=TRIM(SUBSTITUTE($A15,"TOTAL","",1)),Dashboard!$A$44:$A$100),$B$3:$B$8,$B15)) -> 0 | BF15: 0 | BH15: =SUM(SUMIFS(BH$3:BH$8,$A$3:$A$8,IF(Dashboard!$B$44:$B$100=TRIM(SUBSTITUTE($A15,"TOTAL","",1)),Dashboard!$A$44:$A$100),$B$3:$B$8,$B15)) -> 0 | BI15: =SUM(SUMIFS(BI$3:BI$8,$A$3:$A$8,IF(Dashboard!$B$44:$B$100=TRIM(SUBSTITUTE($A15,"TOTAL","",1)),Dashboard!$A$44:$A$100),$B$3:$B$8,$B15)) -> 0 | BJ15: 0 | BL15: =SUM(SUMIFS(BL$3:BL$8,$A$3:$A$8,IF(Dashboard!$B$44:$B$100=TRIM(SUBSTITUTE($A15,"TOTAL","",1)),Dashboard!$A$44:$A$100),$B$3:$B$8,$B15)) -> 0
A16: P1 TOTAL | B16: Houston | C16: =SUM(SUMIFS(C$3:C$8,$A$3:$A$8,IF(Dashboard!$B$44:$B$100=TRIM(SUBSTITUTE($A16,"TOTAL","",1)),Dashboard!$A$44:$A$100),$B$3:$B$8,$B16)) -> 0 | D16: =SUM(SUMIFS(D$3:D$8,$A$3:$A$8,IF(Dashboard!$B$44:$B$100=TRIM(SUBSTITUTE($A16,"TOTAL","",1)),Dashboard!$A$44:$A$100),$B$3:$B$8,$B16)) -> 0 | E16: =SUM(SUMIFS(E$3:E$8,$A$3:$A$8,IF(Dashboard!$B$44:$B$100=TRIM(SUBSTITUTE($A16,"TOTAL","",1)),Dashboard!$A$44:$A$100),$B$3:$B$8,$B16)) -> 0 | F16: 0 | G16: =SUM(SUMIFS(G$3:G$8,$A$3:$A$8,IF(Dashboard!$B$44:$B$100=TRIM(SUBSTITUTE($A16,"TOTAL","",1)),Dashboard!$A$44:$A$100),$B$3:$B$8,$B16)) -> 0 | H16: 0 | I16: =SUM(SUMIFS(I$3:I$8,$A$3:$A$8,IF(Dashboard!$B$44:$B$100=TRIM(SUBSTITUTE($A16,"TOTAL","",1)),Dashboard!$A$44:$A$100),$B$3:$B$8,$B16)) -> 0 | J16: =SUM(SUMIFS(J$3:J$8,$A$3:$A$8,IF(Dashboard!$B$44:$B$100=TRIM(SUBSTITUTE($A16,"TOTAL","",1)),Dashboard!$A$44:$A$100),$B$3:$B$8,$B16)) -> 0 | K16: =SUM(SUMIFS(K$3:K$8,$A$3:$A$8,IF(Dashboard!$B$44:$B$100=TRIM(SUBSTITUTE($A16,"TOTAL","",1)),Dashboard!$A$44:$A$100),$B$3:$B$8,$B16)) -> 0 | L16: =SUM(SUMIFS(L$3:L$8,$A$3:$A$8,IF(Dashboard!$B$44:$B$100=TRIM(SUBSTITUTE($A16,"TOTAL","",1)),Dashboard!$A$44:$A$100),$B$3:$B$8,$B16)) -> 0 | M16: =SUM(SUMIFS(M$3:M$8,$A$3:$A$8,IF(Dashboard!$B$44:$B$100=TRIM(SUBSTITUTE($A16,"TOTAL","",1)),Dashboard!$A$44:$A$100),$B$3:$B$8,$B16)) -> 0 | N16: =SUM(SUMIFS(N$3:N$8,$A$3:$A$8,IF(Dashboard!$B$44:$B$100=TRIM(SUBSTITUTE($A16,"TOTAL","",1)),Dashboard!$A$44:$A$100),$B$3:$B$8,$B16)) -> 0 | O16: =SUM(SUMIFS(O$3:O$8,$A$3:$A$8,IF(Dashboard!$B$44:$B$100=TRIM(SUBSTITUTE($A16,"TOTAL","",1)),Dashboard!$A$44:$A$100),$B$3:$B$8,$B16)) -> 0 | P16: =SUM(SUMIFS(P$3:P$8,$A$3:$A$8,IF(Dashboard!$B$44:$B$100=TRIM(SUBSTITUTE($A16,"TOTAL","",1)),Dashboard!$A$44:$A$100),$B$3:$B$8,$B16)) -> 0 | Q16: 0 | R16: 0 | S16: 0 | T16: 0 | V16: =SUM(SUMIFS(V$3:V$8,$A$3:$A$8,IF(Dashboard!$B$44:$B$100=TRIM(SUBSTITUTE($A16,"TOTAL","",1)),Dashboard!$A$44:$A$100),$B$3:$B$8,$B16)) -> 0 | W16: =SUM(SUMIFS(W$3:W$8,$A$3:$A$8,IF(Dashboard!$B$44:$B$100=TRIM(SUBSTITUTE($A16,"TOTAL","",1)),Dashboard!$A$44:$A$100),$B$3:$B$8,$B16)) -> 0 | X16: =SUM(SUMIFS(X$3:X$8,$A$3:$A$8,IF(Dashboard!$B$44:$B$100=TRIM(SUBSTITUTE($A16,"TOTAL","",1)),Dashboard!$A$44:$A$100),$B$3:$B$8,$B16)) -> 0 | Y16: 0 | Z16: =SUM(SUMIFS(Z$3:Z$8,$A$3:$A$8,IF(Dashboard!$B$44:$B$100=TRIM(SUBSTITUTE($A16,"TOTAL","",1)),Dashboard!$A$44:$A$100),$B$3:$B$8,$B16)) -> 0 | AA16: 0 | AB16: =SUM(SUMIFS(AB$3:AB$8,$A$3:$A$8,IF(Dashboard!$B$44:$B$100=TRIM(SUBSTITUTE($A16,"TOTAL","",1)),Dashboard!$A$44:$A$100),$B$3:$B$8,$B16)) -> 0 | AC16: =SUM(SUMIFS(AC$3:AC$8,$A$3:$A$8,IF(Dashboard!$B$44:$B$100=TRIM(SUBSTITUTE($A16,"TOTAL","",1)),Dashboard!$A$44:$A$100),$B$3:$B$8,$B16)) -> 0 | AD16: =SUM(SUMIFS(AD$3:AD$8,$A$3:$A$8,IF(Dashboard!$B$44:$B$100=TRIM(SUBSTITUTE($A16,"TOTAL","",1)),Dashboard!$A$44:$A$100),$B$3:$B$8,$B16)) -> 0 | AE16: =SUM(SUMIFS(AE$3:AE$8,$A$3:$A$8,IF(Dashboard!$B$44:$B$100=TRIM(SUBSTITUTE($A16,"TOTAL","",1)),Dashboard!$A$44:$A$100),$B$3:$B$8,$B16)) -> 0 | AF16: =SUM(SUMIFS(AF$3:AF$8,$A$3:$A$8,IF(Dashboard!$B$44:$B$100=TRIM(SUBSTITUTE($A16,"TOTAL","",1)),Dashboard!$A$44:$A$100),$B$3:$B$8,$B16)) -> 0 | AG16: =SUM(SUMIFS(AG$3:AG$8,$A$3:$A$8,IF(Dashboard!$B$44:$B$100=TRIM(SUBSTITUTE($A16,"TOTAL","",1)),Dashboard!$A$44:$A$100),$B$3:$B$8,$B16)) -> 0 | AH16: =SUM(SUMIFS(AH$3:AH$8,$A$3:$A$8,IF(Dashboard!$B$44:$B$100=TRIM(SUBSTITUTE($A16,"TOTAL","",1)),Dashboard!$A$44:$A$100),$B$3:$B$8,$B16)) -> 0 | AI16: =SUM(SUMIFS(AI$3:AI$8,$A$3:$A$8,IF(Dashboard!$B$44:$B$100=TRIM(SUBSTITUTE($A16,"TOTAL","",1)),Dashboard!$A$44:$A$100),$B$3:$B$8,$B16)) -> 0 | AJ16: 0 | AK16: 0 | AM16: =SUM(SUMIFS(AM$3:AM$8,$A$3:$A$8,IF(Dashboard!$B$44:$B$100=TRIM(SUBSTITUTE($A16,"TOTAL","",1)),Dashboard!$A$44:$A$100),$B$3:$B$8,$B16)) -> 0 | AN16: =SUM(SUMIFS(AN$3:AN$8,$A$3:$A$8,IF(Dashboard!$B$44:$B$100=TRIM(SUBSTITUTE($A16,"TOTAL","",1)),Dashboard!$A$44:$A$100),$B$3:$B$8,$B16)) -> 0 | AO16: =SUM(SUMIFS(AO$3:AO$8,$A$3:$A$8,IF(Dashboard!$B$44:$B$100=TRIM(SUBSTITUTE($A16,"TOTAL","",1)),Dashboard!$A$44:$A$100),$B$3:$B$8,$B16)) -> 0 | AP16: =SUM(SUMIFS(AP$3:AP$8,$A$3:$A$8,IF(Dashboard!$B$44:$B$100=TRIM(SUBSTITUTE($A16,"TOTAL","",1)),Dashboard!$A$44:$A$100),$B$3:$B$8,$B16)) -> 0 | AQ16: =SUM(SUMIFS(AQ$3:AQ$8,$A$3:$A$8,IF(Dashboard!$B$44:$B$100=TRIM(SUBSTITUTE($A16,"TOTAL","",1)),Dashboard!$A$44:$A$100),$B$3:$B$8,$B16)) -> 0 | AR16: =SUM(SUMIFS(AR$3:AR$8,$A$3:$A$8,IF(Dashboard!$B$44:$B$100=TRIM(SUBSTITUTE($A16,"TOTAL","",1)),Dashboard!$A$44:$A$100),$B$3:$B$8,$B16)) -> 0 | AT16: =SUM(SUMIFS(AT$3:AT$8,$A$3:$A$8,IF(Dashboard!$B$44:$B$100=TRIM(SUBSTITUTE($A16,"TOTAL","",1)),Dashboard!$A$44:$A$100),$B$3:$B$8,$B16)) -> 0 | AV16: =SUM(SUMIFS(AV$3:AV$8,$A$3:$A$8,IF(Dashboard!$B$44:$B$100=TRIM(SUBSTITUTE($A16,"TOTAL","",1)),Dashboard!$A$44:$A$100),$B$3:$B$8,$B16)) -> 0 | AW16: =SUM(SUMIFS(AW$3:AW$8,$A$3:$A$8,IF(Dashboard!$B$44:$B$100=TRIM(SUBSTITUTE($A16,"TOTAL","",1)),Dashboard!$A$44:$A$100),$B$3:$B$8,$B16)) -> 0 | AX16: =SUM(SUMIFS(AX$3:AX$8,$A$3:$A$8,IF(Dashboard!$B$44:$B$100=TRIM(SUBSTITUTE($A16,"TOTAL","",1)),Dashboard!$A$44:$A$100),$B$3:$B$8,$B16)) -> 0 | AY16: 0 | BA16: 0 | BB16: 0 | BD16: =SUM(SUMIFS(BD$3:BD$8,$A$3:$A$8,IF(Dashboard!$B$44:$B$100=TRIM(SUBSTITUTE($A16,"TOTAL","",1)),Dashboard!$A$44:$A$100),$B$3:$B$8,$B16)) -> 0 | BE16: =SUM(SUMIFS(BE$3:BE$8,$A$3:$A$8,IF(Dashboard!$B$44:$B$100=TRIM(SUBSTITUTE($A16,"TOTAL","",1)),Dashboard!$A$44:$A$100),$B$3:$B$8,$B16)) -> 0 | BF16: 0 | BH16: =SUM(SUMIFS(BH$3:BH$8,$A$3:$A$8,IF(Dashboard!$B$44:$B$100=TRIM(SUBSTITUTE($A16,"TOTAL","",1)),Dashboard!$A$44:$A$100),$B$3:$B$8,$B16)) -> 0 | BI16: =SUM(SUMIFS(BI$3:BI$8,$A$3:$A$8,IF(Dashboard!$B$44:$B$100=TRIM(SUBSTITUTE($A16,"TOTAL","",1)),Dashboard!$A$44:$A$100),$B$3:$B$8,$B16)) -> 0 | BJ16: 0 | BL16: =SUM(SUMIFS(BL$3:BL$8,$A$3:$A$8,IF(Dashboard!$B$44:$B$100=TRIM(SUBSTITUTE($A16,"TOTAL","",1)),Dashboard!$A$44:$A$100),$B$3:$B$8,$B16)) -> 0
A17: P1 TOTAL | B17: Kansas City | C17: =SUM(SUMIFS(C$3:C$8,$A$3:$A$8,IF(Dashboard!$B$44:$B$100=TRIM(SUBSTITUTE($A17,"TOTAL","",1)),Dashboard!$A$44:$A$100),$B$3:$B$8,$B17)) -> 0 | D17: =SUM(SUMIFS(D$3:D$8,$A$3:$A$8,IF(Dashboard!$B$44:$B$100=TRIM(SUBSTITUTE($A17,"TOTAL","",1)),Dashboard!$A$44:$A$100),$B$3:$B$8,$B17)) -> 0 | E17: =SUM(SUMIFS(E$3:E$8,$A$3:$A$8,IF(Dashboard!$B$44:$B$100=TRIM(SUBSTITUTE($A17,"TOTAL","",1)),Dashboard!$A$44:$A$100),$B$3:$B$8,$B17)) -> 0 | F17: 0 | G17: =SUM(SUMIFS(G$3:G$8,$A$3:$A$8,IF(Dashboard!$B$44:$B$100=TRIM(SUBSTITUTE($A17,"TOTAL","",1)),Dashboard!$A$44:$A$100),$B$3:$B$8,$B17)) -> 0 | H17: 0 | I17: =SUM(SUMIFS(I$3:I$8,$A$3:$A$8,IF(Dashboard!$B$44:$B$100=TRIM(SUBSTITUTE($A17,"TOTAL","",1)),Dashboard!$A$44:$A$100),$B$3:$B$8,$B17)) -> 0 | J17: =SUM(SUMIFS(J$3:J$8,$A$3:$A$8,IF(Dashboard!$B$44:$B$100=TRIM(SUBSTITUTE($A17,"TOTAL","",1)),Dashboard!$A$44:$A$100),$B$3:$B$8,$B17)) -> 0 | K17: =SUM(SUMIFS(K$3:K$8,$A$3:$A$8,IF(Dashboard!$B$44:$B$100=TRIM(SUBSTITUTE($A17,"TOTAL","",1)),Dashboard!$A$44:$A$100),$B$3:$B$8,$B17)) -> 0 | L17: =SUM(SUMIFS(L$3:L$8,$A$3:$A$8,IF(Dashboard!$B$44:$B$100=TRIM(SUBSTITUTE($A17,"TOTAL","",1)),Dashboard!$A$44:$A$100),$B$3:$B$8,$B17)) -> 0 | M17: =SUM(SUMIFS(M$3:M$8,$A$3:$A$8,IF(Dashboard!$B$44:$B$100=TRIM(SUBSTITUTE($A17,"TOTAL","",1)),Dashboard!$A$44:$A$100),$B$3:$B$8,$B17)) -> 0 | N17: =SUM(SUMIFS(N$3:N$8,$A$3:$A$8,IF(Dashboard!$B$44:$B$100=TRIM(SUBSTITUTE($A17,"TOTAL","",1)),Dashboard!$A$44:$A$100),$B$3:$B$8,$B17)) -> 0 | O17: =SUM(SUMIFS(O$3:O$8,$A$3:$A$8,IF(Dashboard!$B$44:$B$100=TRIM(SUBSTITUTE($A17,"TOTAL","",1)),Dashboard!$A$44:$A$100),$B$3:$B$8,$B17)) -> 0 | P17: =SUM(SUMIFS(P$3:P$8,$A$3:$A$8,IF(Dashboard!$B$44:$B$100=TRIM(SUBSTITUTE($A17,"TOTAL","",1)),Dashboard!$A$44:$A$100),$B$3:$B$8,$B17)) -> 0 | Q17: 0 | R17: 0 | S17: 0 | T17: 0 | V17: =SUM(SUMIFS(V$3:V$8,$A$3:$A$8,IF(Dashboard!$B$44:$B$100=TRIM(SUBSTITUTE($A17,"TOTAL","",1)),Dashboard!$A$44:$A$100),$B$3:$B$8,$B17)) -> 0 | W17: =SUM(SUMIFS(W$3:W$8,$A$3:$A$8,IF(Dashboard!$B$44:$B$100=TRIM(SUBSTITUTE($A17,"TOTAL","",1)),Dashboard!$A$44:$A$100),$B$3:$B$8,$B17)) -> 0 | X17: =SUM(SUMIFS(X$3:X$8,$A$3:$A$8,IF(Dashboard!$B$44:$B$100=TRIM(SUBSTITUTE($A17,"TOTAL","",1)),Dashboard!$A$44:$A$100),$B$3:$B$8,$B17)) -> 0 | Y17: 0 | Z17: =SUM(SUMIFS(Z$3:Z$8,$A$3:$A$8,IF(Dashboard!$B$44:$B$100=TRIM(SUBSTITUTE($A17,"TOTAL","",1)),Dashboard!$A$44:$A$100),$B$3:$B$8,$B17)) -> 0 | AA17: 0 | AB17: =SUM(SUMIFS(AB$3:AB$8,$A$3:$A$8,IF(Dashboard!$B$44:$B$100=TRIM(SUBSTITUTE($A17,"TOTAL","",1)),Dashboard!$A$44:$A$100),$B$3:$B$8,$B17)) -> 0 | AC17: =SUM(SUMIFS(AC$3:AC$8,$A$3:$A$8,IF(Dashboard!$B$44:$B$100=TRIM(SUBSTITUTE($A17,"TOTAL","",1)),Dashboard!$A$44:$A$100),$B$3:$B$8,$B17)) -> 0 | AD17: =SUM(SUMIFS(AD$3:AD$8,$A$3:$A$8,IF(Dashboard!$B$44:$B$100=TRIM(SUBSTITUTE($A17,"TOTAL","",1)),Dashboard!$A$44:$A$100),$B$3:$B$8,$B17)) -> 0 | AE17: =SUM(SUMIFS(AE$3:AE$8,$A$3:$A$8,IF(Dashboard!$B$44:$B$100=TRIM(SUBSTITUTE($A17,"TOTAL","",1)),Dashboard!$A$44:$A$100),$B$3:$B$8,$B17)) -> 0 | AF17: =SUM(SUMIFS(AF$3:AF$8,$A$3:$A$8,IF(Dashboard!$B$44:$B$100=TRIM(SUBSTITUTE($A17,"TOTAL","",1)),Dashboard!$A$44:$A$100),$B$3:$B$8,$B17)) -> 0 | AG17: =SUM(SUMIFS(AG$3:AG$8,$A$3:$A$8,IF(Dashboard!$B$44:$B$100=TRIM(SUBSTITUTE($A17,"TOTAL","",1)),Dashboard!$A$44:$A$100),$B$3:$B$8,$B17)) -> 0 | AH17: =SUM(SUMIFS(AH$3:AH$8,$A$3:$A$8,IF(Dashboard!$B$44:$B$100=TRIM(SUBSTITUTE($A17,"TOTAL","",1)),Dashboard!$A$44:$A$100),$B$3:$B$8,$B17)) -> 0 | AI17: =SUM(SUMIFS(AI$3:AI$8,$A$3:$A$8,IF(Dashboard!$B$44:$B$100=TRIM(SUBSTITUTE($A17,"TOTAL","",1)),Dashboard!$A$44:$A$100),$B$3:$B$8,$B17)) -> 0 | AJ17: 0 | AK17: 0 | AM17: =SUM(SUMIFS(AM$3:AM$8,$A$3:$A$8,IF(Dashboard!$B$44:$B$100=TRIM(SUBSTITUTE($A17,"TOTAL","",1)),Dashboard!$A$44:$A$100),$B$3:$B$8,$B17)) -> 0 | AN17: =SUM(SUMIFS(AN$3:AN$8,$A$3:$A$8,IF(Dashboard!$B$44:$B$100=TRIM(SUBSTITUTE($A17,"TOTAL","",1)),Dashboard!$A$44:$A$100),$B$3:$B$8,$B17)) -> 0 | AO17: =SUM(SUMIFS(AO$3:AO$8,$A$3:$A$8,IF(Dashboard!$B$44:$B$100=TRIM(SUBSTITUTE($A17,"TOTAL","",1)),Dashboard!$A$44:$A$100),$B$3:$B$8,$B17)) -> 0 | AP17: =SUM(SUMIFS(AP$3:AP$8,$A$3:$A$8,IF(Dashboard!$B$44:$B$100=TRIM(SUBSTITUTE($A17,"TOTAL","",1)),Dashboard!$A$44:$A$100),$B$3:$B$8,$B17)) -> 0 | AQ17: =SUM(SUMIFS(AQ$3:AQ$8,$A$3:$A$8,IF(Dashboard!$B$44:$B$100=TRIM(SUBSTITUTE($A17,"TOTAL","",1)),Dashboard!$A$44:$A$100),$B$3:$B$8,$B17)) -> 0 | AR17: =SUM(SUMIFS(AR$3:AR$8,$A$3:$A$8,IF(Dashboard!$B$44:$B$100=TRIM(SUBSTITUTE($A17,"TOTAL","",1)),Dashboard!$A$44:$A$100),$B$3:$B$8,$B17)) -> 0 | AT17: =SUM(SUMIFS(AT$3:AT$8,$A$3:$A$8,IF(Dashboard!$B$44:$B$100=TRIM(SUBSTITUTE($A17,"TOTAL","",1)),Dashboard!$A$44:$A$100),$B$3:$B$8,$B17)) -> 0 | AV17: =SUM(SUMIFS(AV$3:AV$8,$A$3:$A$8,IF(Dashboard!$B$44:$B$100=TRIM(SUBSTITUTE($A17,"TOTAL","",1)),Dashboard!$A$44:$A$100),$B$3:$B$8,$B17)) -> 0 | AW17: =SUM(SUMIFS(AW$3:AW$8,$A$3:$A$8,IF(Dashboard!$B$44:$B$100=TRIM(SUBSTITUTE($A17,"TOTAL","",1)),Dashboard!$A$44:$A$100),$B$3:$B$8,$B17)) -> 0 | AX17: =SUM(SUMIFS(AX$3:AX$8,$A$3:$A$8,IF(Dashboard!$B$44:$B$100=TRIM(SUBSTITUTE($A17,"TOTAL","",1)),Dashboard!$A$44:$A$100),$B$3:$B$8,$B17)) -> 0 | AY17: 0 | BA17: 0 | BB17: 0 | BD17: =SUM(SUMIFS(BD$3:BD$8,$A$3:$A$8,IF(Dashboard!$B$44:$B$100=TRIM(SUBSTITUTE($A17,"TOTAL","",1)),Dashboard!$A$44:$A$100),$B$3:$B$8,$B17)) -> 0 | BE17: =SUM(SUMIFS(BE$3:BE$8,$A$3:$A$8,IF(Dashboard!$B$44:$B$100=TRIM(SUBSTITUTE($A17,"TOTAL","",1)),Dashboard!$A$44:$A$100),$B$3:$B$8,$B17)) -> 0 | BF17: 0 | BH17: =SUM(SUMIFS(BH$3:BH$8,$A$3:$A$8,IF(Dashboard!$B$44:$B$100=TRIM(SUBSTITUTE($A17,"TOTAL","",1)),Dashboard!$A$44:$A$100),$B$3:$B$8,$B17)) -> 0 | BI17: =SUM(SUMIFS(BI$3:BI$8,$A$3:$A$8,IF(Dashboard!$B$44:$B$100=TRIM(SUBSTITUTE($A17,"TOTAL","",1)),Dashboard!$A$44:$A$100),$B$3:$B$8,$B17)) -> 0 | BJ17: 0 | BL17: =SUM(SUMIFS(BL$3:BL$8,$A$3:$A$8,IF(Dashboard!$B$44:$B$100=TRIM(SUBSTITUTE($A17,"TOTAL","",1)),Dashboard!$A$44:$A$100),$B$3:$B$8,$B17)) -> 0
A18: P1 TOTAL | B18: Los Angeles | C18: =SUM(SUMIFS(C$3:C$8,$A$3:$A$8,IF(Dashboard!$B$44:$B$100=TRIM(SUBSTITUTE($A18,"TOTAL","",1)),Dashboard!$A$44:$A$100),$B$3:$B$8,$B18)) -> 0 | D18: =SUM(SUMIFS(D$3:D$8,$A$3:$A$8,IF(Dashboard!$B$44:$B$100=TRIM(SUBSTITUTE($A18,"TOTAL","",1)),Dashboard!$A$44:$A$100),$B$3:$B$8,$B18)) -> 0 | E18: =SUM(SUMIFS(E$3:E$8,$A$3:$A$8,IF(Dashboard!$B$44:$B$100=TRIM(SUBSTITUTE($A18,"TOTAL","",1)),Dashboard!$A$44:$A$100),$B$3:$B$8,$B18)) -> 0 | F18: 0 | G18: =SUM(SUMIFS(G$3:G$8,$A$3:$A$8,IF(Dashboard!$B$44:$B$100=TRIM(SUBSTITUTE($A18,"TOTAL","",1)),Dashboard!$A$44:$A$100),$B$3:$B$8,$B18)) -> 0 | H18: 0 | I18: =SUM(SUMIFS(I$3:I$8,$A$3:$A$8,IF(Dashboard!$B$44:$B$100=TRIM(SUBSTITUTE($A18,"TOTAL","",1)),Dashboard!$A$44:$A$100),$B$3:$B$8,$B18)) -> 0 | J18: =SUM(SUMIFS(J$3:J$8,$A$3:$A$8,IF(Dashboard!$B$44:$B$100=TRIM(SUBSTITUTE($A18,"TOTAL","",1)),Dashboard!$A$44:$A$100),$B$3:$B$8,$B18)) -> 0 | K18: =SUM(SUMIFS(K$3:K$8,$A$3:$A$8,IF(Dashboard!$B$44:$B$100=TRIM(SUBSTITUTE($A18,"TOTAL","",1)),Dashboard!$A$44:$A$100),$B$3:$B$8,$B18)) -> 0 | L18: =SUM(SUMIFS(L$3:L$8,$A$3:$A$8,IF(Dashboard!$B$44:$B$100=TRIM(SUBSTITUTE($A18,"TOTAL","",1)),Dashboard!$A$44:$A$100),$B$3:$B$8,$B18)) -> 0 | M18: =SUM(SUMIFS(M$3:M$8,$A$3:$A$8,IF(Dashboard!$B$44:$B$100=TRIM(SUBSTITUTE($A18,"TOTAL","",1)),Dashboard!$A$44:$A$100),$B$3:$B$8,$B18)) -> 0 | N18: =SUM(SUMIFS(N$3:N$8,$A$3:$A$8,IF(Dashboard!$B$44:$B$100=TRIM(SUBSTITUTE($A18,"TOTAL","",1)),Dashboard!$A$44:$A$100),$B$3:$B$8,$B18)) -> 0 | O18: =SUM(SUMIFS(O$3:O$8,$A$3:$A$8,IF(Dashboard!$B$44:$B$100=TRIM(SUBSTITUTE($A18,"TOTAL","",1)),Dashboard!$A$44:$A$100),$B$3:$B$8,$B18)) -> 0 | P18: =SUM(SUMIFS(P$3:P$8,$A$3:$A$8,IF(Dashboard!$B$44:$B$100=TRIM(SUBSTITUTE($A18,"TOTAL","",1)),Dashboard!$A$44:$A$100),$B$3:$B$8,$B18)) -> 0 | Q18: 0 | R18: 0 | S18: 0 | T18: 0 | V18: =SUM(SUMIFS(V$3:V$8,$A$3:$A$8,IF(Dashboard!$B$44:$B$100=TRIM(SUBSTITUTE($A18,"TOTAL","",1)),Dashboard!$A$44:$A$100),$B$3:$B$8,$B18)) -> 0 | W18: =SUM(SUMIFS(W$3:W$8,$A$3:$A$8,IF(Dashboard!$B$44:$B$100=TRIM(SUBSTITUTE($A18,"TOTAL","",1)),Dashboard!$A$44:$A$100),$B$3:$B$8,$B18)) -> 0 | X18: =SUM(SUMIFS(X$3:X$8,$A$3:$A$8,IF(Dashboard!$B$44:$B$100=TRIM(SUBSTITUTE($A18,"TOTAL","",1)),Dashboard!$A$44:$A$100),$B$3:$B$8,$B18)) -> 0 | Y18: 0 | Z18: =SUM(SUMIFS(Z$3:Z$8,$A$3:$A$8,IF(Dashboard!$B$44:$B$100=TRIM(SUBSTITUTE($A18,"TOTAL","",1)),Dashboard!$A$44:$A$100),$B$3:$B$8,$B18)) -> 0 | AA18: 0 | AB18: =SUM(SUMIFS(AB$3:AB$8,$A$3:$A$8,IF(Dashboard!$B$44:$B$100=TRIM(SUBSTITUTE($A18,"TOTAL","",1)),Dashboard!$A$44:$A$100),$B$3:$B$8,$B18)) -> 0 | AC18: =SUM(SUMIFS(AC$3:AC$8,$A$3:$A$8,IF(Dashboard!$B$44:$B$100=TRIM(SUBSTITUTE($A18,"TOTAL","",1)),Dashboard!$A$44:$A$100),$B$3:$B$8,$B18)) -> 0 | AD18: =SUM(SUMIFS(AD$3:AD$8,$A$3:$A$8,IF(Dashboard!$B$44:$B$100=TRIM(SUBSTITUTE($A18,"TOTAL","",1)),Dashboard!$A$44:$A$100),$B$3:$B$8,$B18)) -> 0 | AE18: =SUM(SUMIFS(AE$3:AE$8,$A$3:$A$8,IF(Dashboard!$B$44:$B$100=TRIM(SUBSTITUTE($A18,"TOTAL","",1)),Dashboard!$A$44:$A$100),$B$3:$B$8,$B18)) -> 0 | AF18: =SUM(SUMIFS(AF$3:AF$8,$A$3:$A$8,IF(Dashboard!$B$44:$B$100=TRIM(SUBSTITUTE($A18,"TOTAL","",1)),Dashboard!$A$44:$A$100),$B$3:$B$8,$B18)) -> 0 | AG18: =SUM(SUMIFS(AG$3:AG$8,$A$3:$A$8,IF(Dashboard!$B$44:$B$100=TRIM(SUBSTITUTE($A18,"TOTAL","",1)),Dashboard!$A$44:$A$100),$B$3:$B$8,$B18)) -> 0 | AH18: =SUM(SUMIFS(AH$3:AH$8,$A$3:$A$8,IF(Dashboard!$B$44:$B$100=TRIM(SUBSTITUTE($A18,"TOTAL","",1)),Dashboard!$A$44:$A$100),$B$3:$B$8,$B18)) -> 0 | AI18: =SUM(SUMIFS(AI$3:AI$8,$A$3:$A$8,IF(Dashboard!$B$44:$B$100=TRIM(SUBSTITUTE($A18,"TOTAL","",1)),Dashboard!$A$44:$A$100),$B$3:$B$8,$B18)) -> 0 | AJ18: 0 | AK18: 0 | AM18: =SUM(SUMIFS(AM$3:AM$8,$A$3:$A$8,IF(Dashboard!$B$44:$B$100=TRIM(SUBSTITUTE($A18,"TOTAL","",1)),Dashboard!$A$44:$A$100),$B$3:$B$8,$B18)) -> 0 | AN18: =SUM(SUMIFS(AN$3:AN$8,$A$3:$A$8,IF(Dashboard!$B$44:$B$100=TRIM(SUBSTITUTE($A18,"TOTAL","",1)),Dashboard!$A$44:$A$100),$B$3:$B$8,$B18)) -> 0 | AO18: =SUM(SUMIFS(AO$3:AO$8,$A$3:$A$8,IF(Dashboard!$B$44:$B$100=TRIM(SUBSTITUTE($A18,"TOTAL","",1)),Dashboard!$A$44:$A$100),$B$3:$B$8,$B18)) -> 0 | AP18: =SUM(SUMIFS(AP$3:AP$8,$A$3:$A$8,IF(Dashboard!$B$44:$B$100=TRIM(SUBSTITUTE($A18,"TOTAL","",1)),Dashboard!$A$44:$A$100),$B$3:$B$8,$B18)) -> 0 | AQ18: =SUM(SUMIFS(AQ$3:AQ$8,$A$3:$A$8,IF(Dashboard!$B$44:$B$100=TRIM(SUBSTITUTE($A18,"TOTAL","",1)),Dashboard!$A$44:$A$100),$B$3:$B$8,$B18)) -> 0 | AR18: =SUM(SUMIFS(AR$3:AR$8,$A$3:$A$8,IF(Dashboard!$B$44:$B$100=TRIM(SUBSTITUTE($A18,"TOTAL","",1)),Dashboard!$A$44:$A$100),$B$3:$B$8,$B18)) -> 0 | AT18: =SUM(SUMIFS(AT$3:AT$8,$A$3:$A$8,IF(Dashboard!$B$44:$B$100=TRIM(SUBSTITUTE($A18,"TOTAL","",1)),Dashboard!$A$44:$A$100),$B$3:$B$8,$B18)) -> 0 | AV18: =SUM(SUMIFS(AV$3:AV$8,$A$3:$A$8,IF(Dashboard!$B$44:$B$100=TRIM(SUBSTITUTE($A18,"TOTAL","",1)),Dashboard!$A$44:$A$100),$B$3:$B$8,$B18)) -> 0 | AW18: =SUM(SUMIFS(AW$3:AW$8,$A$3:$A$8,IF(Dashboard!$B$44:$B$100=TRIM(SUBSTITUTE($A18,"TOTAL","",1)),Dashboard!$A$44:$A$100),$B$3:$B$8,$B18)) -> 0 | AX18: =SUM(SUMIFS(AX$3:AX$8,$A$3:$A$8,IF(Dashboard!$B$44:$B$100=TRIM(SUBSTITUTE($A18,"TOTAL","",1)),Dashboard!$A$44:$A$100),$B$3:$B$8,$B18)) -> 0 | AY18: 0 | BA18: 0 | BB18: 0 | BD18: =SUM(SUMIFS(BD$3:BD$8,$A$3:$A$8,IF(Dashboard!$B$44:$B$100=TRIM(SUBSTITUTE($A18,"TOTAL","",1)),Dashboard!$A$44:$A$100),$B$3:$B$8,$B18)) -> 0 | BE18: =SUM(SUMIFS(BE$3:BE$8,$A$3:$A$8,IF(Dashboard!$B$44:$B$100=TRIM(SUBSTITUTE($A18,"TOTAL","",1)),Dashboard!$A$44:$A$100),$B$3:$B$8,$B18)) -> 0 | BF18: 0 | BH18: =SUM(SUMIFS(BH$3:BH$8,$A$3:$A$8,IF(Dashboard!$B$44:$B$100=TRIM(SUBSTITUTE($A18,"TOTAL","",1)),Dashboard!$A$44:$A$100),$B$3:$B$8,$B18)) -> 0 | BI18: =SUM(SUMIFS(BI$3:BI$8,$A$3:$A$8,IF(Dashboard!$B$44:$B$100=TRIM(SUBSTITUTE($A18,"TOTAL","",1)),Dashboard!$A$44:$A$100),$B$3:$B$8,$B18)) -> 0 | BJ18: 0 | BL18: =SUM(SUMIFS(BL$3:BL$8,$A$3:$A$8,IF(Dashboard!$B$44:$B$100=TRIM(SUBSTITUTE($A18,"TOTAL","",1)),Dashboard!$A$44:$A$100),$B$3:$B$8,$B18)) -> 0
A19: P1 TOTAL | B19: Phoenix | C19: =SUM(SUMIFS(C$3:C$8,$A$3:$A$8,IF(Dashboard!$B$44:$B$100=TRIM(SUBSTITUTE($A19,"TOTAL","",1)),Dashboard!$A$44:$A$100),$B$3:$B$8,$B19)) -> 0 | D19: =SUM(SUMIFS(D$3:D$8,$A$3:$A$8,IF(Dashboard!$B$44:$B$100=TRIM(SUBSTITUTE($A19,"TOTAL","",1)),Dashboard!$A$44:$A$100),$B$3:$B$8,$B19)) -> 0 | E19: =SUM(SUMIFS(E$3:E$8,$A$3:$A$8,IF(Dashboard!$B$44:$B$100=TRIM(SUBSTITUTE($A19,"TOTAL","",1)),Dashboard!$A$44:$A$100),$B$3:$B$8,$B19)) -> 0 | F19: 0 | G19: =SUM(SUMIFS(G$3:G$8,$A$3:$A$8,IF(Dashboard!$B$44:$B$100=TRIM(SUBSTITUTE($A19,"TOTAL","",1)),Dashboard!$A$44:$A$100),$B$3:$B$8,$B19)) -> 0 | H19: 0 | I19: =SUM(SUMIFS(I$3:I$8,$A$3:$A$8,IF(Dashboard!$B$44:$B$100=TRIM(SUBSTITUTE($A19,"TOTAL","",1)),Dashboard!$A$44:$A$100),$B$3:$B$8,$B19)) -> 0 | J19: =SUM(SUMIFS(J$3:J$8,$A$3:$A$8,IF(Dashboard!$B$44:$B$100=TRIM(SUBSTITUTE($A19,"TOTAL","",1)),Dashboard!$A$44:$A$100),$B$3:$B$8,$B19)) -> 0 | K19: =SUM(SUMIFS(K$3:K$8,$A$3:$A$8,IF(Dashboard!$B$44:$B$100=TRIM(SUBSTITUTE($A19,"TOTAL","",1)),Dashboard!$A$44:$A$100),$B$3:$B$8,$B19)) -> 0 | L19: =SUM(SUMIFS(L$3:L$8,$A$3:$A$8,IF(Dashboard!$B$44:$B$100=TRIM(SUBSTITUTE($A19,"TOTAL","",1)),Dashboard!$A$44:$A$100),$B$3:$B$8,$B19)) -> 0 | M19: =SUM(SUMIFS(M$3:M$8,$A$3:$A$8,IF(Dashboard!$B$44:$B$100=TRIM(SUBSTITUTE($A19,"TOTAL","",1)),Dashboard!$A$44:$A$100),$B$3:$B$8,$B19)) -> 0 | N19: =SUM(SUMIFS(N$3:N$8,$A$3:$A$8,IF(Dashboard!$B$44:$B$100=TRIM(SUBSTITUTE($A19,"TOTAL","",1)),Dashboard!$A$44:$A$100),$B$3:$B$8,$B19)) -> 0 | O19: =SUM(SUMIFS(O$3:O$8,$A$3:$A$8,IF(Dashboard!$B$44:$B$100=TRIM(SUBSTITUTE($A19,"TOTAL","",1)),Dashboard!$A$44:$A$100),$B$3:$B$8,$B19)) -> 0 | P19: =SUM(SUMIFS(P$3:P$8,$A$3:$A$8,IF(Dashboard!$B$44:$B$100=TRIM(SUBSTITUTE($A19,"TOTAL","",1)),Dashboard!$A$44:$A$100),$B$3:$B$8,$B19)) -> 0 | Q19: 0 | R19: 0 | S19: 0 | T19: 0 | V19: =SUM(SUMIFS(V$3:V$8,$A$3:$A$8,IF(Dashboard!$B$44:$B$100=TRIM(SUBSTITUTE($A19,"TOTAL","",1)),Dashboard!$A$44:$A$100),$B$3:$B$8,$B19)) -> 0 | W19: =SUM(SUMIFS(W$3:W$8,$A$3:$A$8,IF(Dashboard!$B$44:$B$100=TRIM(SUBSTITUTE($A19,"TOTAL","",1)),Dashboard!$A$44:$A$100),$B$3:$B$8,$B19)) -> 0 | X19: =SUM(SUMIFS(X$3:X$8,$A$3:$A$8,IF(Dashboard!$B$44:$B$100=TRIM(SUBSTITUTE($A19,"TOTAL","",1)),Dashboard!$A$44:$A$100),$B$3:$B$8,$B19)) -> 0 | Y19: 0 | Z19: =SUM(SUMIFS(Z$3:Z$8,$A$3:$A$8,IF(Dashboard!$B$44:$B$100=TRIM(SUBSTITUTE($A19,"TOTAL","",1)),Dashboard!$A$44:$A$100),$B$3:$B$8,$B19)) -> 0 | AA19: 0 | AB19: =SUM(SUMIFS(AB$3:AB$8,$A$3:$A$8,IF(Dashboard!$B$44:$B$100=TRIM(SUBSTITUTE($A19,"TOTAL","",1)),Dashboard!$A$44:$A$100),$B$3:$B$8,$B19)) -> 0 | AC19: =SUM(SUMIFS(AC$3:AC$8,$A$3:$A$8,IF(Dashboard!$B$44:$B$100=TRIM(SUBSTITUTE($A19,"TOTAL","",1)),Dashboard!$A$44:$A$100),$B$3:$B$8,$B19)) -> 0 | AD19: =SUM(SUMIFS(AD$3:AD$8,$A$3:$A$8,IF(Dashboard!$B$44:$B$100=TRIM(SUBSTITUTE($A19,"TOTAL","",1)),Dashboard!$A$44:$A$100),$B$3:$B$8,$B19)) -> 0 | AE19: =SUM(SUMIFS(AE$3:AE$8,$A$3:$A$8,IF(Dashboard!$B$44:$B$100=TRIM(SUBSTITUTE($A19,"TOTAL","",1)),Dashboard!$A$44:$A$100),$B$3:$B$8,$B19)) -> 0 | AF19: =SUM(SUMIFS(AF$3:AF$8,$A$3:$A$8,IF(Dashboard!$B$44:$B$100=TRIM(SUBSTITUTE($A19,"TOTAL","",1)),Dashboard!$A$44:$A$100),$B$3:$B$8,$B19)) -> 0 | AG19: =SUM(SUMIFS(AG$3:AG$8,$A$3:$A$8,IF(Dashboard!$B$44:$B$100=TRIM(SUBSTITUTE($A19,"TOTAL","",1)),Dashboard!$A$44:$A$100),$B$3:$B$8,$B19)) -> 0 | AH19: =SUM(SUMIFS(AH$3:AH$8,$A$3:$A$8,IF(Dashboard!$B$44:$B$100=TRIM(SUBSTITUTE($A19,"TOTAL","",1)),Dashboard!$A$44:$A$100),$B$3:$B$8,$B19)) -> 0 | AI19: =SUM(SUMIFS(AI$3:AI$8,$A$3:$A$8,IF(Dashboard!$B$44:$B$100=TRIM(SUBSTITUTE($A19,"TOTAL","",1)),Dashboard!$A$44:$A$100),$B$3:$B$8,$B19)) -> 0 | AJ19: 0 | AK19: 0 | AM19: =SUM(SUMIFS(AM$3:AM$8,$A$3:$A$8,IF(Dashboard!$B$44:$B$100=TRIM(SUBSTITUTE($A19,"TOTAL","",1)),Dashboard!$A$44:$A$100),$B$3:$B$8,$B19)) -> 0 | AN19: =SUM(SUMIFS(AN$3:AN$8,$A$3:$A$8,IF(Dashboard!$B$44:$B$100=TRIM(SUBSTITUTE($A19,"TOTAL","",1)),Dashboard!$A$44:$A$100),$B$3:$B$8,$B19)) -> 0 | AO19: =SUM(SUMIFS(AO$3:AO$8,$A$3:$A$8,IF(Dashboard!$B$44:$B$100=TRIM(SUBSTITUTE($A19,"TOTAL","",1)),Dashboard!$A$44:$A$100),$B$3:$B$8,$B19)) -> 0 | AP19: =SUM(SUMIFS(AP$3:AP$8,$A$3:$A$8,IF(Dashboard!$B$44:$B$100=TRIM(SUBSTITUTE($A19,"TOTAL","",1)),Dashboard!$A$44:$A$100),$B$3:$B$8,$B19)) -> 0 | AQ19: =SUM(SUMIFS(AQ$3:AQ$8,$A$3:$A$8,IF(Dashboard!$B$44:$B$100=TRIM(SUBSTITUTE($A19,"TOTAL","",1)),Dashboard!$A$44:$A$100),$B$3:$B$8,$B19)) -> 0 | AR19: =SUM(SUMIFS(AR$3:AR$8,$A$3:$A$8,IF(Dashboard!$B$44:$B$100=TRIM(SUBSTITUTE($A19,"TOTAL","",1)),Dashboard!$A$44:$A$100),$B$3:$B$8,$B19)) -> 0 | AT19: =SUM(SUMIFS(AT$3:AT$8,$A$3:$A$8,IF(Dashboard!$B$44:$B$100=TRIM(SUBSTITUTE($A19,"TOTAL","",1)),Dashboard!$A$44:$A$100),$B$3:$B$8,$B19)) -> 0 | AV19: =SUM(SUMIFS(AV$3:AV$8,$A$3:$A$8,IF(Dashboard!$B$44:$B$100=TRIM(SUBSTITUTE($A19,"TOTAL","",1)),Dashboard!$A$44:$A$100),$B$3:$B$8,$B19)) -> 0 | AW19: =SUM(SUMIFS(AW$3:AW$8,$A$3:$A$8,IF(Dashboard!$B$44:$B$100=TRIM(SUBSTITUTE($A19,"TOTAL","",1)),Dashboard!$A$44:$A$100),$B$3:$B$8,$B19)) -> 0 | AX19: =SUM(SUMIFS(AX$3:AX$8,$A$3:$A$8,IF(Dashboard!$B$44:$B$100=TRIM(SUBSTITUTE($A19,"TOTAL","",1)),Dashboard!$A$44:$A$100),$B$3:$B$8,$B19)) -> 0 | AY19: 0 | BA19: 0 | BB19: 0 | BD19: =SUM(SUMIFS(BD$3:BD$8,$A$3:$A$8,IF(Dashboard!$B$44:$B$100=TRIM(SUBSTITUTE($A19,"TOTAL","",1)),Dashboard!$A$44:$A$100),$B$3:$B$8,$B19)) -> 0 | BE19: =SUM(SUMIFS(BE$3:BE$8,$A$3:$A$8,IF(Dashboard!$B$44:$B$100=TRIM(SUBSTITUTE($A19,"TOTAL","",1)),Dashboard!$A$44:$A$100),$B$3:$B$8,$B19)) -> 0 | BF19: 0 | BH19: =SUM(SUMIFS(BH$3:BH$8,$A$3:$A$8,IF(Dashboard!$B$44:$B$100=TRIM(SUBSTITUTE($A19,"TOTAL","",1)),Dashboard!$A$44:$A$100),$B$3:$B$8,$B19)) -> 0 | BI19: =SUM(SUMIFS(BI$3:BI$8,$A$3:$A$8,IF(Dashboard!$B$44:$B$100=TRIM(SUBSTITUTE($A19,"TOTAL","",1)),Dashboard!$A$44:$A$100),$B$3:$B$8,$B19)) -> 0 | BJ19: 0 | BL19: =SUM(SUMIFS(BL$3:BL$8,$A$3:$A$8,IF(Dashboard!$B$44:$B$100=TRIM(SUBSTITUTE($A19,"TOTAL","",1)),Dashboard!$A$44:$A$100),$B$3:$B$8,$B19)) -> 0
A20: P1 TOTAL | B20: Louisville | C20: =SUM(SUMIFS(C$3:C$8,$A$3:$A$8,IF(Dashboard!$B$44:$B$100=TRIM(SUBSTITUTE($A20,"TOTAL","",1)),Dashboard!$A$44:$A$100),$B$3:$B$8,$B20)) -> 0 | D20: =SUM(SUMIFS(D$3:D$8,$A$3:$A$8,IF(Dashboard!$B$44:$B$100=TRIM(SUBSTITUTE($A20,"TOTAL","",1)),Dashboard!$A$44:$A$100),$B$3:$B$8,$B20)) -> 0 | E20: =SUM(SUMIFS(E$3:E$8,$A$3:$A$8,IF(Dashboard!$B$44:$B$100=TRIM(SUBSTITUTE($A20,"TOTAL","",1)),Dashboard!$A$44:$A$100),$B$3:$B$8,$B20)) -> 0 | F20: 0 | G20: =SUM(SUMIFS(G$3:G$8,$A$3:$A$8,IF(Dashboard!$B$44:$B$100=TRIM(SUBSTITUTE($A20,"TOTAL","",1)),Dashboard!$A$44:$A$100),$B$3:$B$8,$B20)) -> 0 | H20: 0 | I20: =SUM(SUMIFS(I$3:I$8,$A$3:$A$8,IF(Dashboard!$B$44:$B$100=TRIM(SUBSTITUTE($A20,"TOTAL","",1)),Dashboard!$A$44:$A$100),$B$3:$B$8,$B20)) -> 0 | J20: =SUM(SUMIFS(J$3:J$8,$A$3:$A$8,IF(Dashboard!$B$44:$B$100=TRIM(SUBSTITUTE($A20,"TOTAL","",1)),Dashboard!$A$44:$A$100),$B$3:$B$8,$B20)) -> 0 | K20: =SUM(SUMIFS(K$3:K$8,$A$3:$A$8,IF(Dashboard!$B$44:$B$100=TRIM(SUBSTITUTE($A20,"TOTAL","",1)),Dashboard!$A$44:$A$100),$B$3:$B$8,$B20)) -> 0 | L20: =SUM(SUMIFS(L$3:L$8,$A$3:$A$8,IF(Dashboard!$B$44:$B$100=TRIM(SUBSTITUTE($A20,"TOTAL","",1)),Dashboard!$A$44:$A$100),$B$3:$B$8,$B20)) -> 0 | M20: =SUM(SUMIFS(M$3:M$8,$A$3:$A$8,IF(Dashboard!$B$44:$B$100=TRIM(SUBSTITUTE($A20,"TOTAL","",1)),Dashboard!$A$44:$A$100),$B$3:$B$8,$B20)) -> 0 | N20: =SUM(SUMIFS(N$3:N$8,$A$3:$A$8,IF(Dashboard!$B$44:$B$100=TRIM(SUBSTITUTE($A20,"TOTAL","",1)),Dashboard!$A$44:$A$100),$B$3:$B$8,$B20)) -> 0 | O20: =SUM(SUMIFS(O$3:O$8,$A$3:$A$8,IF(Dashboard!$B$44:$B$100=TRIM(SUBSTITUTE($A20,"TOTAL","",1)),Dashboard!$A$44:$A$100),$B$3:$B$8,$B20)) -> 0 | P20: =SUM(SUMIFS(P$3:P$8,$A$3:$A$8,IF(Dashboard!$B$44:$B$100=TRIM(SUBSTITUTE($A20,"TOTAL","",1)),Dashboard!$A$44:$A$100),$B$3:$B$8,$B20)) -> 0 | Q20: 0 | R20: 0 | S20: 0 | T20: 0 | V20: =SUM(SUMIFS(V$3:V$8,$A$3:$A$8,IF(Dashboard!$B$44:$B$100=TRIM(SUBSTITUTE($A20,"TOTAL","",1)),Dashboard!$A$44:$A$100),$B$3:$B$8,$B20)) -> 0 | W20: =SUM(SUMIFS(W$3:W$8,$A$3:$A$8,IF(Dashboard!$B$44:$B$100=TRIM(SUBSTITUTE($A20,"TOTAL","",1)),Dashboard!$A$44:$A$100),$B$3:$B$8,$B20)) -> 0 | X20: =SUM(SUMIFS(X$3:X$8,$A$3:$A$8,IF(Dashboard!$B$44:$B$100=TRIM(SUBSTITUTE($A20,"TOTAL","",1)),Dashboard!$A$44:$A$100),$B$3:$B$8,$B20)) -> 0 | Y20: 0 | Z20: =SUM(SUMIFS(Z$3:Z$8,$A$3:$A$8,IF(Dashboard!$B$44:$B$100=TRIM(SUBSTITUTE($A20,"TOTAL","",1)),Dashboard!$A$44:$A$100),$B$3:$B$8,$B20)) -> 0 | AA20: 0 | AB20: =SUM(SUMIFS(AB$3:AB$8,$A$3:$A$8,IF(Dashboard!$B$44:$B$100=TRIM(SUBSTITUTE($A20,"TOTAL","",1)),Dashboard!$A$44:$A$100),$B$3:$B$8,$B20)) -> 0 | AC20: =SUM(SUMIFS(AC$3:AC$8,$A$3:$A$8,IF(Dashboard!$B$44:$B$100=TRIM(SUBSTITUTE($A20,"TOTAL","",1)),Dashboard!$A$44:$A$100),$B$3:$B$8,$B20)) -> 0 | AD20: =SUM(SUMIFS(AD$3:AD$8,$A$3:$A$8,IF(Dashboard!$B$44:$B$100=TRIM(SUBSTITUTE($A20,"TOTAL","",1)),Dashboard!$A$44:$A$100),$B$3:$B$8,$B20)) -> 0 | AE20: =SUM(SUMIFS(AE$3:AE$8,$A$3:$A$8,IF(Dashboard!$B$44:$B$100=TRIM(SUBSTITUTE($A20,"TOTAL","",1)),Dashboard!$A$44:$A$100),$B$3:$B$8,$B20)) -> 0 | AF20: =SUM(SUMIFS(AF$3:AF$8,$A$3:$A$8,IF(Dashboard!$B$44:$B$100=TRIM(SUBSTITUTE($A20,"TOTAL","",1)),Dashboard!$A$44:$A$100),$B$3:$B$8,$B20)) -> 0 | AG20: =SUM(SUMIFS(AG$3:AG$8,$A$3:$A$8,IF(Dashboard!$B$44:$B$100=TRIM(SUBSTITUTE($A20,"TOTAL","",1)),Dashboard!$A$44:$A$100),$B$3:$B$8,$B20)) -> 0 | AH20: =SUM(SUMIFS(AH$3:AH$8,$A$3:$A$8,IF(Dashboard!$B$44:$B$100=TRIM(SUBSTITUTE($A20,"TOTAL","",1)),Dashboard!$A$44:$A$100),$B$3:$B$8,$B20)) -> 0 | AI20: =SUM(SUMIFS(AI$3:AI$8,$A$3:$A$8,IF(Dashboard!$B$44:$B$100=TRIM(SUBSTITUTE($A20,"TOTAL","",1)),Dashboard!$A$44:$A$100),$B$3:$B$8,$B20)) -> 0 | AJ20: 0 | AK20: 0 | AM20: =SUM(SUMIFS(AM$3:AM$8,$A$3:$A$8,IF(Dashboard!$B$44:$B$100=TRIM(SUBSTITUTE($A20,"TOTAL","",1)),Dashboard!$A$44:$A$100),$B$3:$B$8,$B20)) -> 0 | AN20: =SUM(SUMIFS(AN$3:AN$8,$A$3:$A$8,IF(Dashboard!$B$44:$B$100=TRIM(SUBSTITUTE($A20,"TOTAL","",1)),Dashboard!$A$44:$A$100),$B$3:$B$8,$B20)) -> 0 | AO20: =SUM(SUMIFS(AO$3:AO$8,$A$3:$A$8,IF(Dashboard!$B$44:$B$100=TRIM(SUBSTITUTE($A20,"TOTAL","",1)),Dashboard!$A$44:$A$100),$B$3:$B$8,$B20)) -> 0 | AP20: =SUM(SUMIFS(AP$3:AP$8,$A$3:$A$8,IF(Dashboard!$B$44:$B$100=TRIM(SUBSTITUTE($A20,"TOTAL","",1)),Dashboard!$A$44:$A$100),$B$3:$B$8,$B20)) -> 0 | AQ20: =SUM(SUMIFS(AQ$3:AQ$8,$A$3:$A$8,IF(Dashboard!$B$44:$B$100=TRIM(SUBSTITUTE($A20,"TOTAL","",1)),Dashboard!$A$44:$A$100),$B$3:$B$8,$B20)) -> 0 | AR20: =SUM(SUMIFS(AR$3:AR$8,$A$3:$A$8,IF(Dashboard!$B$44:$B$100=TRIM(SUBSTITUTE($A20,"TOTAL","",1)),Dashboard!$A$44:$A$100),$B$3:$B$8,$B20)) -> 0 | AT20: =SUM(SUMIFS(AT$3:AT$8,$A$3:$A$8,IF(Dashboard!$B$44:$B$100=TRIM(SUBSTITUTE($A20,"TOTAL","",1)),Dashboard!$A$44:$A$100),$B$3:$B$8,$B20)) -> 0 | AV20: =SUM(SUMIFS(AV$3:AV$8,$A$3:$A$8,IF(Dashboard!$B$44:$B$100=TRIM(SUBSTITUTE($A20,"TOTAL","",1)),Dashboard!$A$44:$A$100),$B$3:$B$8,$B20)) -> 0 | AW20: =SUM(SUMIFS(AW$3:AW$8,$A$3:$A$8,IF(Dashboard!$B$44:$B$100=TRIM(SUBSTITUTE($A20,"TOTAL","",1)),Dashboard!$A$44:$A$100),$B$3:$B$8,$B20)) -> 0 | AX20: =SUM(SUMIFS(AX$3:AX$8,$A$3:$A$8,IF(Dashboard!$B$44:$B$100=TRIM(SUBSTITUTE($A20,"TOTAL","",1)),Dashboard!$A$44:$A$100),$B$3:$B$8,$B20)) -> 0 | AY20: 0 | BA20: 0 | BB20: 0 | BD20: =SUM(SUMIFS(BD$3:BD$8,$A$3:$A$8,IF(Dashboard!$B$44:$B$100=TRIM(SUBSTITUTE($A20,"TOTAL","",1)),Dashboard!$A$44:$A$100),$B$3:$B$8,$B20)) -> 0 | BE20: =SUM(SUMIFS(BE$3:BE$8,$A$3:$A$8,IF(Dashboard!$B$44:$B$100=TRIM(SUBSTITUTE($A20,"TOTAL","",1)),Dashboard!$A$44:$A$100),$B$3:$B$8,$B20)) -> 0 | BF20: 0 | BH20: =SUM(SUMIFS(BH$3:BH$8,$A$3:$A$8,IF(Dashboard!$B$44:$B$100=TRIM(SUBSTITUTE($A20,"TOTAL","",1)),Dashboard!$A$44:$A$100),$B$3:$B$8,$B20)) -> 0 | BI20: =SUM(SUMIFS(BI$3:BI$8,$A$3:$A$8,IF(Dashboard!$B$44:$B$100=TRIM(SUBSTITUTE($A20,"TOTAL","",1)),Dashboard!$A$44:$A$100),$B$3:$B$8,$B20)) -> 0 | BJ20: 0 | BL20: =SUM(SUMIFS(BL$3:BL$8,$A$3:$A$8,IF(Dashboard!$B$44:$B$100=TRIM(SUBSTITUTE($A20,"TOTAL","",1)),Dashboard!$A$44:$A$100),$B$3:$B$8,$B20)) -> 0
A21: P1 TOTAL | B21: Miami | C21: =SUM(SUMIFS(C$3:C$8,$A$3:$A$8,IF(Dashboard!$B$44:$B$100=TRIM(SUBSTITUTE($A21,"TOTAL","",1)),Dashboard!$A$44:$A$100),$B$3:$B$8,$B21)) -> 0 | D21: =SUM(SUMIFS(D$3:D$8,$A$3:$A$8,IF(Dashboard!$B$44:$B$100=TRIM(SUBSTITUTE($A21,"TOTAL","",1)),Dashboard!$A$44:$A$100),$B$3:$B$8,$B21)) -> 0 | E21: =SUM(SUMIFS(E$3:E$8,$A$3:$A$8,IF(Dashboard!$B$44:$B$100=TRIM(SUBSTITUTE($A21,"TOTAL","",1)),Dashboard!$A$44:$A$100),$B$3:$B$8,$B21)) -> 0 | F21: 0 | G21: =SUM(SUMIFS(G$3:G$8,$A$3:$A$8,IF(Dashboard!$B$44:$B$100=TRIM(SUBSTITUTE($A21,"TOTAL","",1)),Dashboard!$A$44:$A$100),$B$3:$B$8,$B21)) -> 0 | H21: 0 | I21: =SUM(SUMIFS(I$3:I$8,$A$3:$A$8,IF(Dashboard!$B$44:$B$100=TRIM(SUBSTITUTE($A21,"TOTAL","",1)),Dashboard!$A$44:$A$100),$B$3:$B$8,$B21)) -> 0 | J21: =SUM(SUMIFS(J$3:J$8,$A$3:$A$8,IF(Dashboard!$B$44:$B$100=TRIM(SUBSTITUTE($A21,"TOTAL","",1)),Dashboard!$A$44:$A$100),$B$3:$B$8,$B21)) -> 0 | K21: =SUM(SUMIFS(K$3:K$8,$A$3:$A$8,IF(Dashboard!$B$44:$B$100=TRIM(SUBSTITUTE($A21,"TOTAL","",1)),Dashboard!$A$44:$A$100),$B$3:$B$8,$B21)) -> 0 | L21: =SUM(SUMIFS(L$3:L$8,$A$3:$A$8,IF(Dashboard!$B$44:$B$100=TRIM(SUBSTITUTE($A21,"TOTAL","",1)),Dashboard!$A$44:$A$100),$B$3:$B$8,$B21)) -> 0 | M21: =SUM(SUMIFS(M$3:M$8,$A$3:$A$8,IF(Dashboard!$B$44:$B$100=TRIM(SUBSTITUTE($A21,"TOTAL","",1)),Dashboard!$A$44:$A$100),$B$3:$B$8,$B21)) -> 0 | N21: =SUM(SUMIFS(N$3:N$8,$A$3:$A$8,IF(Dashboard!$B$44:$B$100=TRIM(SUBSTITUTE($A21,"TOTAL","",1)),Dashboard!$A$44:$A$100),$B$3:$B$8,$B21)) -> 0 | O21: =SUM(SUMIFS(O$3:O$8,$A$3:$A$8,IF(Dashboard!$B$44:$B$100=TRIM(SUBSTITUTE($A21,"TOTAL","",1)),Dashboard!$A$44:$A$100),$B$3:$B$8,$B21)) -> 0 | P21: =SUM(SUMIFS(P$3:P$8,$A$3:$A$8,IF(Dashboard!$B$44:$B$100=TRIM(SUBSTITUTE($A21,"TOTAL","",1)),Dashboard!$A$44:$A$100),$B$3:$B$8,$B21)) -> 0 | Q21: 0 | R21: 0 | S21: 0 | T21: 0 | V21: =SUM(SUMIFS(V$3:V$8,$A$3:$A$8,IF(Dashboard!$B$44:$B$100=TRIM(SUBSTITUTE($A21,"TOTAL","",1)),Dashboard!$A$44:$A$100),$B$3:$B$8,$B21)) -> 0 | W21: =SUM(SUMIFS(W$3:W$8,$A$3:$A$8,IF(Dashboard!$B$44:$B$100=TRIM(SUBSTITUTE($A21,"TOTAL","",1)),Dashboard!$A$44:$A$100),$B$3:$B$8,$B21)) -> 0 | X21: =SUM(SUMIFS(X$3:X$8,$A$3:$A$8,IF(Dashboard!$B$44:$B$100=TRIM(SUBSTITUTE($A21,"TOTAL","",1)),Dashboard!$A$44:$A$100),$B$3:$B$8,$B21)) -> 0 | Y21: 0 | Z21: =SUM(SUMIFS(Z$3:Z$8,$A$3:$A$8,IF(Dashboard!$B$44:$B$100=TRIM(SUBSTITUTE($A21,"TOTAL","",1)),Dashboard!$A$44:$A$100),$B$3:$B$8,$B21)) -> 0 | AA21: 0 | AB21: =SUM(SUMIFS(AB$3:AB$8,$A$3:$A$8,IF(Dashboard!$B$44:$B$100=TRIM(SUBSTITUTE($A21,"TOTAL","",1)),Dashboard!$A$44:$A$100),$B$3:$B$8,$B21)) -> 0 | AC21: =SUM(SUMIFS(AC$3:AC$8,$A$3:$A$8,IF(Dashboard!$B$44:$B$100=TRIM(SUBSTITUTE($A21,"TOTAL","",1)),Dashboard!$A$44:$A$100),$B$3:$B$8,$B21)) -> 0 | AD21: =SUM(SUMIFS(AD$3:AD$8,$A$3:$A$8,IF(Dashboard!$B$44:$B$100=TRIM(SUBSTITUTE($A21,"TOTAL","",1)),Dashboard!$A$44:$A$100),$B$3:$B$8,$B21)) -> 0 | AE21: =SUM(SUMIFS(AE$3:AE$8,$A$3:$A$8,IF(Dashboard!$B$44:$B$100=TRIM(SUBSTITUTE($A21,"TOTAL","",1)),Dashboard!$A$44:$A$100),$B$3:$B$8,$B21)) -> 0 | AF21: =SUM(SUMIFS(AF$3:AF$8,$A$3:$A$8,IF(Dashboard!$B$44:$B$100=TRIM(SUBSTITUTE($A21,"TOTAL","",1)),Dashboard!$A$44:$A$100),$B$3:$B$8,$B21)) -> 0 | AG21: =SUM(SUMIFS(AG$3:AG$8,$A$3:$A$8,IF(Dashboard!$B$44:$B$100=TRIM(SUBSTITUTE($A21,"TOTAL","",1)),Dashboard!$A$44:$A$100),$B$3:$B$8,$B21)) -> 0 | AH21: =SUM(SUMIFS(AH$3:AH$8,$A$3:$A$8,IF(Dashboard!$B$44:$B$100=TRIM(SUBSTITUTE($A21,"TOTAL","",1)),Dashboard!$A$44:$A$100),$B$3:$B$8,$B21)) -> 0 | AI21: =SUM(SUMIFS(AI$3:AI$8,$A$3:$A$8,IF(Dashboard!$B$44:$B$100=TRIM(SUBSTITUTE($A21,"TOTAL","",1)),Dashboard!$A$44:$A$100),$B$3:$B$8,$B21)) -> 0 | AJ21: 0 | AK21: 0 | AM21: =SUM(SUMIFS(AM$3:AM$8,$A$3:$A$8,IF(Dashboard!$B$44:$B$100=TRIM(SUBSTITUTE($A21,"TOTAL","",1)),Dashboard!$A$44:$A$100),$B$3:$B$8,$B21)) -> 0 | AN21: =SUM(SUMIFS(AN$3:AN$8,$A$3:$A$8,IF(Dashboard!$B$44:$B$100=TRIM(SUBSTITUTE($A21,"TOTAL","",1)),Dashboard!$A$44:$A$100),$B$3:$B$8,$B21)) -> 0 | AO21: =SUM(SUMIFS(AO$3:AO$8,$A$3:$A$8,IF(Dashboard!$B$44:$B$100=TRIM(SUBSTITUTE($A21,"TOTAL","",1)),Dashboard!$A$44:$A$100),$B$3:$B$8,$B21)) -> 0 | AP21: =SUM(SUMIFS(AP$3:AP$8,$A$3:$A$8,IF(Dashboard!$B$44:$B$100=TRIM(SUBSTITUTE($A21,"TOTAL","",1)),Dashboard!$A$44:$A$100),$B$3:$B$8,$B21)) -> 0 | AQ21: =SUM(SUMIFS(AQ$3:AQ$8,$A$3:$A$8,IF(Dashboard!$B$44:$B$100=TRIM(SUBSTITUTE($A21,"TOTAL","",1)),Dashboard!$A$44:$A$100),$B$3:$B$8,$B21)) -> 0 | AR21: =SUM(SUMIFS(AR$3:AR$8,$A$3:$A$8,IF(Dashboard!$B$44:$B$100=TRIM(SUBSTITUTE($A21,"TOTAL","",1)),Dashboard!$A$44:$A$100),$B$3:$B$8,$B21)) -> 0 | AT21: =SUM(SUMIFS(AT$3:AT$8,$A$3:$A$8,IF(Dashboard!$B$44:$B$100=TRIM(SUBSTITUTE($A21,"TOTAL","",1)),Dashboard!$A$44:$A$100),$B$3:$B$8,$B21)) -> 0 | AV21: =SUM(SUMIFS(AV$3:AV$8,$A$3:$A$8,IF(Dashboard!$B$44:$B$100=TRIM(SUBSTITUTE($A21,"TOTAL","",1)),Dashboard!$A$44:$A$100),$B$3:$B$8,$B21)) -> 0 | AW21: =SUM(SUMIFS(AW$3:AW$8,$A$3:$A$8,IF(Dashboard!$B$44:$B$100=TRIM(SUBSTITUTE($A21,"TOTAL","",1)),Dashboard!$A$44:$A$100),$B$3:$B$8,$B21)) -> 0 | AX21: =SUM(SUMIFS(AX$3:AX$8,$A$3:$A$8,IF(Dashboard!$B$44:$B$100=TRIM(SUBSTITUTE($A21,"TOTAL","",1)),Dashboard!$A$44:$A$100),$B$3:$B$8,$B21)) -> 0 | AY21: 0 | BA21: 0 | BB21: 0 | BD21: =SUM(SUMIFS(BD$3:BD$8,$A$3:$A$8,IF(Dashboard!$B$44:$B$100=TRIM(SUBSTITUTE($A21,"TOTAL","",1)),Dashboard!$A$44:$A$100),$B$3:$B$8,$B21)) -> 0 | BE21: =SUM(SUMIFS(BE$3:BE$8,$A$3:$A$8,IF(Dashboard!$B$44:$B$100=TRIM(SUBSTITUTE($A21,"TOTAL","",1)),Dashboard!$A$44:$A$100),$B$3:$B$8,$B21)) -> 0 | BF21: 0 | BH21: =SUM(SUMIFS(BH$3:BH$8,$A$3:$A$8,IF(Dashboard!$B$44:$B$100=TRIM(SUBSTITUTE($A21,"TOTAL","",1)),Dashboard!$A$44:$A$100),$B$3:$B$8,$B21)) -> 0 | BI21: =SUM(SUMIFS(BI$3:BI$8,$A$3:$A$8,IF(Dashboard!$B$44:$B$100=TRIM(SUBSTITUTE($A21,"TOTAL","",1)),Dashboard!$A$44:$A$100),$B$3:$B$8,$B21)) -> 0 | BJ21: 0 | BL21: =SUM(SUMIFS(BL$3:BL$8,$A$3:$A$8,IF(Dashboard!$B$44:$B$100=TRIM(SUBSTITUTE($A21,"TOTAL","",1)),Dashboard!$A$44:$A$100),$B$3:$B$8,$B21)) -> 0
A22: P1 TOTAL | B22: Minneapolis | C22: =SUM(SUMIFS(C$3:C$8,$A$3:$A$8,IF(Dashboard!$B$44:$B$100=TRIM(SUBSTITUTE($A22,"TOTAL","",1)),Dashboard!$A$44:$A$100),$B$3:$B$8,$B22)) -> 0 | D22: =SUM(SUMIFS(D$3:D$8,$A$3:$A$8,IF(Dashboard!$B$44:$B$100=TRIM(SUBSTITUTE($A22,"TOTAL","",1)),Dashboard!$A$44:$A$100),$B$3:$B$8,$B22)) -> 0 | E22: =SUM(SUMIFS(E$3:E$8,$A$3:$A$8,IF(Dashboard!$B$44:$B$100=TRIM(SUBSTITUTE($A22,"TOTAL","",1)),Dashboard!$A$44:$A$100),$B$3:$B$8,$B22)) -> 0 | F22: 0 | G22: =SUM(SUMIFS(G$3:G$8,$A$3:$A$8,IF(Dashboard!$B$44:$B$100=TRIM(SUBSTITUTE($A22,"TOTAL","",1)),Dashboard!$A$44:$A$100),$B$3:$B$8,$B22)) -> 0 | H22: 0 | I22: =SUM(SUMIFS(I$3:I$8,$A$3:$A$8,IF(Dashboard!$B$44:$B$100=TRIM(SUBSTITUTE($A22,"TOTAL","",1)),Dashboard!$A$44:$A$100),$B$3:$B$8,$B22)) -> 0 | J22: =SUM(SUMIFS(J$3:J$8,$A$3:$A$8,IF(Dashboard!$B$44:$B$100=TRIM(SUBSTITUTE($A22,"TOTAL","",1)),Dashboard!$A$44:$A$100),$B$3:$B$8,$B22)) -> 0 | K22: =SUM(SUMIFS(K$3:K$8,$A$3:$A$8,IF(Dashboard!$B$44:$B$100=TRIM(SUBSTITUTE($A22,"TOTAL","",1)),Dashboard!$A$44:$A$100),$B$3:$B$8,$B22)) -> 0 | L22: =SUM(SUMIFS(L$3:L$8,$A$3:$A$8,IF(Dashboard!$B$44:$B$100=TRIM(SUBSTITUTE($A22,"TOTAL","",1)),Dashboard!$A$44:$A$100),$B$3:$B$8,$B22)) -> 0 | M22: =SUM(SUMIFS(M$3:M$8,$A$3:$A$8,IF(Dashboard!$B$44:$B$100=TRIM(SUBSTITUTE($A22,"TOTAL","",1)),Dashboard!$A$44:$A$100),$B$3:$B$8,$B22)) -> 0 | N22: =SUM(SUMIFS(N$3:N$8,$A$3:$A$8,IF(Dashboard!$B$44:$B$100=TRIM(SUBSTITUTE($A22,"TOTAL","",1)),Dashboard!$A$44:$A$100),$B$3:$B$8,$B22)) -> 0 | O22: =SUM(SUMIFS(O$3:O$8,$A$3:$A$8,IF(Dashboard!$B$44:$B$100=TRIM(SUBSTITUTE($A22,"TOTAL","",1)),Dashboard!$A$44:$A$100),$B$3:$B$8,$B22)) -> 0 | P22: =SUM(SUMIFS(P$3:P$8,$A$3:$A$8,IF(Dashboard!$B$44:$B$100=TRIM(SUBSTITUTE($A22,"TOTAL","",1)),Dashboard!$A$44:$A$100),$B$3:$B$8,$B22)) -> 0 | Q22: 0 | R22: 0 | S22: 0 | T22: 0 | V22: =SUM(SUMIFS(V$3:V$8,$A$3:$A$8,IF(Dashboard!$B$44:$B$100=TRIM(SUBSTITUTE($A22,"TOTAL","",1)),Dashboard!$A$44:$A$100),$B$3:$B$8,$B22)) -> 0 | W22: =SUM(SUMIFS(W$3:W$8,$A$3:$A$8,IF(Dashboard!$B$44:$B$100=TRIM(SUBSTITUTE($A22,"TOTAL","",1)),Dashboard!$A$44:$A$100),$B$3:$B$8,$B22)) -> 0 | X22: =SUM(SUMIFS(X$3:X$8,$A$3:$A$8,IF(Dashboard!$B$44:$B$100=TRIM(SUBSTITUTE($A22,"TOTAL","",1)),Dashboard!$A$44:$A$100),$B$3:$B$8,$B22)) -> 0 | Y22: 0 | Z22: =SUM(SUMIFS(Z$3:Z$8,$A$3:$A$8,IF(Dashboard!$B$44:$B$100=TRIM(SUBSTITUTE($A22,"TOTAL","",1)),Dashboard!$A$44:$A$100),$B$3:$B$8,$B22)) -> 0 | AA22: 0 | AB22: =SUM(SUMIFS(AB$3:AB$8,$A$3:$A$8,IF(Dashboard!$B$44:$B$100=TRIM(SUBSTITUTE($A22,"TOTAL","",1)),Dashboard!$A$44:$A$100),$B$3:$B$8,$B22)) -> 0 | AC22: =SUM(SUMIFS(AC$3:AC$8,$A$3:$A$8,IF(Dashboard!$B$44:$B$100=TRIM(SUBSTITUTE($A22,"TOTAL","",1)),Dashboard!$A$44:$A$100),$B$3:$B$8,$B22)) -> 0 | AD22: =SUM(SUMIFS(AD$3:AD$8,$A$3:$A$8,IF(Dashboard!$B$44:$B$100=TRIM(SUBSTITUTE($A22,"TOTAL","",1)),Dashboard!$A$44:$A$100),$B$3:$B$8,$B22)) -> 0 | AE22: =SUM(SUMIFS(AE$3:AE$8,$A$3:$A$8,IF(Dashboard!$B$44:$B$100=TRIM(SUBSTITUTE($A22,"TOTAL","",1)),Dashboard!$A$44:$A$100),$B$3:$B$8,$B22)) -> 0 | AF22: =SUM(SUMIFS(AF$3:AF$8,$A$3:$A$8,IF(Dashboard!$B$44:$B$100=TRIM(SUBSTITUTE($A22,"TOTAL","",1)),Dashboard!$A$44:$A$100),$B$3:$B$8,$B22)) -> 0 | AG22: =SUM(SUMIFS(AG$3:AG$8,$A$3:$A$8,IF(Dashboard!$B$44:$B$100=TRIM(SUBSTITUTE($A22,"TOTAL","",1)),Dashboard!$A$44:$A$100),$B$3:$B$8,$B22)) -> 0 | AH22: =SUM(SUMIFS(AH$3:AH$8,$A$3:$A$8,IF(Dashboard!$B$44:$B$100=TRIM(SUBSTITUTE($A22,"TOTAL","",1)),Dashboard!$A$44:$A$100),$B$3:$B$8,$B22)) -> 0 | AI22: =SUM(SUMIFS(AI$3:AI$8,$A$3:$A$8,IF(Dashboard!$B$44:$B$100=TRIM(SUBSTITUTE($A22,"TOTAL","",1)),Dashboard!$A$44:$A$100),$B$3:$B$8,$B22)) -> 0 | AJ22: 0 | AK22: 0 | AM22: =SUM(SUMIFS(AM$3:AM$8,$A$3:$A$8,IF(Dashboard!$B$44:$B$100=TRIM(SUBSTITUTE($A22,"TOTAL","",1)),Dashboard!$A$44:$A$100),$B$3:$B$8,$B22)) -> 0 | AN22: =SUM(SUMIFS(AN$3:AN$8,$A$3:$A$8,IF(Dashboard!$B$44:$B$100=TRIM(SUBSTITUTE($A22,"TOTAL","",1)),Dashboard!$A$44:$A$100),$B$3:$B$8,$B22)) -> 0 | AO22: =SUM(SUMIFS(AO$3:AO$8,$A$3:$A$8,IF(Dashboard!$B$44:$B$100=TRIM(SUBSTITUTE($A22,"TOTAL","",1)),Dashboard!$A$44:$A$100),$B$3:$B$8,$B22)) -> 0 | AP22: =SUM(SUMIFS(AP$3:AP$8,$A$3:$A$8,IF(Dashboard!$B$44:$B$100=TRIM(SUBSTITUTE($A22,"TOTAL","",1)),Dashboard!$A$44:$A$100),$B$3:$B$8,$B22)) -> 0 | AQ22: =SUM(SUMIFS(AQ$3:AQ$8,$A$3:$A$8,IF(Dashboard!$B$44:$B$100=TRIM(SUBSTITUTE($A22,"TOTAL","",1)),Dashboard!$A$44:$A$100),$B$3:$B$8,$B22)) -> 0 | AR22: =SUM(SUMIFS(AR$3:AR$8,$A$3:$A$8,IF(Dashboard!$B$44:$B$100=TRIM(SUBSTITUTE($A22,"TOTAL","",1)),Dashboard!$A$44:$A$100),$B$3:$B$8,$B22)) -> 0 | AT22: =SUM(SUMIFS(AT$3:AT$8,$A$3:$A$8,IF(Dashboard!$B$44:$B$100=TRIM(SUBSTITUTE($A22,"TOTAL","",1)),Dashboard!$A$44:$A$100),$B$3:$B$8,$B22)) -> 0 | AV22: =SUM(SUMIFS(AV$3:AV$8,$A$3:$A$8,IF(Dashboard!$B$44:$B$100=TRIM(SUBSTITUTE($A22,"TOTAL","",1)),Dashboard!$A$44:$A$100),$B$3:$B$8,$B22)) -> 0 | AW22: =SUM(SUMIFS(AW$3:AW$8,$A$3:$A$8,IF(Dashboard!$B$44:$B$100=TRIM(SUBSTITUTE($A22,"TOTAL","",1)),Dashboard!$A$44:$A$100),$B$3:$B$8,$B22)) -> 0 | AX22: =SUM(SUMIFS(AX$3:AX$8,$A$3:$A$8,IF(Dashboard!$B$44:$B$100=TRIM(SUBSTITUTE($A22,"TOTAL","",1)),Dashboard!$A$44:$A$100),$B$3:$B$8,$B22)) -> 0 | AY22: 0 | BA22: 0 | BB22: 0 | BD22: =SUM(SUMIFS(BD$3:BD$8,$A$3:$A$8,IF(Dashboard!$B$44:$B$100=TRIM(SUBSTITUTE($A22,"TOTAL","",1)),Dashboard!$A$44:$A$100),$B$3:$B$8,$B22)) -> 0 | BE22: =SUM(SUMIFS(BE$3:BE$8,$A$3:$A$8,IF(Dashboard!$B$44:$B$100=TRIM(SUBSTITUTE($A22,"TOTAL","",1)),Dashboard!$A$44:$A$100),$B$3:$B$8,$B22)) -> 0 | BF22: 0 | BH22: =SUM(SUMIFS(BH$3:BH$8,$A$3:$A$8,IF(Dashboard!$B$44:$B$100=TRIM(SUBSTITUTE($A22,"TOTAL","",1)),Dashboard!$A$44:$A$100),$B$3:$B$8,$B22)) -> 0 | BI22: =SUM(SUMIFS(BI$3:BI$8,$A$3:$A$8,IF(Dashboard!$B$44:$B$100=TRIM(SUBSTITUTE($A22,"TOTAL","",1)),Dashboard!$A$44:$A$100),$B$3:$B$8,$B22)) -> 0 | BJ22: 0 | BL22: =SUM(SUMIFS(BL$3:BL$8,$A$3:$A$8,IF(Dashboard!$B$44:$B$100=TRIM(SUBSTITUTE($A22,"TOTAL","",1)),Dashboard!$A$44:$A$100),$B$3:$B$8,$B22)) -> 0
A23: P1 TOTAL | B23: Montreal | C23: =SUM(SUMIFS(C$3:C$8,$A$3:$A$8,IF(Dashboard!$B$44:$B$100=TRIM(SUBSTITUTE($A23,"TOTAL","",1)),Dashboard!$A$44:$A$100),$B$3:$B$8,$B23)) -> 0 | D23: =SUM(SUMIFS(D$3:D$8,$A$3:$A$8,IF(Dashboard!$B$44:$B$100=TRIM(SUBSTITUTE($A23,"TOTAL","",1)),Dashboard!$A$44:$A$100),$B$3:$B$8,$B23)) -> 0 | E23: =SUM(SUMIFS(E$3:E$8,$A$3:$A$8,IF(Dashboard!$B$44:$B$100=TRIM(SUBSTITUTE($A23,"TOTAL","",1)),Dashboard!$A$44:$A$100),$B$3:$B$8,$B23)) -> 0 | F23: 0 | G23: =SUM(SUMIFS(G$3:G$8,$A$3:$A$8,IF(Dashboard!$B$44:$B$100=TRIM(SUBSTITUTE($A23,"TOTAL","",1)),Dashboard!$A$44:$A$100),$B$3:$B$8,$B23)) -> 0 | H23: 0 | I23: =SUM(SUMIFS(I$3:I$8,$A$3:$A$8,IF(Dashboard!$B$44:$B$100=TRIM(SUBSTITUTE($A23,"TOTAL","",1)),Dashboard!$A$44:$A$100),$B$3:$B$8,$B23)) -> 0 | J23: =SUM(SUMIFS(J$3:J$8,$A$3:$A$8,IF(Dashboard!$B$44:$B$100=TRIM(SUBSTITUTE($A23,"TOTAL","",1)),Dashboard!$A$44:$A$100),$B$3:$B$8,$B23)) -> 0 | K23: =SUM(SUMIFS(K$3:K$8,$A$3:$A$8,IF(Dashboard!$B$44:$B$100=TRIM(SUBSTITUTE($A23,"TOTAL","",1)),Dashboard!$A$44:$A$100),$B$3:$B$8,$B23)) -> 0 | L23: =SUM(SUMIFS(L$3:L$8,$A$3:$A$8,IF(Dashboard!$B$44:$B$100=TRIM(SUBSTITUTE($A23,"TOTAL","",1)),Dashboard!$A$44:$A$100),$B$3:$B$8,$B23)) -> 0 | M23: =SUM(SUMIFS(M$3:M$8,$A$3:$A$8,IF(Dashboard!$B$44:$B$100=TRIM(SUBSTITUTE($A23,"TOTAL","",1)),Dashboard!$A$44:$A$100),$B$3:$B$8,$B23)) -> 0 | N23: =SUM(SUMIFS(N$3:N$8,$A$3:$A$8,IF(Dashboard!$B$44:$B$100=TRIM(SUBSTITUTE($A23,"TOTAL","",1)),Dashboard!$A$44:$A$100),$B$3:$B$8,$B23)) -> 0 | O23: =SUM(SUMIFS(O$3:O$8,$A$3:$A$8,IF(Dashboard!$B$44:$B$100=TRIM(SUBSTITUTE($A23,"TOTAL","",1)),Dashboard!$A$44:$A$100),$B$3:$B$8,$B23)) -> 0 | P23: =SUM(SUMIFS(P$3:P$8,$A$3:$A$8,IF(Dashboard!$B$44:$B$100=TRIM(SUBSTITUTE($A23,"TOTAL","",1)),Dashboard!$A$44:$A$100),$B$3:$B$8,$B23)) -> 0 | Q23: 0 | R23: 0 | S23: 0 | T23: 0 | V23: =SUM(SUMIFS(V$3:V$8,$A$3:$A$8,IF(Dashboard!$B$44:$B$100=TRIM(SUBSTITUTE($A23,"TOTAL","",1)),Dashboard!$A$44:$A$100),$B$3:$B$8,$B23)) -> 0 | W23: =SUM(SUMIFS(W$3:W$8,$A$3:$A$8,IF(Dashboard!$B$44:$B$100=TRIM(SUBSTITUTE($A23,"TOTAL","",1)),Dashboard!$A$44:$A$100),$B$3:$B$8,$B23)) -> 0 | X23: =SUM(SUMIFS(X$3:X$8,$A$3:$A$8,IF(Dashboard!$B$44:$B$100=TRIM(SUBSTITUTE($A23,"TOTAL","",1)),Dashboard!$A$44:$A$100),$B$3:$B$8,$B23)) -> 0 | Y23: 0 | Z23: =SUM(SUMIFS(Z$3:Z$8,$A$3:$A$8,IF(Dashboard!$B$44:$B$100=TRIM(SUBSTITUTE($A23,"TOTAL","",1)),Dashboard!$A$44:$A$100),$B$3:$B$8,$B23)) -> 0 | AA23: 0 | AB23: =SUM(SUMIFS(AB$3:AB$8,$A$3:$A$8,IF(Dashboard!$B$44:$B$100=TRIM(SUBSTITUTE($A23,"TOTAL","",1)),Dashboard!$A$44:$A$100),$B$3:$B$8,$B23)) -> 0 | AC23: =SUM(SUMIFS(AC$3:AC$8,$A$3:$A$8,IF(Dashboard!$B$44:$B$100=TRIM(SUBSTITUTE($A23,"TOTAL","",1)),Dashboard!$A$44:$A$100),$B$3:$B$8,$B23)) -> 0 | AD23: =SUM(SUMIFS(AD$3:AD$8,$A$3:$A$8,IF(Dashboard!$B$44:$B$100=TRIM(SUBSTITUTE($A23,"TOTAL","",1)),Dashboard!$A$44:$A$100),$B$3:$B$8,$B23)) -> 0 | AE23: =SUM(SUMIFS(AE$3:AE$8,$A$3:$A$8,IF(Dashboard!$B$44:$B$100=TRIM(SUBSTITUTE($A23,"TOTAL","",1)),Dashboard!$A$44:$A$100),$B$3:$B$8,$B23)) -> 0 | AF23: =SUM(SUMIFS(AF$3:AF$8,$A$3:$A$8,IF(Dashboard!$B$44:$B$100=TRIM(SUBSTITUTE($A23,"TOTAL","",1)),Dashboard!$A$44:$A$100),$B$3:$B$8,$B23)) -> 0 | AG23: =SUM(SUMIFS(AG$3:AG$8,$A$3:$A$8,IF(Dashboard!$B$44:$B$100=TRIM(SUBSTITUTE($A23,"TOTAL","",1)),Dashboard!$A$44:$A$100),$B$3:$B$8,$B23)) -> 0 | AH23: =SUM(SUMIFS(AH$3:AH$8,$A$3:$A$8,IF(Dashboard!$B$44:$B$100=TRIM(SUBSTITUTE($A23,"TOTAL","",1)),Dashboard!$A$44:$A$100),$B$3:$B$8,$B23)) -> 0 | AI23: =SUM(SUMIFS(AI$3:AI$8,$A$3:$A$8,IF(Dashboard!$B$44:$B$100=TRIM(SUBSTITUTE($A23,"TOTAL","",1)),Dashboard!$A$44:$A$100),$B$3:$B$8,$B23)) -> 0 | AJ23: 0 | AK23: 0 | AM23: =SUM(SUMIFS(AM$3:AM$8,$A$3:$A$8,IF(Dashboard!$B$44:$B$100=TRIM(SUBSTITUTE($A23,"TOTAL","",1)),Dashboard!$A$44:$A$100),$B$3:$B$8,$B23)) -> 0 | AN23: =SUM(SUMIFS(AN$3:AN$8,$A$3:$A$8,IF(Dashboard!$B$44:$B$100=TRIM(SUBSTITUTE($A23,"TOTAL","",1)),Dashboard!$A$44:$A$100),$B$3:$B$8,$B23)) -> 0 | AO23: =SUM(SUMIFS(AO$3:AO$8,$A$3:$A$8,IF(Dashboard!$B$44:$B$100=TRIM(SUBSTITUTE($A23,"TOTAL","",1)),Dashboard!$A$44:$A$100),$B$3:$B$8,$B23)) -> 0 | AP23: =SUM(SUMIFS(AP$3:AP$8,$A$3:$A$8,IF(Dashboard!$B$44:$B$100=TRIM(SUBSTITUTE($A23,"TOTAL","",1)),Dashboard!$A$44:$A$100),$B$3:$B$8,$B23)) -> 0 | AQ23: =SUM(SUMIFS(AQ$3:AQ$8,$A$3:$A$8,IF(Dashboard!$B$44:$B$100=TRIM(SUBSTITUTE($A23,"TOTAL","",1)),Dashboard!$A$44:$A$100),$B$3:$B$8,$B23)) -> 0 | AR23: =SUM(SUMIFS(AR$3:AR$8,$A$3:$A$8,IF(Dashboard!$B$44:$B$100=TRIM(SUBSTITUTE($A23,"TOTAL","",1)),Dashboard!$A$44:$A$100),$B$3:$B$8,$B23)) -> 0 | AT23: =SUM(SUMIFS(AT$3:AT$8,$A$3:$A$8,IF(Dashboard!$B$44:$B$100=TRIM(SUBSTITUTE($A23,"TOTAL","",1)),Dashboard!$A$44:$A$100),$B$3:$B$8,$B23)) -> 0 | AV23: =SUM(SUMIFS(AV$3:AV$8,$A$3:$A$8,IF(Dashboard!$B$44:$B$100=TRIM(SUBSTITUTE($A23,"TOTAL","",1)),Dashboard!$A$44:$A$100),$B$3:$B$8,$B23)) -> 0 | AW23: =SUM(SUMIFS(AW$3:AW$8,$A$3:$A$8,IF(Dashboard!$B$44:$B$100=TRIM(SUBSTITUTE($A23,"TOTAL","",1)),Dashboard!$A$44:$A$100),$B$3:$B$8,$B23)) -> 0 | AX23: =SUM(SUMIFS(AX$3:AX$8,$A$3:$A$8,IF(Dashboard!$B$44:$B$100=TRIM(SUBSTITUTE($A23,"TOTAL","",1)),Dashboard!$A$44:$A$100),$B$3:$B$8,$B23)) -> 0 | AY23: 0 | BA23: 0 | BB23: 0 | BD23: =SUM(SUMIFS(BD$3:BD$8,$A$3:$A$8,IF(Dashboard!$B$44:$B$100=TRIM(SUBSTITUTE($A23,"TOTAL","",1)),Dashboard!$A$44:$A$100),$B$3:$B$8,$B23)) -> 0 | BE23: =SUM(SUMIFS(BE$3:BE$8,$A$3:$A$8,IF(Dashboard!$B$44:$B$100=TRIM(SUBSTITUTE($A23,"TOTAL","",1)),Dashboard!$A$44:$A$100),$B$3:$B$8,$B23)) -> 0 | BF23: 0 | BH23: =SUM(SUMIFS(BH$3:BH$8,$A$3:$A$8,IF(Dashboard!$B$44:$B$100=TRIM(SUBSTITUTE($A23,"TOTAL","",1)),Dashboard!$A$44:$A$100),$B$3:$B$8,$B23)) -> 0 | BI23: =SUM(SUMIFS(BI$3:BI$8,$A$3:$A$8,IF(Dashboard!$B$44:$B$100=TRIM(SUBSTITUTE($A23,"TOTAL","",1)),Dashboard!$A$44:$A$100),$B$3:$B$8,$B23)) -> 0 | BJ23: 0 | BL23: =SUM(SUMIFS(BL$3:BL$8,$A$3:$A$8,IF(Dashboard!$B$44:$B$100=TRIM(SUBSTITUTE($A23,"TOTAL","",1)),Dashboard!$A$44:$A$100),$B$3:$B$8,$B23)) -> 0
A24: P1 TOTAL | B24: New Jersey | C24: =SUM(SUMIFS(C$3:C$8,$A$3:$A$8,IF(Dashboard!$B$44:$B$100=TRIM(SUBSTITUTE($A24,"TOTAL","",1)),Dashboard!$A$44:$A$100),$B$3:$B$8,$B24)) -> 0 | D24: =SUM(SUMIFS(D$3:D$8,$A$3:$A$8,IF(Dashboard!$B$44:$B$100=TRIM(SUBSTITUTE($A24,"TOTAL","",1)),Dashboard!$A$44:$A$100),$B$3:$B$8,$B24)) -> 0 | E24: =SUM(SUMIFS(E$3:E$8,$A$3:$A$8,IF(Dashboard!$B$44:$B$100=TRIM(SUBSTITUTE($A24,"TOTAL","",1)),Dashboard!$A$44:$A$100),$B$3:$B$8,$B24)) -> 0 | F24: 0 | G24: =SUM(SUMIFS(G$3:G$8,$A$3:$A$8,IF(Dashboard!$B$44:$B$100=TRIM(SUBSTITUTE($A24,"TOTAL","",1)),Dashboard!$A$44:$A$100),$B$3:$B$8,$B24)) -> 0 | H24: 0 | I24: =SUM(SUMIFS(I$3:I$8,$A$3:$A$8,IF(Dashboard!$B$44:$B$100=TRIM(SUBSTITUTE($A24,"TOTAL","",1)),Dashboard!$A$44:$A$100),$B$3:$B$8,$B24)) -> 0 | J24: =SUM(SUMIFS(J$3:J$8,$A$3:$A$8,IF(Dashboard!$B$44:$B$100=TRIM(SUBSTITUTE($A24,"TOTAL","",1)),Dashboard!$A$44:$A$100),$B$3:$B$8,$B24)) -> 0 | K24: =SUM(SUMIFS(K$3:K$8,$A$3:$A$8,IF(Dashboard!$B$44:$B$100=TRIM(SUBSTITUTE($A24,"TOTAL","",1)),Dashboard!$A$44:$A$100),$B$3:$B$8,$B24)) -> 0 | L24: =SUM(SUMIFS(L$3:L$8,$A$3:$A$8,IF(Dashboard!$B$44:$B$100=TRIM(SUBSTITUTE($A24,"TOTAL","",1)),Dashboard!$A$44:$A$100),$B$3:$B$8,$B24)) -> 0 | M24: =SUM(SUMIFS(M$3:M$8,$A$3:$A$8,IF(Dashboard!$B$44:$B$100=TRIM(SUBSTITUTE($A24,"TOTAL","",1)),Dashboard!$A$44:$A$100),$B$3:$B$8,$B24)) -> 0 | N24: =SUM(SUMIFS(N$3:N$8,$A$3:$A$8,IF(Dashboard!$B$44:$B$100=TRIM(SUBSTITUTE($A24,"TOTAL","",1)),Dashboard!$A$44:$A$100),$B$3:$B$8,$B24)) -> 0 | O24: =SUM(SUMIFS(O$3:O$8,$A$3:$A$8,IF(Dashboard!$B$44:$B$100=TRIM(SUBSTITUTE($A24,"TOTAL","",1)),Dashboard!$A$44:$A$100),$B$3:$B$8,$B24)) -> 0 | P24: =SUM(SUMIFS(P$3:P$8,$A$3:$A$8,IF(Dashboard!$B$44:$B$100=TRIM(SUBSTITUTE($A24,"TOTAL","",1)),Dashboard!$A$44:$A$100),$B$3:$B$8,$B24)) -> 0 | Q24: 0 | R24: 0 | S24: 0 | T24: 0 | V24: =SUM(SUMIFS(V$3:V$8,$A$3:$A$8,IF(Dashboard!$B$44:$B$100=TRIM(SUBSTITUTE($A24,"TOTAL","",1)),Dashboard!$A$44:$A$100),$B$3:$B$8,$B24)) -> 0 | W24: =SUM(SUMIFS(W$3:W$8,$A$3:$A$8,IF(Dashboard!$B$44:$B$100=TRIM(SUBSTITUTE($A24,"TOTAL","",1)),Dashboard!$A$44:$A$100),$B$3:$B$8,$B24)) -> 0 | X24: =SUM(SUMIFS(X$3:X$8,$A$3:$A$8,IF(Dashboard!$B$44:$B$100=TRIM(SUBSTITUTE($A24,"TOTAL","",1)),Dashboard!$A$44:$A$100),$B$3:$B$8,$B24)) -> 0 | Y24: 0 | Z24: =SUM(SUMIFS(Z$3:Z$8,$A$3:$A$8,IF(Dashboard!$B$44:$B$100=TRIM(SUBSTITUTE($A24,"TOTAL","",1)),Dashboard!$A$44:$A$100),$B$3:$B$8,$B24)) -> 0 | AA24: 0 | AB24: =SUM(SUMIFS(AB$3:AB$8,$A$3:$A$8,IF(Dashboard!$B$44:$B$100=TRIM(SUBSTITUTE($A24,"TOTAL","",1)),Dashboard!$A$44:$A$100),$B$3:$B$8,$B24)) -> 0 | AC24: =SUM(SUMIFS(AC$3:AC$8,$A$3:$A$8,IF(Dashboard!$B$44:$B$100=TRIM(SUBSTITUTE($A24,"TOTAL","",1)),Dashboard!$A$44:$A$100),$B$3:$B$8,$B24)) -> 0 | AD24: =SUM(SUMIFS(AD$3:AD$8,$A$3:$A$8,IF(Dashboard!$B$44:$B$100=TRIM(SUBSTITUTE($A24,"TOTAL","",1)),Dashboard!$A$44:$A$100),$B$3:$B$8,$B24)) -> 0 | AE24: =SUM(SUMIFS(AE$3:AE$8,$A$3:$A$8,IF(Dashboard!$B$44:$B$100=TRIM(SUBSTITUTE($A24,"TOTAL","",1)),Dashboard!$A$44:$A$100),$B$3:$B$8,$B24)) -> 0 | AF24: =SUM(SUMIFS(AF$3:AF$8,$A$3:$A$8,IF(Dashboard!$B$44:$B$100=TRIM(SUBSTITUTE($A24,"TOTAL","",1)),Dashboard!$A$44:$A$100),$B$3:$B$8,$B24)) -> 0 | AG24: =SUM(SUMIFS(AG$3:AG$8,$A$3:$A$8,IF(Dashboard!$B$44:$B$100=TRIM(SUBSTITUTE($A24,"TOTAL","",1)),Dashboard!$A$44:$A$100),$B$3:$B$8,$B24)) -> 0 | AH24: =SUM(SUMIFS(AH$3:AH$8,$A$3:$A$8,IF(Dashboard!$B$44:$B$100=TRIM(SUBSTITUTE($A24,"TOTAL","",1)),Dashboard!$A$44:$A$100),$B$3:$B$8,$B24)) -> 0 | AI24: =SUM(SUMIFS(AI$3:AI$8,$A$3:$A$8,IF(Dashboard!$B$44:$B$100=TRIM(SUBSTITUTE($A24,"TOTAL","",1)),Dashboard!$A$44:$A$100),$B$3:$B$8,$B24)) -> 0 | AJ24: 0 | AK24: 0 | AM24: =SUM(SUMIFS(AM$3:AM$8,$A$3:$A$8,IF(Dashboard!$B$44:$B$100=TRIM(SUBSTITUTE($A24,"TOTAL","",1)),Dashboard!$A$44:$A$100),$B$3:$B$8,$B24)) -> 0 | AN24: =SUM(SUMIFS(AN$3:AN$8,$A$3:$A$8,IF(Dashboard!$B$44:$B$100=TRIM(SUBSTITUTE($A24,"TOTAL","",1)),Dashboard!$A$44:$A$100),$B$3:$B$8,$B24)) -> 0 | AO24: =SUM(SUMIFS(AO$3:AO$8,$A$3:$A$8,IF(Dashboard!$B$44:$B$100=TRIM(SUBSTITUTE($A24,"TOTAL","",1)),Dashboard!$A$44:$A$100),$B$3:$B$8,$B24)) -> 0 | AP24: =SUM(SUMIFS(AP$3:AP$8,$A$3:$A$8,IF(Dashboard!$B$44:$B$100=TRIM(SUBSTITUTE($A24,"TOTAL","",1)),Dashboard!$A$44:$A$100),$B$3:$B$8,$B24)) -> 0 | AQ24: =SUM(SUMIFS(AQ$3:AQ$8,$A$3:$A$8,IF(Dashboard!$B$44:$B$100=TRIM(SUBSTITUTE($A24,"TOTAL","",1)),Dashboard!$A$44:$A$100),$B$3:$B$8,$B24)) -> 0 | AR24: =SUM(SUMIFS(AR$3:AR$8,$A$3:$A$8,IF(Dashboard!$B$44:$B$100=TRIM(SUBSTITUTE($A24,"TOTAL","",1)),Dashboard!$A$44:$A$100),$B$3:$B$8,$B24)) -> 0 | AT24: =SUM(SUMIFS(AT$3:AT$8,$A$3:$A$8,IF(Dashboard!$B$44:$B$100=TRIM(SUBSTITUTE($A24,"TOTAL","",1)),Dashboard!$A$44:$A$100),$B$3:$B$8,$B24)) -> 0 | AV24: =SUM(SUMIFS(AV$3:AV$8,$A$3:$A$8,IF(Dashboard!$B$44:$B$100=TRIM(SUBSTITUTE($A24,"TOTAL","",1)),Dashboard!$A$44:$A$100),$B$3:$B$8,$B24)) -> 0 | AW24: =SUM(SUMIFS(AW$3:AW$8,$A$3:$A$8,IF(Dashboard!$B$44:$B$100=TRIM(SUBSTITUTE($A24,"TOTAL","",1)),Dashboard!$A$44:$A$100),$B$3:$B$8,$B24)) -> 0 | AX24: =SUM(SUMIFS(AX$3:AX$8,$A$3:$A$8,IF(Dashboard!$B$44:$B$100=TRIM(SUBSTITUTE($A24,"TOTAL","",1)),Dashboard!$A$44:$A$100),$B$3:$B$8,$B24)) -> 0 | AY24: 0 | BA24: 0 | BB24: 0 | BD24: =SUM(SUMIFS(BD$3:BD$8,$A$3:$A$8,IF(Dashboard!$B$44:$B$100=TRIM(SUBSTITUTE($A24,"TOTAL","",1)),Dashboard!$A$44:$A$100),$B$3:$B$8,$B24)) -> 0 | BE24: =SUM(SUMIFS(BE$3:BE$8,$A$3:$A$8,IF(Dashboard!$B$44:$B$100=TRIM(SUBSTITUTE($A24,"TOTAL","",1)),Dashboard!$A$44:$A$100),$B$3:$B$8,$B24)) -> 0 | BF24: 0 | BH24: =SUM(SUMIFS(BH$3:BH$8,$A$3:$A$8,IF(Dashboard!$B$44:$B$100=TRIM(SUBSTITUTE($A24,"TOTAL","",1)),Dashboard!$A$44:$A$100),$B$3:$B$8,$B24)) -> 0 | BI24: =SUM(SUMIFS(BI$3:BI$8,$A$3:$A$8,IF(Dashboard!$B$44:$B$100=TRIM(SUBSTITUTE($A24,"TOTAL","",1)),Dashboard!$A$44:$A$100),$B$3:$B$8,$B24)) -> 0 | BJ24: 0 | BL24: =SUM(SUMIFS(BL$3:BL$8,$A$3:$A$8,IF(Dashboard!$B$44:$B$100=TRIM(SUBSTITUTE($A24,"TOTAL","",1)),Dashboard!$A$44:$A$100),$B$3:$B$8,$B24)) -> 0
A25: P1 TOTAL | B25: Seattle | C25: =SUM(SUMIFS(C$3:C$8,$A$3:$A$8,IF(Dashboard!$B$44:$B$100=TRIM(SUBSTITUTE($A25,"TOTAL","",1)),Dashboard!$A$44:$A$100),$B$3:$B$8,$B25)) -> 0 | D25: =SUM(SUMIFS(D$3:D$8,$A$3:$A$8,IF(Dashboard!$B$44:$B$100=TRIM(SUBSTITUTE($A25,"TOTAL","",1)),Dashboard!$A$44:$A$100),$B$3:$B$8,$B25)) -> 0 | E25: =SUM(SUMIFS(E$3:E$8,$A$3:$A$8,IF(Dashboard!$B$44:$B$100=TRIM(SUBSTITUTE($A25,"TOTAL","",1)),Dashboard!$A$44:$A$100),$B$3:$B$8,$B25)) -> 0 | F25: 0 | G25: =SUM(SUMIFS(G$3:G$8,$A$3:$A$8,IF(Dashboard!$B$44:$B$100=TRIM(SUBSTITUTE($A25,"TOTAL","",1)),Dashboard!$A$44:$A$100),$B$3:$B$8,$B25)) -> 0 | H25: 0 | I25: =SUM(SUMIFS(I$3:I$8,$A$3:$A$8,IF(Dashboard!$B$44:$B$100=TRIM(SUBSTITUTE($A25,"TOTAL","",1)),Dashboard!$A$44:$A$100),$B$3:$B$8,$B25)) -> 0 | J25: =SUM(SUMIFS(J$3:J$8,$A$3:$A$8,IF(Dashboard!$B$44:$B$100=TRIM(SUBSTITUTE($A25,"TOTAL","",1)),Dashboard!$A$44:$A$100),$B$3:$B$8,$B25)) -> 0 | K25: =SUM(SUMIFS(K$3:K$8,$A$3:$A$8,IF(Dashboard!$B$44:$B$100=TRIM(SUBSTITUTE($A25,"TOTAL","",1)),Dashboard!$A$44:$A$100),$B$3:$B$8,$B25)) -> 0 | L25: =SUM(SUMIFS(L$3:L$8,$A$3:$A$8,IF(Dashboard!$B$44:$B$100=TRIM(SUBSTITUTE($A25,"TOTAL","",1)),Dashboard!$A$44:$A$100),$B$3:$B$8,$B25)) -> 0 | M25: =SUM(SUMIFS(M$3:M$8,$A$3:$A$8,IF(Dashboard!$B$44:$B$100=TRIM(SUBSTITUTE($A25,"TOTAL","",1)),Dashboard!$A$44:$A$100),$B$3:$B$8,$B25)) -> 0 | N25: =SUM(SUMIFS(N$3:N$8,$A$3:$A$8,IF(Dashboard!$B$44:$B$100=TRIM(SUBSTITUTE($A25,"TOTAL","",1)),Dashboard!$A$44:$A$100),$B$3:$B$8,$B25)) -> 0 | O25: =SUM(SUMIFS(O$3:O$8,$A$3:$A$8,IF(Dashboard!$B$44:$B$100=TRIM(SUBSTITUTE($A25,"TOTAL","",1)),Dashboard!$A$44:$A$100),$B$3:$B$8,$B25)) -> 0 | P25: =SUM(SUMIFS(P$3:P$8,$A$3:$A$8,IF(Dashboard!$B$44:$B$100=TRIM(SUBSTITUTE($A25,"TOTAL","",1)),Dashboard!$A$44:$A$100),$B$3:$B$8,$B25)) -> 0 | Q25: 0 | R25: 0 | S25: 0 | T25: 0 | V25: =SUM(SUMIFS(V$3:V$8,$A$3:$A$8,IF(Dashboard!$B$44:$B$100=TRIM(SUBSTITUTE($A25,"TOTAL","",1)),Dashboard!$A$44:$A$100),$B$3:$B$8,$B25)) -> 0 | W25: =SUM(SUMIFS(W$3:W$8,$A$3:$A$8,IF(Dashboard!$B$44:$B$100=TRIM(SUBSTITUTE($A25,"TOTAL","",1)),Dashboard!$A$44:$A$100),$B$3:$B$8,$B25)) -> 0 | X25: =SUM(SUMIFS(X$3:X$8,$A$3:$A$8,IF(Dashboard!$B$44:$B$100=TRIM(SUBSTITUTE($A25,"TOTAL","",1)),Dashboard!$A$44:$A$100),$B$3:$B$8,$B25)) -> 0 | Y25: 0 | Z25: =SUM(SUMIFS(Z$3:Z$8,$A$3:$A$8,IF(Dashboard!$B$44:$B$100=TRIM(SUBSTITUTE($A25,"TOTAL","",1)),Dashboard!$A$44:$A$100),$B$3:$B$8,$B25)) -> 0 | AA25: 0 | AB25: =SUM(SUMIFS(AB$3:AB$8,$A$3:$A$8,IF(Dashboard!$B$44:$B$100=TRIM(SUBSTITUTE($A25,"TOTAL","",1)),Dashboard!$A$44:$A$100),$B$3:$B$8,$B25)) -> 0 | AC25: =SUM(SUMIFS(AC$3:AC$8,$A$3:$A$8,IF(Dashboard!$B$44:$B$100=TRIM(SUBSTITUTE($A25,"TOTAL","",1)),Dashboard!$A$44:$A$100),$B$3:$B$8,$B25)) -> 0 | AD25: =SUM(SUMIFS(AD$3:AD$8,$A$3:$A$8,IF(Dashboard!$B$44:$B$100=TRIM(SUBSTITUTE($A25,"TOTAL","",1)),Dashboard!$A$44:$A$100),$B$3:$B$8,$B25)) -> 0 | AE25: =SUM(SUMIFS(AE$3:AE$8,$A$3:$A$8,IF(Dashboard!$B$44:$B$100=TRIM(SUBSTITUTE($A25,"TOTAL","",1)),Dashboard!$A$44:$A$100),$B$3:$B$8,$B25)) -> 0 | AF25: =SUM(SUMIFS(AF$3:AF$8,$A$3:$A$8,IF(Dashboard!$B$44:$B$100=TRIM(SUBSTITUTE($A25,"TOTAL","",1)),Dashboard!$A$44:$A$100),$B$3:$B$8,$B25)) -> 0 | AG25: =SUM(SUMIFS(AG$3:AG$8,$A$3:$A$8,IF(Dashboard!$B$44:$B$100=TRIM(SUBSTITUTE($A25,"TOTAL","",1)),Dashboard!$A$44:$A$100),$B$3:$B$8,$B25)) -> 0 | AH25: =SUM(SUMIFS(AH$3:AH$8,$A$3:$A$8,IF(Dashboard!$B$44:$B$100=TRIM(SUBSTITUTE($A25,"TOTAL","",1)),Dashboard!$A$44:$A$100),$B$3:$B$8,$B25)) -> 0 | AI25: =SUM(SUMIFS(AI$3:AI$8,$A$3:$A$8,IF(Dashboard!$B$44:$B$100=TRIM(SUBSTITUTE($A25,"TOTAL","",1)),Dashboard!$A$44:$A$100),$B$3:$B$8,$B25)) -> 0 | AJ25: 0 | AK25: 0 | AM25: =SUM(SUMIFS(AM$3:AM$8,$A$3:$A$8,IF(Dashboard!$B$44:$B$100=TRIM(SUBSTITUTE($A25,"TOTAL","",1)),Dashboard!$A$44:$A$100),$B$3:$B$8,$B25)) -> 0 | AN25: =SUM(SUMIFS(AN$3:AN$8,$A$3:$A$8,IF(Dashboard!$B$44:$B$100=TRIM(SUBSTITUTE($A25,"TOTAL","",1)),Dashboard!$A$44:$A$100),$B$3:$B$8,$B25)) -> 0 | AO25: =SUM(SUMIFS(AO$3:AO$8,$A$3:$A$8,IF(Dashboard!$B$44:$B$100=TRIM(SUBSTITUTE($A25,"TOTAL","",1)),Dashboard!$A$44:$A$100),$B$3:$B$8,$B25)) -> 0 | AP25: =SUM(SUMIFS(AP$3:AP$8,$A$3:$A$8,IF(Dashboard!$B$44:$B$100=TRIM(SUBSTITUTE($A25,"TOTAL","",1)),Dashboard!$A$44:$A$100),$B$3:$B$8,$B25)) -> 0 | AQ25: =SUM(SUMIFS(AQ$3:AQ$8,$A$3:$A$8,IF(Dashboard!$B$44:$B$100=TRIM(SUBSTITUTE($A25,"TOTAL","",1)),Dashboard!$A$44:$A$100),$B$3:$B$8,$B25)) -> 0 | AR25: =SUM(SUMIFS(AR$3:AR$8,$A$3:$A$8,IF(Dashboard!$B$44:$B$100=TRIM(SUBSTITUTE($A25,"TOTAL","",1)),Dashboard!$A$44:$A$100),$B$3:$B$8,$B25)) -> 0 | AT25: =SUM(SUMIFS(AT$3:AT$8,$A$3:$A$8,IF(Dashboard!$B$44:$B$100=TRIM(SUBSTITUTE($A25,"TOTAL","",1)),Dashboard!$A$44:$A$100),$B$3:$B$8,$B25)) -> 0 | AV25: =SUM(SUMIFS(AV$3:AV$8,$A$3:$A$8,IF(Dashboard!$B$44:$B$100=TRIM(SUBSTITUTE($A25,"TOTAL","",1)),Dashboard!$A$44:$A$100),$B$3:$B$8,$B25)) -> 0 | AW25: =SUM(SUMIFS(AW$3:AW$8,$A$3:$A$8,IF(Dashboard!$B$44:$B$100=TRIM(SUBSTITUTE($A25,"TOTAL","",1)),Dashboard!$A$44:$A$100),$B$3:$B$8,$B25)) -> 0 | AX25: =SUM(SUMIFS(AX$3:AX$8,$A$3:$A$8,IF(Dashboard!$B$44:$B$100=TRIM(SUBSTITUTE($A25,"TOTAL","",1)),Dashboard!$A$44:$A$100),$B$3:$B$8,$B25)) -> 0 | AY25: 0 | BA25: 0 | BB25: 0 | BD25: =SUM(SUMIFS(BD$3:BD$8,$A$3:$A$8,IF(Dashboard!$B$44:$B$100=TRIM(SUBSTITUTE($A25,"TOTAL","",1)),Dashboard!$A$44:$A$100),$B$3:$B$8,$B25)) -> 0 | BE25: =SUM(SUMIFS(BE$3:BE$8,$A$3:$A$8,IF(Dashboard!$B$44:$B$100=TRIM(SUBSTITUTE($A25,"TOTAL","",1)),Dashboard!$A$44:$A$100),$B$3:$B$8,$B25)) -> 0 | BF25: 0 | BH25: =SUM(SUMIFS(BH$3:BH$8,$A$3:$A$8,IF(Dashboard!$B$44:$B$100=TRIM(SUBSTITUTE($A25,"TOTAL","",1)),Dashboard!$A$44:$A$100),$B$3:$B$8,$B25)) -> 0 | BI25: =SUM(SUMIFS(BI$3:BI$8,$A$3:$A$8,IF(Dashboard!$B$44:$B$100=TRIM(SUBSTITUTE($A25,"TOTAL","",1)),Dashboard!$A$44:$A$100),$B$3:$B$8,$B25)) -> 0 | BJ25: 0 | BL25: =SUM(SUMIFS(BL$3:BL$8,$A$3:$A$8,IF(Dashboard!$B$44:$B$100=TRIM(SUBSTITUTE($A25,"TOTAL","",1)),Dashboard!$A$44:$A$100),$B$3:$B$8,$B25)) -> 0
A26: P1 TOTAL | B26: San Francisco | C26: =SUM(SUMIFS(C$3:C$8,$A$3:$A$8,IF(Dashboard!$B$44:$B$100=TRIM(SUBSTITUTE($A26,"TOTAL","",1)),Dashboard!$A$44:$A$100),$B$3:$B$8,$B26)) -> 0 | D26: =SUM(SUMIFS(D$3:D$8,$A$3:$A$8,IF(Dashboard!$B$44:$B$100=TRIM(SUBSTITUTE($A26,"TOTAL","",1)),Dashboard!$A$44:$A$100),$B$3:$B$8,$B26)) -> 0 | E26: =SUM(SUMIFS(E$3:E$8,$A$3:$A$8,IF(Dashboard!$B$44:$B$100=TRIM(SUBSTITUTE($A26,"TOTAL","",1)),Dashboard!$A$44:$A$100),$B$3:$B$8,$B26)) -> 0 | F26: 0 | G26: =SUM(SUMIFS(G$3:G$8,$A$3:$A$8,IF(Dashboard!$B$44:$B$100=TRIM(SUBSTITUTE($A26,"TOTAL","",1)),Dashboard!$A$44:$A$100),$B$3:$B$8,$B26)) -> 0 | H26: 0 | I26: =SUM(SUMIFS(I$3:I$8,$A$3:$A$8,IF(Dashboard!$B$44:$B$100=TRIM(SUBSTITUTE($A26,"TOTAL","",1)),Dashboard!$A$44:$A$100),$B$3:$B$8,$B26)) -> 0 | J26: =SUM(SUMIFS(J$3:J$8,$A$3:$A$8,IF(Dashboard!$B$44:$B$100=TRIM(SUBSTITUTE($A26,"TOTAL","",1)),Dashboard!$A$44:$A$100),$B$3:$B$8,$B26)) -> 0 | K26: =SUM(SUMIFS(K$3:K$8,$A$3:$A$8,IF(Dashboard!$B$44:$B$100=TRIM(SUBSTITUTE($A26,"TOTAL","",1)),Dashboard!$A$44:$A$100),$B$3:$B$8,$B26)) -> 0 | L26: =SUM(SUMIFS(L$3:L$8,$A$3:$A$8,IF(Dashboard!$B$44:$B$100=TRIM(SUBSTITUTE($A26,"TOTAL","",1)),Dashboard!$A$44:$A$100),$B$3:$B$8,$B26)) -> 0 | M26: =SUM(SUMIFS(M$3:M$8,$A$3:$A$8,IF(Dashboard!$B$44:$B$100=TRIM(SUBSTITUTE($A26,"TOTAL","",1)),Dashboard!$A$44:$A$100),$B$3:$B$8,$B26)) -> 0 | N26: =SUM(SUMIFS(N$3:N$8,$A$3:$A$8,IF(Dashboard!$B$44:$B$100=TRIM(SUBSTITUTE($A26,"TOTAL","",1)),Dashboard!$A$44:$A$100),$B$3:$B$8,$B26)) -> 0 | O26: =SUM(SUMIFS(O$3:O$8,$A$3:$A$8,IF(Dashboard!$B$44:$B$100=TRIM(SUBSTITUTE($A26,"TOTAL","",1)),Dashboard!$A$44:$A$100),$B$3:$B$8,$B26)) -> 0 | P26: =SUM(SUMIFS(P$3:P$8,$A$3:$A$8,IF(Dashboard!$B$44:$B$100=TRIM(SUBSTITUTE($A26,"TOTAL","",1)),Dashboard!$A$44:$A$100),$B$3:$B$8,$B26)) -> 0 | Q26: 0 | R26: 0 | S26: 0 | T26: 0 | V26: =SUM(SUMIFS(V$3:V$8,$A$3:$A$8,IF(Dashboard!$B$44:$B$100=TRIM(SUBSTITUTE($A26,"TOTAL","",1)),Dashboard!$A$44:$A$100),$B$3:$B$8,$B26)) -> 0 | W26: =SUM(SUMIFS(W$3:W$8,$A$3:$A$8,IF(Dashboard!$B$44:$B$100=TRIM(SUBSTITUTE($A26,"TOTAL","",1)),Dashboard!$A$44:$A$100),$B$3:$B$8,$B26)) -> 0 | X26: =SUM(SUMIFS(X$3:X$8,$A$3:$A$8,IF(Dashboard!$B$44:$B$100=TRIM(SUBSTITUTE($A26,"TOTAL","",1)),Dashboard!$A$44:$A$100),$B$3:$B$8,$B26)) -> 0 | Y26: 0 | Z26: =SUM(SUMIFS(Z$3:Z$8,$A$3:$A$8,IF(Dashboard!$B$44:$B$100=TRIM(SUBSTITUTE($A26,"TOTAL","",1)),Dashboard!$A$44:$A$100),$B$3:$B$8,$B26)) -> 0 | AA26: 0 | AB26: =SUM(SUMIFS(AB$3:AB$8,$A$3:$A$8,IF(Dashboard!$B$44:$B$100=TRIM(SUBSTITUTE($A26,"TOTAL","",1)),Dashboard!$A$44:$A$100),$B$3:$B$8,$B26)) -> 0 | AC26: =SUM(SUMIFS(AC$3:AC$8,$A$3:$A$8,IF(Dashboard!$B$44:$B$100=TRIM(SUBSTITUTE($A26,"TOTAL","",1)),Dashboard!$A$44:$A$100),$B$3:$B$8,$B26)) -> 0 | AD26: =SUM(SUMIFS(AD$3:AD$8,$A$3:$A$8,IF(Dashboard!$B$44:$B$100=TRIM(SUBSTITUTE($A26,"TOTAL","",1)),Dashboard!$A$44:$A$100),$B$3:$B$8,$B26)) -> 0 | AE26: =SUM(SUMIFS(AE$3:AE$8,$A$3:$A$8,IF(Dashboard!$B$44:$B$100=TRIM(SUBSTITUTE($A26,"TOTAL","",1)),Dashboard!$A$44:$A$100),$B$3:$B$8,$B26)) -> 0 | AF26: =SUM(SUMIFS(AF$3:AF$8,$A$3:$A$8,IF(Dashboard!$B$44:$B$100=TRIM(SUBSTITUTE($A26,"TOTAL","",1)),Dashboard!$A$44:$A$100),$B$3:$B$8,$B26)) -> 0 | AG26: =SUM(SUMIFS(AG$3:AG$8,$A$3:$A$8,IF(Dashboard!$B$44:$B$100=TRIM(SUBSTITUTE($A26,"TOTAL","",1)),Dashboard!$A$44:$A$100),$B$3:$B$8,$B26)) -> 0 | AH26: =SUM(SUMIFS(AH$3:AH$8,$A$3:$A$8,IF(Dashboard!$B$44:$B$100=TRIM(SUBSTITUTE($A26,"TOTAL","",1)),Dashboard!$A$44:$A$100),$B$3:$B$8,$B26)) -> 0 | AI26: =SUM(SUMIFS(AI$3:AI$8,$A$3:$A$8,IF(Dashboard!$B$44:$B$100=TRIM(SUBSTITUTE($A26,"TOTAL","",1)),Dashboard!$A$44:$A$100),$B$3:$B$8,$B26)) -> 0 | AJ26: 0 | AK26: 0 | AM26: =SUM(SUMIFS(AM$3:AM$8,$A$3:$A$8,IF(Dashboard!$B$44:$B$100=TRIM(SUBSTITUTE($A26,"TOTAL","",1)),Dashboard!$A$44:$A$100),$B$3:$B$8,$B26)) -> 0 | AN26: =SUM(SUMIFS(AN$3:AN$8,$A$3:$A$8,IF(Dashboard!$B$44:$B$100=TRIM(SUBSTITUTE($A26,"TOTAL","",1)),Dashboard!$A$44:$A$100),$B$3:$B$8,$B26)) -> 0 | AO26: =SUM(SUMIFS(AO$3:AO$8,$A$3:$A$8,IF(Dashboard!$B$44:$B$100=TRIM(SUBSTITUTE($A26,"TOTAL","",1)),Dashboard!$A$44:$A$100),$B$3:$B$8,$B26)) -> 0 | AP26: =SUM(SUMIFS(AP$3:AP$8,$A$3:$A$8,IF(Dashboard!$B$44:$B$100=TRIM(SUBSTITUTE($A26,"TOTAL","",1)),Dashboard!$A$44:$A$100),$B$3:$B$8,$B26)) -> 0 | AQ26: =SUM(SUMIFS(AQ$3:AQ$8,$A$3:$A$8,IF(Dashboard!$B$44:$B$100=TRIM(SUBSTITUTE($A26,"TOTAL","",1)),Dashboard!$A$44:$A$100),$B$3:$B$8,$B26)) -> 0 | AR26: =SUM(SUMIFS(AR$3:AR$8,$A$3:$A$8,IF(Dashboard!$B$44:$B$100=TRIM(SUBSTITUTE($A26,"TOTAL","",1)),Dashboard!$A$44:$A$100),$B$3:$B$8,$B26)) -> 0 | AT26: =SUM(SUMIFS(AT$3:AT$8,$A$3:$A$8,IF(Dashboard!$B$44:$B$100=TRIM(SUBSTITUTE($A26,"TOTAL","",1)),Dashboard!$A$44:$A$100),$B$3:$B$8,$B26)) -> 0 | AV26: =SUM(SUMIFS(AV$3:AV$8,$A$3:$A$8,IF(Dashboard!$B$44:$B$100=TRIM(SUBSTITUTE($A26,"TOTAL","",1)),Dashboard!$A$44:$A$100),$B$3:$B$8,$B26)) -> 0 | AW26: =SUM(SUMIFS(AW$3:AW$8,$A$3:$A$8,IF(Dashboard!$B$44:$B$100=TRIM(SUBSTITUTE($A26,"TOTAL","",1)),Dashboard!$A$44:$A$100),$B$3:$B$8,$B26)) -> 0 | AX26: =SUM(SUMIFS(AX$3:AX$8,$A$3:$A$8,IF(Dashboard!$B$44:$B$100=TRIM(SUBSTITUTE($A26,"TOTAL","",1)),Dashboard!$A$44:$A$100),$B$3:$B$8,$B26)) -> 0 | AY26: 0 | BA26: 0 | BB26: 0 | BD26: =SUM(SUMIFS(BD$3:BD$8,$A$3:$A$8,IF(Dashboard!$B$44:$B$100=TRIM(SUBSTITUTE($A26,"TOTAL","",1)),Dashboard!$A$44:$A$100),$B$3:$B$8,$B26)) -> 0 | BE26: =SUM(SUMIFS(BE$3:BE$8,$A$3:$A$8,IF(Dashboard!$B$44:$B$100=TRIM(SUBSTITUTE($A26,"TOTAL","",1)),Dashboard!$A$44:$A$100),$B$3:$B$8,$B26)) -> 0 | BF26: 0 | BH26: =SUM(SUMIFS(BH$3:BH$8,$A$3:$A$8,IF(Dashboard!$B$44:$B$100=TRIM(SUBSTITUTE($A26,"TOTAL","",1)),Dashboard!$A$44:$A$100),$B$3:$B$8,$B26)) -> 0 | BI26: =SUM(SUMIFS(BI$3:BI$8,$A$3:$A$8,IF(Dashboard!$B$44:$B$100=TRIM(SUBSTITUTE($A26,"TOTAL","",1)),Dashboard!$A$44:$A$100),$B$3:$B$8,$B26)) -> 0 | BJ26: 0 | BL26: =SUM(SUMIFS(BL$3:BL$8,$A$3:$A$8,IF(Dashboard!$B$44:$B$100=TRIM(SUBSTITUTE($A26,"TOTAL","",1)),Dashboard!$A$44:$A$100),$B$3:$B$8,$B26)) -> 0
A27: P1 TOTAL | B27: Salt Lake City | C27: =SUM(SUMIFS(C$3:C$8,$A$3:$A$8,IF(Dashboard!$B$44:$B$100=TRIM(SUBSTITUTE($A27,"TOTAL","",1)),Dashboard!$A$44:$A$100),$B$3:$B$8,$B27)) -> 0 | D27: =SUM(SUMIFS(D$3:D$8,$A$3:$A$8,IF(Dashboard!$B$44:$B$100=TRIM(SUBSTITUTE($A27,"TOTAL","",1)),Dashboard!$A$44:$A$100),$B$3:$B$8,$B27)) -> 0 | E27: =SUM(SUMIFS(E$3:E$8,$A$3:$A$8,IF(Dashboard!$B$44:$B$100=TRIM(SUBSTITUTE($A27,"TOTAL","",1)),Dashboard!$A$44:$A$100),$B$3:$B$8,$B27)) -> 0 | F27: 0 | G27: =SUM(SUMIFS(G$3:G$8,$A$3:$A$8,IF(Dashboard!$B$44:$B$100=TRIM(SUBSTITUTE($A27,"TOTAL","",1)),Dashboard!$A$44:$A$100),$B$3:$B$8,$B27)) -> 0 | H27: 0 | I27: =SUM(SUMIFS(I$3:I$8,$A$3:$A$8,IF(Dashboard!$B$44:$B$100=TRIM(SUBSTITUTE($A27,"TOTAL","",1)),Dashboard!$A$44:$A$100),$B$3:$B$8,$B27)) -> 0 | J27: =SUM(SUMIFS(J$3:J$8,$A$3:$A$8,IF(Dashboard!$B$44:$B$100=TRIM(SUBSTITUTE($A27,"TOTAL","",1)),Dashboard!$A$44:$A$100),$B$3:$B$8,$B27)) -> 0 | K27: =SUM(SUMIFS(K$3:K$8,$A$3:$A$8,IF(Dashboard!$B$44:$B$100=TRIM(SUBSTITUTE($A27,"TOTAL","",1)),Dashboard!$A$44:$A$100),$B$3:$B$8,$B27)) -> 0 | L27: =SUM(SUMIFS(L$3:L$8,$A$3:$A$8,IF(Dashboard!$B$44:$B$100=TRIM(SUBSTITUTE($A27,"TOTAL","",1)),Dashboard!$A$44:$A$100),$B$3:$B$8,$B27)) -> 0 | M27: =SUM(SUMIFS(M$3:M$8,$A$3:$A$8,IF(Dashboard!$B$44:$B$100=TRIM(SUBSTITUTE($A27,"TOTAL","",1)),Dashboard!$A$44:$A$100),$B$3:$B$8,$B27)) -> 0 | N27: =SUM(SUMIFS(N$3:N$8,$A$3:$A$8,IF(Dashboard!$B$44:$B$100=TRIM(SUBSTITUTE($A27,"TOTAL","",1)),Dashboard!$A$44:$A$100),$B$3:$B$8,$B27)) -> 0 | O27: =SUM(SUMIFS(O$3:O$8,$A$3:$A$8,IF(Dashboard!$B$44:$B$100=TRIM(SUBSTITUTE($A27,"TOTAL","",1)),Dashboard!$A$44:$A$100),$B$3:$B$8,$B27)) -> 0 | P27: =SUM(SUMIFS(P$3:P$8,$A$3:$A$8,IF(Dashboard!$B$44:$B$100=TRIM(SUBSTITUTE($A27,"TOTAL","",1)),Dashboard!$A$44:$A$100),$B$3:$B$8,$B27)) -> 0 | Q27: 0 | R27: 0 | S27: 0 | T27: 0 | V27: =SUM(SUMIFS(V$3:V$8,$A$3:$A$8,IF(Dashboard!$B$44:$B$100=TRIM(SUBSTITUTE($A27,"TOTAL","",1)),Dashboard!$A$44:$A$100),$B$3:$B$8,$B27)) -> 0 | W27: =SUM(SUMIFS(W$3:W$8,$A$3:$A$8,IF(Dashboard!$B$44:$B$100=TRIM(SUBSTITUTE($A27,"TOTAL","",1)),Dashboard!$A$44:$A$100),$B$3:$B$8,$B27)) -> 0 | X27: =SUM(SUMIFS(X$3:X$8,$A$3:$A$8,IF(Dashboard!$B$44:$B$100=TRIM(SUBSTITUTE($A27,"TOTAL","",1)),Dashboard!$A$44:$A$100),$B$3:$B$8,$B27)) -> 0 | Y27: 0 | Z27: =SUM(SUMIFS(Z$3:Z$8,$A$3:$A$8,IF(Dashboard!$B$44:$B$100=TRIM(SUBSTITUTE($A27,"TOTAL","",1)),Dashboard!$A$44:$A$100),$B$3:$B$8,$B27)) -> 0 | AA27: 0 | AB27: =SUM(SUMIFS(AB$3:AB$8,$A$3:$A$8,IF(Dashboard!$B$44:$B$100=TRIM(SUBSTITUTE($A27,"TOTAL","",1)),Dashboard!$A$44:$A$100),$B$3:$B$8,$B27)) -> 0 | AC27: =SUM(SUMIFS(AC$3:AC$8,$A$3:$A$8,IF(Dashboard!$B$44:$B$100=TRIM(SUBSTITUTE($A27,"TOTAL","",1)),Dashboard!$A$44:$A$100),$B$3:$B$8,$B27)) -> 0 | AD27: =SUM(SUMIFS(AD$3:AD$8,$A$3:$A$8,IF(Dashboard!$B$44:$B$100=TRIM(SUBSTITUTE($A27,"TOTAL","",1)),Dashboard!$A$44:$A$100),$B$3:$B$8,$B27)) -> 0 | AE27: =SUM(SUMIFS(AE$3:AE$8,$A$3:$A$8,IF(Dashboard!$B$44:$B$100=TRIM(SUBSTITUTE($A27,"TOTAL","",1)),Dashboard!$A$44:$A$100),$B$3:$B$8,$B27)) -> 0 | AF27: =SUM(SUMIFS(AF$3:AF$8,$A$3:$A$8,IF(Dashboard!$B$44:$B$100=TRIM(SUBSTITUTE($A27,"TOTAL","",1)),Dashboard!$A$44:$A$100),$B$3:$B$8,$B27)) -> 0 | AG27: =SUM(SUMIFS(AG$3:AG$8,$A$3:$A$8,IF(Dashboard!$B$44:$B$100=TRIM(SUBSTITUTE($A27,"TOTAL","",1)),Dashboard!$A$44:$A$100),$B$3:$B$8,$B27)) -> 0 | AH27: =SUM(SUMIFS(AH$3:AH$8,$A$3:$A$8,IF(Dashboard!$B$44:$B$100=TRIM(SUBSTITUTE($A27,"TOTAL","",1)),Dashboard!$A$44:$A$100),$B$3:$B$8,$B27)) -> 0 | AI27: =SUM(SUMIFS(AI$3:AI$8,$A$3:$A$8,IF(Dashboard!$B$44:$B$100=TRIM(SUBSTITUTE($A27,"TOTAL","",1)),Dashboard!$A$44:$A$100),$B$3:$B$8,$B27)) -> 0 | AJ27: 0 | AK27: 0 | AM27: =SUM(SUMIFS(AM$3:AM$8,$A$3:$A$8,IF(Dashboard!$B$44:$B$100=TRIM(SUBSTITUTE($A27,"TOTAL","",1)),Dashboard!$A$44:$A$100),$B$3:$B$8,$B27)) -> 0 | AN27: =SUM(SUMIFS(AN$3:AN$8,$A$3:$A$8,IF(Dashboard!$B$44:$B$100=TRIM(SUBSTITUTE($A27,"TOTAL","",1)),Dashboard!$A$44:$A$100),$B$3:$B$8,$B27)) -> 0 | AO27: =SUM(SUMIFS(AO$3:AO$8,$A$3:$A$8,IF(Dashboard!$B$44:$B$100=TRIM(SUBSTITUTE($A27,"TOTAL","",1)),Dashboard!$A$44:$A$100),$B$3:$B$8,$B27)) -> 0 | AP27: =SUM(SUMIFS(AP$3:AP$8,$A$3:$A$8,IF(Dashboard!$B$44:$B$100=TRIM(SUBSTITUTE($A27,"TOTAL","",1)),Dashboard!$A$44:$A$100),$B$3:$B$8,$B27)) -> 0 | AQ27: =SUM(SUMIFS(AQ$3:AQ$8,$A$3:$A$8,IF(Dashboard!$B$44:$B$100=TRIM(SUBSTITUTE($A27,"TOTAL","",1)),Dashboard!$A$44:$A$100),$B$3:$B$8,$B27)) -> 0 | AR27: =SUM(SUMIFS(AR$3:AR$8,$A$3:$A$8,IF(Dashboard!$B$44:$B$100=TRIM(SUBSTITUTE($A27,"TOTAL","",1)),Dashboard!$A$44:$A$100),$B$3:$B$8,$B27)) -> 0 | AT27: =SUM(SUMIFS(AT$3:AT$8,$A$3:$A$8,IF(Dashboard!$B$44:$B$100=TRIM(SUBSTITUTE($A27,"TOTAL","",1)),Dashboard!$A$44:$A$100),$B$3:$B$8,$B27)) -> 0 | AV27: =SUM(SUMIFS(AV$3:AV$8,$A$3:$A$8,IF(Dashboard!$B$44:$B$100=TRIM(SUBSTITUTE($A27,"TOTAL","",1)),Dashboard!$A$44:$A$100),$B$3:$B$8,$B27)) -> 0 | AW27: =SUM(SUMIFS(AW$3:AW$8,$A$3:$A$8,IF(Dashboard!$B$44:$B$100=TRIM(SUBSTITUTE($A27,"TOTAL","",1)),Dashboard!$A$44:$A$100),$B$3:$B$8,$B27)) -> 0 | AX27: =SUM(SUMIFS(AX$3:AX$8,$A$3:$A$8,IF(Dashboard!$B$44:$B$100=TRIM(SUBSTITUTE($A27,"TOTAL","",1)),Dashboard!$A$44:$A$100),$B$3:$B$8,$B27)) -> 0 | AY27: 0 | BA27: 0 | BB27: 0 | BD27: =SUM(SUMIFS(BD$3:BD$8,$A$3:$A$8,IF(Dashboard!$B$44:$B$100=TRIM(SUBSTITUTE($A27,"TOTAL","",1)),Dashboard!$A$44:$A$100),$B$3:$B$8,$B27)) -> 0 | BE27: =SUM(SUMIFS(BE$3:BE$8,$A$3:$A$8,IF(Dashboard!$B$44:$B$100=TRIM(SUBSTITUTE($A27,"TOTAL","",1)),Dashboard!$A$44:$A$100),$B$3:$B$8,$B27)) -> 0 | BF27: 0 | BH27: =SUM(SUMIFS(BH$3:BH$8,$A$3:$A$8,IF(Dashboard!$B$44:$B$100=TRIM(SUBSTITUTE($A27,"TOTAL","",1)),Dashboard!$A$44:$A$100),$B$3:$B$8,$B27)) -> 0 | BI27: =SUM(SUMIFS(BI$3:BI$8,$A$3:$A$8,IF(Dashboard!$B$44:$B$100=TRIM(SUBSTITUTE($A27,"TOTAL","",1)),Dashboard!$A$44:$A$100),$B$3:$B$8,$B27)) -> 0 | BJ27: 0 | BL27: =SUM(SUMIFS(BL$3:BL$8,$A$3:$A$8,IF(Dashboard!$B$44:$B$100=TRIM(SUBSTITUTE($A27,"TOTAL","",1)),Dashboard!$A$44:$A$100),$B$3:$B$8,$B27)) -> 0
A28: P1 TOTAL | B28: Toronto | C28: =SUM(SUMIFS(C$3:C$8,$A$3:$A$8,IF(Dashboard!$B$44:$B$100=TRIM(SUBSTITUTE($A28,"TOTAL","",1)),Dashboard!$A$44:$A$100),$B$3:$B$8,$B28)) -> 0 | D28: =SUM(SUMIFS(D$3:D$8,$A$3:$A$8,IF(Dashboard!$B$44:$B$100=TRIM(SUBSTITUTE($A28,"TOTAL","",1)),Dashboard!$A$44:$A$100),$B$3:$B$8,$B28)) -> 0 | E28: =SUM(SUMIFS(E$3:E$8,$A$3:$A$8,IF(Dashboard!$B$44:$B$100=TRIM(SUBSTITUTE($A28,"TOTAL","",1)),Dashboard!$A$44:$A$100),$B$3:$B$8,$B28)) -> 0 | F28: 0 | G28: =SUM(SUMIFS(G$3:G$8,$A$3:$A$8,IF(Dashboard!$B$44:$B$100=TRIM(SUBSTITUTE($A28,"TOTAL","",1)),Dashboard!$A$44:$A$100),$B$3:$B$8,$B28)) -> 0 | H28: 0 | I28: =SUM(SUMIFS(I$3:I$8,$A$3:$A$8,IF(Dashboard!$B$44:$B$100=TRIM(SUBSTITUTE($A28,"TOTAL","",1)),Dashboard!$A$44:$A$100),$B$3:$B$8,$B28)) -> 0 | J28: =SUM(SUMIFS(J$3:J$8,$A$3:$A$8,IF(Dashboard!$B$44:$B$100=TRIM(SUBSTITUTE($A28,"TOTAL","",1)),Dashboard!$A$44:$A$100),$B$3:$B$8,$B28)) -> 0 | K28: =SUM(SUMIFS(K$3:K$8,$A$3:$A$8,IF(Dashboard!$B$44:$B$100=TRIM(SUBSTITUTE($A28,"TOTAL","",1)),Dashboard!$A$44:$A$100),$B$3:$B$8,$B28)) -> 0 | L28: =SUM(SUMIFS(L$3:L$8,$A$3:$A$8,IF(Dashboard!$B$44:$B$100=TRIM(SUBSTITUTE($A28,"TOTAL","",1)),Dashboard!$A$44:$A$100),$B$3:$B$8,$B28)) -> 0 | M28: =SUM(SUMIFS(M$3:M$8,$A$3:$A$8,IF(Dashboard!$B$44:$B$100=TRIM(SUBSTITUTE($A28,"TOTAL","",1)),Dashboard!$A$44:$A$100),$B$3:$B$8,$B28)) -> 0 | N28: =SUM(SUMIFS(N$3:N$8,$A$3:$A$8,IF(Dashboard!$B$44:$B$100=TRIM(SUBSTITUTE($A28,"TOTAL","",1)),Dashboard!$A$44:$A$100),$B$3:$B$8,$B28)) -> 0 | O28: =SUM(SUMIFS(O$3:O$8,$A$3:$A$8,IF(Dashboard!$B$44:$B$100=TRIM(SUBSTITUTE($A28,"TOTAL","",1)),Dashboard!$A$44:$A$100),$B$3:$B$8,$B28)) -> 0 | P28: =SUM(SUMIFS(P$3:P$8,$A$3:$A$8,IF(Dashboard!$B$44:$B$100=TRIM(SUBSTITUTE($A28,"TOTAL","",1)),Dashboard!$A$44:$A$100),$B$3:$B$8,$B28)) -> 0 | Q28: 0 | R28: 0 | S28: 0 | T28: 0 | V28: =SUM(SUMIFS(V$3:V$8,$A$3:$A$8,IF(Dashboard!$B$44:$B$100=TRIM(SUBSTITUTE($A28,"TOTAL","",1)),Dashboard!$A$44:$A$100),$B$3:$B$8,$B28)) -> 0 | W28: =SUM(SUMIFS(W$3:W$8,$A$3:$A$8,IF(Dashboard!$B$44:$B$100=TRIM(SUBSTITUTE($A28,"TOTAL","",1)),Dashboard!$A$44:$A$100),$B$3:$B$8,$B28)) -> 0 | X28: =SUM(SUMIFS(X$3:X$8,$A$3:$A$8,IF(Dashboard!$B$44:$B$100=TRIM(SUBSTITUTE($A28,"TOTAL","",1)),Dashboard!$A$44:$A$100),$B$3:$B$8,$B28)) -> 0 | Y28: 0 | Z28: =SUM(SUMIFS(Z$3:Z$8,$A$3:$A$8,IF(Dashboard!$B$44:$B$100=TRIM(SUBSTITUTE($A28,"TOTAL","",1)),Dashboard!$A$44:$A$100),$B$3:$B$8,$B28)) -> 0 | AA28: 0 | AB28: =SUM(SUMIFS(AB$3:AB$8,$A$3:$A$8,IF(Dashboard!$B$44:$B$100=TRIM(SUBSTITUTE($A28,"TOTAL","",1)),Dashboard!$A$44:$A$100),$B$3:$B$8,$B28)) -> 0 | AC28: =SUM(SUMIFS(AC$3:AC$8,$A$3:$A$8,IF(Dashboard!$B$44:$B$100=TRIM(SUBSTITUTE($A28,"TOTAL","",1)),Dashboard!$A$44:$A$100),$B$3:$B$8,$B28)) -> 0 | AD28: =SUM(SUMIFS(AD$3:AD$8,$A$3:$A$8,IF(Dashboard!$B$44:$B$100=TRIM(SUBSTITUTE($A28,"TOTAL","",1)),Dashboard!$A$44:$A$100),$B$3:$B$8,$B28)) -> 0 | AE28: =SUM(SUMIFS(AE$3:AE$8,$A$3:$A$8,IF(Dashboard!$B$44:$B$100=TRIM(SUBSTITUTE($A28,"TOTAL","",1)),Dashboard!$A$44:$A$100),$B$3:$B$8,$B28)) -> 0 | AF28: =SUM(SUMIFS(AF$3:AF$8,$A$3:$A$8,IF(Dashboard!$B$44:$B$100=TRIM(SUBSTITUTE($A28,"TOTAL","",1)),Dashboard!$A$44:$A$100),$B$3:$B$8,$B28)) -> 0 | AG28: =SUM(SUMIFS(AG$3:AG$8,$A$3:$A$8,IF(Dashboard!$B$44:$B$100=TRIM(SUBSTITUTE($A28,"TOTAL","",1)),Dashboard!$A$44:$A$100),$B$3:$B$8,$B28)) -> 0 | AH28: =SUM(SUMIFS(AH$3:AH$8,$A$3:$A$8,IF(Dashboard!$B$44:$B$100=TRIM(SUBSTITUTE($A28,"TOTAL","",1)),Dashboard!$A$44:$A$100),$B$3:$B$8,$B28)) -> 0 | AI28: =SUM(SUMIFS(AI$3:AI$8,$A$3:$A$8,IF(Dashboard!$B$44:$B$100=TRIM(SUBSTITUTE($A28,"TOTAL","",1)),Dashboard!$A$44:$A$100),$B$3:$B$8,$B28)) -> 0 | AJ28: 0 | AK28: 0 | AM28: =SUM(SUMIFS(AM$3:AM$8,$A$3:$A$8,IF(Dashboard!$B$44:$B$100=TRIM(SUBSTITUTE($A28,"TOTAL","",1)),Dashboard!$A$44:$A$100),$B$3:$B$8,$B28)) -> 0 | AN28: =SUM(SUMIFS(AN$3:AN$8,$A$3:$A$8,IF(Dashboard!$B$44:$B$100=TRIM(SUBSTITUTE($A28,"TOTAL","",1)),Dashboard!$A$44:$A$100),$B$3:$B$8,$B28)) -> 0 | AO28: =SUM(SUMIFS(AO$3:AO$8,$A$3:$A$8,IF(Dashboard!$B$44:$B$100=TRIM(SUBSTITUTE($A28,"TOTAL","",1)),Dashboard!$A$44:$A$100),$B$3:$B$8,$B28)) -> 0 | AP28: =SUM(SUMIFS(AP$3:AP$8,$A$3:$A$8,IF(Dashboard!$B$44:$B$100=TRIM(SUBSTITUTE($A28,"TOTAL","",1)),Dashboard!$A$44:$A$100),$B$3:$B$8,$B28)) -> 0 | AQ28: =SUM(SUMIFS(AQ$3:AQ$8,$A$3:$A$8,IF(Dashboard!$B$44:$B$100=TRIM(SUBSTITUTE($A28,"TOTAL","",1)),Dashboard!$A$44:$A$100),$B$3:$B$8,$B28)) -> 0 | AR28: =SUM(SUMIFS(AR$3:AR$8,$A$3:$A$8,IF(Dashboard!$B$44:$B$100=TRIM(SUBSTITUTE($A28,"TOTAL","",1)),Dashboard!$A$44:$A$100),$B$3:$B$8,$B28)) -> 0 | AT28: =SUM(SUMIFS(AT$3:AT$8,$A$3:$A$8,IF(Dashboard!$B$44:$B$100=TRIM(SUBSTITUTE($A28,"TOTAL","",1)),Dashboard!$A$44:$A$100),$B$3:$B$8,$B28)) -> 0 | AV28: =SUM(SUMIFS(AV$3:AV$8,$A$3:$A$8,IF(Dashboard!$B$44:$B$100=TRIM(SUBSTITUTE($A28,"TOTAL","",1)),Dashboard!$A$44:$A$100),$B$3:$B$8,$B28)) -> 0 | AW28: =SUM(SUMIFS(AW$3:AW$8,$A$3:$A$8,IF(Dashboard!$B$44:$B$100=TRIM(SUBSTITUTE($A28,"TOTAL","",1)),Dashboard!$A$44:$A$100),$B$3:$B$8,$B28)) -> 0 | AX28: =SUM(SUMIFS(AX$3:AX$8,$A$3:$A$8,IF(Dashboard!$B$44:$B$100=TRIM(SUBSTITUTE($A28,"TOTAL","",1)),Dashboard!$A$44:$A$100),$B$3:$B$8,$B28)) -> 0 | AY28: 0 | BA28: 0 | BB28: 0 | BD28: =SUM(SUMIFS(BD$3:BD$8,$A$3:$A$8,IF(Dashboard!$B$44:$B$100=TRIM(SUBSTITUTE($A28,"TOTAL","",1)),Dashboard!$A$44:$A$100),$B$3:$B$8,$B28)) -> 0 | BE28: =SUM(SUMIFS(BE$3:BE$8,$A$3:$A$8,IF(Dashboard!$B$44:$B$100=TRIM(SUBSTITUTE($A28,"TOTAL","",1)),Dashboard!$A$44:$A$100),$B$3:$B$8,$B28)) -> 0 | BF28: 0 | BH28: =SUM(SUMIFS(BH$3:BH$8,$A$3:$A$8,IF(Dashboard!$B$44:$B$100=TRIM(SUBSTITUTE($A28,"TOTAL","",1)),Dashboard!$A$44:$A$100),$B$3:$B$8,$B28)) -> 0 | BI28: =SUM(SUMIFS(BI$3:BI$8,$A$3:$A$8,IF(Dashboard!$B$44:$B$100=TRIM(SUBSTITUTE($A28,"TOTAL","",1)),Dashboard!$A$44:$A$100),$B$3:$B$8,$B28)) -> 0 | BJ28: 0 | BL28: =SUM(SUMIFS(BL$3:BL$8,$A$3:$A$8,IF(Dashboard!$B$44:$B$100=TRIM(SUBSTITUTE($A28,"TOTAL","",1)),Dashboard!$A$44:$A$100),$B$3:$B$8,$B28)) -> 0
A29: P1 TOTAL | B29: Vancouver | C29: =SUM(SUMIFS(C$3:C$8,$A$3:$A$8,IF(Dashboard!$B$44:$B$100=TRIM(SUBSTITUTE($A29,"TOTAL","",1)),Dashboard!$A$44:$A$100),$B$3:$B$8,$B29)) -> 0 | D29: =SUM(SUMIFS(D$3:D$8,$A$3:$A$8,IF(Dashboard!$B$44:$B$100=TRIM(SUBSTITUTE($A29,"TOTAL","",1)),Dashboard!$A$44:$A$100),$B$3:$B$8,$B29)) -> 0 | E29: =SUM(SUMIFS(E$3:E$8,$A$3:$A$8,IF(Dashboard!$B$44:$B$100=TRIM(SUBSTITUTE($A29,"TOTAL","",1)),Dashboard!$A$44:$A$100),$B$3:$B$8,$B29)) -> 0 | F29: 0 | G29: =SUM(SUMIFS(G$3:G$8,$A$3:$A$8,IF(Dashboard!$B$44:$B$100=TRIM(SUBSTITUTE($A29,"TOTAL","",1)),Dashboard!$A$44:$A$100),$B$3:$B$8,$B29)) -> 0 | H29: 0 | I29: =SUM(SUMIFS(I$3:I$8,$A$3:$A$8,IF(Dashboard!$B$44:$B$100=TRIM(SUBSTITUTE($A29,"TOTAL","",1)),Dashboard!$A$44:$A$100),$B$3:$B$8,$B29)) -> 0 | J29: =SUM(SUMIFS(J$3:J$8,$A$3:$A$8,IF(Dashboard!$B$44:$B$100=TRIM(SUBSTITUTE($A29,"TOTAL","",1)),Dashboard!$A$44:$A$100),$B$3:$B$8,$B29)) -> 0 | K29: =SUM(SUMIFS(K$3:K$8,$A$3:$A$8,IF(Dashboard!$B$44:$B$100=TRIM(SUBSTITUTE($A29,"TOTAL","",1)),Dashboard!$A$44:$A$100),$B$3:$B$8,$B29)) -> 0 | L29: =SUM(SUMIFS(L$3:L$8,$A$3:$A$8,IF(Dashboard!$B$44:$B$100=TRIM(SUBSTITUTE($A29,"TOTAL","",1)),Dashboard!$A$44:$A$100),$B$3:$B$8,$B29)) -> 0 | M29: =SUM(SUMIFS(M$3:M$8,$A$3:$A$8,IF(Dashboard!$B$44:$B$100=TRIM(SUBSTITUTE($A29,"TOTAL","",1)),Dashboard!$A$44:$A$100),$B$3:$B$8,$B29)) -> 0 | N29: =SUM(SUMIFS(N$3:N$8,$A$3:$A$8,IF(Dashboard!$B$44:$B$100=TRIM(SUBSTITUTE($A29,"TOTAL","",1)),Dashboard!$A$44:$A$100),$B$3:$B$8,$B29)) -> 0 | O29: =SUM(SUMIFS(O$3:O$8,$A$3:$A$8,IF(Dashboard!$B$44:$B$100=TRIM(SUBSTITUTE($A29,"TOTAL","",1)),Dashboard!$A$44:$A$100),$B$3:$B$8,$B29)) -> 0 | P29: =SUM(SUMIFS(P$3:P$8,$A$3:$A$8,IF(Dashboard!$B$44:$B$100=TRIM(SUBSTITUTE($A29,"TOTAL","",1)),Dashboard!$A$44:$A$100),$B$3:$B$8,$B29)) -> 0 | Q29: 0 | R29: 0 | S29: 0 | T29: 0 | V29: =SUM(SUMIFS(V$3:V$8,$A$3:$A$8,IF(Dashboard!$B$44:$B$100=TRIM(SUBSTITUTE($A29,"TOTAL","",1)),Dashboard!$A$44:$A$100),$B$3:$B$8,$B29)) -> 0 | W29: =SUM(SUMIFS(W$3:W$8,$A$3:$A$8,IF(Dashboard!$B$44:$B$100=TRIM(SUBSTITUTE($A29,"TOTAL","",1)),Dashboard!$A$44:$A$100),$B$3:$B$8,$B29)) -> 0 | X29: =SUM(SUMIFS(X$3:X$8,$A$3:$A$8,IF(Dashboard!$B$44:$B$100=TRIM(SUBSTITUTE($A29,"TOTAL","",1)),Dashboard!$A$44:$A$100),$B$3:$B$8,$B29)) -> 0 | Y29: 0 | Z29: =SUM(SUMIFS(Z$3:Z$8,$A$3:$A$8,IF(Dashboard!$B$44:$B$100=TRIM(SUBSTITUTE($A29,"TOTAL","",1)),Dashboard!$A$44:$A$100),$B$3:$B$8,$B29)) -> 0 | AA29: 0 | AB29: =SUM(SUMIFS(AB$3:AB$8,$A$3:$A$8,IF(Dashboard!$B$44:$B$100=TRIM(SUBSTITUTE($A29,"TOTAL","",1)),Dashboard!$A$44:$A$100),$B$3:$B$8,$B29)) -> 0 | AC29: =SUM(SUMIFS(AC$3:AC$8,$A$3:$A$8,IF(Dashboard!$B$44:$B$100=TRIM(SUBSTITUTE($A29,"TOTAL","",1)),Dashboard!$A$44:$A$100),$B$3:$B$8,$B29)) -> 0 | AD29: =SUM(SUMIFS(AD$3:AD$8,$A$3:$A$8,IF(Dashboard!$B$44:$B$100=TRIM(SUBSTITUTE($A29,"TOTAL","",1)),Dashboard!$A$44:$A$100),$B$3:$B$8,$B29)) -> 0 | AE29: =SUM(SUMIFS(AE$3:AE$8,$A$3:$A$8,IF(Dashboard!$B$44:$B$100=TRIM(SUBSTITUTE($A29,"TOTAL","",1)),Dashboard!$A$44:$A$100),$B$3:$B$8,$B29)) -> 0 | AF29: =SUM(SUMIFS(AF$3:AF$8,$A$3:$A$8,IF(Dashboard!$B$44:$B$100=TRIM(SUBSTITUTE($A29,"TOTAL","",1)),Dashboard!$A$44:$A$100),$B$3:$B$8,$B29)) -> 0 | AG29: =SUM(SUMIFS(AG$3:AG$8,$A$3:$A$8,IF(Dashboard!$B$44:$B$100=TRIM(SUBSTITUTE($A29,"TOTAL","",1)),Dashboard!$A$44:$A$100),$B$3:$B$8,$B29)) -> 0 | AH29: =SUM(SUMIFS(AH$3:AH$8,$A$3:$A$8,IF(Dashboard!$B$44:$B$100=TRIM(SUBSTITUTE($A29,"TOTAL","",1)),Dashboard!$A$44:$A$100),$B$3:$B$8,$B29)) -> 0 | AI29: =SUM(SUMIFS(AI$3:AI$8,$A$3:$A$8,IF(Dashboard!$B$44:$B$100=TRIM(SUBSTITUTE($A29,"TOTAL","",1)),Dashboard!$A$44:$A$100),$B$3:$B$8,$B29)) -> 0 | AJ29: 0 | AK29: 0 | AM29: =SUM(SUMIFS(AM$3:AM$8,$A$3:$A$8,IF(Dashboard!$B$44:$B$100=TRIM(SUBSTITUTE($A29,"TOTAL","",1)),Dashboard!$A$44:$A$100),$B$3:$B$8,$B29)) -> 0 | AN29: =SUM(SUMIFS(AN$3:AN$8,$A$3:$A$8,IF(Dashboard!$B$44:$B$100=TRIM(SUBSTITUTE($A29,"TOTAL","",1)),Dashboard!$A$44:$A$100),$B$3:$B$8,$B29)) -> 0 | AO29: =SUM(SUMIFS(AO$3:AO$8,$A$3:$A$8,IF(Dashboard!$B$44:$B$100=TRIM(SUBSTITUTE($A29,"TOTAL","",1)),Dashboard!$A$44:$A$100),$B$3:$B$8,$B29)) -> 0 | AP29: =SUM(SUMIFS(AP$3:AP$8,$A$3:$A$8,IF(Dashboard!$B$44:$B$100=TRIM(SUBSTITUTE($A29,"TOTAL","",1)),Dashboard!$A$44:$A$100),$B$3:$B$8,$B29)) -> 0 | AQ29: =SUM(SUMIFS(AQ$3:AQ$8,$A$3:$A$8,IF(Dashboard!$B$44:$B$100=TRIM(SUBSTITUTE($A29,"TOTAL","",1)),Dashboard!$A$44:$A$100),$B$3:$B$8,$B29)) -> 0 | AR29: =SUM(SUMIFS(AR$3:AR$8,$A$3:$A$8,IF(Dashboard!$B$44:$B$100=TRIM(SUBSTITUTE($A29,"TOTAL","",1)),Dashboard!$A$44:$A$100),$B$3:$B$8,$B29)) -> 0 | AT29: =SUM(SUMIFS(AT$3:AT$8,$A$3:$A$8,IF(Dashboard!$B$44:$B$100=TRIM(SUBSTITUTE($A29,"TOTAL","",1)),Dashboard!$A$44:$A$100),$B$3:$B$8,$B29)) -> 0 | AV29: =SUM(SUMIFS(AV$3:AV$8,$A$3:$A$8,IF(Dashboard!$B$44:$B$100=TRIM(SUBSTITUTE($A29,"TOTAL","",1)),Dashboard!$A$44:$A$100),$B$3:$B$8,$B29)) -> 0 | AW29: =SUM(SUMIFS(AW$3:AW$8,$A$3:$A$8,IF(Dashboard!$B$44:$B$100=TRIM(SUBSTITUTE($A29,"TOTAL","",1)),Dashboard!$A$44:$A$100),$B$3:$B$8,$B29)) -> 0 | AX29: =SUM(SUMIFS(AX$3:AX$8,$A$3:$A$8,IF(Dashboard!$B$44:$B$100=TRIM(SUBSTITUTE($A29,"TOTAL","",1)),Dashboard!$A$44:$A$100),$B$3:$B$8,$B29)) -> 0 | AY29: 0 | BA29: 0 | BB29: 0 | BD29: =SUM(SUMIFS(BD$3:BD$8,$A$3:$A$8,IF(Dashboard!$B$44:$B$100=TRIM(SUBSTITUTE($A29,"TOTAL","",1)),Dashboard!$A$44:$A$100),$B$3:$B$8,$B29)) -> 0 | BE29: =SUM(SUMIFS(BE$3:BE$8,$A$3:$A$8,IF(Dashboard!$B$44:$B$100=TRIM(SUBSTITUTE($A29,"TOTAL","",1)),Dashboard!$A$44:$A$100),$B$3:$B$8,$B29)) -> 0 | BF29: 0 | BH29: =SUM(SUMIFS(BH$3:BH$8,$A$3:$A$8,IF(Dashboard!$B$44:$B$100=TRIM(SUBSTITUTE($A29,"TOTAL","",1)),Dashboard!$A$44:$A$100),$B$3:$B$8,$B29)) -> 0 | BI29: =SUM(SUMIFS(BI$3:BI$8,$A$3:$A$8,IF(Dashboard!$B$44:$B$100=TRIM(SUBSTITUTE($A29,"TOTAL","",1)),Dashboard!$A$44:$A$100),$B$3:$B$8,$B29)) -> 0 | BJ29: 0 | BL29: =SUM(SUMIFS(BL$3:BL$8,$A$3:$A$8,IF(Dashboard!$B$44:$B$100=TRIM(SUBSTITUTE($A29,"TOTAL","",1)),Dashboard!$A$44:$A$100),$B$3:$B$8,$B29)) -> 0
A31: P2 TOTAL | B31: Atlanta | C31: =SUM(SUMIFS(C$3:C$8,$A$3:$A$8,IF(Dashboard!$B$44:$B$100=TRIM(SUBSTITUTE($A31,"TOTAL","",1)),Dashboard!$A$44:$A$100),$B$3:$B$8,$B31)) -> 0 | D31: =SUM(SUMIFS(D$3:D$8,$A$3:$A$8,IF(Dashboard!$B$44:$B$100=TRIM(SUBSTITUTE($A31,"TOTAL","",1)),Dashboard!$A$44:$A$100),$B$3:$B$8,$B31)) -> 0 | E31: =SUM(SUMIFS(E$3:E$8,$A$3:$A$8,IF(Dashboard!$B$44:$B$100=TRIM(SUBSTITUTE($A31,"TOTAL","",1)),Dashboard!$A$44:$A$100),$B$3:$B$8,$B31)) -> 0 | F31: 0 | G31: =SUM(SUMIFS(G$3:G$8,$A$3:$A$8,IF(Dashboard!$B$44:$B$100=TRIM(SUBSTITUTE($A31,"TOTAL","",1)),Dashboard!$A$44:$A$100),$B$3:$B$8,$B31)) -> 0 | H31: 0 | I31: =SUM(SUMIFS(I$3:I$8,$A$3:$A$8,IF(Dashboard!$B$44:$B$100=TRIM(SUBSTITUTE($A31,"TOTAL","",1)),Dashboard!$A$44:$A$100),$B$3:$B$8,$B31)) -> 0 | J31: =SUM(SUMIFS(J$3:J$8,$A$3:$A$8,IF(Dashboard!$B$44:$B$100=TRIM(SUBSTITUTE($A31,"TOTAL","",1)),Dashboard!$A$44:$A$100),$B$3:$B$8,$B31)) -> 0 | K31: =SUM(SUMIFS(K$3:K$8,$A$3:$A$8,IF(Dashboard!$B$44:$B$100=TRIM(SUBSTITUTE($A31,"TOTAL","",1)),Dashboard!$A$44:$A$100),$B$3:$B$8,$B31)) -> 0 | L31: =SUM(SUMIFS(L$3:L$8,$A$3:$A$8,IF(Dashboard!$B$44:$B$100=TRIM(SUBSTITUTE($A31,"TOTAL","",1)),Dashboard!$A$44:$A$100),$B$3:$B$8,$B31)) -> 0 | M31: =SUM(SUMIFS(M$3:M$8,$A$3:$A$8,IF(Dashboard!$B$44:$B$100=TRIM(SUBSTITUTE($A31,"TOTAL","",1)),Dashboard!$A$44:$A$100),$B$3:$B$8,$B31)) -> 0 | N31: =SUM(SUMIFS(N$3:N$8,$A$3:$A$8,IF(Dashboard!$B$44:$B$100=TRIM(SUBSTITUTE($A31,"TOTAL","",1)),Dashboard!$A$44:$A$100),$B$3:$B$8,$B31)) -> 0 | O31: =SUM(SUMIFS(O$3:O$8,$A$3:$A$8,IF(Dashboard!$B$44:$B$100=TRIM(SUBSTITUTE($A31,"TOTAL","",1)),Dashboard!$A$44:$A$100),$B$3:$B$8,$B31)) -> 0 | P31: =SUM(SUMIFS(P$3:P$8,$A$3:$A$8,IF(Dashboard!$B$44:$B$100=TRIM(SUBSTITUTE($A31,"TOTAL","",1)),Dashboard!$A$44:$A$100),$B$3:$B$8,$B31)) -> 0 | Q31: 0 | R31: 0 | S31: 0 | T31: 0 | V31: =SUM(SUMIFS(V$3:V$8,$A$3:$A$8,IF(Dashboard!$B$44:$B$100=TRIM(SUBSTITUTE($A31,"TOTAL","",1)),Dashboard!$A$44:$A$100),$B$3:$B$8,$B31)) -> 0 | W31: =SUM(SUMIFS(W$3:W$8,$A$3:$A$8,IF(Dashboard!$B$44:$B$100=TRIM(SUBSTITUTE($A31,"TOTAL","",1)),Dashboard!$A$44:$A$100),$B$3:$B$8,$B31)) -> 0 | X31: =SUM(SUMIFS(X$3:X$8,$A$3:$A$8,IF(Dashboard!$B$44:$B$100=TRIM(SUBSTITUTE($A31,"TOTAL","",1)),Dashboard!$A$44:$A$100),$B$3:$B$8,$B31)) -> 0 | Y31: 0 | Z31: =SUM(SUMIFS(Z$3:Z$8,$A$3:$A$8,IF(Dashboard!$B$44:$B$100=TRIM(SUBSTITUTE($A31,"TOTAL","",1)),Dashboard!$A$44:$A$100),$B$3:$B$8,$B31)) -> 0 | AA31: 0 | AB31: =SUM(SUMIFS(AB$3:AB$8,$A$3:$A$8,IF(Dashboard!$B$44:$B$100=TRIM(SUBSTITUTE($A31,"TOTAL","",1)),Dashboard!$A$44:$A$100),$B$3:$B$8,$B31)) -> 0 | AC31: =SUM(SUMIFS(AC$3:AC$8,$A$3:$A$8,IF(Dashboard!$B$44:$B$100=TRIM(SUBSTITUTE($A31,"TOTAL","",1)),Dashboard!$A$44:$A$100),$B$3:$B$8,$B31)) -> 0 | AD31: =SUM(SUMIFS(AD$3:AD$8,$A$3:$A$8,IF(Dashboard!$B$44:$B$100=TRIM(SUBSTITUTE($A31,"TOTAL","",1)),Dashboard!$A$44:$A$100),$B$3:$B$8,$B31)) -> 0 | AE31: =SUM(SUMIFS(AE$3:AE$8,$A$3:$A$8,IF(Dashboard!$B$44:$B$100=TRIM(SUBSTITUTE($A31,"TOTAL","",1)),Dashboard!$A$44:$A$100),$B$3:$B$8,$B31)) -> 0 | AF31: =SUM(SUMIFS(AF$3:AF$8,$A$3:$A$8,IF(Dashboard!$B$44:$B$100=TRIM(SUBSTITUTE($A31,"TOTAL","",1)),Dashboard!$A$44:$A$100),$B$3:$B$8,$B31)) -> 0 | AG31: =SUM(SUMIFS(AG$3:AG$8,$A$3:$A$8,IF(Dashboard!$B$44:$B$100=TRIM(SUBSTITUTE($A31,"TOTAL","",1)),Dashboard!$A$44:$A$100),$B$3:$B$8,$B31)) -> 0 | AH31: =SUM(SUMIFS(AH$3:AH$8,$A$3:$A$8,IF(Dashboard!$B$44:$B$100=TRIM(SUBSTITUTE($A31,"TOTAL","",1)),Dashboard!$A$44:$A$100),$B$3:$B$8,$B31)) -> 0 | AI31: =SUM(SUMIFS(AI$3:AI$8,$A$3:$A$8,IF(Dashboard!$B$44:$B$100=TRIM(SUBSTITUTE($A31,"TOTAL","",1)),Dashboard!$A$44:$A$100),$B$3:$B$8,$B31)) -> 0 | AJ31: 0 | AK31: 0 | AM31: =SUM(SUMIFS(AM$3:AM$8,$A$3:$A$8,IF(Dashboard!$B$44:$B$100=TRIM(SUBSTITUTE($A31,"TOTAL","",1)),Dashboard!$A$44:$A$100),$B$3:$B$8,$B31)) -> 0 | AN31: =SUM(SUMIFS(AN$3:AN$8,$A$3:$A$8,IF(Dashboard!$B$44:$B$100=TRIM(SUBSTITUTE($A31,"TOTAL","",1)),Dashboard!$A$44:$A$100),$B$3:$B$8,$B31)) -> 0 | AO31: =SUM(SUMIFS(AO$3:AO$8,$A$3:$A$8,IF(Dashboard!$B$44:$B$100=TRIM(SUBSTITUTE($A31,"TOTAL","",1)),Dashboard!$A$44:$A$100),$B$3:$B$8,$B31)) -> 0 | AP31: =SUM(SUMIFS(AP$3:AP$8,$A$3:$A$8,IF(Dashboard!$B$44:$B$100=TRIM(SUBSTITUTE($A31,"TOTAL","",1)),Dashboard!$A$44:$A$100),$B$3:$B$8,$B31)) -> 0 | AQ31: =SUM(SUMIFS(AQ$3:AQ$8,$A$3:$A$8,IF(Dashboard!$B$44:$B$100=TRIM(SUBSTITUTE($A31,"TOTAL","",1)),Dashboard!$A$44:$A$100),$B$3:$B$8,$B31)) -> 0 | AR31: =SUM(SUMIFS(AR$3:AR$8,$A$3:$A$8,IF(Dashboard!$B$44:$B$100=TRIM(SUBSTITUTE($A31,"TOTAL","",1)),Dashboard!$A$44:$A$100),$B$3:$B$8,$B31)) -> 0 | AT31: =SUM(SUMIFS(AT$3:AT$8,$A$3:$A$8,IF(Dashboard!$B$44:$B$100=TRIM(SUBSTITUTE($A31,"TOTAL","",1)),Dashboard!$A$44:$A$100),$B$3:$B$8,$B31)) -> 0 | AV31: =SUM(SUMIFS(AV$3:AV$8,$A$3:$A$8,IF(Dashboard!$B$44:$B$100=TRIM(SUBSTITUTE($A31,"TOTAL","",1)),Dashboard!$A$44:$A$100),$B$3:$B$8,$B31)) -> 0 | AW31: =SUM(SUMIFS(AW$3:AW$8,$A$3:$A$8,IF(Dashboard!$B$44:$B$100=TRIM(SUBSTITUTE($A31,"TOTAL","",1)),Dashboard!$A$44:$A$100),$B$3:$B$8,$B31)) -> 0 | AX31: =SUM(SUMIFS(AX$3:AX$8,$A$3:$A$8,IF(Dashboard!$B$44:$B$100=TRIM(SUBSTITUTE($A31,"TOTAL","",1)),Dashboard!$A$44:$A$100),$B$3:$B$8,$B31)) -> 0 | AY31: 0 | BA31: 0 | BB31: 0 | BD31: =SUM(SUMIFS(BD$3:BD$8,$A$3:$A$8,IF(Dashboard!$B$44:$B$100=TRIM(SUBSTITUTE($A31,"TOTAL","",1)),Dashboard!$A$44:$A$100),$B$3:$B$8,$B31)) -> 0 | BE31: =SUM(SUMIFS(BE$3:BE$8,$A$3:$A$8,IF(Dashboard!$B$44:$B$100=TRIM(SUBSTITUTE($A31,"TOTAL","",1)),Dashboard!$A$44:$A$100),$B$3:$B$8,$B31)) -> 0 | BF31: 0 | BH31: =SUM(SUMIFS(BH$3:BH$8,$A$3:$A$8,IF(Dashboard!$B$44:$B$100=TRIM(SUBSTITUTE($A31,"TOTAL","",1)),Dashboard!$A$44:$A$100),$B$3:$B$8,$B31)) -> 0 | BI31: =SUM(SUMIFS(BI$3:BI$8,$A$3:$A$8,IF(Dashboard!$B$44:$B$100=TRIM(SUBSTITUTE($A31,"TOTAL","",1)),Dashboard!$A$44:$A$100),$B$3:$B$8,$B31)) -> 0 | BJ31: 0 | BL31: =SUM(SUMIFS(BL$3:BL$8,$A$3:$A$8,IF(Dashboard!$B$44:$B$100=TRIM(SUBSTITUTE($A31,"TOTAL","",1)),Dashboard!$A$44:$A$100),$B$3:$B$8,$B31)) -> 0
A32: P2 TOTAL | B32: Calgary | C32: =SUM(SUMIFS(C$3:C$8,$A$3:$A$8,IF(Dashboard!$B$44:$B$100=TRIM(SUBSTITUTE($A32,"TOTAL","",1)),Dashboard!$A$44:$A$100),$B$3:$B$8,$B32)) -> 0 | D32: =SUM(SUMIFS(D$3:D$8,$A$3:$A$8,IF(Dashboard!$B$44:$B$100=TRIM(SUBSTITUTE($A32,"TOTAL","",1)),Dashboard!$A$44:$A$100),$B$3:$B$8,$B32)) -> 0 | E32: =SUM(SUMIFS(E$3:E$8,$A$3:$A$8,IF(Dashboard!$B$44:$B$100=TRIM(SUBSTITUTE($A32,"TOTAL","",1)),Dashboard!$A$44:$A$100),$B$3:$B$8,$B32)) -> 0 | F32: 0 | G32: =SUM(SUMIFS(G$3:G$8,$A$3:$A$8,IF(Dashboard!$B$44:$B$100=TRIM(SUBSTITUTE($A32,"TOTAL","",1)),Dashboard!$A$44:$A$100),$B$3:$B$8,$B32)) -> 0 | H32: 0 | I32: =SUM(SUMIFS(I$3:I$8,$A$3:$A$8,IF(Dashboard!$B$44:$B$100=TRIM(SUBSTITUTE($A32,"TOTAL","",1)),Dashboard!$A$44:$A$100),$B$3:$B$8,$B32)) -> 0 | J32: =SUM(SUMIFS(J$3:J$8,$A$3:$A$8,IF(Dashboard!$B$44:$B$100=TRIM(SUBSTITUTE($A32,"TOTAL","",1)),Dashboard!$A$44:$A$100),$B$3:$B$8,$B32)) -> 0 | K32: =SUM(SUMIFS(K$3:K$8,$A$3:$A$8,IF(Dashboard!$B$44:$B$100=TRIM(SUBSTITUTE($A32,"TOTAL","",1)),Dashboard!$A$44:$A$100),$B$3:$B$8,$B32)) -> 0 | L32: =SUM(SUMIFS(L$3:L$8,$A$3:$A$8,IF(Dashboard!$B$44:$B$100=TRIM(SUBSTITUTE($A32,"TOTAL","",1)),Dashboard!$A$44:$A$100),$B$3:$B$8,$B32)) -> 0 | M32: =SUM(SUMIFS(M$3:M$8,$A$3:$A$8,IF(Dashboard!$B$44:$B$100=TRIM(SUBSTITUTE($A32,"TOTAL","",1)),Dashboard!$A$44:$A$100),$B$3:$B$8,$B32)) -> 0 | N32: =SUM(SUMIFS(N$3:N$8,$A$3:$A$8,IF(Dashboard!$B$44:$B$100=TRIM(SUBSTITUTE($A32,"TOTAL","",1)),Dashboard!$A$44:$A$100),$B$3:$B$8,$B32)) -> 0 | O32: =SUM(SUMIFS(O$3:O$8,$A$3:$A$8,IF(Dashboard!$B$44:$B$100=TRIM(SUBSTITUTE($A32,"TOTAL","",1)),Dashboard!$A$44:$A$100),$B$3:$B$8,$B32)) -> 0 | P32: =SUM(SUMIFS(P$3:P$8,$A$3:$A$8,IF(Dashboard!$B$44:$B$100=TRIM(SUBSTITUTE($A32,"TOTAL","",1)),Dashboard!$A$44:$A$100),$B$3:$B$8,$B32)) -> 0 | Q32: 0 | R32: 0 | S32: 0 | T32: 0 | V32: =SUM(SUMIFS(V$3:V$8,$A$3:$A$8,IF(Dashboard!$B$44:$B$100=TRIM(SUBSTITUTE($A32,"TOTAL","",1)),Dashboard!$A$44:$A$100),$B$3:$B$8,$B32)) -> 0 | W32: =SUM(SUMIFS(W$3:W$8,$A$3:$A$8,IF(Dashboard!$B$44:$B$100=TRIM(SUBSTITUTE($A32,"TOTAL","",1)),Dashboard!$A$44:$A$100),$B$3:$B$8,$B32)) -> 0 | X32: =SUM(SUMIFS(X$3:X$8,$A$3:$A$8,IF(Dashboard!$B$44:$B$100=TRIM(SUBSTITUTE($A32,"TOTAL","",1)),Dashboard!$A$44:$A$100),$B$3:$B$8,$B32)) -> 0 | Y32: 0 | Z32: =SUM(SUMIFS(Z$3:Z$8,$A$3:$A$8,IF(Dashboard!$B$44:$B$100=TRIM(SUBSTITUTE($A32,"TOTAL","",1)),Dashboard!$A$44:$A$100),$B$3:$B$8,$B32)) -> 0 | AA32: 0 | AB32: =SUM(SUMIFS(AB$3:AB$8,$A$3:$A$8,IF(Dashboard!$B$44:$B$100=TRIM(SUBSTITUTE($A32,"TOTAL","",1)),Dashboard!$A$44:$A$100),$B$3:$B$8,$B32)) -> 0 | AC32: =SUM(SUMIFS(AC$3:AC$8,$A$3:$A$8,IF(Dashboard!$B$44:$B$100=TRIM(SUBSTITUTE($A32,"TOTAL","",1)),Dashboard!$A$44:$A$100),$B$3:$B$8,$B32)) -> 0 | AD32: =SUM(SUMIFS(AD$3:AD$8,$A$3:$A$8,IF(Dashboard!$B$44:$B$100=TRIM(SUBSTITUTE($A32,"TOTAL","",1)),Dashboard!$A$44:$A$100),$B$3:$B$8,$B32)) -> 0 | AE32: =SUM(SUMIFS(AE$3:AE$8,$A$3:$A$8,IF(Dashboard!$B$44:$B$100=TRIM(SUBSTITUTE($A32,"TOTAL","",1)),Dashboard!$A$44:$A$100),$B$3:$B$8,$B32)) -> 0 | AF32: =SUM(SUMIFS(AF$3:AF$8,$A$3:$A$8,IF(Dashboard!$B$44:$B$100=TRIM(SUBSTITUTE($A32,"TOTAL","",1)),Dashboard!$A$44:$A$100),$B$3:$B$8,$B32)) -> 0 | AG32: =SUM(SUMIFS(AG$3:AG$8,$A$3:$A$8,IF(Dashboard!$B$44:$B$100=TRIM(SUBSTITUTE($A32,"TOTAL","",1)),Dashboard!$A$44:$A$100),$B$3:$B$8,$B32)) -> 0 | AH32: =SUM(SUMIFS(AH$3:AH$8,$A$3:$A$8,IF(Dashboard!$B$44:$B$100=TRIM(SUBSTITUTE($A32,"TOTAL","",1)),Dashboard!$A$44:$A$100),$B$3:$B$8,$B32)) -> 0 | AI32: =SUM(SUMIFS(AI$3:AI$8,$A$3:$A$8,IF(Dashboard!$B$44:$B$100=TRIM(SUBSTITUTE($A32,"TOTAL","",1)),Dashboard!$A$44:$A$100),$B$3:$B$8,$B32)) -> 0 | AJ32: 0 | AK32: 0 | AM32: =SUM(SUMIFS(AM$3:AM$8,$A$3:$A$8,IF(Dashboard!$B$44:$B$100=TRIM(SUBSTITUTE($A32,"TOTAL","",1)),Dashboard!$A$44:$A$100),$B$3:$B$8,$B32)) -> 0 | AN32: =SUM(SUMIFS(AN$3:AN$8,$A$3:$A$8,IF(Dashboard!$B$44:$B$100=TRIM(SUBSTITUTE($A32,"TOTAL","",1)),Dashboard!$A$44:$A$100),$B$3:$B$8,$B32)) -> 0 | AO32: =SUM(SUMIFS(AO$3:AO$8,$A$3:$A$8,IF(Dashboard!$B$44:$B$100=TRIM(SUBSTITUTE($A32,"TOTAL","",1)),Dashboard!$A$44:$A$100),$B$3:$B$8,$B32)) -> 0 | AP32: =SUM(SUMIFS(AP$3:AP$8,$A$3:$A$8,IF(Dashboard!$B$44:$B$100=TRIM(SUBSTITUTE($A32,"TOTAL","",1)),Dashboard!$A$44:$A$100),$B$3:$B$8,$B32)) -> 0 | AQ32: =SUM(SUMIFS(AQ$3:AQ$8,$A$3:$A$8,IF(Dashboard!$B$44:$B$100=TRIM(SUBSTITUTE($A32,"TOTAL","",1)),Dashboard!$A$44:$A$100),$B$3:$B$8,$B32)) -> 0 | AR32: =SUM(SUMIFS(AR$3:AR$8,$A$3:$A$8,IF(Dashboard!$B$44:$B$100=TRIM(SUBSTITUTE($A32,"TOTAL","",1)),Dashboard!$A$44:$A$100),$B$3:$B$8,$B32)) -> 0 | AT32: =SUM(SUMIFS(AT$3:AT$8,$A$3:$A$8,IF(Dashboard!$B$44:$B$100=TRIM(SUBSTITUTE($A32,"TOTAL","",1)),Dashboard!$A$44:$A$100),$B$3:$B$8,$B32)) -> 0 | AV32: =SUM(SUMIFS(AV$3:AV$8,$A$3:$A$8,IF(Dashboard!$B$44:$B$100=TRIM(SUBSTITUTE($A32,"TOTAL","",1)),Dashboard!$A$44:$A$100),$B$3:$B$8,$B32)) -> 0 | AW32: =SUM(SUMIFS(AW$3:AW$8,$A$3:$A$8,IF(Dashboard!$B$44:$B$100=TRIM(SUBSTITUTE($A32,"TOTAL","",1)),Dashboard!$A$44:$A$100),$B$3:$B$8,$B32)) -> 0 | AX32: =SUM(SUMIFS(AX$3:AX$8,$A$3:$A$8,IF(Dashboard!$B$44:$B$100=TRIM(SUBSTITUTE($A32,"TOTAL","",1)),Dashboard!$A$44:$A$100),$B$3:$B$8,$B32)) -> 0 | AY32: 0 | BA32: 0 | BB32: 0 | BD32: =SUM(SUMIFS(BD$3:BD$8,$A$3:$A$8,IF(Dashboard!$B$44:$B$100=TRIM(SUBSTITUTE($A32,"TOTAL","",1)),Dashboard!$A$44:$A$100),$B$3:$B$8,$B32)) -> 0 | BE32: =SUM(SUMIFS(BE$3:BE$8,$A$3:$A$8,IF(Dashboard!$B$44:$B$100=TRIM(SUBSTITUTE($A32,"TOTAL","",1)),Dashboard!$A$44:$A$100),$B$3:$B$8,$B32)) -> 0 | BF32: 0 | BH32: =SUM(SUMIFS(BH$3:BH$8,$A$3:$A$8,IF(Dashboard!$B$44:$B$100=TRIM(SUBSTITUTE($A32,"TOTAL","",1)),Dashboard!$A$44:$A$100),$B$3:$B$8,$B32)) -> 0 | BI32: =SUM(SUMIFS(BI$3:BI$8,$A$3:$A$8,IF(Dashboard!$B$44:$B$100=TRIM(SUBSTITUTE($A32,"TOTAL","",1)),Dashboard!$A$44:$A$100),$B$3:$B$8,$B32)) -> 0 | BJ32: 0 | BL32: =SUM(SUMIFS(BL$3:BL$8,$A$3:$A$8,IF(Dashboard!$B$44:$B$100=TRIM(SUBSTITUTE($A32,"TOTAL","",1)),Dashboard!$A$44:$A$100),$B$3:$B$8,$B32)) -> 0
A33: P2 TOTAL | B33: Chicago | C33: =SUM(SUMIFS(C$3:C$8,$A$3:$A$8,IF(Dashboard!$B$44:$B$100=TRIM(SUBSTITUTE($A33,"TOTAL","",1)),Dashboard!$A$44:$A$100),$B$3:$B$8,$B33)) -> 0 | D33: =SUM(SUMIFS(D$3:D$8,$A$3:$A$8,IF(Dashboard!$B$44:$B$100=TRIM(SUBSTITUTE($A33,"TOTAL","",1)),Dashboard!$A$44:$A$100),$B$3:$B$8,$B33)) -> 0 | E33: =SUM(SUMIFS(E$3:E$8,$A$3:$A$8,IF(Dashboard!$B$44:$B$100=TRIM(SUBSTITUTE($A33,"TOTAL","",1)),Dashboard!$A$44:$A$100),$B$3:$B$8,$B33)) -> 0 | F33: 0 | G33: =SUM(SUMIFS(G$3:G$8,$A$3:$A$8,IF(Dashboard!$B$44:$B$100=TRIM(SUBSTITUTE($A33,"TOTAL","",1)),Dashboard!$A$44:$A$100),$B$3:$B$8,$B33)) -> 0 | H33: 0 | I33: =SUM(SUMIFS(I$3:I$8,$A$3:$A$8,IF(Dashboard!$B$44:$B$100=TRIM(SUBSTITUTE($A33,"TOTAL","",1)),Dashboard!$A$44:$A$100),$B$3:$B$8,$B33)) -> 0 | J33: =SUM(SUMIFS(J$3:J$8,$A$3:$A$8,IF(Dashboard!$B$44:$B$100=TRIM(SUBSTITUTE($A33,"TOTAL","",1)),Dashboard!$A$44:$A$100),$B$3:$B$8,$B33)) -> 0 | K33: =SUM(SUMIFS(K$3:K$8,$A$3:$A$8,IF(Dashboard!$B$44:$B$100=TRIM(SUBSTITUTE($A33,"TOTAL","",1)),Dashboard!$A$44:$A$100),$B$3:$B$8,$B33)) -> 0 | L33: =SUM(SUMIFS(L$3:L$8,$A$3:$A$8,IF(Dashboard!$B$44:$B$100=TRIM(SUBSTITUTE($A33,"TOTAL","",1)),Dashboard!$A$44:$A$100),$B$3:$B$8,$B33)) -> 0 | M33: =SUM(SUMIFS(M$3:M$8,$A$3:$A$8,IF(Dashboard!$B$44:$B$100=TRIM(SUBSTITUTE($A33,"TOTAL","",1)),Dashboard!$A$44:$A$100),$B$3:$B$8,$B33)) -> 0 | N33: =SUM(SUMIFS(N$3:N$8,$A$3:$A$8,IF(Dashboard!$B$44:$B$100=TRIM(SUBSTITUTE($A33,"TOTAL","",1)),Dashboard!$A$44:$A$100),$B$3:$B$8,$B33)) -> 0 | O33: =SUM(SUMIFS(O$3:O$8,$A$3:$A$8,IF(Dashboard!$B$44:$B$100=TRIM(SUBSTITUTE($A33,"TOTAL","",1)),Dashboard!$A$44:$A$100),$B$3:$B$8,$B33)) -> 0 | P33: =SUM(SUMIFS(P$3:P$8,$A$3:$A$8,IF(Dashboard!$B$44:$B$100=TRIM(SUBSTITUTE($A33,"TOTAL","",1)),Dashboard!$A$44:$A$100),$B$3:$B$8,$B33)) -> 0 | Q33: 0 | R33: 0 | S33: 0 | T33: 0 | V33: =SUM(SUMIFS(V$3:V$8,$A$3:$A$8,IF(Dashboard!$B$44:$B$100=TRIM(SUBSTITUTE($A33,"TOTAL","",1)),Dashboard!$A$44:$A$100),$B$3:$B$8,$B33)) -> 0 | W33: =SUM(SUMIFS(W$3:W$8,$A$3:$A$8,IF(Dashboard!$B$44:$B$100=TRIM(SUBSTITUTE($A33,"TOTAL","",1)),Dashboard!$A$44:$A$100),$B$3:$B$8,$B33)) -> 0 | X33: =SUM(SUMIFS(X$3:X$8,$A$3:$A$8,IF(Dashboard!$B$44:$B$100=TRIM(SUBSTITUTE($A33,"TOTAL","",1)),Dashboard!$A$44:$A$100),$B$3:$B$8,$B33)) -> 0 | Y33: 0 | Z33: =SUM(SUMIFS(Z$3:Z$8,$A$3:$A$8,IF(Dashboard!$B$44:$B$100=TRIM(SUBSTITUTE($A33,"TOTAL","",1)),Dashboard!$A$44:$A$100),$B$3:$B$8,$B33)) -> 0 | AA33: 0 | AB33: =SUM(SUMIFS(AB$3:AB$8,$A$3:$A$8,IF(Dashboard!$B$44:$B$100=TRIM(SUBSTITUTE($A33,"TOTAL","",1)),Dashboard!$A$44:$A$100),$B$3:$B$8,$B33)) -> 0 | AC33: =SUM(SUMIFS(AC$3:AC$8,$A$3:$A$8,IF(Dashboard!$B$44:$B$100=TRIM(SUBSTITUTE($A33,"TOTAL","",1)),Dashboard!$A$44:$A$100),$B$3:$B$8,$B33)) -> 0 | AD33: =SUM(SUMIFS(AD$3:AD$8,$A$3:$A$8,IF(Dashboard!$B$44:$B$100=TRIM(SUBSTITUTE($A33,"TOTAL","",1)),Dashboard!$A$44:$A$100),$B$3:$B$8,$B33)) -> 0 | AE33: =SUM(SUMIFS(AE$3:AE$8,$A$3:$A$8,IF(Dashboard!$B$44:$B$100=TRIM(SUBSTITUTE($A33,"TOTAL","",1)),Dashboard!$A$44:$A$100),$B$3:$B$8,$B33)) -> 0 | AF33: =SUM(SUMIFS(AF$3:AF$8,$A$3:$A$8,IF(Dashboard!$B$44:$B$100=TRIM(SUBSTITUTE($A33,"TOTAL","",1)),Dashboard!$A$44:$A$100),$B$3:$B$8,$B33)) -> 0 | AG33: =SUM(SUMIFS(AG$3:AG$8,$A$3:$A$8,IF(Dashboard!$B$44:$B$100=TRIM(SUBSTITUTE($A33,"TOTAL","",1)),Dashboard!$A$44:$A$100),$B$3:$B$8,$B33)) -> 0 | AH33: =SUM(SUMIFS(AH$3:AH$8,$A$3:$A$8,IF(Dashboard!$B$44:$B$100=TRIM(SUBSTITUTE($A33,"TOTAL","",1)),Dashboard!$A$44:$A$100),$B$3:$B$8,$B33)) -> 0 | AI33: =SUM(SUMIFS(AI$3:AI$8,$A$3:$A$8,IF(Dashboard!$B$44:$B$100=TRIM(SUBSTITUTE($A33,"TOTAL","",1)),Dashboard!$A$44:$A$100),$B$3:$B$8,$B33)) -> 0 | AJ33: 0 | AK33: 0 | AM33: =SUM(SUMIFS(AM$3:AM$8,$A$3:$A$8,IF(Dashboard!$B$44:$B$100=TRIM(SUBSTITUTE($A33,"TOTAL","",1)),Dashboard!$A$44:$A$100),$B$3:$B$8,$B33)) -> 0 | AN33: =SUM(SUMIFS(AN$3:AN$8,$A$3:$A$8,IF(Dashboard!$B$44:$B$100=TRIM(SUBSTITUTE($A33,"TOTAL","",1)),Dashboard!$A$44:$A$100),$B$3:$B$8,$B33)) -> 0 | AO33: =SUM(SUMIFS(AO$3:AO$8,$A$3:$A$8,IF(Dashboard!$B$44:$B$100=TRIM(SUBSTITUTE($A33,"TOTAL","",1)),Dashboard!$A$44:$A$100),$B$3:$B$8,$B33)) -> 0 | AP33: =SUM(SUMIFS(AP$3:AP$8,$A$3:$A$8,IF(Dashboard!$B$44:$B$100=TRIM(SUBSTITUTE($A33,"TOTAL","",1)),Dashboard!$A$44:$A$100),$B$3:$B$8,$B33)) -> 0 | AQ33: =SUM(SUMIFS(AQ$3:AQ$8,$A$3:$A$8,IF(Dashboard!$B$44:$B$100=TRIM(SUBSTITUTE($A33,"TOTAL","",1)),Dashboard!$A$44:$A$100),$B$3:$B$8,$B33)) -> 0 | AR33: =SUM(SUMIFS(AR$3:AR$8,$A$3:$A$8,IF(Dashboard!$B$44:$B$100=TRIM(SUBSTITUTE($A33,"TOTAL","",1)),Dashboard!$A$44:$A$100),$B$3:$B$8,$B33)) -> 0 | AT33: =SUM(SUMIFS(AT$3:AT$8,$A$3:$A$8,IF(Dashboard!$B$44:$B$100=TRIM(SUBSTITUTE($A33,"TOTAL","",1)),Dashboard!$A$44:$A$100),$B$3:$B$8,$B33)) -> 0 | AV33: =SUM(SUMIFS(AV$3:AV$8,$A$3:$A$8,IF(Dashboard!$B$44:$B$100=TRIM(SUBSTITUTE($A33,"TOTAL","",1)),Dashboard!$A$44:$A$100),$B$3:$B$8,$B33)) -> 0 | AW33: =SUM(SUMIFS(AW$3:AW$8,$A$3:$A$8,IF(Dashboard!$B$44:$B$100=TRIM(SUBSTITUTE($A33,"TOTAL","",1)),Dashboard!$A$44:$A$100),$B$3:$B$8,$B33)) -> 0 | AX33: =SUM(SUMIFS(AX$3:AX$8,$A$3:$A$8,IF(Dashboard!$B$44:$B$100=TRIM(SUBSTITUTE($A33,"TOTAL","",1)),Dashboard!$A$44:$A$100),$B$3:$B$8,$B33)) -> 0 | AY33: 0 | BA33: 0 | BB33: 0 | BD33: =SUM(SUMIFS(BD$3:BD$8,$A$3:$A$8,IF(Dashboard!$B$44:$B$100=TRIM(SUBSTITUTE($A33,"TOTAL","",1)),Dashboard!$A$44:$A$100),$B$3:$B$8,$B33)) -> 0 | BE33: =SUM(SUMIFS(BE$3:BE$8,$A$3:$A$8,IF(Dashboard!$B$44:$B$100=TRIM(SUBSTITUTE($A33,"TOTAL","",1)),Dashboard!$A$44:$A$100),$B$3:$B$8,$B33)) -> 0 | BF33: 0 | BH33: =SUM(SUMIFS(BH$3:BH$8,$A$3:$A$8,IF(Dashboard!$B$44:$B$100=TRIM(SUBSTITUTE($A33,"TOTAL","",1)),Dashboard!$A$44:$A$100),$B$3:$B$8,$B33)) -> 0 | BI33: =SUM(SUMIFS(BI$3:BI$8,$A$3:$A$8,IF(Dashboard!$B$44:$B$100=TRIM(SUBSTITUTE($A33,"TOTAL","",1)),Dashboard!$A$44:$A$100),$B$3:$B$8,$B33)) -> 0 | BJ33: 0 | BL33: =SUM(SUMIFS(BL$3:BL$8,$A$3:$A$8,IF(Dashboard!$B$44:$B$100=TRIM(SUBSTITUTE($A33,"TOTAL","",1)),Dashboard!$A$44:$A$100),$B$3:$B$8,$B33)) -> 0
A34: P2 TOTAL | B34: Dallas | C34: =SUM(SUMIFS(C$3:C$8,$A$3:$A$8,IF(Dashboard!$B$44:$B$100=TRIM(SUBSTITUTE($A34,"TOTAL","",1)),Dashboard!$A$44:$A$100),$B$3:$B$8,$B34)) -> 0 | D34: =SUM(SUMIFS(D$3:D$8,$A$3:$A$8,IF(Dashboard!$B$44:$B$100=TRIM(SUBSTITUTE($A34,"TOTAL","",1)),Dashboard!$A$44:$A$100),$B$3:$B$8,$B34)) -> 0 | E34: =SUM(SUMIFS(E$3:E$8,$A$3:$A$8,IF(Dashboard!$B$44:$B$100=TRIM(SUBSTITUTE($A34,"TOTAL","",1)),Dashboard!$A$44:$A$100),$B$3:$B$8,$B34)) -> 0 | F34: 0 | G34: =SUM(SUMIFS(G$3:G$8,$A$3:$A$8,IF(Dashboard!$B$44:$B$100=TRIM(SUBSTITUTE($A34,"TOTAL","",1)),Dashboard!$A$44:$A$100),$B$3:$B$8,$B34)) -> 0 | H34: 0 | I34: =SUM(SUMIFS(I$3:I$8,$A$3:$A$8,IF(Dashboard!$B$44:$B$100=TRIM(SUBSTITUTE($A34,"TOTAL","",1)),Dashboard!$A$44:$A$100),$B$3:$B$8,$B34)) -> 0 | J34: =SUM(SUMIFS(J$3:J$8,$A$3:$A$8,IF(Dashboard!$B$44:$B$100=TRIM(SUBSTITUTE($A34,"TOTAL","",1)),Dashboard!$A$44:$A$100),$B$3:$B$8,$B34)) -> 0 | K34: =SUM(SUMIFS(K$3:K$8,$A$3:$A$8,IF(Dashboard!$B$44:$B$100=TRIM(SUBSTITUTE($A34,"TOTAL","",1)),Dashboard!$A$44:$A$100),$B$3:$B$8,$B34)) -> 0 | L34: =SUM(SUMIFS(L$3:L$8,$A$3:$A$8,IF(Dashboard!$B$44:$B$100=TRIM(SUBSTITUTE($A34,"TOTAL","",1)),Dashboard!$A$44:$A$100),$B$3:$B$8,$B34)) -> 0 | M34: =SUM(SUMIFS(M$3:M$8,$A$3:$A$8,IF(Dashboard!$B$44:$B$100=TRIM(SUBSTITUTE($A34,"TOTAL","",1)),Dashboard!$A$44:$A$100),$B$3:$B$8,$B34)) -> 0 | N34: =SUM(SUMIFS(N$3:N$8,$A$3:$A$8,IF(Dashboard!$B$44:$B$100=TRIM(SUBSTITUTE($A34,"TOTAL","",1)),Dashboard!$A$44:$A$100),$B$3:$B$8,$B34)) -> 0 | O34: =SUM(SUMIFS(O$3:O$8,$A$3:$A$8,IF(Dashboard!$B$44:$B$100=TRIM(SUBSTITUTE($A34,"TOTAL","",1)),Dashboard!$A$44:$A$100),$B$3:$B$8,$B34)) -> 0 | P34: =SUM(SUMIFS(P$3:P$8,$A$3:$A$8,IF(Dashboard!$B$44:$B$100=TRIM(SUBSTITUTE($A34,"TOTAL","",1)),Dashboard!$A$44:$A$100),$B$3:$B$8,$B34)) -> 0 | Q34: 0 | R34: 0 | S34: 0 | T34: 0 | V34: =SUM(SUMIFS(V$3:V$8,$A$3:$A$8,IF(Dashboard!$B$44:$B$100=TRIM(SUBSTITUTE($A34,"TOTAL","",1)),Dashboard!$A$44:$A$100),$B$3:$B$8,$B34)) -> 0 | W34: =SUM(SUMIFS(W$3:W$8,$A$3:$A$8,IF(Dashboard!$B$44:$B$100=TRIM(SUBSTITUTE($A34,"TOTAL","",1)),Dashboard!$A$44:$A$100),$B$3:$B$8,$B34)) -> 0 | X34: =SUM(SUMIFS(X$3:X$8,$A$3:$A$8,IF(Dashboard!$B$44:$B$100=TRIM(SUBSTITUTE($A34,"TOTAL","",1)),Dashboard!$A$44:$A$100),$B$3:$B$8,$B34)) -> 0 | Y34: 0 | Z34: =SUM(SUMIFS(Z$3:Z$8,$A$3:$A$8,IF(Dashboard!$B$44:$B$100=TRIM(SUBSTITUTE($A34,"TOTAL","",1)),Dashboard!$A$44:$A$100),$B$3:$B$8,$B34)) -> 0 | AA34: 0 | AB34: =SUM(SUMIFS(AB$3:AB$8,$A$3:$A$8,IF(Dashboard!$B$44:$B$100=TRIM(SUBSTITUTE($A34,"TOTAL","",1)),Dashboard!$A$44:$A$100),$B$3:$B$8,$B34)) -> 0 | AC34: =SUM(SUMIFS(AC$3:AC$8,$A$3:$A$8,IF(Dashboard!$B$44:$B$100=TRIM(SUBSTITUTE($A34,"TOTAL","",1)),Dashboard!$A$44:$A$100),$B$3:$B$8,$B34)) -> 0 | AD34: =SUM(SUMIFS(AD$3:AD$8,$A$3:$A$8,IF(Dashboard!$B$44:$B$100=TRIM(SUBSTITUTE($A34,"TOTAL","",1)),Dashboard!$A$44:$A$100),$B$3:$B$8,$B34)) -> 0 | AE34: =SUM(SUMIFS(AE$3:AE$8,$A$3:$A$8,IF(Dashboard!$B$44:$B$100=TRIM(SUBSTITUTE($A34,"TOTAL","",1)),Dashboard!$A$44:$A$100),$B$3:$B$8,$B34)) -> 0 | AF34: =SUM(SUMIFS(AF$3:AF$8,$A$3:$A$8,IF(Dashboard!$B$44:$B$100=TRIM(SUBSTITUTE($A34,"TOTAL","",1)),Dashboard!$A$44:$A$100),$B$3:$B$8,$B34)) -> 0 | AG34: =SUM(SUMIFS(AG$3:AG$8,$A$3:$A$8,IF(Dashboard!$B$44:$B$100=TRIM(SUBSTITUTE($A34,"TOTAL","",1)),Dashboard!$A$44:$A$100),$B$3:$B$8,$B34)) -> 0 | AH34: =SUM(SUMIFS(AH$3:AH$8,$A$3:$A$8,IF(Dashboard!$B$44:$B$100=TRIM(SUBSTITUTE($A34,"TOTAL","",1)),Dashboard!$A$44:$A$100),$B$3:$B$8,$B34)) -> 0 | AI34: =SUM(SUMIFS(AI$3:AI$8,$A$3:$A$8,IF(Dashboard!$B$44:$B$100=TRIM(SUBSTITUTE($A34,"TOTAL","",1)),Dashboard!$A$44:$A$100),$B$3:$B$8,$B34)) -> 0 | AJ34: 0 | AK34: 0 | AM34: =SUM(SUMIFS(AM$3:AM$8,$A$3:$A$8,IF(Dashboard!$B$44:$B$100=TRIM(SUBSTITUTE($A34,"TOTAL","",1)),Dashboard!$A$44:$A$100),$B$3:$B$8,$B34)) -> 0 | AN34: =SUM(SUMIFS(AN$3:AN$8,$A$3:$A$8,IF(Dashboard!$B$44:$B$100=TRIM(SUBSTITUTE($A34,"TOTAL","",1)),Dashboard!$A$44:$A$100),$B$3:$B$8,$B34)) -> 0 | AO34: =SUM(SUMIFS(AO$3:AO$8,$A$3:$A$8,IF(Dashboard!$B$44:$B$100=TRIM(SUBSTITUTE($A34,"TOTAL","",1)),Dashboard!$A$44:$A$100),$B$3:$B$8,$B34)) -> 0 | AP34: =SUM(SUMIFS(AP$3:AP$8,$A$3:$A$8,IF(Dashboard!$B$44:$B$100=TRIM(SUBSTITUTE($A34,"TOTAL","",1)),Dashboard!$A$44:$A$100),$B$3:$B$8,$B34)) -> 0 | AQ34: =SUM(SUMIFS(AQ$3:AQ$8,$A$3:$A$8,IF(Dashboard!$B$44:$B$100=TRIM(SUBSTITUTE($A34,"TOTAL","",1)),Dashboard!$A$44:$A$100),$B$3:$B$8,$B34)) -> 0 | AR34: =SUM(SUMIFS(AR$3:AR$8,$A$3:$A$8,IF(Dashboard!$B$44:$B$100=TRIM(SUBSTITUTE($A34,"TOTAL","",1)),Dashboard!$A$44:$A$100),$B$3:$B$8,$B34)) -> 0 | AT34: =SUM(SUMIFS(AT$3:AT$8,$A$3:$A$8,IF(Dashboard!$B$44:$B$100=TRIM(SUBSTITUTE($A34,"TOTAL","",1)),Dashboard!$A$44:$A$100),$B$3:$B$8,$B34)) -> 0 | AV34: =SUM(SUMIFS(AV$3:AV$8,$A$3:$A$8,IF(Dashboard!$B$44:$B$100=TRIM(SUBSTITUTE($A34,"TOTAL","",1)),Dashboard!$A$44:$A$100),$B$3:$B$8,$B34)) -> 0 | AW34: =SUM(SUMIFS(AW$3:AW$8,$A$3:$A$8,IF(Dashboard!$B$44:$B$100=TRIM(SUBSTITUTE($A34,"TOTAL","",1)),Dashboard!$A$44:$A$100),$B$3:$B$8,$B34)) -> 0 | AX34: =SUM(SUMIFS(AX$3:AX$8,$A$3:$A$8,IF(Dashboard!$B$44:$B$100=TRIM(SUBSTITUTE($A34,"TOTAL","",1)),Dashboard!$A$44:$A$100),$B$3:$B$8,$B34)) -> 0 | AY34: 0 | BA34: 0 | BB34: 0 | BD34: =SUM(SUMIFS(BD$3:BD$8,$A$3:$A$8,IF(Dashboard!$B$44:$B$100=TRIM(SUBSTITUTE($A34,"TOTAL","",1)),Dashboard!$A$44:$A$100),$B$3:$B$8,$B34)) -> 0 | BE34: =SUM(SUMIFS(BE$3:BE$8,$A$3:$A$8,IF(Dashboard!$B$44:$B$100=TRIM(SUBSTITUTE($A34,"TOTAL","",1)),Dashboard!$A$44:$A$100),$B$3:$B$8,$B34)) -> 0 | BF34: 0 | BH34: =SUM(SUMIFS(BH$3:BH$8,$A$3:$A$8,IF(Dashboard!$B$44:$B$100=TRIM(SUBSTITUTE($A34,"TOTAL","",1)),Dashboard!$A$44:$A$100),$B$3:$B$8,$B34)) -> 0 | BI34: =SUM(SUMIFS(BI$3:BI$8,$A$3:$A$8,IF(Dashboard!$B$44:$B$100=TRIM(SUBSTITUTE($A34,"TOTAL","",1)),Dashboard!$A$44:$A$100),$B$3:$B$8,$B34)) -> 0 | BJ34: 0 | BL34: =SUM(SUMIFS(BL$3:BL$8,$A$3:$A$8,IF(Dashboard!$B$44:$B$100=TRIM(SUBSTITUTE($A34,"TOTAL","",1)),Dashboard!$A$44:$A$100),$B$3:$B$8,$B34)) -> 0
A35: P2 TOTAL | B35: Denver | C35: =SUM(SUMIFS(C$3:C$8,$A$3:$A$8,IF(Dashboard!$B$44:$B$100=TRIM(SUBSTITUTE($A35,"TOTAL","",1)),Dashboard!$A$44:$A$100),$B$3:$B$8,$B35)) -> 0 | D35: =SUM(SUMIFS(D$3:D$8,$A$3:$A$8,IF(Dashboard!$B$44:$B$100=TRIM(SUBSTITUTE($A35,"TOTAL","",1)),Dashboard!$A$44:$A$100),$B$3:$B$8,$B35)) -> 0 | E35: =SUM(SUMIFS(E$3:E$8,$A$3:$A$8,IF(Dashboard!$B$44:$B$100=TRIM(SUBSTITUTE($A35,"TOTAL","",1)),Dashboard!$A$44:$A$100),$B$3:$B$8,$B35)) -> 0 | F35: 0 | G35: =SUM(SUMIFS(G$3:G$8,$A$3:$A$8,IF(Dashboard!$B$44:$B$100=TRIM(SUBSTITUTE($A35,"TOTAL","",1)),Dashboard!$A$44:$A$100),$B$3:$B$8,$B35)) -> 0 | H35: 0 | I35: =SUM(SUMIFS(I$3:I$8,$A$3:$A$8,IF(Dashboard!$B$44:$B$100=TRIM(SUBSTITUTE($A35,"TOTAL","",1)),Dashboard!$A$44:$A$100),$B$3:$B$8,$B35)) -> 0 | J35: =SUM(SUMIFS(J$3:J$8,$A$3:$A$8,IF(Dashboard!$B$44:$B$100=TRIM(SUBSTITUTE($A35,"TOTAL","",1)),Dashboard!$A$44:$A$100),$B$3:$B$8,$B35)) -> 0 | K35: =SUM(SUMIFS(K$3:K$8,$A$3:$A$8,IF(Dashboard!$B$44:$B$100=TRIM(SUBSTITUTE($A35,"TOTAL","",1)),Dashboard!$A$44:$A$100),$B$3:$B$8,$B35)) -> 0 | L35: =SUM(SUMIFS(L$3:L$8,$A$3:$A$8,IF(Dashboard!$B$44:$B$100=TRIM(SUBSTITUTE($A35,"TOTAL","",1)),Dashboard!$A$44:$A$100),$B$3:$B$8,$B35)) -> 0 | M35: =SUM(SUMIFS(M$3:M$8,$A$3:$A$8,IF(Dashboard!$B$44:$B$100=TRIM(SUBSTITUTE($A35,"TOTAL","",1)),Dashboard!$A$44:$A$100),$B$3:$B$8,$B35)) -> 0 | N35: =SUM(SUMIFS(N$3:N$8,$A$3:$A$8,IF(Dashboard!$B$44:$B$100=TRIM(SUBSTITUTE($A35,"TOTAL","",1)),Dashboard!$A$44:$A$100),$B$3:$B$8,$B35)) -> 0 | O35: =SUM(SUMIFS(O$3:O$8,$A$3:$A$8,IF(Dashboard!$B$44:$B$100=TRIM(SUBSTITUTE($A35,"TOTAL","",1)),Dashboard!$A$44:$A$100),$B$3:$B$8,$B35)) -> 0 | P35: =SUM(SUMIFS(P$3:P$8,$A$3:$A$8,IF(Dashboard!$B$44:$B$100=TRIM(SUBSTITUTE($A35,"TOTAL","",1)),Dashboard!$A$44:$A$100),$B$3:$B$8,$B35)) -> 0 | Q35: 0 | R35: 0 | S35: 0 | T35: 0 | V35: =SUM(SUMIFS(V$3:V$8,$A$3:$A$8,IF(Dashboard!$B$44:$B$100=TRIM(SUBSTITUTE($A35,"TOTAL","",1)),Dashboard!$A$44:$A$100),$B$3:$B$8,$B35)) -> 0 | W35: =SUM(SUMIFS(W$3:W$8,$A$3:$A$8,IF(Dashboard!$B$44:$B$100=TRIM(SUBSTITUTE($A35,"TOTAL","",1)),Dashboard!$A$44:$A$100),$B$3:$B$8,$B35)) -> 0 | X35: =SUM(SUMIFS(X$3:X$8,$A$3:$A$8,IF(Dashboard!$B$44:$B$100=TRIM(SUBSTITUTE($A35,"TOTAL","",1)),Dashboard!$A$44:$A$100),$B$3:$B$8,$B35)) -> 0 | Y35: 0 | Z35: =SUM(SUMIFS(Z$3:Z$8,$A$3:$A$8,IF(Dashboard!$B$44:$B$100=TRIM(SUBSTITUTE($A35,"TOTAL","",1)),Dashboard!$A$44:$A$100),$B$3:$B$8,$B35)) -> 0 | AA35: 0 | AB35: =SUM(SUMIFS(AB$3:AB$8,$A$3:$A$8,IF(Dashboard!$B$44:$B$100=TRIM(SUBSTITUTE($A35,"TOTAL","",1)),Dashboard!$A$44:$A$100),$B$3:$B$8,$B35)) -> 0 | AC35: =SUM(SUMIFS(AC$3:AC$8,$A$3:$A$8,IF(Dashboard!$B$44:$B$100=TRIM(SUBSTITUTE($A35,"TOTAL","",1)),Dashboard!$A$44:$A$100),$B$3:$B$8,$B35)) -> 0 | AD35: =SUM(SUMIFS(AD$3:AD$8,$A$3:$A$8,IF(Dashboard!$B$44:$B$100=TRIM(SUBSTITUTE($A35,"TOTAL","",1)),Dashboard!$A$44:$A$100),$B$3:$B$8,$B35)) -> 0 | AE35: =SUM(SUMIFS(AE$3:AE$8,$A$3:$A$8,IF(Dashboard!$B$44:$B$100=TRIM(SUBSTITUTE($A35,"TOTAL","",1)),Dashboard!$A$44:$A$100),$B$3:$B$8,$B35)) -> 0 | AF35: =SUM(SUMIFS(AF$3:AF$8,$A$3:$A$8,IF(Dashboard!$B$44:$B$100=TRIM(SUBSTITUTE($A35,"TOTAL","",1)),Dashboard!$A$44:$A$100),$B$3:$B$8,$B35)) -> 0 | AG35: =SUM(SUMIFS(AG$3:AG$8,$A$3:$A$8,IF(Dashboard!$B$44:$B$100=TRIM(SUBSTITUTE($A35,"TOTAL","",1)),Dashboard!$A$44:$A$100),$B$3:$B$8,$B35)) -> 0 | AH35: =SUM(SUMIFS(AH$3:AH$8,$A$3:$A$8,IF(Dashboard!$B$44:$B$100=TRIM(SUBSTITUTE($A35,"TOTAL","",1)),Dashboard!$A$44:$A$100),$B$3:$B$8,$B35)) -> 0 | AI35: =SUM(SUMIFS(AI$3:AI$8,$A$3:$A$8,IF(Dashboard!$B$44:$B$100=TRIM(SUBSTITUTE($A35,"TOTAL","",1)),Dashboard!$A$44:$A$100),$B$3:$B$8,$B35)) -> 0 | AJ35: 0 | AK35: 0 | AM35: =SUM(SUMIFS(AM$3:AM$8,$A$3:$A$8,IF(Dashboard!$B$44:$B$100=TRIM(SUBSTITUTE($A35,"TOTAL","",1)),Dashboard!$A$44:$A$100),$B$3:$B$8,$B35)) -> 0 | AN35: =SUM(SUMIFS(AN$3:AN$8,$A$3:$A$8,IF(Dashboard!$B$44:$B$100=TRIM(SUBSTITUTE($A35,"TOTAL","",1)),Dashboard!$A$44:$A$100),$B$3:$B$8,$B35)) -> 0 | AO35: =SUM(SUMIFS(AO$3:AO$8,$A$3:$A$8,IF(Dashboard!$B$44:$B$100=TRIM(SUBSTITUTE($A35,"TOTAL","",1)),Dashboard!$A$44:$A$100),$B$3:$B$8,$B35)) -> 0 | AP35: =SUM(SUMIFS(AP$3:AP$8,$A$3:$A$8,IF(Dashboard!$B$44:$B$100=TRIM(SUBSTITUTE($A35,"TOTAL","",1)),Dashboard!$A$44:$A$100),$B$3:$B$8,$B35)) -> 0 | AQ35: =SUM(SUMIFS(AQ$3:AQ$8,$A$3:$A$8,IF(Dashboard!$B$44:$B$100=TRIM(SUBSTITUTE($A35,"TOTAL","",1)),Dashboard!$A$44:$A$100),$B$3:$B$8,$B35)) -> 0 | AR35: =SUM(SUMIFS(AR$3:AR$8,$A$3:$A$8,IF(Dashboard!$B$44:$B$100=TRIM(SUBSTITUTE($A35,"TOTAL","",1)),Dashboard!$A$44:$A$100),$B$3:$B$8,$B35)) -> 0 | AT35: =SUM(SUMIFS(AT$3:AT$8,$A$3:$A$8,IF(Dashboard!$B$44:$B$100=TRIM(SUBSTITUTE($A35,"TOTAL","",1)),Dashboard!$A$44:$A$100),$B$3:$B$8,$B35)) -> 0 | AV35: =SUM(SUMIFS(AV$3:AV$8,$A$3:$A$8,IF(Dashboard!$B$44:$B$100=TRIM(SUBSTITUTE($A35,"TOTAL","",1)),Dashboard!$A$44:$A$100),$B$3:$B$8,$B35)) -> 0 | AW35: =SUM(SUMIFS(AW$3:AW$8,$A$3:$A$8,IF(Dashboard!$B$44:$B$100=TRIM(SUBSTITUTE($A35,"TOTAL","",1)),Dashboard!$A$44:$A$100),$B$3:$B$8,$B35)) -> 0 | AX35: =SUM(SUMIFS(AX$3:AX$8,$A$3:$A$8,IF(Dashboard!$B$44:$B$100=TRIM(SUBSTITUTE($A35,"TOTAL","",1)),Dashboard!$A$44:$A$100),$B$3:$B$8,$B35)) -> 0 | AY35: 0 | BA35: 0 | BB35: 0 | BD35: =SUM(SUMIFS(BD$3:BD$8,$A$3:$A$8,IF(Dashboard!$B$44:$B$100=TRIM(SUBSTITUTE($A35,"TOTAL","",1)),Dashboard!$A$44:$A$100),$B$3:$B$8,$B35)) -> 0 | BE35: =SUM(SUMIFS(BE$3:BE$8,$A$3:$A$8,IF(Dashboard!$B$44:$B$100=TRIM(SUBSTITUTE($A35,"TOTAL","",1)),Dashboard!$A$44:$A$100),$B$3:$B$8,$B35)) -> 0 | BF35: 0 | BH35: =SUM(SUMIFS(BH$3:BH$8,$A$3:$A$8,IF(Dashboard!$B$44:$B$100=TRIM(SUBSTITUTE($A35,"TOTAL","",1)),Dashboard!$A$44:$A$100),$B$3:$B$8,$B35)) -> 0 | BI35: =SUM(SUMIFS(BI$3:BI$8,$A$3:$A$8,IF(Dashboard!$B$44:$B$100=TRIM(SUBSTITUTE($A35,"TOTAL","",1)),Dashboard!$A$44:$A$100),$B$3:$B$8,$B35)) -> 0 | BJ35: 0 | BL35: =SUM(SUMIFS(BL$3:BL$8,$A$3:$A$8,IF(Dashboard!$B$44:$B$100=TRIM(SUBSTITUTE($A35,"TOTAL","",1)),Dashboard!$A$44:$A$100),$B$3:$B$8,$B35)) -> 0
A36: P2 TOTAL | B36: Detroit | C36: =SUM(SUMIFS(C$3:C$8,$A$3:$A$8,IF(Dashboard!$B$44:$B$100=TRIM(SUBSTITUTE($A36,"TOTAL","",1)),Dashboard!$A$44:$A$100),$B$3:$B$8,$B36)) -> 0 | D36: =SUM(SUMIFS(D$3:D$8,$A$3:$A$8,IF(Dashboard!$B$44:$B$100=TRIM(SUBSTITUTE($A36,"TOTAL","",1)),Dashboard!$A$44:$A$100),$B$3:$B$8,$B36)) -> 0 | E36: =SUM(SUMIFS(E$3:E$8,$A$3:$A$8,IF(Dashboard!$B$44:$B$100=TRIM(SUBSTITUTE($A36,"TOTAL","",1)),Dashboard!$A$44:$A$100),$B$3:$B$8,$B36)) -> 0 | F36: 0 | G36: =SUM(SUMIFS(G$3:G$8,$A$3:$A$8,IF(Dashboard!$B$44:$B$100=TRIM(SUBSTITUTE($A36,"TOTAL","",1)),Dashboard!$A$44:$A$100),$B$3:$B$8,$B36)) -> 0 | H36: 0 | I36: =SUM(SUMIFS(I$3:I$8,$A$3:$A$8,IF(Dashboard!$B$44:$B$100=TRIM(SUBSTITUTE($A36,"TOTAL","",1)),Dashboard!$A$44:$A$100),$B$3:$B$8,$B36)) -> 0 | J36: =SUM(SUMIFS(J$3:J$8,$A$3:$A$8,IF(Dashboard!$B$44:$B$100=TRIM(SUBSTITUTE($A36,"TOTAL","",1)),Dashboard!$A$44:$A$100),$B$3:$B$8,$B36)) -> 0 | K36: =SUM(SUMIFS(K$3:K$8,$A$3:$A$8,IF(Dashboard!$B$44:$B$100=TRIM(SUBSTITUTE($A36,"TOTAL","",1)),Dashboard!$A$44:$A$100),$B$3:$B$8,$B36)) -> 0 | L36: =SUM(SUMIFS(L$3:L$8,$A$3:$A$8,IF(Dashboard!$B$44:$B$100=TRIM(SUBSTITUTE($A36,"TOTAL","",1)),Dashboard!$A$44:$A$100),$B$3:$B$8,$B36)) -> 0 | M36: =SUM(SUMIFS(M$3:M$8,$A$3:$A$8,IF(Dashboard!$B$44:$B$100=TRIM(SUBSTITUTE($A36,"TOTAL","",1)),Dashboard!$A$44:$A$100),$B$3:$B$8,$B36)) -> 0 | N36: =SUM(SUMIFS(N$3:N$8,$A$3:$A$8,IF(Dashboard!$B$44:$B$100=TRIM(SUBSTITUTE($A36,"TOTAL","",1)),Dashboard!$A$44:$A$100),$B$3:$B$8,$B36)) -> 0 | O36: =SUM(SUMIFS(O$3:O$8,$A$3:$A$8,IF(Dashboard!$B$44:$B$100=TRIM(SUBSTITUTE($A36,"TOTAL","",1)),Dashboard!$A$44:$A$100),$B$3:$B$8,$B36)) -> 0 | P36: =SUM(SUMIFS(P$3:P$8,$A$3:$A$8,IF(Dashboard!$B$44:$B$100=TRIM(SUBSTITUTE($A36,"TOTAL","",1)),Dashboard!$A$44:$A$100),$B$3:$B$8,$B36)) -> 0 | Q36: 0 | R36: 0 | S36: 0 | T36: 0 | V36: =SUM(SUMIFS(V$3:V$8,$A$3:$A$8,IF(Dashboard!$B$44:$B$100=TRIM(SUBSTITUTE($A36,"TOTAL","",1)),Dashboard!$A$44:$A$100),$B$3:$B$8,$B36)) -> 0 | W36: =SUM(SUMIFS(W$3:W$8,$A$3:$A$8,IF(Dashboard!$B$44:$B$100=TRIM(SUBSTITUTE($A36,"TOTAL","",1)),Dashboard!$A$44:$A$100),$B$3:$B$8,$B36)) -> 0 | X36: =SUM(SUMIFS(X$3:X$8,$A$3:$A$8,IF(Dashboard!$B$44:$B$100=TRIM(SUBSTITUTE($A36,"TOTAL","",1)),Dashboard!$A$44:$A$100),$B$3:$B$8,$B36)) -> 0 | Y36: 0 | Z36: =SUM(SUMIFS(Z$3:Z$8,$A$3:$A$8,IF(Dashboard!$B$44:$B$100=TRIM(SUBSTITUTE($A36,"TOTAL","",1)),Dashboard!$A$44:$A$100),$B$3:$B$8,$B36)) -> 0 | AA36: 0 | AB36: =SUM(SUMIFS(AB$3:AB$8,$A$3:$A$8,IF(Dashboard!$B$44:$B$100=TRIM(SUBSTITUTE($A36,"TOTAL","",1)),Dashboard!$A$44:$A$100),$B$3:$B$8,$B36)) -> 0 | AC36: =SUM(SUMIFS(AC$3:AC$8,$A$3:$A$8,IF(Dashboard!$B$44:$B$100=TRIM(SUBSTITUTE($A36,"TOTAL","",1)),Dashboard!$A$44:$A$100),$B$3:$B$8,$B36)) -> 0 | AD36: =SUM(SUMIFS(AD$3:AD$8,$A$3:$A$8,IF(Dashboard!$B$44:$B$100=TRIM(SUBSTITUTE($A36,"TOTAL","",1)),Dashboard!$A$44:$A$100),$B$3:$B$8,$B36)) -> 0 | AE36: =SUM(SUMIFS(AE$3:AE$8,$A$3:$A$8,IF(Dashboard!$B$44:$B$100=TRIM(SUBSTITUTE($A36,"TOTAL","",1)),Dashboard!$A$44:$A$100),$B$3:$B$8,$B36)) -> 0 | AF36: =SUM(SUMIFS(AF$3:AF$8,$A$3:$A$8,IF(Dashboard!$B$44:$B$100=TRIM(SUBSTITUTE($A36,"TOTAL","",1)),Dashboard!$A$44:$A$100),$B$3:$B$8,$B36)) -> 0 | AG36: =SUM(SUMIFS(AG$3:AG$8,$A$3:$A$8,IF(Dashboard!$B$44:$B$100=TRIM(SUBSTITUTE($A36,"TOTAL","",1)),Dashboard!$A$44:$A$100),$B$3:$B$8,$B36)) -> 0 | AH36: =SUM(SUMIFS(AH$3:AH$8,$A$3:$A$8,IF(Dashboard!$B$44:$B$100=TRIM(SUBSTITUTE($A36,"TOTAL","",1)),Dashboard!$A$44:$A$100),$B$3:$B$8,$B36)) -> 0 | AI36: =SUM(SUMIFS(AI$3:AI$8,$A$3:$A$8,IF(Dashboard!$B$44:$B$100=TRIM(SUBSTITUTE($A36,"TOTAL","",1)),Dashboard!$A$44:$A$100),$B$3:$B$8,$B36)) -> 0 | AJ36: 0 | AK36: 0 | AM36: =SUM(SUMIFS(AM$3:AM$8,$A$3:$A$8,IF(Dashboard!$B$44:$B$100=TRIM(SUBSTITUTE($A36,"TOTAL","",1)),Dashboard!$A$44:$A$100),$B$3:$B$8,$B36)) -> 0 | AN36: =SUM(SUMIFS(AN$3:AN$8,$A$3:$A$8,IF(Dashboard!$B$44:$B$100=TRIM(SUBSTITUTE($A36,"TOTAL","",1)),Dashboard!$A$44:$A$100),$B$3:$B$8,$B36)) -> 0 | AO36: =SUM(SUMIFS(AO$3:AO$8,$A$3:$A$8,IF(Dashboard!$B$44:$B$100=TRIM(SUBSTITUTE($A36,"TOTAL","",1)),Dashboard!$A$44:$A$100),$B$3:$B$8,$B36)) -> 0 | AP36: =SUM(SUMIFS(AP$3:AP$8,$A$3:$A$8,IF(Dashboard!$B$44:$B$100=TRIM(SUBSTITUTE($A36,"TOTAL","",1)),Dashboard!$A$44:$A$100),$B$3:$B$8,$B36)) -> 0 | AQ36: =SUM(SUMIFS(AQ$3:AQ$8,$A$3:$A$8,IF(Dashboard!$B$44:$B$100=TRIM(SUBSTITUTE($A36,"TOTAL","",1)),Dashboard!$A$44:$A$100),$B$3:$B$8,$B36)) -> 0 | AR36: =SUM(SUMIFS(AR$3:AR$8,$A$3:$A$8,IF(Dashboard!$B$44:$B$100=TRIM(SUBSTITUTE($A36,"TOTAL","",1)),Dashboard!$A$44:$A$100),$B$3:$B$8,$B36)) -> 0 | AT36: =SUM(SUMIFS(AT$3:AT$8,$A$3:$A$8,IF(Dashboard!$B$44:$B$100=TRIM(SUBSTITUTE($A36,"TOTAL","",1)),Dashboard!$A$44:$A$100),$B$3:$B$8,$B36)) -> 0 | AV36: =SUM(SUMIFS(AV$3:AV$8,$A$3:$A$8,IF(Dashboard!$B$44:$B$100=TRIM(SUBSTITUTE($A36,"TOTAL","",1)),Dashboard!$A$44:$A$100),$B$3:$B$8,$B36)) -> 0 | AW36: =SUM(SUMIFS(AW$3:AW$8,$A$3:$A$8,IF(Dashboard!$B$44:$B$100=TRIM(SUBSTITUTE($A36,"TOTAL","",1)),Dashboard!$A$44:$A$100),$B$3:$B$8,$B36)) -> 0 | AX36: =SUM(SUMIFS(AX$3:AX$8,$A$3:$A$8,IF(Dashboard!$B$44:$B$100=TRIM(SUBSTITUTE($A36,"TOTAL","",1)),Dashboard!$A$44:$A$100),$B$3:$B$8,$B36)) -> 0 | AY36: 0 | BA36: 0 | BB36: 0 | BD36: =SUM(SUMIFS(BD$3:BD$8,$A$3:$A$8,IF(Dashboard!$B$44:$B$100=TRIM(SUBSTITUTE($A36,"TOTAL","",1)),Dashboard!$A$44:$A$100),$B$3:$B$8,$B36)) -> 0 | BE36: =SUM(SUMIFS(BE$3:BE$8,$A$3:$A$8,IF(Dashboard!$B$44:$B$100=TRIM(SUBSTITUTE($A36,"TOTAL","",1)),Dashboard!$A$44:$A$100),$B$3:$B$8,$B36)) -> 0 | BF36: 0 | BH36: =SUM(SUMIFS(BH$3:BH$8,$A$3:$A$8,IF(Dashboard!$B$44:$B$100=TRIM(SUBSTITUTE($A36,"TOTAL","",1)),Dashboard!$A$44:$A$100),$B$3:$B$8,$B36)) -> 0 | BI36: =SUM(SUMIFS(BI$3:BI$8,$A$3:$A$8,IF(Dashboard!$B$44:$B$100=TRIM(SUBSTITUTE($A36,"TOTAL","",1)),Dashboard!$A$44:$A$100),$B$3:$B$8,$B36)) -> 0 | BJ36: 0 | BL36: =SUM(SUMIFS(BL$3:BL$8,$A$3:$A$8,IF(Dashboard!$B$44:$B$100=TRIM(SUBSTITUTE($A36,"TOTAL","",1)),Dashboard!$A$44:$A$100),$B$3:$B$8,$B36)) -> 0
A37: P2 TOTAL | B37: Houston | C37: =SUM(SUMIFS(C$3:C$8,$A$3:$A$8,IF(Dashboard!$B$44:$B$100=TRIM(SUBSTITUTE($A37,"TOTAL","",1)),Dashboard!$A$44:$A$100),$B$3:$B$8,$B37)) -> 0 | D37: =SUM(SUMIFS(D$3:D$8,$A$3:$A$8,IF(Dashboard!$B$44:$B$100=TRIM(SUBSTITUTE($A37,"TOTAL","",1)),Dashboard!$A$44:$A$100),$B$3:$B$8,$B37)) -> 0 | E37: =SUM(SUMIFS(E$3:E$8,$A$3:$A$8,IF(Dashboard!$B$44:$B$100=TRIM(SUBSTITUTE($A37,"TOTAL","",1)),Dashboard!$A$44:$A$100),$B$3:$B$8,$B37)) -> 0 | F37: 0 | G37: =SUM(SUMIFS(G$3:G$8,$A$3:$A$8,IF(Dashboard!$B$44:$B$100=TRIM(SUBSTITUTE($A37,"TOTAL","",1)),Dashboard!$A$44:$A$100),$B$3:$B$8,$B37)) -> 0 | H37: 0 | I37: =SUM(SUMIFS(I$3:I$8,$A$3:$A$8,IF(Dashboard!$B$44:$B$100=TRIM(SUBSTITUTE($A37,"TOTAL","",1)),Dashboard!$A$44:$A$100),$B$3:$B$8,$B37)) -> 0 | J37: =SUM(SUMIFS(J$3:J$8,$A$3:$A$8,IF(Dashboard!$B$44:$B$100=TRIM(SUBSTITUTE($A37,"TOTAL","",1)),Dashboard!$A$44:$A$100),$B$3:$B$8,$B37)) -> 0 | K37: =SUM(SUMIFS(K$3:K$8,$A$3:$A$8,IF(Dashboard!$B$44:$B$100=TRIM(SUBSTITUTE($A37,"TOTAL","",1)),Dashboard!$A$44:$A$100),$B$3:$B$8,$B37)) -> 0 | L37: =SUM(SUMIFS(L$3:L$8,$A$3:$A$8,IF(Dashboard!$B$44:$B$100=TRIM(SUBSTITUTE($A37,"TOTAL","",1)),Dashboard!$A$44:$A$100),$B$3:$B$8,$B37)) -> 0 | M37: =SUM(SUMIFS(M$3:M$8,$A$3:$A$8,IF(Dashboard!$B$44:$B$100=TRIM(SUBSTITUTE($A37,"TOTAL","",1)),Dashboard!$A$44:$A$100),$B$3:$B$8,$B37)) -> 0 | N37: =SUM(SUMIFS(N$3:N$8,$A$3:$A$8,IF(Dashboard!$B$44:$B$100=TRIM(SUBSTITUTE($A37,"TOTAL","",1)),Dashboard!$A$44:$A$100),$B$3:$B$8,$B37)) -> 0 | O37: =SUM(SUMIFS(O$3:O$8,$A$3:$A$8,IF(Dashboard!$B$44:$B$100=TRIM(SUBSTITUTE($A37,"TOTAL","",1)),Dashboard!$A$44:$A$100),$B$3:$B$8,$B37)) -> 0 | P37: =SUM(SUMIFS(P$3:P$8,$A$3:$A$8,IF(Dashboard!$B$44:$B$100=TRIM(SUBSTITUTE($A37,"TOTAL","",1)),Dashboard!$A$44:$A$100),$B$3:$B$8,$B37)) -> 0 | Q37: 0 | R37: 0 | S37: 0 | T37: 0 | V37: =SUM(SUMIFS(V$3:V$8,$A$3:$A$8,IF(Dashboard!$B$44:$B$100=TRIM(SUBSTITUTE($A37,"TOTAL","",1)),Dashboard!$A$44:$A$100),$B$3:$B$8,$B37)) -> 0 | W37: =SUM(SUMIFS(W$3:W$8,$A$3:$A$8,IF(Dashboard!$B$44:$B$100=TRIM(SUBSTITUTE($A37,"TOTAL","",1)),Dashboard!$A$44:$A$100),$B$3:$B$8,$B37)) -> 0 | X37: =SUM(SUMIFS(X$3:X$8,$A$3:$A$8,IF(Dashboard!$B$44:$B$100=TRIM(SUBSTITUTE($A37,"TOTAL","",1)),Dashboard!$A$44:$A$100),$B$3:$B$8,$B37)) -> 0 | Y37: 0 | Z37: =SUM(SUMIFS(Z$3:Z$8,$A$3:$A$8,IF(Dashboard!$B$44:$B$100=TRIM(SUBSTITUTE($A37,"TOTAL","",1)),Dashboard!$A$44:$A$100),$B$3:$B$8,$B37)) -> 0 | AA37: 0 | AB37: =SUM(SUMIFS(AB$3:AB$8,$A$3:$A$8,IF(Dashboard!$B$44:$B$100=TRIM(SUBSTITUTE($A37,"TOTAL","",1)),Dashboard!$A$44:$A$100),$B$3:$B$8,$B37)) -> 0 | AC37: =SUM(SUMIFS(AC$3:AC$8,$A$3:$A$8,IF(Dashboard!$B$44:$B$100=TRIM(SUBSTITUTE($A37,"TOTAL","",1)),Dashboard!$A$44:$A$100),$B$3:$B$8,$B37)) -> 0 | AD37: =SUM(SUMIFS(AD$3:AD$8,$A$3:$A$8,IF(Dashboard!$B$44:$B$100=TRIM(SUBSTITUTE($A37,"TOTAL","",1)),Dashboard!$A$44:$A$100),$B$3:$B$8,$B37)) -> 0 | AE37: =SUM(SUMIFS(AE$3:AE$8,$A$3:$A$8,IF(Dashboard!$B$44:$B$100=TRIM(SUBSTITUTE($A37,"TOTAL","",1)),Dashboard!$A$44:$A$100),$B$3:$B$8,$B37)) -> 0 | AF37: =SUM(SUMIFS(AF$3:AF$8,$A$3:$A$8,IF(Dashboard!$B$44:$B$100=TRIM(SUBSTITUTE($A37,"TOTAL","",1)),Dashboard!$A$44:$A$100),$B$3:$B$8,$B37)) -> 0 | AG37: =SUM(SUMIFS(AG$3:AG$8,$A$3:$A$8,IF(Dashboard!$B$44:$B$100=TRIM(SUBSTITUTE($A37,"TOTAL","",1)),Dashboard!$A$44:$A$100),$B$3:$B$8,$B37)) -> 0 | AH37: =SUM(SUMIFS(AH$3:AH$8,$A$3:$A$8,IF(Dashboard!$B$44:$B$100=TRIM(SUBSTITUTE($A37,"TOTAL","",1)),Dashboard!$A$44:$A$100),$B$3:$B$8,$B37)) -> 0 | AI37: =SUM(SUMIFS(AI$3:AI$8,$A$3:$A$8,IF(Dashboard!$B$44:$B$100=TRIM(SUBSTITUTE($A37,"TOTAL","",1)),Dashboard!$A$44:$A$100),$B$3:$B$8,$B37)) -> 0 | AJ37: 0 | AK37: 0 | AM37: =SUM(SUMIFS(AM$3:AM$8,$A$3:$A$8,IF(Dashboard!$B$44:$B$100=TRIM(SUBSTITUTE($A37,"TOTAL","",1)),Dashboard!$A$44:$A$100),$B$3:$B$8,$B37)) -> 0 | AN37: =SUM(SUMIFS(AN$3:AN$8,$A$3:$A$8,IF(Dashboard!$B$44:$B$100=TRIM(SUBSTITUTE($A37,"TOTAL","",1)),Dashboard!$A$44:$A$100),$B$3:$B$8,$B37)) -> 0 | AO37: =SUM(SUMIFS(AO$3:AO$8,$A$3:$A$8,IF(Dashboard!$B$44:$B$100=TRIM(SUBSTITUTE($A37,"TOTAL","",1)),Dashboard!$A$44:$A$100),$B$3:$B$8,$B37)) -> 0 | AP37: =SUM(SUMIFS(AP$3:AP$8,$A$3:$A$8,IF(Dashboard!$B$44:$B$100=TRIM(SUBSTITUTE($A37,"TOTAL","",1)),Dashboard!$A$44:$A$100),$B$3:$B$8,$B37)) -> 0 | AQ37: =SUM(SUMIFS(AQ$3:AQ$8,$A$3:$A$8,IF(Dashboard!$B$44:$B$100=TRIM(SUBSTITUTE($A37,"TOTAL","",1)),Dashboard!$A$44:$A$100),$B$3:$B$8,$B37)) -> 0 | AR37: =SUM(SUMIFS(AR$3:AR$8,$A$3:$A$8,IF(Dashboard!$B$44:$B$100=TRIM(SUBSTITUTE($A37,"TOTAL","",1)),Dashboard!$A$44:$A$100),$B$3:$B$8,$B37)) -> 0 | AT37: =SUM(SUMIFS(AT$3:AT$8,$A$3:$A$8,IF(Dashboard!$B$44:$B$100=TRIM(SUBSTITUTE($A37,"TOTAL","",1)),Dashboard!$A$44:$A$100),$B$3:$B$8,$B37)) -> 0 | AV37: =SUM(SUMIFS(AV$3:AV$8,$A$3:$A$8,IF(Dashboard!$B$44:$B$100=TRIM(SUBSTITUTE($A37,"TOTAL","",1)),Dashboard!$A$44:$A$100),$B$3:$B$8,$B37)) -> 0 | AW37: =SUM(SUMIFS(AW$3:AW$8,$A$3:$A$8,IF(Dashboard!$B$44:$B$100=TRIM(SUBSTITUTE($A37,"TOTAL","",1)),Dashboard!$A$44:$A$100),$B$3:$B$8,$B37)) -> 0 | AX37: =SUM(SUMIFS(AX$3:AX$8,$A$3:$A$8,IF(Dashboard!$B$44:$B$100=TRIM(SUBSTITUTE($A37,"TOTAL","",1)),Dashboard!$A$44:$A$100),$B$3:$B$8,$B37)) -> 0 | AY37: 0 | BA37: 0 | BB37: 0 | BD37: =SUM(SUMIFS(BD$3:BD$8,$A$3:$A$8,IF(Dashboard!$B$44:$B$100=TRIM(SUBSTITUTE($A37,"TOTAL","",1)),Dashboard!$A$44:$A$100),$B$3:$B$8,$B37)) -> 0 | BE37: =SUM(SUMIFS(BE$3:BE$8,$A$3:$A$8,IF(Dashboard!$B$44:$B$100=TRIM(SUBSTITUTE($A37,"TOTAL","",1)),Dashboard!$A$44:$A$100),$B$3:$B$8,$B37)) -> 0 | BF37: 0 | BH37: =SUM(SUMIFS(BH$3:BH$8,$A$3:$A$8,IF(Dashboard!$B$44:$B$100=TRIM(SUBSTITUTE($A37,"TOTAL","",1)),Dashboard!$A$44:$A$100),$B$3:$B$8,$B37)) -> 0 | BI37: =SUM(SUMIFS(BI$3:BI$8,$A$3:$A$8,IF(Dashboard!$B$44:$B$100=TRIM(SUBSTITUTE($A37,"TOTAL","",1)),Dashboard!$A$44:$A$100),$B$3:$B$8,$B37)) -> 0 | BJ37: 0 | BL37: =SUM(SUMIFS(BL$3:BL$8,$A$3:$A$8,IF(Dashboard!$B$44:$B$100=TRIM(SUBSTITUTE($A37,"TOTAL","",1)),Dashboard!$A$44:$A$100),$B$3:$B$8,$B37)) -> 0
A38: P2 TOTAL | B38: Kansas City | C38: =SUM(SUMIFS(C$3:C$8,$A$3:$A$8,IF(Dashboard!$B$44:$B$100=TRIM(SUBSTITUTE($A38,"TOTAL","",1)),Dashboard!$A$44:$A$100),$B$3:$B$8,$B38)) -> 0 | D38: =SUM(SUMIFS(D$3:D$8,$A$3:$A$8,IF(Dashboard!$B$44:$B$100=TRIM(SUBSTITUTE($A38,"TOTAL","",1)),Dashboard!$A$44:$A$100),$B$3:$B$8,$B38)) -> 0 | E38: =SUM(SUMIFS(E$3:E$8,$A$3:$A$8,IF(Dashboard!$B$44:$B$100=TRIM(SUBSTITUTE($A38,"TOTAL","",1)),Dashboard!$A$44:$A$100),$B$3:$B$8,$B38)) -> 0 | F38: 0 | G38: =SUM(SUMIFS(G$3:G$8,$A$3:$A$8,IF(Dashboard!$B$44:$B$100=TRIM(SUBSTITUTE($A38,"TOTAL","",1)),Dashboard!$A$44:$A$100),$B$3:$B$8,$B38)) -> 0 | H38: 0 | I38: =SUM(SUMIFS(I$3:I$8,$A$3:$A$8,IF(Dashboard!$B$44:$B$100=TRIM(SUBSTITUTE($A38,"TOTAL","",1)),Dashboard!$A$44:$A$100),$B$3:$B$8,$B38)) -> 0 | J38: =SUM(SUMIFS(J$3:J$8,$A$3:$A$8,IF(Dashboard!$B$44:$B$100=TRIM(SUBSTITUTE($A38,"TOTAL","",1)),Dashboard!$A$44:$A$100),$B$3:$B$8,$B38)) -> 0 | K38: =SUM(SUMIFS(K$3:K$8,$A$3:$A$8,IF(Dashboard!$B$44:$B$100=TRIM(SUBSTITUTE($A38,"TOTAL","",1)),Dashboard!$A$44:$A$100),$B$3:$B$8,$B38)) -> 0 | L38: =SUM(SUMIFS(L$3:L$8,$A$3:$A$8,IF(Dashboard!$B$44:$B$100=TRIM(SUBSTITUTE($A38,"TOTAL","",1)),Dashboard!$A$44:$A$100),$B$3:$B$8,$B38)) -> 0 | M38: =SUM(SUMIFS(M$3:M$8,$A$3:$A$8,IF(Dashboard!$B$44:$B$100=TRIM(SUBSTITUTE($A38,"TOTAL","",1)),Dashboard!$A$44:$A$100),$B$3:$B$8,$B38)) -> 0 | N38: =SUM(SUMIFS(N$3:N$8,$A$3:$A$8,IF(Dashboard!$B$44:$B$100=TRIM(SUBSTITUTE($A38,"TOTAL","",1)),Dashboard!$A$44:$A$100),$B$3:$B$8,$B38)) -> 0 | O38: =SUM(SUMIFS(O$3:O$8,$A$3:$A$8,IF(Dashboard!$B$44:$B$100=TRIM(SUBSTITUTE($A38,"TOTAL","",1)),Dashboard!$A$44:$A$100),$B$3:$B$8,$B38)) -> 0 | P38: =SUM(SUMIFS(P$3:P$8,$A$3:$A$8,IF(Dashboard!$B$44:$B$100=TRIM(SUBSTITUTE($A38,"TOTAL","",1)),Dashboard!$A$44:$A$100),$B$3:$B$8,$B38)) -> 0 | Q38: 0 | R38: 0 | S38: 0 | T38: 0 | V38: =SUM(SUMIFS(V$3:V$8,$A$3:$A$8,IF(Dashboard!$B$44:$B$100=TRIM(SUBSTITUTE($A38,"TOTAL","",1)),Dashboard!$A$44:$A$100),$B$3:$B$8,$B38)) -> 0 | W38: =SUM(SUMIFS(W$3:W$8,$A$3:$A$8,IF(Dashboard!$B$44:$B$100=TRIM(SUBSTITUTE($A38,"TOTAL","",1)),Dashboard!$A$44:$A$100),$B$3:$B$8,$B38)) -> 0 | X38: =SUM(SUMIFS(X$3:X$8,$A$3:$A$8,IF(Dashboard!$B$44:$B$100=TRIM(SUBSTITUTE($A38,"TOTAL","",1)),Dashboard!$A$44:$A$100),$B$3:$B$8,$B38)) -> 0 | Y38: 0 | Z38: =SUM(SUMIFS(Z$3:Z$8,$A$3:$A$8,IF(Dashboard!$B$44:$B$100=TRIM(SUBSTITUTE($A38,"TOTAL","",1)),Dashboard!$A$44:$A$100),$B$3:$B$8,$B38)) -> 0 | AA38: 0 | AB38: =SUM(SUMIFS(AB$3:AB$8,$A$3:$A$8,IF(Dashboard!$B$44:$B$100=TRIM(SUBSTITUTE($A38,"TOTAL","",1)),Dashboard!$A$44:$A$100),$B$3:$B$8,$B38)) -> 0 | AC38: =SUM(SUMIFS(AC$3:AC$8,$A$3:$A$8,IF(Dashboard!$B$44:$B$100=TRIM(SUBSTITUTE($A38,"TOTAL","",1)),Dashboard!$A$44:$A$100),$B$3:$B$8,$B38)) -> 0 | AD38: =SUM(SUMIFS(AD$3:AD$8,$A$3:$A$8,IF(Dashboard!$B$44:$B$100=TRIM(SUBSTITUTE($A38,"TOTAL","",1)),Dashboard!$A$44:$A$100),$B$3:$B$8,$B38)) -> 0 | AE38: =SUM(SUMIFS(AE$3:AE$8,$A$3:$A$8,IF(Dashboard!$B$44:$B$100=TRIM(SUBSTITUTE($A38,"TOTAL","",1)),Dashboard!$A$44:$A$100),$B$3:$B$8,$B38)) -> 0 | AF38: =SUM(SUMIFS(AF$3:AF$8,$A$3:$A$8,IF(Dashboard!$B$44:$B$100=TRIM(SUBSTITUTE($A38,"TOTAL","",1)),Dashboard!$A$44:$A$100),$B$3:$B$8,$B38)) -> 0 | AG38: =SUM(SUMIFS(AG$3:AG$8,$A$3:$A$8,IF(Dashboard!$B$44:$B$100=TRIM(SUBSTITUTE($A38,"TOTAL","",1)),Dashboard!$A$44:$A$100),$B$3:$B$8,$B38)) -> 0 | AH38: =SUM(SUMIFS(AH$3:AH$8,$A$3:$A$8,IF(Dashboard!$B$44:$B$100=TRIM(SUBSTITUTE($A38,"TOTAL","",1)),Dashboard!$A$44:$A$100),$B$3:$B$8,$B38)) -> 0 | AI38: =SUM(SUMIFS(AI$3:AI$8,$A$3:$A$8,IF(Dashboard!$B$44:$B$100=TRIM(SUBSTITUTE($A38,"TOTAL","",1)),Dashboard!$A$44:$A$100),$B$3:$B$8,$B38)) -> 0 | AJ38: 0 | AK38: 0 | AM38: =SUM(SUMIFS(AM$3:AM$8,$A$3:$A$8,IF(Dashboard!$B$44:$B$100=TRIM(SUBSTITUTE($A38,"TOTAL","",1)),Dashboard!$A$44:$A$100),$B$3:$B$8,$B38)) -> 0 | AN38: =SUM(SUMIFS(AN$3:AN$8,$A$3:$A$8,IF(Dashboard!$B$44:$B$100=TRIM(SUBSTITUTE($A38,"TOTAL","",1)),Dashboard!$A$44:$A$100),$B$3:$B$8,$B38)) -> 0 | AO38: =SUM(SUMIFS(AO$3:AO$8,$A$3:$A$8,IF(Dashboard!$B$44:$B$100=TRIM(SUBSTITUTE($A38,"TOTAL","",1)),Dashboard!$A$44:$A$100),$B$3:$B$8,$B38)) -> 0 | AP38: =SUM(SUMIFS(AP$3:AP$8,$A$3:$A$8,IF(Dashboard!$B$44:$B$100=TRIM(SUBSTITUTE($A38,"TOTAL","",1)),Dashboard!$A$44:$A$100),$B$3:$B$8,$B38)) -> 0 | AQ38: =SUM(SUMIFS(AQ$3:AQ$8,$A$3:$A$8,IF(Dashboard!$B$44:$B$100=TRIM(SUBSTITUTE($A38,"TOTAL","",1)),Dashboard!$A$44:$A$100),$B$3:$B$8,$B38)) -> 0 | AR38: =SUM(SUMIFS(AR$3:AR$8,$A$3:$A$8,IF(Dashboard!$B$44:$B$100=TRIM(SUBSTITUTE($A38,"TOTAL","",1)),Dashboard!$A$44:$A$100),$B$3:$B$8,$B38)) -> 0 | AT38: =SUM(SUMIFS(AT$3:AT$8,$A$3:$A$8,IF(Dashboard!$B$44:$B$100=TRIM(SUBSTITUTE($A38,"TOTAL","",1)),Dashboard!$A$44:$A$100),$B$3:$B$8,$B38)) -> 0 | AV38: =SUM(SUMIFS(AV$3:AV$8,$A$3:$A$8,IF(Dashboard!$B$44:$B$100=TRIM(SUBSTITUTE($A38,"TOTAL","",1)),Dashboard!$A$44:$A$100),$B$3:$B$8,$B38)) -> 0 | AW38: =SUM(SUMIFS(AW$3:AW$8,$A$3:$A$8,IF(Dashboard!$B$44:$B$100=TRIM(SUBSTITUTE($A38,"TOTAL","",1)),Dashboard!$A$44:$A$100),$B$3:$B$8,$B38)) -> 0 | AX38: =SUM(SUMIFS(AX$3:AX$8,$A$3:$A$8,IF(Dashboard!$B$44:$B$100=TRIM(SUBSTITUTE($A38,"TOTAL","",1)),Dashboard!$A$44:$A$100),$B$3:$B$8,$B38)) -> 0 | AY38: 0 | BA38: 0 | BB38: 0 | BD38: =SUM(SUMIFS(BD$3:BD$8,$A$3:$A$8,IF(Dashboard!$B$44:$B$100=TRIM(SUBSTITUTE($A38,"TOTAL","",1)),Dashboard!$A$44:$A$100),$B$3:$B$8,$B38)) -> 0 | BE38: =SUM(SUMIFS(BE$3:BE$8,$A$3:$A$8,IF(Dashboard!$B$44:$B$100=TRIM(SUBSTITUTE($A38,"TOTAL","",1)),Dashboard!$A$44:$A$100),$B$3:$B$8,$B38)) -> 0 | BF38: 0 | BH38: =SUM(SUMIFS(BH$3:BH$8,$A$3:$A$8,IF(Dashboard!$B$44:$B$100=TRIM(SUBSTITUTE($A38,"TOTAL","",1)),Dashboard!$A$44:$A$100),$B$3:$B$8,$B38)) -> 0 | BI38: =SUM(SUMIFS(BI$3:BI$8,$A$3:$A$8,IF(Dashboard!$B$44:$B$100=TRIM(SUBSTITUTE($A38,"TOTAL","",1)),Dashboard!$A$44:$A$100),$B$3:$B$8,$B38)) -> 0 | BJ38: 0 | BL38: =SUM(SUMIFS(BL$3:BL$8,$A$3:$A$8,IF(Dashboard!$B$44:$B$100=TRIM(SUBSTITUTE($A38,"TOTAL","",1)),Dashboard!$A$44:$A$100),$B$3:$B$8,$B38)) -> 0
A39: P2 TOTAL | B39: Los Angeles | C39: =SUM(SUMIFS(C$3:C$8,$A$3:$A$8,IF(Dashboard!$B$44:$B$100=TRIM(SUBSTITUTE($A39,"TOTAL","",1)),Dashboard!$A$44:$A$100),$B$3:$B$8,$B39)) -> 0 | D39: =SUM(SUMIFS(D$3:D$8,$A$3:$A$8,IF(Dashboard!$B$44:$B$100=TRIM(SUBSTITUTE($A39,"TOTAL","",1)),Dashboard!$A$44:$A$100),$B$3:$B$8,$B39)) -> 0 | E39: =SUM(SUMIFS(E$3:E$8,$A$3:$A$8,IF(Dashboard!$B$44:$B$100=TRIM(SUBSTITUTE($A39,"TOTAL","",1)),Dashboard!$A$44:$A$100),$B$3:$B$8,$B39)) -> 0 | F39: 0 | G39: =SUM(SUMIFS(G$3:G$8,$A$3:$A$8,IF(Dashboard!$B$44:$B$100=TRIM(SUBSTITUTE($A39,"TOTAL","",1)),Dashboard!$A$44:$A$100),$B$3:$B$8,$B39)) -> 0 | H39: 0 | I39: =SUM(SUMIFS(I$3:I$8,$A$3:$A$8,IF(Dashboard!$B$44:$B$100=TRIM(SUBSTITUTE($A39,"TOTAL","",1)),Dashboard!$A$44:$A$100),$B$3:$B$8,$B39)) -> 0 | J39: =SUM(SUMIFS(J$3:J$8,$A$3:$A$8,IF(Dashboard!$B$44:$B$100=TRIM(SUBSTITUTE($A39,"TOTAL","",1)),Dashboard!$A$44:$A$100),$B$3:$B$8,$B39)) -> 0 | K39: =SUM(SUMIFS(K$3:K$8,$A$3:$A$8,IF(Dashboard!$B$44:$B$100=TRIM(SUBSTITUTE($A39,"TOTAL","",1)),Dashboard!$A$44:$A$100),$B$3:$B$8,$B39)) -> 0 | L39: =SUM(SUMIFS(L$3:L$8,$A$3:$A$8,IF(Dashboard!$B$44:$B$100=TRIM(SUBSTITUTE($A39,"TOTAL","",1)),Dashboard!$A$44:$A$100),$B$3:$B$8,$B39)) -> 0 | M39: =SUM(SUMIFS(M$3:M$8,$A$3:$A$8,IF(Dashboard!$B$44:$B$100=TRIM(SUBSTITUTE($A39,"TOTAL","",1)),Dashboard!$A$44:$A$100),$B$3:$B$8,$B39)) -> 0 | N39: =SUM(SUMIFS(N$3:N$8,$A$3:$A$8,IF(Dashboard!$B$44:$B$100=TRIM(SUBSTITUTE($A39,"TOTAL","",1)),Dashboard!$A$44:$A$100),$B$3:$B$8,$B39)) -> 0 | O39: =SUM(SUMIFS(O$3:O$8,$A$3:$A$8,IF(Dashboard!$B$44:$B$100=TRIM(SUBSTITUTE($A39,"TOTAL","",1)),Dashboard!$A$44:$A$100),$B$3:$B$8,$B39)) -> 0 | P39: =SUM(SUMIFS(P$3:P$8,$A$3:$A$8,IF(Dashboard!$B$44:$B$100=TRIM(SUBSTITUTE($A39,"TOTAL","",1)),Dashboard!$A$44:$A$100),$B$3:$B$8,$B39)) -> 0 | Q39: 0 | R39: 0 | S39: 0 | T39: 0 | V39: =SUM(SUMIFS(V$3:V$8,$A$3:$A$8,IF(Dashboard!$B$44:$B$100=TRIM(SUBSTITUTE($A39,"TOTAL","",1)),Dashboard!$A$44:$A$100),$B$3:$B$8,$B39)) -> 0 | W39: =SUM(SUMIFS(W$3:W$8,$A$3:$A$8,IF(Dashboard!$B$44:$B$100=TRIM(SUBSTITUTE($A39,"TOTAL","",1)),Dashboard!$A$44:$A$100),$B$3:$B$8,$B39)) -> 0 | X39: =SUM(SUMIFS(X$3:X$8,$A$3:$A$8,IF(Dashboard!$B$44:$B$100=TRIM(SUBSTITUTE($A39,"TOTAL","",1)),Dashboard!$A$44:$A$100),$B$3:$B$8,$B39)) -> 0 | Y39: 0 | Z39: =SUM(SUMIFS(Z$3:Z$8,$A$3:$A$8,IF(Dashboard!$B$44:$B$100=TRIM(SUBSTITUTE($A39,"TOTAL","",1)),Dashboard!$A$44:$A$100),$B$3:$B$8,$B39)) -> 0 | AA39: 0 | AB39: =SUM(SUMIFS(AB$3:AB$8,$A$3:$A$8,IF(Dashboard!$B$44:$B$100=TRIM(SUBSTITUTE($A39,"TOTAL","",1)),Dashboard!$A$44:$A$100),$B$3:$B$8,$B39)) -> 0 | AC39: =SUM(SUMIFS(AC$3:AC$8,$A$3:$A$8,IF(Dashboard!$B$44:$B$100=TRIM(SUBSTITUTE($A39,"TOTAL","",1)),Dashboard!$A$44:$A$100),$B$3:$B$8,$B39)) -> 0 | AD39: =SUM(SUMIFS(AD$3:AD$8,$A$3:$A$8,IF(Dashboard!$B$44:$B$100=TRIM(SUBSTITUTE($A39,"TOTAL","",1)),Dashboard!$A$44:$A$100),$B$3:$B$8,$B39)) -> 0 | AE39: =SUM(SUMIFS(AE$3:AE$8,$A$3:$A$8,IF(Dashboard!$B$44:$B$100=TRIM(SUBSTITUTE($A39,"TOTAL","",1)),Dashboard!$A$44:$A$100),$B$3:$B$8,$B39)) -> 0 | AF39: =SUM(SUMIFS(AF$3:AF$8,$A$3:$A$8,IF(Dashboard!$B$44:$B$100=TRIM(SUBSTITUTE($A39,"TOTAL","",1)),Dashboard!$A$44:$A$100),$B$3:$B$8,$B39)) -> 0 | AG39: =SUM(SUMIFS(AG$3:AG$8,$A$3:$A$8,IF(Dashboard!$B$44:$B$100=TRIM(SUBSTITUTE($A39,"TOTAL","",1)),Dashboard!$A$44:$A$100),$B$3:$B$8,$B39)) -> 0 | AH39: =SUM(SUMIFS(AH$3:AH$8,$A$3:$A$8,IF(Dashboard!$B$44:$B$100=TRIM(SUBSTITUTE($A39,"TOTAL","",1)),Dashboard!$A$44:$A$100),$B$3:$B$8,$B39)) -> 0 | AI39: =SUM(SUMIFS(AI$3:AI$8,$A$3:$A$8,IF(Dashboard!$B$44:$B$100=TRIM(SUBSTITUTE($A39,"TOTAL","",1)),Dashboard!$A$44:$A$100),$B$3:$B$8,$B39)) -> 0 | AJ39: 0 | AK39: 0 | AM39: =SUM(SUMIFS(AM$3:AM$8,$A$3:$A$8,IF(Dashboard!$B$44:$B$100=TRIM(SUBSTITUTE($A39,"TOTAL","",1)),Dashboard!$A$44:$A$100),$B$3:$B$8,$B39)) -> 0 | AN39: =SUM(SUMIFS(AN$3:AN$8,$A$3:$A$8,IF(Dashboard!$B$44:$B$100=TRIM(SUBSTITUTE($A39,"TOTAL","",1)),Dashboard!$A$44:$A$100),$B$3:$B$8,$B39)) -> 0 | AO39: =SUM(SUMIFS(AO$3:AO$8,$A$3:$A$8,IF(Dashboard!$B$44:$B$100=TRIM(SUBSTITUTE($A39,"TOTAL","",1)),Dashboard!$A$44:$A$100),$B$3:$B$8,$B39)) -> 0 | AP39: =SUM(SUMIFS(AP$3:AP$8,$A$3:$A$8,IF(Dashboard!$B$44:$B$100=TRIM(SUBSTITUTE($A39,"TOTAL","",1)),Dashboard!$A$44:$A$100),$B$3:$B$8,$B39)) -> 0 | AQ39: =SUM(SUMIFS(AQ$3:AQ$8,$A$3:$A$8,IF(Dashboard!$B$44:$B$100=TRIM(SUBSTITUTE($A39,"TOTAL","",1)),Dashboard!$A$44:$A$100),$B$3:$B$8,$B39)) -> 0 | AR39: =SUM(SUMIFS(AR$3:AR$8,$A$3:$A$8,IF(Dashboard!$B$44:$B$100=TRIM(SUBSTITUTE($A39,"TOTAL","",1)),Dashboard!$A$44:$A$100),$B$3:$B$8,$B39)) -> 0 | AT39: =SUM(SUMIFS(AT$3:AT$8,$A$3:$A$8,IF(Dashboard!$B$44:$B$100=TRIM(SUBSTITUTE($A39,"TOTAL","",1)),Dashboard!$A$44:$A$100),$B$3:$B$8,$B39)) -> 0 | AV39: =SUM(SUMIFS(AV$3:AV$8,$A$3:$A$8,IF(Dashboard!$B$44:$B$100=TRIM(SUBSTITUTE($A39,"TOTAL","",1)),Dashboard!$A$44:$A$100),$B$3:$B$8,$B39)) -> 0 | AW39: =SUM(SUMIFS(AW$3:AW$8,$A$3:$A$8,IF(Dashboard!$B$44:$B$100=TRIM(SUBSTITUTE($A39,"TOTAL","",1)),Dashboard!$A$44:$A$100),$B$3:$B$8,$B39)) -> 0 | AX39: =SUM(SUMIFS(AX$3:AX$8,$A$3:$A$8,IF(Dashboard!$B$44:$B$100=TRIM(SUBSTITUTE($A39,"TOTAL","",1)),Dashboard!$A$44:$A$100),$B$3:$B$8,$B39)) -> 0 | AY39: 0 | BA39: 0 | BB39: 0 | BD39: =SUM(SUMIFS(BD$3:BD$8,$A$3:$A$8,IF(Dashboard!$B$44:$B$100=TRIM(SUBSTITUTE($A39,"TOTAL","",1)),Dashboard!$A$44:$A$100),$B$3:$B$8,$B39)) -> 0 | BE39: =SUM(SUMIFS(BE$3:BE$8,$A$3:$A$8,IF(Dashboard!$B$44:$B$100=TRIM(SUBSTITUTE($A39,"TOTAL","",1)),Dashboard!$A$44:$A$100),$B$3:$B$8,$B39)) -> 0 | BF39: 0 | BH39: =SUM(SUMIFS(BH$3:BH$8,$A$3:$A$8,IF(Dashboard!$B$44:$B$100=TRIM(SUBSTITUTE($A39,"TOTAL","",1)),Dashboard!$A$44:$A$100),$B$3:$B$8,$B39)) -> 0 | BI39: =SUM(SUMIFS(BI$3:BI$8,$A$3:$A$8,IF(Dashboard!$B$44:$B$100=TRIM(SUBSTITUTE($A39,"TOTAL","",1)),Dashboard!$A$44:$A$100),$B$3:$B$8,$B39)) -> 0 | BJ39: 0 | BL39: =SUM(SUMIFS(BL$3:BL$8,$A$3:$A$8,IF(Dashboard!$B$44:$B$100=TRIM(SUBSTITUTE($A39,"TOTAL","",1)),Dashboard!$A$44:$A$100),$B$3:$B$8,$B39)) -> 0
A40: P2 TOTAL | B40: Phoenix | C40: =SUM(SUMIFS(C$3:C$8,$A$3:$A$8,IF(Dashboard!$B$44:$B$100=TRIM(SUBSTITUTE($A40,"TOTAL","",1)),Dashboard!$A$44:$A$100),$B$3:$B$8,$B40)) -> 0 | D40: =SUM(SUMIFS(D$3:D$8,$A$3:$A$8,IF(Dashboard!$B$44:$B$100=TRIM(SUBSTITUTE($A40,"TOTAL","",1)),Dashboard!$A$44:$A$100),$B$3:$B$8,$B40)) -> 0 | E40: =SUM(SUMIFS(E$3:E$8,$A$3:$A$8,IF(Dashboard!$B$44:$B$100=TRIM(SUBSTITUTE($A40,"TOTAL","",1)),Dashboard!$A$44:$A$100),$B$3:$B$8,$B40)) -> 0 | F40: 0 | G40: =SUM(SUMIFS(G$3:G$8,$A$3:$A$8,IF(Dashboard!$B$44:$B$100=TRIM(SUBSTITUTE($A40,"TOTAL","",1)),Dashboard!$A$44:$A$100),$B$3:$B$8,$B40)) -> 0 | H40: 0 | I40: =SUM(SUMIFS(I$3:I$8,$A$3:$A$8,IF(Dashboard!$B$44:$B$100=TRIM(SUBSTITUTE($A40,"TOTAL","",1)),Dashboard!$A$44:$A$100),$B$3:$B$8,$B40)) -> 0 | J40: =SUM(SUMIFS(J$3:J$8,$A$3:$A$8,IF(Dashboard!$B$44:$B$100=TRIM(SUBSTITUTE($A40,"TOTAL","",1)),Dashboard!$A$44:$A$100),$B$3:$B$8,$B40)) -> 0 | K40: =SUM(SUMIFS(K$3:K$8,$A$3:$A$8,IF(Dashboard!$B$44:$B$100=TRIM(SUBSTITUTE($A40,"TOTAL","",1)),Dashboard!$A$44:$A$100),$B$3:$B$8,$B40)) -> 0 | L40: =SUM(SUMIFS(L$3:L$8,$A$3:$A$8,IF(Dashboard!$B$44:$B$100=TRIM(SUBSTITUTE($A40,"TOTAL","",1)),Dashboard!$A$44:$A$100),$B$3:$B$8,$B40)) -> 0 | M40: =SUM(SUMIFS(M$3:M$8,$A$3:$A$8,IF(Dashboard!$B$44:$B$100=TRIM(SUBSTITUTE($A40,"TOTAL","",1)),Dashboard!$A$44:$A$100),$B$3:$B$8,$B40)) -> 0 | N40: =SUM(SUMIFS(N$3:N$8,$A$3:$A$8,IF(Dashboard!$B$44:$B$100=TRIM(SUBSTITUTE($A40,"TOTAL","",1)),Dashboard!$A$44:$A$100),$B$3:$B$8,$B40)) -> 0 | O40: =SUM(SUMIFS(O$3:O$8,$A$3:$A$8,IF(Dashboard!$B$44:$B$100=TRIM(SUBSTITUTE($A40,"TOTAL","",1)),Dashboard!$A$44:$A$100),$B$3:$B$8,$B40)) -> 0 | P40: =SUM(SUMIFS(P$3:P$8,$A$3:$A$8,IF(Dashboard!$B$44:$B$100=TRIM(SUBSTITUTE($A40,"TOTAL","",1)),Dashboard!$A$44:$A$100),$B$3:$B$8,$B40)) -> 0 | Q40: 0 | R40: 0 | S40: 0 | T40: 0 | V40: =SUM(SUMIFS(V$3:V$8,$A$3:$A$8,IF(Dashboard!$B$44:$B$100=TRIM(SUBSTITUTE($A40,"TOTAL","",1)),Dashboard!$A$44:$A$100),$B$3:$B$8,$B40)) -> 0 | W40: =SUM(SUMIFS(W$3:W$8,$A$3:$A$8,IF(Dashboard!$B$44:$B$100=TRIM(SUBSTITUTE($A40,"TOTAL","",1)),Dashboard!$A$44:$A$100),$B$3:$B$8,$B40)) -> 0 | X40: =SUM(SUMIFS(X$3:X$8,$A$3:$A$8,IF(Dashboard!$B$44:$B$100=TRIM(SUBSTITUTE($A40,"TOTAL","",1)),Dashboard!$A$44:$A$100),$B$3:$B$8,$B40)) -> 0 | Y40: 0 | Z40: =SUM(SUMIFS(Z$3:Z$8,$A$3:$A$8,IF(Dashboard!$B$44:$B$100=TRIM(SUBSTITUTE($A40,"TOTAL","",1)),Dashboard!$A$44:$A$100),$B$3:$B$8,$B40)) -> 0 | AA40: 0 | AB40: =SUM(SUMIFS(AB$3:AB$8,$A$3:$A$8,IF(Dashboard!$B$44:$B$100=TRIM(SUBSTITUTE($A40,"TOTAL","",1)),Dashboard!$A$44:$A$100),$B$3:$B$8,$B40)) -> 0 | AC40: =SUM(SUMIFS(AC$3:AC$8,$A$3:$A$8,IF(Dashboard!$B$44:$B$100=TRIM(SUBSTITUTE($A40,"TOTAL","",1)),Dashboard!$A$44:$A$100),$B$3:$B$8,$B40)) -> 0 | AD40: =SUM(SUMIFS(AD$3:AD$8,$A$3:$A$8,IF(Dashboard!$B$44:$B$100=TRIM(SUBSTITUTE($A40,"TOTAL","",1)),Dashboard!$A$44:$A$100),$B$3:$B$8,$B40)) -> 0 | AE40: =SUM(SUMIFS(AE$3:AE$8,$A$3:$A$8,IF(Dashboard!$B$44:$B$100=TRIM(SUBSTITUTE($A40,"TOTAL","",1)),Dashboard!$A$44:$A$100),$B$3:$B$8,$B40)) -> 0 | AF40: =SUM(SUMIFS(AF$3:AF$8,$A$3:$A$8,IF(Dashboard!$B$44:$B$100=TRIM(SUBSTITUTE($A40,"TOTAL","",1)),Dashboard!$A$44:$A$100),$B$3:$B$8,$B40)) -> 0 | AG40: =SUM(SUMIFS(AG$3:AG$8,$A$3:$A$8,IF(Dashboard!$B$44:$B$100=TRIM(SUBSTITUTE($A40,"TOTAL","",1)),Dashboard!$A$44:$A$100),$B$3:$B$8,$B40)) -> 0 | AH40: =SUM(SUMIFS(AH$3:AH$8,$A$3:$A$8,IF(Dashboard!$B$44:$B$100=TRIM(SUBSTITUTE($A40,"TOTAL","",1)),Dashboard!$A$44:$A$100),$B$3:$B$8,$B40)) -> 0 | AI40: =SUM(SUMIFS(AI$3:AI$8,$A$3:$A$8,IF(Dashboard!$B$44:$B$100=TRIM(SUBSTITUTE($A40,"TOTAL","",1)),Dashboard!$A$44:$A$100),$B$3:$B$8,$B40)) -> 0 | AJ40: 0 | AK40: 0 | AM40: =SUM(SUMIFS(AM$3:AM$8,$A$3:$A$8,IF(Dashboard!$B$44:$B$100=TRIM(SUBSTITUTE($A40,"TOTAL","",1)),Dashboard!$A$44:$A$100),$B$3:$B$8,$B40)) -> 0 | AN40: =SUM(SUMIFS(AN$3:AN$8,$A$3:$A$8,IF(Dashboard!$B$44:$B$100=TRIM(SUBSTITUTE($A40,"TOTAL","",1)),Dashboard!$A$44:$A$100),$B$3:$B$8,$B40)) -> 0 | AO40: =SUM(SUMIFS(AO$3:AO$8,$A$3:$A$8,IF(Dashboard!$B$44:$B$100=TRIM(SUBSTITUTE($A40,"TOTAL","",1)),Dashboard!$A$44:$A$100),$B$3:$B$8,$B40)) -> 0 | AP40: =SUM(SUMIFS(AP$3:AP$8,$A$3:$A$8,IF(Dashboard!$B$44:$B$100=TRIM(SUBSTITUTE($A40,"TOTAL","",1)),Dashboard!$A$44:$A$100),$B$3:$B$8,$B40)) -> 0 | AQ40: =SUM(SUMIFS(AQ$3:AQ$8,$A$3:$A$8,IF(Dashboard!$B$44:$B$100=TRIM(SUBSTITUTE($A40,"TOTAL","",1)),Dashboard!$A$44:$A$100),$B$3:$B$8,$B40)) -> 0 | AR40: =SUM(SUMIFS(AR$3:AR$8,$A$3:$A$8,IF(Dashboard!$B$44:$B$100=TRIM(SUBSTITUTE($A40,"TOTAL","",1)),Dashboard!$A$44:$A$100),$B$3:$B$8,$B40)) -> 0 | AT40: =SUM(SUMIFS(AT$3:AT$8,$A$3:$A$8,IF(Dashboard!$B$44:$B$100=TRIM(SUBSTITUTE($A40,"TOTAL","",1)),Dashboard!$A$44:$A$100),$B$3:$B$8,$B40)) -> 0 | AV40: =SUM(SUMIFS(AV$3:AV$8,$A$3:$A$8,IF(Dashboard!$B$44:$B$100=TRIM(SUBSTITUTE($A40,"TOTAL","",1)),Dashboard!$A$44:$A$100),$B$3:$B$8,$B40)) -> 0 | AW40: =SUM(SUMIFS(AW$3:AW$8,$A$3:$A$8,IF(Dashboard!$B$44:$B$100=TRIM(SUBSTITUTE($A40,"TOTAL","",1)),Dashboard!$A$44:$A$100),$B$3:$B$8,$B40)) -> 0 | AX40: =SUM(SUMIFS(AX$3:AX$8,$A$3:$A$8,IF(Dashboard!$B$44:$B$100=TRIM(SUBSTITUTE($A40,"TOTAL","",1)),Dashboard!$A$44:$A$100),$B$3:$B$8,$B40)) -> 0 | AY40: 0 | BA40: 0 | BB40: 0 | BD40: =SUM(SUMIFS(BD$3:BD$8,$A$3:$A$8,IF(Dashboard!$B$44:$B$100=TRIM(SUBSTITUTE($A40,"TOTAL","",1)),Dashboard!$A$44:$A$100),$B$3:$B$8,$B40)) -> 0 | BE40: =SUM(SUMIFS(BE$3:BE$8,$A$3:$A$8,IF(Dashboard!$B$44:$B$100=TRIM(SUBSTITUTE($A40,"TOTAL","",1)),Dashboard!$A$44:$A$100),$B$3:$B$8,$B40)) -> 0 | BF40: 0 | BH40: =SUM(SUMIFS(BH$3:BH$8,$A$3:$A$8,IF(Dashboard!$B$44:$B$100=TRIM(SUBSTITUTE($A40,"TOTAL","",1)),Dashboard!$A$44:$A$100),$B$3:$B$8,$B40)) -> 0 | BI40: =SUM(SUMIFS(BI$3:BI$8,$A$3:$A$8,IF(Dashboard!$B$44:$B$100=TRIM(SUBSTITUTE($A40,"TOTAL","",1)),Dashboard!$A$44:$A$100),$B$3:$B$8,$B40)) -> 0 | BJ40: 0 | BL40: =SUM(SUMIFS(BL$3:BL$8,$A$3:$A$8,IF(Dashboard!$B$44:$B$100=TRIM(SUBSTITUTE($A40,"TOTAL","",1)),Dashboard!$A$44:$A$100),$B$3:$B$8,$B40)) -> 0
A41: P2 TOTAL | B41: Louisville | C41: =SUM(SUMIFS(C$3:C$8,$A$3:$A$8,IF(Dashboard!$B$44:$B$100=TRIM(SUBSTITUTE($A41,"TOTAL","",1)),Dashboard!$A$44:$A$100),$B$3:$B$8,$B41)) -> 0 | D41: =SUM(SUMIFS(D$3:D$8,$A$3:$A$8,IF(Dashboard!$B$44:$B$100=TRIM(SUBSTITUTE($A41,"TOTAL","",1)),Dashboard!$A$44:$A$100),$B$3:$B$8,$B41)) -> 0 | E41: =SUM(SUMIFS(E$3:E$8,$A$3:$A$8,IF(Dashboard!$B$44:$B$100=TRIM(SUBSTITUTE($A41,"TOTAL","",1)),Dashboard!$A$44:$A$100),$B$3:$B$8,$B41)) -> 0 | F41: 0 | G41: =SUM(SUMIFS(G$3:G$8,$A$3:$A$8,IF(Dashboard!$B$44:$B$100=TRIM(SUBSTITUTE($A41,"TOTAL","",1)),Dashboard!$A$44:$A$100),$B$3:$B$8,$B41)) -> 0 | H41: 0 | I41: =SUM(SUMIFS(I$3:I$8,$A$3:$A$8,IF(Dashboard!$B$44:$B$100=TRIM(SUBSTITUTE($A41,"TOTAL","",1)),Dashboard!$A$44:$A$100),$B$3:$B$8,$B41)) -> 0 | J41: =SUM(SUMIFS(J$3:J$8,$A$3:$A$8,IF(Dashboard!$B$44:$B$100=TRIM(SUBSTITUTE($A41,"TOTAL","",1)),Dashboard!$A$44:$A$100),$B$3:$B$8,$B41)) -> 0 | K41: =SUM(SUMIFS(K$3:K$8,$A$3:$A$8,IF(Dashboard!$B$44:$B$100=TRIM(SUBSTITUTE($A41,"TOTAL","",1)),Dashboard!$A$44:$A$100),$B$3:$B$8,$B41)) -> 0 | L41: =SUM(SUMIFS(L$3:L$8,$A$3:$A$8,IF(Dashboard!$B$44:$B$100=TRIM(SUBSTITUTE($A41,"TOTAL","",1)),Dashboard!$A$44:$A$100),$B$3:$B$8,$B41)) -> 0 | M41: =SUM(SUMIFS(M$3:M$8,$A$3:$A$8,IF(Dashboard!$B$44:$B$100=TRIM(SUBSTITUTE($A41,"TOTAL","",1)),Dashboard!$A$44:$A$100),$B$3:$B$8,$B41)) -> 0 | N41: =SUM(SUMIFS(N$3:N$8,$A$3:$A$8,IF(Dashboard!$B$44:$B$100=TRIM(SUBSTITUTE($A41,"TOTAL","",1)),Dashboard!$A$44:$A$100),$B$3:$B$8,$B41)) -> 0 | O41: =SUM(SUMIFS(O$3:O$8,$A$3:$A$8,IF(Dashboard!$B$44:$B$100=TRIM(SUBSTITUTE($A41,"TOTAL","",1)),Dashboard!$A$44:$A$100),$B$3:$B$8,$B41)) -> 0 | P41: =SUM(SUMIFS(P$3:P$8,$A$3:$A$8,IF(Dashboard!$B$44:$B$100=TRIM(SUBSTITUTE($A41,"TOTAL","",1)),Dashboard!$A$44:$A$100),$B$3:$B$8,$B41)) -> 0 | Q41: 0 | R41: 0 | S41: 0 | T41: 0 | V41: =SUM(SUMIFS(V$3:V$8,$A$3:$A$8,IF(Dashboard!$B$44:$B$100=TRIM(SUBSTITUTE($A41,"TOTAL","",1)),Dashboard!$A$44:$A$100),$B$3:$B$8,$B41)) -> 0 | W41: =SUM(SUMIFS(W$3:W$8,$A$3:$A$8,IF(Dashboard!$B$44:$B$100=TRIM(SUBSTITUTE($A41,"TOTAL","",1)),Dashboard!$A$44:$A$100),$B$3:$B$8,$B41)) -> 0 | X41: =SUM(SUMIFS(X$3:X$8,$A$3:$A$8,IF(Dashboard!$B$44:$B$100=TRIM(SUBSTITUTE($A41,"TOTAL","",1)),Dashboard!$A$44:$A$100),$B$3:$B$8,$B41)) -> 0 | Y41: 0 | Z41: =SUM(SUMIFS(Z$3:Z$8,$A$3:$A$8,IF(Dashboard!$B$44:$B$100=TRIM(SUBSTITUTE($A41,"TOTAL","",1)),Dashboard!$A$44:$A$100),$B$3:$B$8,$B41)) -> 0 | AA41: 0 | AB41: =SUM(SUMIFS(AB$3:AB$8,$A$3:$A$8,IF(Dashboard!$B$44:$B$100=TRIM(SUBSTITUTE($A41,"TOTAL","",1)),Dashboard!$A$44:$A$100),$B$3:$B$8,$B41)) -> 0 | AC41: =SUM(SUMIFS(AC$3:AC$8,$A$3:$A$8,IF(Dashboard!$B$44:$B$100=TRIM(SUBSTITUTE($A41,"TOTAL","",1)),Dashboard!$A$44:$A$100),$B$3:$B$8,$B41)) -> 0 | AD41: =SUM(SUMIFS(AD$3:AD$8,$A$3:$A$8,IF(Dashboard!$B$44:$B$100=TRIM(SUBSTITUTE($A41,"TOTAL","",1)),Dashboard!$A$44:$A$100),$B$3:$B$8,$B41)) -> 0 | AE41: =SUM(SUMIFS(AE$3:AE$8,$A$3:$A$8,IF(Dashboard!$B$44:$B$100=TRIM(SUBSTITUTE($A41,"TOTAL","",1)),Dashboard!$A$44:$A$100),$B$3:$B$8,$B41)) -> 0 | AF41: =SUM(SUMIFS(AF$3:AF$8,$A$3:$A$8,IF(Dashboard!$B$44:$B$100=TRIM(SUBSTITUTE($A41,"TOTAL","",1)),Dashboard!$A$44:$A$100),$B$3:$B$8,$B41)) -> 0 | AG41: =SUM(SUMIFS(AG$3:AG$8,$A$3:$A$8,IF(Dashboard!$B$44:$B$100=TRIM(SUBSTITUTE($A41,"TOTAL","",1)),Dashboard!$A$44:$A$100),$B$3:$B$8,$B41)) -> 0 | AH41: =SUM(SUMIFS(AH$3:AH$8,$A$3:$A$8,IF(Dashboard!$B$44:$B$100=TRIM(SUBSTITUTE($A41,"TOTAL","",1)),Dashboard!$A$44:$A$100),$B$3:$B$8,$B41)) -> 0 | AI41: =SUM(SUMIFS(AI$3:AI$8,$A$3:$A$8,IF(Dashboard!$B$44:$B$100=TRIM(SUBSTITUTE($A41,"TOTAL","",1)),Dashboard!$A$44:$A$100),$B$3:$B$8,$B41)) -> 0 | AJ41: 0 | AK41: 0 | AM41: =SUM(SUMIFS(AM$3:AM$8,$A$3:$A$8,IF(Dashboard!$B$44:$B$100=TRIM(SUBSTITUTE($A41,"TOTAL","",1)),Dashboard!$A$44:$A$100),$B$3:$B$8,$B41)) -> 0 | AN41: =SUM(SUMIFS(AN$3:AN$8,$A$3:$A$8,IF(Dashboard!$B$44:$B$100=TRIM(SUBSTITUTE($A41,"TOTAL","",1)),Dashboard!$A$44:$A$100),$B$3:$B$8,$B41)) -> 0 | AO41: =SUM(SUMIFS(AO$3:AO$8,$A$3:$A$8,IF(Dashboard!$B$44:$B$100=TRIM(SUBSTITUTE($A41,"TOTAL","",1)),Dashboard!$A$44:$A$100),$B$3:$B$8,$B41)) -> 0 | AP41: =SUM(SUMIFS(AP$3:AP$8,$A$3:$A$8,IF(Dashboard!$B$44:$B$100=TRIM(SUBSTITUTE($A41,"TOTAL","",1)),Dashboard!$A$44:$A$100),$B$3:$B$8,$B41)) -> 0 | AQ41: =SUM(SUMIFS(AQ$3:AQ$8,$A$3:$A$8,IF(Dashboard!$B$44:$B$100=TRIM(SUBSTITUTE($A41,"TOTAL","",1)),Dashboard!$A$44:$A$100),$B$3:$B$8,$B41)) -> 0 | AR41: =SUM(SUMIFS(AR$3:AR$8,$A$3:$A$8,IF(Dashboard!$B$44:$B$100=TRIM(SUBSTITUTE($A41,"TOTAL","",1)),Dashboard!$A$44:$A$100),$B$3:$B$8,$B41)) -> 0 | AT41: =SUM(SUMIFS(AT$3:AT$8,$A$3:$A$8,IF(Dashboard!$B$44:$B$100=TRIM(SUBSTITUTE($A41,"TOTAL","",1)),Dashboard!$A$44:$A$100),$B$3:$B$8,$B41)) -> 0 | AV41: =SUM(SUMIFS(AV$3:AV$8,$A$3:$A$8,IF(Dashboard!$B$44:$B$100=TRIM(SUBSTITUTE($A41,"TOTAL","",1)),Dashboard!$A$44:$A$100),$B$3:$B$8,$B41)) -> 0 | AW41: =SUM(SUMIFS(AW$3:AW$8,$A$3:$A$8,IF(Dashboard!$B$44:$B$100=TRIM(SUBSTITUTE($A41,"TOTAL","",1)),Dashboard!$A$44:$A$100),$B$3:$B$8,$B41)) -> 0 | AX41: =SUM(SUMIFS(AX$3:AX$8,$A$3:$A$8,IF(Dashboard!$B$44:$B$100=TRIM(SUBSTITUTE($A41,"TOTAL","",1)),Dashboard!$A$44:$A$100),$B$3:$B$8,$B41)) -> 0 | AY41: 0 | BA41: 0 | BB41: 0 | BD41: =SUM(SUMIFS(BD$3:BD$8,$A$3:$A$8,IF(Dashboard!$B$44:$B$100=TRIM(SUBSTITUTE($A41,"TOTAL","",1)),Dashboard!$A$44:$A$100),$B$3:$B$8,$B41)) -> 0 | BE41: =SUM(SUMIFS(BE$3:BE$8,$A$3:$A$8,IF(Dashboard!$B$44:$B$100=TRIM(SUBSTITUTE($A41,"TOTAL","",1)),Dashboard!$A$44:$A$100),$B$3:$B$8,$B41)) -> 0 | BF41: 0 | BH41: =SUM(SUMIFS(BH$3:BH$8,$A$3:$A$8,IF(Dashboard!$B$44:$B$100=TRIM(SUBSTITUTE($A41,"TOTAL","",1)),Dashboard!$A$44:$A$100),$B$3:$B$8,$B41)) -> 0 | BI41: =SUM(SUMIFS(BI$3:BI$8,$A$3:$A$8,IF(Dashboard!$B$44:$B$100=TRIM(SUBSTITUTE($A41,"TOTAL","",1)),Dashboard!$A$44:$A$100),$B$3:$B$8,$B41)) -> 0 | BJ41: 0 | BL41: =SUM(SUMIFS(BL$3:BL$8,$A$3:$A$8,IF(Dashboard!$B$44:$B$100=TRIM(SUBSTITUTE($A41,"TOTAL","",1)),Dashboard!$A$44:$A$100),$B$3:$B$8,$B41)) -> 0
A42: P2 TOTAL | B42: Miami | C42: =SUM(SUMIFS(C$3:C$8,$A$3:$A$8,IF(Dashboard!$B$44:$B$100=TRIM(SUBSTITUTE($A42,"TOTAL","",1)),Dashboard!$A$44:$A$100),$B$3:$B$8,$B42)) -> 0 | D42: =SUM(SUMIFS(D$3:D$8,$A$3:$A$8,IF(Dashboard!$B$44:$B$100=TRIM(SUBSTITUTE($A42,"TOTAL","",1)),Dashboard!$A$44:$A$100),$B$3:$B$8,$B42)) -> 0 | E42: =SUM(SUMIFS(E$3:E$8,$A$3:$A$8,IF(Dashboard!$B$44:$B$100=TRIM(SUBSTITUTE($A42,"TOTAL","",1)),Dashboard!$A$44:$A$100),$B$3:$B$8,$B42)) -> 0 | F42: 0 | G42: =SUM(SUMIFS(G$3:G$8,$A$3:$A$8,IF(Dashboard!$B$44:$B$100=TRIM(SUBSTITUTE($A42,"TOTAL","",1)),Dashboard!$A$44:$A$100),$B$3:$B$8,$B42)) -> 0 | H42: 0 | I42: =SUM(SUMIFS(I$3:I$8,$A$3:$A$8,IF(Dashboard!$B$44:$B$100=TRIM(SUBSTITUTE($A42,"TOTAL","",1)),Dashboard!$A$44:$A$100),$B$3:$B$8,$B42)) -> 0 | J42: =SUM(SUMIFS(J$3:J$8,$A$3:$A$8,IF(Dashboard!$B$44:$B$100=TRIM(SUBSTITUTE($A42,"TOTAL","",1)),Dashboard!$A$44:$A$100),$B$3:$B$8,$B42)) -> 0 | K42: =SUM(SUMIFS(K$3:K$8,$A$3:$A$8,IF(Dashboard!$B$44:$B$100=TRIM(SUBSTITUTE($A42,"TOTAL","",1)),Dashboard!$A$44:$A$100),$B$3:$B$8,$B42)) -> 0 | L42: =SUM(SUMIFS(L$3:L$8,$A$3:$A$8,IF(Dashboard!$B$44:$B$100=TRIM(SUBSTITUTE($A42,"TOTAL","",1)),Dashboard!$A$44:$A$100),$B$3:$B$8,$B42)) -> 0 | M42: =SUM(SUMIFS(M$3:M$8,$A$3:$A$8,IF(Dashboard!$B$44:$B$100=TRIM(SUBSTITUTE($A42,"TOTAL","",1)),Dashboard!$A$44:$A$100),$B$3:$B$8,$B42)) -> 0 | N42: =SUM(SUMIFS(N$3:N$8,$A$3:$A$8,IF(Dashboard!$B$44:$B$100=TRIM(SUBSTITUTE($A42,"TOTAL","",1)),Dashboard!$A$44:$A$100),$B$3:$B$8,$B42)) -> 0 | O42: =SUM(SUMIFS(O$3:O$8,$A$3:$A$8,IF(Dashboard!$B$44:$B$100=TRIM(SUBSTITUTE($A42,"TOTAL","",1)),Dashboard!$A$44:$A$100),$B$3:$B$8,$B42)) -> 0 | P42: =SUM(SUMIFS(P$3:P$8,$A$3:$A$8,IF(Dashboard!$B$44:$B$100=TRIM(SUBSTITUTE($A42,"TOTAL","",1)),Dashboard!$A$44:$A$100),$B$3:$B$8,$B42)) -> 0 | Q42: 0 | R42: 0 | S42: 0 | T42: 0 | V42: =SUM(SUMIFS(V$3:V$8,$A$3:$A$8,IF(Dashboard!$B$44:$B$100=TRIM(SUBSTITUTE($A42,"TOTAL","",1)),Dashboard!$A$44:$A$100),$B$3:$B$8,$B42)) -> 0 | W42: =SUM(SUMIFS(W$3:W$8,$A$3:$A$8,IF(Dashboard!$B$44:$B$100=TRIM(SUBSTITUTE($A42,"TOTAL","",1)),Dashboard!$A$44:$A$100),$B$3:$B$8,$B42)) -> 0 | X42: =SUM(SUMIFS(X$3:X$8,$A$3:$A$8,IF(Dashboard!$B$44:$B$100=TRIM(SUBSTITUTE($A42,"TOTAL","",1)),Dashboard!$A$44:$A$100),$B$3:$B$8,$B42)) -> 0 | Y42: 0 | Z42: =SUM(SUMIFS(Z$3:Z$8,$A$3:$A$8,IF(Dashboard!$B$44:$B$100=TRIM(SUBSTITUTE($A42,"TOTAL","",1)),Dashboard!$A$44:$A$100),$B$3:$B$8,$B42)) -> 0 | AA42: 0 | AB42: =SUM(SUMIFS(AB$3:AB$8,$A$3:$A$8,IF(Dashboard!$B$44:$B$100=TRIM(SUBSTITUTE($A42,"TOTAL","",1)),Dashboard!$A$44:$A$100),$B$3:$B$8,$B42)) -> 0 | AC42: =SUM(SUMIFS(AC$3:AC$8,$A$3:$A$8,IF(Dashboard!$B$44:$B$100=TRIM(SUBSTITUTE($A42,"TOTAL","",1)),Dashboard!$A$44:$A$100),$B$3:$B$8,$B42)) -> 0 | AD42: =SUM(SUMIFS(AD$3:AD$8,$A$3:$A$8,IF(Dashboard!$B$44:$B$100=TRIM(SUBSTITUTE($A42,"TOTAL","",1)),Dashboard!$A$44:$A$100),$B$3:$B$8,$B42)) -> 0 | AE42: =SUM(SUMIFS(AE$3:AE$8,$A$3:$A$8,IF(Dashboard!$B$44:$B$100=TRIM(SUBSTITUTE($A42,"TOTAL","",1)),Dashboard!$A$44:$A$100),$B$3:$B$8,$B42)) -> 0 | AF42: =SUM(SUMIFS(AF$3:AF$8,$A$3:$A$8,IF(Dashboard!$B$44:$B$100=TRIM(SUBSTITUTE($A42,"TOTAL","",1)),Dashboard!$A$44:$A$100),$B$3:$B$8,$B42)) -> 0 | AG42: =SUM(SUMIFS(AG$3:AG$8,$A$3:$A$8,IF(Dashboard!$B$44:$B$100=TRIM(SUBSTITUTE($A42,"TOTAL","",1)),Dashboard!$A$44:$A$100),$B$3:$B$8,$B42)) -> 0 | AH42: =SUM(SUMIFS(AH$3:AH$8,$A$3:$A$8,IF(Dashboard!$B$44:$B$100=TRIM(SUBSTITUTE($A42,"TOTAL","",1)),Dashboard!$A$44:$A$100),$B$3:$B$8,$B42)) -> 0 | AI42: =SUM(SUMIFS(AI$3:AI$8,$A$3:$A$8,IF(Dashboard!$B$44:$B$100=TRIM(SUBSTITUTE($A42,"TOTAL","",1)),Dashboard!$A$44:$A$100),$B$3:$B$8,$B42)) -> 0 | AJ42: 0 | AK42: 0 | AM42: =SUM(SUMIFS(AM$3:AM$8,$A$3:$A$8,IF(Dashboard!$B$44:$B$100=TRIM(SUBSTITUTE($A42,"TOTAL","",1)),Dashboard!$A$44:$A$100),$B$3:$B$8,$B42)) -> 0 | AN42: =SUM(SUMIFS(AN$3:AN$8,$A$3:$A$8,IF(Dashboard!$B$44:$B$100=TRIM(SUBSTITUTE($A42,"TOTAL","",1)),Dashboard!$A$44:$A$100),$B$3:$B$8,$B42)) -> 0 | AO42: =SUM(SUMIFS(AO$3:AO$8,$A$3:$A$8,IF(Dashboard!$B$44:$B$100=TRIM(SUBSTITUTE($A42,"TOTAL","",1)),Dashboard!$A$44:$A$100),$B$3:$B$8,$B42)) -> 0 | AP42: =SUM(SUMIFS(AP$3:AP$8,$A$3:$A$8,IF(Dashboard!$B$44:$B$100=TRIM(SUBSTITUTE($A42,"TOTAL","",1)),Dashboard!$A$44:$A$100),$B$3:$B$8,$B42)) -> 0 | AQ42: =SUM(SUMIFS(AQ$3:AQ$8,$A$3:$A$8,IF(Dashboard!$B$44:$B$100=TRIM(SUBSTITUTE($A42,"TOTAL","",1)),Dashboard!$A$44:$A$100),$B$3:$B$8,$B42)) -> 0 | AR42: =SUM(SUMIFS(AR$3:AR$8,$A$3:$A$8,IF(Dashboard!$B$44:$B$100=TRIM(SUBSTITUTE($A42,"TOTAL","",1)),Dashboard!$A$44:$A$100),$B$3:$B$8,$B42)) -> 0 | AT42: =SUM(SUMIFS(AT$3:AT$8,$A$3:$A$8,IF(Dashboard!$B$44:$B$100=TRIM(SUBSTITUTE($A42,"TOTAL","",1)),Dashboard!$A$44:$A$100),$B$3:$B$8,$B42)) -> 0 | AV42: =SUM(SUMIFS(AV$3:AV$8,$A$3:$A$8,IF(Dashboard!$B$44:$B$100=TRIM(SUBSTITUTE($A42,"TOTAL","",1)),Dashboard!$A$44:$A$100),$B$3:$B$8,$B42)) -> 0 | AW42: =SUM(SUMIFS(AW$3:AW$8,$A$3:$A$8,IF(Dashboard!$B$44:$B$100=TRIM(SUBSTITUTE($A42,"TOTAL","",1)),Dashboard!$A$44:$A$100),$B$3:$B$8,$B42)) -> 0 | AX42: =SUM(SUMIFS(AX$3:AX$8,$A$3:$A$8,IF(Dashboard!$B$44:$B$100=TRIM(SUBSTITUTE($A42,"TOTAL","",1)),Dashboard!$A$44:$A$100),$B$3:$B$8,$B42)) -> 0 | AY42: 0 | BA42: 0 | BB42: 0 | BD42: =SUM(SUMIFS(BD$3:BD$8,$A$3:$A$8,IF(Dashboard!$B$44:$B$100=TRIM(SUBSTITUTE($A42,"TOTAL","",1)),Dashboard!$A$44:$A$100),$B$3:$B$8,$B42)) -> 0 | BE42: =SUM(SUMIFS(BE$3:BE$8,$A$3:$A$8,IF(Dashboard!$B$44:$B$100=TRIM(SUBSTITUTE($A42,"TOTAL","",1)),Dashboard!$A$44:$A$100),$B$3:$B$8,$B42)) -> 0 | BF42: 0 | BH42: =SUM(SUMIFS(BH$3:BH$8,$A$3:$A$8,IF(Dashboard!$B$44:$B$100=TRIM(SUBSTITUTE($A42,"TOTAL","",1)),Dashboard!$A$44:$A$100),$B$3:$B$8,$B42)) -> 0 | BI42: =SUM(SUMIFS(BI$3:BI$8,$A$3:$A$8,IF(Dashboard!$B$44:$B$100=TRIM(SUBSTITUTE($A42,"TOTAL","",1)),Dashboard!$A$44:$A$100),$B$3:$B$8,$B42)) -> 0 | BJ42: 0 | BL42: =SUM(SUMIFS(BL$3:BL$8,$A$3:$A$8,IF(Dashboard!$B$44:$B$100=TRIM(SUBSTITUTE($A42,"TOTAL","",1)),Dashboard!$A$44:$A$100),$B$3:$B$8,$B42)) -> 0
A43: P2 TOTAL | B43: Minneapolis | C43: =SUM(SUMIFS(C$3:C$8,$A$3:$A$8,IF(Dashboard!$B$44:$B$100=TRIM(SUBSTITUTE($A43,"TOTAL","",1)),Dashboard!$A$44:$A$100),$B$3:$B$8,$B43)) -> 0 | D43: =SUM(SUMIFS(D$3:D$8,$A$3:$A$8,IF(Dashboard!$B$44:$B$100=TRIM(SUBSTITUTE($A43,"TOTAL","",1)),Dashboard!$A$44:$A$100),$B$3:$B$8,$B43)) -> 0 | E43: =SUM(SUMIFS(E$3:E$8,$A$3:$A$8,IF(Dashboard!$B$44:$B$100=TRIM(SUBSTITUTE($A43,"TOTAL","",1)),Dashboard!$A$44:$A$100),$B$3:$B$8,$B43)) -> 0 | F43: 0 | G43: =SUM(SUMIFS(G$3:G$8,$A$3:$A$8,IF(Dashboard!$B$44:$B$100=TRIM(SUBSTITUTE($A43,"TOTAL","",1)),Dashboard!$A$44:$A$100),$B$3:$B$8,$B43)) -> 0 | H43: 0 | I43: =SUM(SUMIFS(I$3:I$8,$A$3:$A$8,IF(Dashboard!$B$44:$B$100=TRIM(SUBSTITUTE($A43,"TOTAL","",1)),Dashboard!$A$44:$A$100),$B$3:$B$8,$B43)) -> 0 | J43: =SUM(SUMIFS(J$3:J$8,$A$3:$A$8,IF(Dashboard!$B$44:$B$100=TRIM(SUBSTITUTE($A43,"TOTAL","",1)),Dashboard!$A$44:$A$100),$B$3:$B$8,$B43)) -> 0 | K43: =SUM(SUMIFS(K$3:K$8,$A$3:$A$8,IF(Dashboard!$B$44:$B$100=TRIM(SUBSTITUTE($A43,"TOTAL","",1)),Dashboard!$A$44:$A$100),$B$3:$B$8,$B43)) -> 0 | L43: =SUM(SUMIFS(L$3:L$8,$A$3:$A$8,IF(Dashboard!$B$44:$B$100=TRIM(SUBSTITUTE($A43,"TOTAL","",1)),Dashboard!$A$44:$A$100),$B$3:$B$8,$B43)) -> 0 | M43: =SUM(SUMIFS(M$3:M$8,$A$3:$A$8,IF(Dashboard!$B$44:$B$100=TRIM(SUBSTITUTE($A43,"TOTAL","",1)),Dashboard!$A$44:$A$100),$B$3:$B$8,$B43)) -> 0 | N43: =SUM(SUMIFS(N$3:N$8,$A$3:$A$8,IF(Dashboard!$B$44:$B$100=TRIM(SUBSTITUTE($A43,"TOTAL","",1)),Dashboard!$A$44:$A$100),$B$3:$B$8,$B43)) -> 0 | O43: =SUM(SUMIFS(O$3:O$8,$A$3:$A$8,IF(Dashboard!$B$44:$B$100=TRIM(SUBSTITUTE($A43,"TOTAL","",1)),Dashboard!$A$44:$A$100),$B$3:$B$8,$B43)) -> 0 | P43: =SUM(SUMIFS(P$3:P$8,$A$3:$A$8,IF(Dashboard!$B$44:$B$100=TRIM(SUBSTITUTE($A43,"TOTAL","",1)),Dashboard!$A$44:$A$100),$B$3:$B$8,$B43)) -> 0 | Q43: 0 | R43: 0 | S43: 0 | T43: 0 | V43: =SUM(SUMIFS(V$3:V$8,$A$3:$A$8,IF(Dashboard!$B$44:$B$100=TRIM(SUBSTITUTE($A43,"TOTAL","",1)),Dashboard!$A$44:$A$100),$B$3:$B$8,$B43)) -> 0 | W43: =SUM(SUMIFS(W$3:W$8,$A$3:$A$8,IF(Dashboard!$B$44:$B$100=TRIM(SUBSTITUTE($A43,"TOTAL","",1)),Dashboard!$A$44:$A$100),$B$3:$B$8,$B43)) -> 0 | X43: =SUM(SUMIFS(X$3:X$8,$A$3:$A$8,IF(Dashboard!$B$44:$B$100=TRIM(SUBSTITUTE($A43,"TOTAL","",1)),Dashboard!$A$44:$A$100),$B$3:$B$8,$B43)) -> 0 | Y43: 0 | Z43: =SUM(SUMIFS(Z$3:Z$8,$A$3:$A$8,IF(Dashboard!$B$44:$B$100=TRIM(SUBSTITUTE($A43,"TOTAL","",1)),Dashboard!$A$44:$A$100),$B$3:$B$8,$B43)) -> 0 | AA43: 0 | AB43: =SUM(SUMIFS(AB$3:AB$8,$A$3:$A$8,IF(Dashboard!$B$44:$B$100=TRIM(SUBSTITUTE($A43,"TOTAL","",1)),Dashboard!$A$44:$A$100),$B$3:$B$8,$B43)) -> 0 | AC43: =SUM(SUMIFS(AC$3:AC$8,$A$3:$A$8,IF(Dashboard!$B$44:$B$100=TRIM(SUBSTITUTE($A43,"TOTAL","",1)),Dashboard!$A$44:$A$100),$B$3:$B$8,$B43)) -> 0 | AD43: =SUM(SUMIFS(AD$3:AD$8,$A$3:$A$8,IF(Dashboard!$B$44:$B$100=TRIM(SUBSTITUTE($A43,"TOTAL","",1)),Dashboard!$A$44:$A$100),$B$3:$B$8,$B43)) -> 0 | AE43: =SUM(SUMIFS(AE$3:AE$8,$A$3:$A$8,IF(Dashboard!$B$44:$B$100=TRIM(SUBSTITUTE($A43,"TOTAL","",1)),Dashboard!$A$44:$A$100),$B$3:$B$8,$B43)) -> 0 | AF43: =SUM(SUMIFS(AF$3:AF$8,$A$3:$A$8,IF(Dashboard!$B$44:$B$100=TRIM(SUBSTITUTE($A43,"TOTAL","",1)),Dashboard!$A$44:$A$100),$B$3:$B$8,$B43)) -> 0 | AG43: =SUM(SUMIFS(AG$3:AG$8,$A$3:$A$8,IF(Dashboard!$B$44:$B$100=TRIM(SUBSTITUTE($A43,"TOTAL","",1)),Dashboard!$A$44:$A$100),$B$3:$B$8,$B43)) -> 0 | AH43: =SUM(SUMIFS(AH$3:AH$8,$A$3:$A$8,IF(Dashboard!$B$44:$B$100=TRIM(SUBSTITUTE($A43,"TOTAL","",1)),Dashboard!$A$44:$A$100),$B$3:$B$8,$B43)) -> 0 | AI43: =SUM(SUMIFS(AI$3:AI$8,$A$3:$A$8,IF(Dashboard!$B$44:$B$100=TRIM(SUBSTITUTE($A43,"TOTAL","",1)),Dashboard!$A$44:$A$100),$B$3:$B$8,$B43)) -> 0 | AJ43: 0 | AK43: 0 | AM43: =SUM(SUMIFS(AM$3:AM$8,$A$3:$A$8,IF(Dashboard!$B$44:$B$100=TRIM(SUBSTITUTE($A43,"TOTAL","",1)),Dashboard!$A$44:$A$100),$B$3:$B$8,$B43)) -> 0 | AN43: =SUM(SUMIFS(AN$3:AN$8,$A$3:$A$8,IF(Dashboard!$B$44:$B$100=TRIM(SUBSTITUTE($A43,"TOTAL","",1)),Dashboard!$A$44:$A$100),$B$3:$B$8,$B43)) -> 0 | AO43: =SUM(SUMIFS(AO$3:AO$8,$A$3:$A$8,IF(Dashboard!$B$44:$B$100=TRIM(SUBSTITUTE($A43,"TOTAL","",1)),Dashboard!$A$44:$A$100),$B$3:$B$8,$B43)) -> 0 | AP43: =SUM(SUMIFS(AP$3:AP$8,$A$3:$A$8,IF(Dashboard!$B$44:$B$100=TRIM(SUBSTITUTE($A43,"TOTAL","",1)),Dashboard!$A$44:$A$100),$B$3:$B$8,$B43)) -> 0 | AQ43: =SUM(SUMIFS(AQ$3:AQ$8,$A$3:$A$8,IF(Dashboard!$B$44:$B$100=TRIM(SUBSTITUTE($A43,"TOTAL","",1)),Dashboard!$A$44:$A$100),$B$3:$B$8,$B43)) -> 0 | AR43: =SUM(SUMIFS(AR$3:AR$8,$A$3:$A$8,IF(Dashboard!$B$44:$B$100=TRIM(SUBSTITUTE($A43,"TOTAL","",1)),Dashboard!$A$44:$A$100),$B$3:$B$8,$B43)) -> 0 | AT43: =SUM(SUMIFS(AT$3:AT$8,$A$3:$A$8,IF(Dashboard!$B$44:$B$100=TRIM(SUBSTITUTE($A43,"TOTAL","",1)),Dashboard!$A$44:$A$100),$B$3:$B$8,$B43)) -> 0 | AV43: =SUM(SUMIFS(AV$3:AV$8,$A$3:$A$8,IF(Dashboard!$B$44:$B$100=TRIM(SUBSTITUTE($A43,"TOTAL","",1)),Dashboard!$A$44:$A$100),$B$3:$B$8,$B43)) -> 0 | AW43: =SUM(SUMIFS(AW$3:AW$8,$A$3:$A$8,IF(Dashboard!$B$44:$B$100=TRIM(SUBSTITUTE($A43,"TOTAL","",1)),Dashboard!$A$44:$A$100),$B$3:$B$8,$B43)) -> 0 | AX43: =SUM(SUMIFS(AX$3:AX$8,$A$3:$A$8,IF(Dashboard!$B$44:$B$100=TRIM(SUBSTITUTE($A43,"TOTAL","",1)),Dashboard!$A$44:$A$100),$B$3:$B$8,$B43)) -> 0 | AY43: 0 | BA43: 0 | BB43: 0 | BD43: =SUM(SUMIFS(BD$3:BD$8,$A$3:$A$8,IF(Dashboard!$B$44:$B$100=TRIM(SUBSTITUTE($A43,"TOTAL","",1)),Dashboard!$A$44:$A$100),$B$3:$B$8,$B43)) -> 0 | BE43: =SUM(SUMIFS(BE$3:BE$8,$A$3:$A$8,IF(Dashboard!$B$44:$B$100=TRIM(SUBSTITUTE($A43,"TOTAL","",1)),Dashboard!$A$44:$A$100),$B$3:$B$8,$B43)) -> 0 | BF43: 0 | BH43: =SUM(SUMIFS(BH$3:BH$8,$A$3:$A$8,IF(Dashboard!$B$44:$B$100=TRIM(SUBSTITUTE($A43,"TOTAL","",1)),Dashboard!$A$44:$A$100),$B$3:$B$8,$B43)) -> 0 | BI43: =SUM(SUMIFS(BI$3:BI$8,$A$3:$A$8,IF(Dashboard!$B$44:$B$100=TRIM(SUBSTITUTE($A43,"TOTAL","",1)),Dashboard!$A$44:$A$100),$B$3:$B$8,$B43)) -> 0 | BJ43: 0 | BL43: =SUM(SUMIFS(BL$3:BL$8,$A$3:$A$8,IF(Dashboard!$B$44:$B$100=TRIM(SUBSTITUTE($A43,"TOTAL","",1)),Dashboard!$A$44:$A$100),$B$3:$B$8,$B43)) -> 0
A44: P2 TOTAL | B44: Montreal | C44: =SUM(SUMIFS(C$3:C$8,$A$3:$A$8,IF(Dashboard!$B$44:$B$100=TRIM(SUBSTITUTE($A44,"TOTAL","",1)),Dashboard!$A$44:$A$100),$B$3:$B$8,$B44)) -> 0 | D44: =SUM(SUMIFS(D$3:D$8,$A$3:$A$8,IF(Dashboard!$B$44:$B$100=TRIM(SUBSTITUTE($A44,"TOTAL","",1)),Dashboard!$A$44:$A$100),$B$3:$B$8,$B44)) -> 0 | E44: =SUM(SUMIFS(E$3:E$8,$A$3:$A$8,IF(Dashboard!$B$44:$B$100=TRIM(SUBSTITUTE($A44,"TOTAL","",1)),Dashboard!$A$44:$A$100),$B$3:$B$8,$B44)) -> 0 | F44: 0 | G44: =SUM(SUMIFS(G$3:G$8,$A$3:$A$8,IF(Dashboard!$B$44:$B$100=TRIM(SUBSTITUTE($A44,"TOTAL","",1)),Dashboard!$A$44:$A$100),$B$3:$B$8,$B44)) -> 0 | H44: 0 | I44: =SUM(SUMIFS(I$3:I$8,$A$3:$A$8,IF(Dashboard!$B$44:$B$100=TRIM(SUBSTITUTE($A44,"TOTAL","",1)),Dashboard!$A$44:$A$100),$B$3:$B$8,$B44)) -> 0 | J44: =SUM(SUMIFS(J$3:J$8,$A$3:$A$8,IF(Dashboard!$B$44:$B$100=TRIM(SUBSTITUTE($A44,"TOTAL","",1)),Dashboard!$A$44:$A$100),$B$3:$B$8,$B44)) -> 0 | K44: =SUM(SUMIFS(K$3:K$8,$A$3:$A$8,IF(Dashboard!$B$44:$B$100=TRIM(SUBSTITUTE($A44,"TOTAL","",1)),Dashboard!$A$44:$A$100),$B$3:$B$8,$B44)) -> 0 | L44: =SUM(SUMIFS(L$3:L$8,$A$3:$A$8,IF(Dashboard!$B$44:$B$100=TRIM(SUBSTITUTE($A44,"TOTAL","",1)),Dashboard!$A$44:$A$100),$B$3:$B$8,$B44)) -> 0 | M44: =SUM(SUMIFS(M$3:M$8,$A$3:$A$8,IF(Dashboard!$B$44:$B$100=TRIM(SUBSTITUTE($A44,"TOTAL","",1)),Dashboard!$A$44:$A$100),$B$3:$B$8,$B44)) -> 0 | N44: =SUM(SUMIFS(N$3:N$8,$A$3:$A$8,IF(Dashboard!$B$44:$B$100=TRIM(SUBSTITUTE($A44,"TOTAL","",1)),Dashboard!$A$44:$A$100),$B$3:$B$8,$B44)) -> 0 | O44: =SUM(SUMIFS(O$3:O$8,$A$3:$A$8,IF(Dashboard!$B$44:$B$100=TRIM(SUBSTITUTE($A44,"TOTAL","",1)),Dashboard!$A$44:$A$100),$B$3:$B$8,$B44)) -> 0 | P44: =SUM(SUMIFS(P$3:P$8,$A$3:$A$8,IF(Dashboard!$B$44:$B$100=TRIM(SUBSTITUTE($A44,"TOTAL","",1)),Dashboard!$A$44:$A$100),$B$3:$B$8,$B44)) -> 0 | Q44: 0 | R44: 0 | S44: 0 | T44: 0 | V44: =SUM(SUMIFS(V$3:V$8,$A$3:$A$8,IF(Dashboard!$B$44:$B$100=TRIM(SUBSTITUTE($A44,"TOTAL","",1)),Dashboard!$A$44:$A$100),$B$3:$B$8,$B44)) -> 0 | W44: =SUM(SUMIFS(W$3:W$8,$A$3:$A$8,IF(Dashboard!$B$44:$B$100=TRIM(SUBSTITUTE($A44,"TOTAL","",1)),Dashboard!$A$44:$A$100),$B$3:$B$8,$B44)) -> 0 | X44: =SUM(SUMIFS(X$3:X$8,$A$3:$A$8,IF(Dashboard!$B$44:$B$100=TRIM(SUBSTITUTE($A44,"TOTAL","",1)),Dashboard!$A$44:$A$100),$B$3:$B$8,$B44)) -> 0 | Y44: 0 | Z44: =SUM(SUMIFS(Z$3:Z$8,$A$3:$A$8,IF(Dashboard!$B$44:$B$100=TRIM(SUBSTITUTE($A44,"TOTAL","",1)),Dashboard!$A$44:$A$100),$B$3:$B$8,$B44)) -> 0 | AA44: 0 | AB44: =SUM(SUMIFS(AB$3:AB$8,$A$3:$A$8,IF(Dashboard!$B$44:$B$100=TRIM(SUBSTITUTE($A44,"TOTAL","",1)),Dashboard!$A$44:$A$100),$B$3:$B$8,$B44)) -> 0 | AC44: =SUM(SUMIFS(AC$3:AC$8,$A$3:$A$8,IF(Dashboard!$B$44:$B$100=TRIM(SUBSTITUTE($A44,"TOTAL","",1)),Dashboard!$A$44:$A$100),$B$3:$B$8,$B44)) -> 0 | AD44: =SUM(SUMIFS(AD$3:AD$8,$A$3:$A$8,IF(Dashboard!$B$44:$B$100=TRIM(SUBSTITUTE($A44,"TOTAL","",1)),Dashboard!$A$44:$A$100),$B$3:$B$8,$B44)) -> 0 | AE44: =SUM(SUMIFS(AE$3:AE$8,$A$3:$A$8,IF(Dashboard!$B$44:$B$100=TRIM(SUBSTITUTE($A44,"TOTAL","",1)),Dashboard!$A$44:$A$100),$B$3:$B$8,$B44)) -> 0 | AF44: =SUM(SUMIFS(AF$3:AF$8,$A$3:$A$8,IF(Dashboard!$B$44:$B$100=TRIM(SUBSTITUTE($A44,"TOTAL","",1)),Dashboard!$A$44:$A$100),$B$3:$B$8,$B44)) -> 0 | AG44: =SUM(SUMIFS(AG$3:AG$8,$A$3:$A$8,IF(Dashboard!$B$44:$B$100=TRIM(SUBSTITUTE($A44,"TOTAL","",1)),Dashboard!$A$44:$A$100),$B$3:$B$8,$B44)) -> 0 | AH44: =SUM(SUMIFS(AH$3:AH$8,$A$3:$A$8,IF(Dashboard!$B$44:$B$100=TRIM(SUBSTITUTE($A44,"TOTAL","",1)),Dashboard!$A$44:$A$100),$B$3:$B$8,$B44)) -> 0 | AI44: =SUM(SUMIFS(AI$3:AI$8,$A$3:$A$8,IF(Dashboard!$B$44:$B$100=TRIM(SUBSTITUTE($A44,"TOTAL","",1)),Dashboard!$A$44:$A$100),$B$3:$B$8,$B44)) -> 0 | AJ44: 0 | AK44: 0 | AM44: =SUM(SUMIFS(AM$3:AM$8,$A$3:$A$8,IF(Dashboard!$B$44:$B$100=TRIM(SUBSTITUTE($A44,"TOTAL","",1)),Dashboard!$A$44:$A$100),$B$3:$B$8,$B44)) -> 0 | AN44: =SUM(SUMIFS(AN$3:AN$8,$A$3:$A$8,IF(Dashboard!$B$44:$B$100=TRIM(SUBSTITUTE($A44,"TOTAL","",1)),Dashboard!$A$44:$A$100),$B$3:$B$8,$B44)) -> 0 | AO44: =SUM(SUMIFS(AO$3:AO$8,$A$3:$A$8,IF(Dashboard!$B$44:$B$100=TRIM(SUBSTITUTE($A44,"TOTAL","",1)),Dashboard!$A$44:$A$100),$B$3:$B$8,$B44)) -> 0 | AP44: =SUM(SUMIFS(AP$3:AP$8,$A$3:$A$8,IF(Dashboard!$B$44:$B$100=TRIM(SUBSTITUTE($A44,"TOTAL","",1)),Dashboard!$A$44:$A$100),$B$3:$B$8,$B44)) -> 0 | AQ44: =SUM(SUMIFS(AQ$3:AQ$8,$A$3:$A$8,IF(Dashboard!$B$44:$B$100=TRIM(SUBSTITUTE($A44,"TOTAL","",1)),Dashboard!$A$44:$A$100),$B$3:$B$8,$B44)) -> 0 | AR44: =SUM(SUMIFS(AR$3:AR$8,$A$3:$A$8,IF(Dashboard!$B$44:$B$100=TRIM(SUBSTITUTE($A44,"TOTAL","",1)),Dashboard!$A$44:$A$100),$B$3:$B$8,$B44)) -> 0 | AT44: =SUM(SUMIFS(AT$3:AT$8,$A$3:$A$8,IF(Dashboard!$B$44:$B$100=TRIM(SUBSTITUTE($A44,"TOTAL","",1)),Dashboard!$A$44:$A$100),$B$3:$B$8,$B44)) -> 0 | AV44: =SUM(SUMIFS(AV$3:AV$8,$A$3:$A$8,IF(Dashboard!$B$44:$B$100=TRIM(SUBSTITUTE($A44,"TOTAL","",1)),Dashboard!$A$44:$A$100),$B$3:$B$8,$B44)) -> 0 | AW44: =SUM(SUMIFS(AW$3:AW$8,$A$3:$A$8,IF(Dashboard!$B$44:$B$100=TRIM(SUBSTITUTE($A44,"TOTAL","",1)),Dashboard!$A$44:$A$100),$B$3:$B$8,$B44)) -> 0 | AX44: =SUM(SUMIFS(AX$3:AX$8,$A$3:$A$8,IF(Dashboard!$B$44:$B$100=TRIM(SUBSTITUTE($A44,"TOTAL","",1)),Dashboard!$A$44:$A$100),$B$3:$B$8,$B44)) -> 0 | AY44: 0 | BA44: 0 | BB44: 0 | BD44: =SUM(SUMIFS(BD$3:BD$8,$A$3:$A$8,IF(Dashboard!$B$44:$B$100=TRIM(SUBSTITUTE($A44,"TOTAL","",1)),Dashboard!$A$44:$A$100),$B$3:$B$8,$B44)) -> 0 | BE44: =SUM(SUMIFS(BE$3:BE$8,$A$3:$A$8,IF(Dashboard!$B$44:$B$100=TRIM(SUBSTITUTE($A44,"TOTAL","",1)),Dashboard!$A$44:$A$100),$B$3:$B$8,$B44)) -> 0 | BF44: 0 | BH44: =SUM(SUMIFS(BH$3:BH$8,$A$3:$A$8,IF(Dashboard!$B$44:$B$100=TRIM(SUBSTITUTE($A44,"TOTAL","",1)),Dashboard!$A$44:$A$100),$B$3:$B$8,$B44)) -> 0 | BI44: =SUM(SUMIFS(BI$3:BI$8,$A$3:$A$8,IF(Dashboard!$B$44:$B$100=TRIM(SUBSTITUTE($A44,"TOTAL","",1)),Dashboard!$A$44:$A$100),$B$3:$B$8,$B44)) -> 0 | BJ44: 0 | BL44: =SUM(SUMIFS(BL$3:BL$8,$A$3:$A$8,IF(Dashboard!$B$44:$B$100=TRIM(SUBSTITUTE($A44,"TOTAL","",1)),Dashboard!$A$44:$A$100),$B$3:$B$8,$B44)) -> 0
A45: P2 TOTAL | B45: New Jersey | C45: =SUM(SUMIFS(C$3:C$8,$A$3:$A$8,IF(Dashboard!$B$44:$B$100=TRIM(SUBSTITUTE($A45,"TOTAL","",1)),Dashboard!$A$44:$A$100),$B$3:$B$8,$B45)) -> 0 | D45: =SUM(SUMIFS(D$3:D$8,$A$3:$A$8,IF(Dashboard!$B$44:$B$100=TRIM(SUBSTITUTE($A45,"TOTAL","",1)),Dashboard!$A$44:$A$100),$B$3:$B$8,$B45)) -> 0 | E45: =SUM(SUMIFS(E$3:E$8,$A$3:$A$8,IF(Dashboard!$B$44:$B$100=TRIM(SUBSTITUTE($A45,"TOTAL","",1)),Dashboard!$A$44:$A$100),$B$3:$B$8,$B45)) -> 0 | F45: 0 | G45: =SUM(SUMIFS(G$3:G$8,$A$3:$A$8,IF(Dashboard!$B$44:$B$100=TRIM(SUBSTITUTE($A45,"TOTAL","",1)),Dashboard!$A$44:$A$100),$B$3:$B$8,$B45)) -> 0 | H45: 0 | I45: =SUM(SUMIFS(I$3:I$8,$A$3:$A$8,IF(Dashboard!$B$44:$B$100=TRIM(SUBSTITUTE($A45,"TOTAL","",1)),Dashboard!$A$44:$A$100),$B$3:$B$8,$B45)) -> 0 | J45: =SUM(SUMIFS(J$3:J$8,$A$3:$A$8,IF(Dashboard!$B$44:$B$100=TRIM(SUBSTITUTE($A45,"TOTAL","",1)),Dashboard!$A$44:$A$100),$B$3:$B$8,$B45)) -> 0 | K45: =SUM(SUMIFS(K$3:K$8,$A$3:$A$8,IF(Dashboard!$B$44:$B$100=TRIM(SUBSTITUTE($A45,"TOTAL","",1)),Dashboard!$A$44:$A$100),$B$3:$B$8,$B45)) -> 0 | L45: =SUM(SUMIFS(L$3:L$8,$A$3:$A$8,IF(Dashboard!$B$44:$B$100=TRIM(SUBSTITUTE($A45,"TOTAL","",1)),Dashboard!$A$44:$A$100),$B$3:$B$8,$B45)) -> 0 | M45: =SUM(SUMIFS(M$3:M$8,$A$3:$A$8,IF(Dashboard!$B$44:$B$100=TRIM(SUBSTITUTE($A45,"TOTAL","",1)),Dashboard!$A$44:$A$100),$B$3:$B$8,$B45)) -> 0 | N45: =SUM(SUMIFS(N$3:N$8,$A$3:$A$8,IF(Dashboard!$B$44:$B$100=TRIM(SUBSTITUTE($A45,"TOTAL","",1)),Dashboard!$A$44:$A$100),$B$3:$B$8,$B45)) -> 0 | O45: =SUM(SUMIFS(O$3:O$8,$A$3:$A$8,IF(Dashboard!$B$44:$B$100=TRIM(SUBSTITUTE($A45,"TOTAL","",1)),Dashboard!$A$44:$A$100),$B$3:$B$8,$B45)) -> 0 | P45: =SUM(SUMIFS(P$3:P$8,$A$3:$A$8,IF(Dashboard!$B$44:$B$100=TRIM(SUBSTITUTE($A45,"TOTAL","",1)),Dashboard!$A$44:$A$100),$B$3:$B$8,$B45)) -> 0 | Q45: 0 | R45: 0 | S45: 0 | T45: 0 | V45: =SUM(SUMIFS(V$3:V$8,$A$3:$A$8,IF(Dashboard!$B$44:$B$100=TRIM(SUBSTITUTE($A45,"TOTAL","",1)),Dashboard!$A$44:$A$100),$B$3:$B$8,$B45)) -> 0 | W45: =SUM(SUMIFS(W$3:W$8,$A$3:$A$8,IF(Dashboard!$B$44:$B$100=TRIM(SUBSTITUTE($A45,"TOTAL","",1)),Dashboard!$A$44:$A$100),$B$3:$B$8,$B45)) -> 0 | X45: =SUM(SUMIFS(X$3:X$8,$A$3:$A$8,IF(Dashboard!$B$44:$B$100=TRIM(SUBSTITUTE($A45,"TOTAL","",1)),Dashboard!$A$44:$A$100),$B$3:$B$8,$B45)) -> 0 | Y45: 0 | Z45: =SUM(SUMIFS(Z$3:Z$8,$A$3:$A$8,IF(Dashboard!$B$44:$B$100=TRIM(SUBSTITUTE($A45,"TOTAL","",1)),Dashboard!$A$44:$A$100),$B$3:$B$8,$B45)) -> 0 | AA45: 0 | AB45: =SUM(SUMIFS(AB$3:AB$8,$A$3:$A$8,IF(Dashboard!$B$44:$B$100=TRIM(SUBSTITUTE($A45,"TOTAL","",1)),Dashboard!$A$44:$A$100),$B$3:$B$8,$B45)) -> 0 | AC45: =SUM(SUMIFS(AC$3:AC$8,$A$3:$A$8,IF(Dashboard!$B$44:$B$100=TRIM(SUBSTITUTE($A45,"TOTAL","",1)),Dashboard!$A$44:$A$100),$B$3:$B$8,$B45)) -> 0 | AD45: =SUM(SUMIFS(AD$3:AD$8,$A$3:$A$8,IF(Dashboard!$B$44:$B$100=TRIM(SUBSTITUTE($A45,"TOTAL","",1)),Dashboard!$A$44:$A$100),$B$3:$B$8,$B45)) -> 0 | AE45: =SUM(SUMIFS(AE$3:AE$8,$A$3:$A$8,IF(Dashboard!$B$44:$B$100=TRIM(SUBSTITUTE($A45,"TOTAL","",1)),Dashboard!$A$44:$A$100),$B$3:$B$8,$B45)) -> 0 | AF45: =SUM(SUMIFS(AF$3:AF$8,$A$3:$A$8,IF(Dashboard!$B$44:$B$100=TRIM(SUBSTITUTE($A45,"TOTAL","",1)),Dashboard!$A$44:$A$100),$B$3:$B$8,$B45)) -> 0 | AG45: =SUM(SUMIFS(AG$3:AG$8,$A$3:$A$8,IF(Dashboard!$B$44:$B$100=TRIM(SUBSTITUTE($A45,"TOTAL","",1)),Dashboard!$A$44:$A$100),$B$3:$B$8,$B45)) -> 0 | AH45: =SUM(SUMIFS(AH$3:AH$8,$A$3:$A$8,IF(Dashboard!$B$44:$B$100=TRIM(SUBSTITUTE($A45,"TOTAL","",1)),Dashboard!$A$44:$A$100),$B$3:$B$8,$B45)) -> 0 | AI45: =SUM(SUMIFS(AI$3:AI$8,$A$3:$A$8,IF(Dashboard!$B$44:$B$100=TRIM(SUBSTITUTE($A45,"TOTAL","",1)),Dashboard!$A$44:$A$100),$B$3:$B$8,$B45)) -> 0 | AJ45: 0 | AK45: 0 | AM45: =SUM(SUMIFS(AM$3:AM$8,$A$3:$A$8,IF(Dashboard!$B$44:$B$100=TRIM(SUBSTITUTE($A45,"TOTAL","",1)),Dashboard!$A$44:$A$100),$B$3:$B$8,$B45)) -> 0 | AN45: =SUM(SUMIFS(AN$3:AN$8,$A$3:$A$8,IF(Dashboard!$B$44:$B$100=TRIM(SUBSTITUTE($A45,"TOTAL","",1)),Dashboard!$A$44:$A$100),$B$3:$B$8,$B45)) -> 0 | AO45: =SUM(SUMIFS(AO$3:AO$8,$A$3:$A$8,IF(Dashboard!$B$44:$B$100=TRIM(SUBSTITUTE($A45,"TOTAL","",1)),Dashboard!$A$44:$A$100),$B$3:$B$8,$B45)) -> 0 | AP45: =SUM(SUMIFS(AP$3:AP$8,$A$3:$A$8,IF(Dashboard!$B$44:$B$100=TRIM(SUBSTITUTE($A45,"TOTAL","",1)),Dashboard!$A$44:$A$100),$B$3:$B$8,$B45)) -> 0 | AQ45: =SUM(SUMIFS(AQ$3:AQ$8,$A$3:$A$8,IF(Dashboard!$B$44:$B$100=TRIM(SUBSTITUTE($A45,"TOTAL","",1)),Dashboard!$A$44:$A$100),$B$3:$B$8,$B45)) -> 0 | AR45: =SUM(SUMIFS(AR$3:AR$8,$A$3:$A$8,IF(Dashboard!$B$44:$B$100=TRIM(SUBSTITUTE($A45,"TOTAL","",1)),Dashboard!$A$44:$A$100),$B$3:$B$8,$B45)) -> 0 | AT45: =SUM(SUMIFS(AT$3:AT$8,$A$3:$A$8,IF(Dashboard!$B$44:$B$100=TRIM(SUBSTITUTE($A45,"TOTAL","",1)),Dashboard!$A$44:$A$100),$B$3:$B$8,$B45)) -> 0 | AV45: =SUM(SUMIFS(AV$3:AV$8,$A$3:$A$8,IF(Dashboard!$B$44:$B$100=TRIM(SUBSTITUTE($A45,"TOTAL","",1)),Dashboard!$A$44:$A$100),$B$3:$B$8,$B45)) -> 0 | AW45: =SUM(SUMIFS(AW$3:AW$8,$A$3:$A$8,IF(Dashboard!$B$44:$B$100=TRIM(SUBSTITUTE($A45,"TOTAL","",1)),Dashboard!$A$44:$A$100),$B$3:$B$8,$B45)) -> 0 | AX45: =SUM(SUMIFS(AX$3:AX$8,$A$3:$A$8,IF(Dashboard!$B$44:$B$100=TRIM(SUBSTITUTE($A45,"TOTAL","",1)),Dashboard!$A$44:$A$100),$B$3:$B$8,$B45)) -> 0 | AY45: 0 | BA45: 0 | BB45: 0 | BD45: =SUM(SUMIFS(BD$3:BD$8,$A$3:$A$8,IF(Dashboard!$B$44:$B$100=TRIM(SUBSTITUTE($A45,"TOTAL","",1)),Dashboard!$A$44:$A$100),$B$3:$B$8,$B45)) -> 0 | BE45: =SUM(SUMIFS(BE$3:BE$8,$A$3:$A$8,IF(Dashboard!$B$44:$B$100=TRIM(SUBSTITUTE($A45,"TOTAL","",1)),Dashboard!$A$44:$A$100),$B$3:$B$8,$B45)) -> 0 | BF45: 0 | BH45: =SUM(SUMIFS(BH$3:BH$8,$A$3:$A$8,IF(Dashboard!$B$44:$B$100=TRIM(SUBSTITUTE($A45,"TOTAL","",1)),Dashboard!$A$44:$A$100),$B$3:$B$8,$B45)) -> 0 | BI45: =SUM(SUMIFS(BI$3:BI$8,$A$3:$A$8,IF(Dashboard!$B$44:$B$100=TRIM(SUBSTITUTE($A45,"TOTAL","",1)),Dashboard!$A$44:$A$100),$B$3:$B$8,$B45)) -> 0 | BJ45: 0 | BL45: =SUM(SUMIFS(BL$3:BL$8,$A$3:$A$8,IF(Dashboard!$B$44:$B$100=TRIM(SUBSTITUTE($A45,"TOTAL","",1)),Dashboard!$A$44:$A$100),$B$3:$B$8,$B45)) -> 0
A46: P2 TOTAL | B46: Seattle | C46: =SUM(SUMIFS(C$3:C$8,$A$3:$A$8,IF(Dashboard!$B$44:$B$100=TRIM(SUBSTITUTE($A46,"TOTAL","",1)),Dashboard!$A$44:$A$100),$B$3:$B$8,$B46)) -> 0 | D46: =SUM(SUMIFS(D$3:D$8,$A$3:$A$8,IF(Dashboard!$B$44:$B$100=TRIM(SUBSTITUTE($A46,"TOTAL","",1)),Dashboard!$A$44:$A$100),$B$3:$B$8,$B46)) -> 0 | E46: =SUM(SUMIFS(E$3:E$8,$A$3:$A$8,IF(Dashboard!$B$44:$B$100=TRIM(SUBSTITUTE($A46,"TOTAL","",1)),Dashboard!$A$44:$A$100),$B$3:$B$8,$B46)) -> 0 | F46: 0 | G46: =SUM(SUMIFS(G$3:G$8,$A$3:$A$8,IF(Dashboard!$B$44:$B$100=TRIM(SUBSTITUTE($A46,"TOTAL","",1)),Dashboard!$A$44:$A$100),$B$3:$B$8,$B46)) -> 0 | H46: 0 | I46: =SUM(SUMIFS(I$3:I$8,$A$3:$A$8,IF(Dashboard!$B$44:$B$100=TRIM(SUBSTITUTE($A46,"TOTAL","",1)),Dashboard!$A$44:$A$100),$B$3:$B$8,$B46)) -> 0 | J46: =SUM(SUMIFS(J$3:J$8,$A$3:$A$8,IF(Dashboard!$B$44:$B$100=TRIM(SUBSTITUTE($A46,"TOTAL","",1)),Dashboard!$A$44:$A$100),$B$3:$B$8,$B46)) -> 0 | K46: =SUM(SUMIFS(K$3:K$8,$A$3:$A$8,IF(Dashboard!$B$44:$B$100=TRIM(SUBSTITUTE($A46,"TOTAL","",1)),Dashboard!$A$44:$A$100),$B$3:$B$8,$B46)) -> 0 | L46: =SUM(SUMIFS(L$3:L$8,$A$3:$A$8,IF(Dashboard!$B$44:$B$100=TRIM(SUBSTITUTE($A46,"TOTAL","",1)),Dashboard!$A$44:$A$100),$B$3:$B$8,$B46)) -> 0 | M46: =SUM(SUMIFS(M$3:M$8,$A$3:$A$8,IF(Dashboard!$B$44:$B$100=TRIM(SUBSTITUTE($A46,"TOTAL","",1)),Dashboard!$A$44:$A$100),$B$3:$B$8,$B46)) -> 0 | N46: =SUM(SUMIFS(N$3:N$8,$A$3:$A$8,IF(Dashboard!$B$44:$B$100=TRIM(SUBSTITUTE($A46,"TOTAL","",1)),Dashboard!$A$44:$A$100),$B$3:$B$8,$B46)) -> 0 | O46: =SUM(SUMIFS(O$3:O$8,$A$3:$A$8,IF(Dashboard!$B$44:$B$100=TRIM(SUBSTITUTE($A46,"TOTAL","",1)),Dashboard!$A$44:$A$100),$B$3:$B$8,$B46)) -> 0 | P46: =SUM(SUMIFS(P$3:P$8,$A$3:$A$8,IF(Dashboard!$B$44:$B$100=TRIM(SUBSTITUTE($A46,"TOTAL","",1)),Dashboard!$A$44:$A$100),$B$3:$B$8,$B46)) -> 0 | Q46: 0 | R46: 0 | S46: 0 | T46: 0 | V46: =SUM(SUMIFS(V$3:V$8,$A$3:$A$8,IF(Dashboard!$B$44:$B$100=TRIM(SUBSTITUTE($A46,"TOTAL","",1)),Dashboard!$A$44:$A$100),$B$3:$B$8,$B46)) -> 0 | W46: =SUM(SUMIFS(W$3:W$8,$A$3:$A$8,IF(Dashboard!$B$44:$B$100=TRIM(SUBSTITUTE($A46,"TOTAL","",1)),Dashboard!$A$44:$A$100),$B$3:$B$8,$B46)) -> 0 | X46: =SUM(SUMIFS(X$3:X$8,$A$3:$A$8,IF(Dashboard!$B$44:$B$100=TRIM(SUBSTITUTE($A46,"TOTAL","",1)),Dashboard!$A$44:$A$100),$B$3:$B$8,$B46)) -> 0 | Y46: 0 | Z46: =SUM(SUMIFS(Z$3:Z$8,$A$3:$A$8,IF(Dashboard!$B$44:$B$100=TRIM(SUBSTITUTE($A46,"TOTAL","",1)),Dashboard!$A$44:$A$100),$B$3:$B$8,$B46)) -> 0 | AA46: 0 | AB46: =SUM(SUMIFS(AB$3:AB$8,$A$3:$A$8,IF(Dashboard!$B$44:$B$100=TRIM(SUBSTITUTE($A46,"TOTAL","",1)),Dashboard!$A$44:$A$100),$B$3:$B$8,$B46)) -> 0 | AC46: =SUM(SUMIFS(AC$3:AC$8,$A$3:$A$8,IF(Dashboard!$B$44:$B$100=TRIM(SUBSTITUTE($A46,"TOTAL","",1)),Dashboard!$A$44:$A$100),$B$3:$B$8,$B46)) -> 0 | AD46: =SUM(SUMIFS(AD$3:AD$8,$A$3:$A$8,IF(Dashboard!$B$44:$B$100=TRIM(SUBSTITUTE($A46,"TOTAL","",1)),Dashboard!$A$44:$A$100),$B$3:$B$8,$B46)) -> 0 | AE46: =SUM(SUMIFS(AE$3:AE$8,$A$3:$A$8,IF(Dashboard!$B$44:$B$100=TRIM(SUBSTITUTE($A46,"TOTAL","",1)),Dashboard!$A$44:$A$100),$B$3:$B$8,$B46)) -> 0 | AF46: =SUM(SUMIFS(AF$3:AF$8,$A$3:$A$8,IF(Dashboard!$B$44:$B$100=TRIM(SUBSTITUTE($A46,"TOTAL","",1)),Dashboard!$A$44:$A$100),$B$3:$B$8,$B46)) -> 0 | AG46: =SUM(SUMIFS(AG$3:AG$8,$A$3:$A$8,IF(Dashboard!$B$44:$B$100=TRIM(SUBSTITUTE($A46,"TOTAL","",1)),Dashboard!$A$44:$A$100),$B$3:$B$8,$B46)) -> 0 | AH46: =SUM(SUMIFS(AH$3:AH$8,$A$3:$A$8,IF(Dashboard!$B$44:$B$100=TRIM(SUBSTITUTE($A46,"TOTAL","",1)),Dashboard!$A$44:$A$100),$B$3:$B$8,$B46)) -> 0 | AI46: =SUM(SUMIFS(AI$3:AI$8,$A$3:$A$8,IF(Dashboard!$B$44:$B$100=TRIM(SUBSTITUTE($A46,"TOTAL","",1)),Dashboard!$A$44:$A$100),$B$3:$B$8,$B46)) -> 0 | AJ46: 0 | AK46: 0 | AM46: =SUM(SUMIFS(AM$3:AM$8,$A$3:$A$8,IF(Dashboard!$B$44:$B$100=TRIM(SUBSTITUTE($A46,"TOTAL","",1)),Dashboard!$A$44:$A$100),$B$3:$B$8,$B46)) -> 0 | AN46: =SUM(SUMIFS(AN$3:AN$8,$A$3:$A$8,IF(Dashboard!$B$44:$B$100=TRIM(SUBSTITUTE($A46,"TOTAL","",1)),Dashboard!$A$44:$A$100),$B$3:$B$8,$B46)) -> 0 | AO46: =SUM(SUMIFS(AO$3:AO$8,$A$3:$A$8,IF(Dashboard!$B$44:$B$100=TRIM(SUBSTITUTE($A46,"TOTAL","",1)),Dashboard!$A$44:$A$100),$B$3:$B$8,$B46)) -> 0 | AP46: =SUM(SUMIFS(AP$3:AP$8,$A$3:$A$8,IF(Dashboard!$B$44:$B$100=TRIM(SUBSTITUTE($A46,"TOTAL","",1)),Dashboard!$A$44:$A$100),$B$3:$B$8,$B46)) -> 0 | AQ46: =SUM(SUMIFS(AQ$3:AQ$8,$A$3:$A$8,IF(Dashboard!$B$44:$B$100=TRIM(SUBSTITUTE($A46,"TOTAL","",1)),Dashboard!$A$44:$A$100),$B$3:$B$8,$B46)) -> 0 | AR46: =SUM(SUMIFS(AR$3:AR$8,$A$3:$A$8,IF(Dashboard!$B$44:$B$100=TRIM(SUBSTITUTE($A46,"TOTAL","",1)),Dashboard!$A$44:$A$100),$B$3:$B$8,$B46)) -> 0 | AT46: =SUM(SUMIFS(AT$3:AT$8,$A$3:$A$8,IF(Dashboard!$B$44:$B$100=TRIM(SUBSTITUTE($A46,"TOTAL","",1)),Dashboard!$A$44:$A$100),$B$3:$B$8,$B46)) -> 0 | AV46: =SUM(SUMIFS(AV$3:AV$8,$A$3:$A$8,IF(Dashboard!$B$44:$B$100=TRIM(SUBSTITUTE($A46,"TOTAL","",1)),Dashboard!$A$44:$A$100),$B$3:$B$8,$B46)) -> 0 | AW46: =SUM(SUMIFS(AW$3:AW$8,$A$3:$A$8,IF(Dashboard!$B$44:$B$100=TRIM(SUBSTITUTE($A46,"TOTAL","",1)),Dashboard!$A$44:$A$100),$B$3:$B$8,$B46)) -> 0 | AX46: =SUM(SUMIFS(AX$3:AX$8,$A$3:$A$8,IF(Dashboard!$B$44:$B$100=TRIM(SUBSTITUTE($A46,"TOTAL","",1)),Dashboard!$A$44:$A$100),$B$3:$B$8,$B46)) -> 0 | AY46: 0 | BA46: 0 | BB46: 0 | BD46: =SUM(SUMIFS(BD$3:BD$8,$A$3:$A$8,IF(Dashboard!$B$44:$B$100=TRIM(SUBSTITUTE($A46,"TOTAL","",1)),Dashboard!$A$44:$A$100),$B$3:$B$8,$B46)) -> 0 | BE46: =SUM(SUMIFS(BE$3:BE$8,$A$3:$A$8,IF(Dashboard!$B$44:$B$100=TRIM(SUBSTITUTE($A46,"TOTAL","",1)),Dashboard!$A$44:$A$100),$B$3:$B$8,$B46)) -> 0 | BF46: 0 | BH46: =SUM(SUMIFS(BH$3:BH$8,$A$3:$A$8,IF(Dashboard!$B$44:$B$100=TRIM(SUBSTITUTE($A46,"TOTAL","",1)),Dashboard!$A$44:$A$100),$B$3:$B$8,$B46)) -> 0 | BI46: =SUM(SUMIFS(BI$3:BI$8,$A$3:$A$8,IF(Dashboard!$B$44:$B$100=TRIM(SUBSTITUTE($A46,"TOTAL","",1)),Dashboard!$A$44:$A$100),$B$3:$B$8,$B46)) -> 0 | BJ46: 0 | BL46: =SUM(SUMIFS(BL$3:BL$8,$A$3:$A$8,IF(Dashboard!$B$44:$B$100=TRIM(SUBSTITUTE($A46,"TOTAL","",1)),Dashboard!$A$44:$A$100),$B$3:$B$8,$B46)) -> 0
A47: P2 TOTAL | B47: San Francisco | C47: =SUM(SUMIFS(C$3:C$8,$A$3:$A$8,IF(Dashboard!$B$44:$B$100=TRIM(SUBSTITUTE($A47,"TOTAL","",1)),Dashboard!$A$44:$A$100),$B$3:$B$8,$B47)) -> 0 | D47: =SUM(SUMIFS(D$3:D$8,$A$3:$A$8,IF(Dashboard!$B$44:$B$100=TRIM(SUBSTITUTE($A47,"TOTAL","",1)),Dashboard!$A$44:$A$100),$B$3:$B$8,$B47)) -> 0 | E47: =SUM(SUMIFS(E$3:E$8,$A$3:$A$8,IF(Dashboard!$B$44:$B$100=TRIM(SUBSTITUTE($A47,"TOTAL","",1)),Dashboard!$A$44:$A$100),$B$3:$B$8,$B47)) -> 0 | F47: 0 | G47: =SUM(SUMIFS(G$3:G$8,$A$3:$A$8,IF(Dashboard!$B$44:$B$100=TRIM(SUBSTITUTE($A47,"TOTAL","",1)),Dashboard!$A$44:$A$100),$B$3:$B$8,$B47)) -> 0 | H47: 0 | I47: =SUM(SUMIFS(I$3:I$8,$A$3:$A$8,IF(Dashboard!$B$44:$B$100=TRIM(SUBSTITUTE($A47,"TOTAL","",1)),Dashboard!$A$44:$A$100),$B$3:$B$8,$B47)) -> 0 | J47: =SUM(SUMIFS(J$3:J$8,$A$3:$A$8,IF(Dashboard!$B$44:$B$100=TRIM(SUBSTITUTE($A47,"TOTAL","",1)),Dashboard!$A$44:$A$100),$B$3:$B$8,$B47)) -> 0 | K47: =SUM(SUMIFS(K$3:K$8,$A$3:$A$8,IF(Dashboard!$B$44:$B$100=TRIM(SUBSTITUTE($A47,"TOTAL","",1)),Dashboard!$A$44:$A$100),$B$3:$B$8,$B47)) -> 0 | L47: =SUM(SUMIFS(L$3:L$8,$A$3:$A$8,IF(Dashboard!$B$44:$B$100=TRIM(SUBSTITUTE($A47,"TOTAL","",1)),Dashboard!$A$44:$A$100),$B$3:$B$8,$B47)) -> 0 | M47: =SUM(SUMIFS(M$3:M$8,$A$3:$A$8,IF(Dashboard!$B$44:$B$100=TRIM(SUBSTITUTE($A47,"TOTAL","",1)),Dashboard!$A$44:$A$100),$B$3:$B$8,$B47)) -> 0 | N47: =SUM(SUMIFS(N$3:N$8,$A$3:$A$8,IF(Dashboard!$B$44:$B$100=TRIM(SUBSTITUTE($A47,"TOTAL","",1)),Dashboard!$A$44:$A$100),$B$3:$B$8,$B47)) -> 0 | O47: =SUM(SUMIFS(O$3:O$8,$A$3:$A$8,IF(Dashboard!$B$44:$B$100=TRIM(SUBSTITUTE($A47,"TOTAL","",1)),Dashboard!$A$44:$A$100),$B$3:$B$8,$B47)) -> 0 | P47: =SUM(SUMIFS(P$3:P$8,$A$3:$A$8,IF(Dashboard!$B$44:$B$100=TRIM(SUBSTITUTE($A47,"TOTAL","",1)),Dashboard!$A$44:$A$100),$B$3:$B$8,$B47)) -> 0 | Q47: 0 | R47: 0 | S47: 0 | T47: 0 | V47: =SUM(SUMIFS(V$3:V$8,$A$3:$A$8,IF(Dashboard!$B$44:$B$100=TRIM(SUBSTITUTE($A47,"TOTAL","",1)),Dashboard!$A$44:$A$100),$B$3:$B$8,$B47)) -> 0 | W47: =SUM(SUMIFS(W$3:W$8,$A$3:$A$8,IF(Dashboard!$B$44:$B$100=TRIM(SUBSTITUTE($A47,"TOTAL","",1)),Dashboard!$A$44:$A$100),$B$3:$B$8,$B47)) -> 0 | X47: =SUM(SUMIFS(X$3:X$8,$A$3:$A$8,IF(Dashboard!$B$44:$B$100=TRIM(SUBSTITUTE($A47,"TOTAL","",1)),Dashboard!$A$44:$A$100),$B$3:$B$8,$B47)) -> 0 | Y47: 0 | Z47: =SUM(SUMIFS(Z$3:Z$8,$A$3:$A$8,IF(Dashboard!$B$44:$B$100=TRIM(SUBSTITUTE($A47,"TOTAL","",1)),Dashboard!$A$44:$A$100),$B$3:$B$8,$B47)) -> 0 | AA47: 0 | AB47: =SUM(SUMIFS(AB$3:AB$8,$A$3:$A$8,IF(Dashboard!$B$44:$B$100=TRIM(SUBSTITUTE($A47,"TOTAL","",1)),Dashboard!$A$44:$A$100),$B$3:$B$8,$B47)) -> 0 | AC47: =SUM(SUMIFS(AC$3:AC$8,$A$3:$A$8,IF(Dashboard!$B$44:$B$100=TRIM(SUBSTITUTE($A47,"TOTAL","",1)),Dashboard!$A$44:$A$100),$B$3:$B$8,$B47)) -> 0 | AD47: =SUM(SUMIFS(AD$3:AD$8,$A$3:$A$8,IF(Dashboard!$B$44:$B$100=TRIM(SUBSTITUTE($A47,"TOTAL","",1)),Dashboard!$A$44:$A$100),$B$3:$B$8,$B47)) -> 0 | AE47: =SUM(SUMIFS(AE$3:AE$8,$A$3:$A$8,IF(Dashboard!$B$44:$B$100=TRIM(SUBSTITUTE($A47,"TOTAL","",1)),Dashboard!$A$44:$A$100),$B$3:$B$8,$B47)) -> 0 | AF47: =SUM(SUMIFS(AF$3:AF$8,$A$3:$A$8,IF(Dashboard!$B$44:$B$100=TRIM(SUBSTITUTE($A47,"TOTAL","",1)),Dashboard!$A$44:$A$100),$B$3:$B$8,$B47)) -> 0 | AG47: =SUM(SUMIFS(AG$3:AG$8,$A$3:$A$8,IF(Dashboard!$B$44:$B$100=TRIM(SUBSTITUTE($A47,"TOTAL","",1)),Dashboard!$A$44:$A$100),$B$3:$B$8,$B47)) -> 0 | AH47: =SUM(SUMIFS(AH$3:AH$8,$A$3:$A$8,IF(Dashboard!$B$44:$B$100=TRIM(SUBSTITUTE($A47,"TOTAL","",1)),Dashboard!$A$44:$A$100),$B$3:$B$8,$B47)) -> 0 | AI47: =SUM(SUMIFS(AI$3:AI$8,$A$3:$A$8,IF(Dashboard!$B$44:$B$100=TRIM(SUBSTITUTE($A47,"TOTAL","",1)),Dashboard!$A$44:$A$100),$B$3:$B$8,$B47)) -> 0 | AJ47: 0 | AK47: 0 | AM47: =SUM(SUMIFS(AM$3:AM$8,$A$3:$A$8,IF(Dashboard!$B$44:$B$100=TRIM(SUBSTITUTE($A47,"TOTAL","",1)),Dashboard!$A$44:$A$100),$B$3:$B$8,$B47)) -> 0 | AN47: =SUM(SUMIFS(AN$3:AN$8,$A$3:$A$8,IF(Dashboard!$B$44:$B$100=TRIM(SUBSTITUTE($A47,"TOTAL","",1)),Dashboard!$A$44:$A$100),$B$3:$B$8,$B47)) -> 0 | AO47: =SUM(SUMIFS(AO$3:AO$8,$A$3:$A$8,IF(Dashboard!$B$44:$B$100=TRIM(SUBSTITUTE($A47,"TOTAL","",1)),Dashboard!$A$44:$A$100),$B$3:$B$8,$B47)) -> 0 | AP47: =SUM(SUMIFS(AP$3:AP$8,$A$3:$A$8,IF(Dashboard!$B$44:$B$100=TRIM(SUBSTITUTE($A47,"TOTAL","",1)),Dashboard!$A$44:$A$100),$B$3:$B$8,$B47)) -> 0 | AQ47: =SUM(SUMIFS(AQ$3:AQ$8,$A$3:$A$8,IF(Dashboard!$B$44:$B$100=TRIM(SUBSTITUTE($A47,"TOTAL","",1)),Dashboard!$A$44:$A$100),$B$3:$B$8,$B47)) -> 0 | AR47: =SUM(SUMIFS(AR$3:AR$8,$A$3:$A$8,IF(Dashboard!$B$44:$B$100=TRIM(SUBSTITUTE($A47,"TOTAL","",1)),Dashboard!$A$44:$A$100),$B$3:$B$8,$B47)) -> 0 | AT47: =SUM(SUMIFS(AT$3:AT$8,$A$3:$A$8,IF(Dashboard!$B$44:$B$100=TRIM(SUBSTITUTE($A47,"TOTAL","",1)),Dashboard!$A$44:$A$100),$B$3:$B$8,$B47)) -> 0 | AV47: =SUM(SUMIFS(AV$3:AV$8,$A$3:$A$8,IF(Dashboard!$B$44:$B$100=TRIM(SUBSTITUTE($A47,"TOTAL","",1)),Dashboard!$A$44:$A$100),$B$3:$B$8,$B47)) -> 0 | AW47: =SUM(SUMIFS(AW$3:AW$8,$A$3:$A$8,IF(Dashboard!$B$44:$B$100=TRIM(SUBSTITUTE($A47,"TOTAL","",1)),Dashboard!$A$44:$A$100),$B$3:$B$8,$B47)) -> 0 | AX47: =SUM(SUMIFS(AX$3:AX$8,$A$3:$A$8,IF(Dashboard!$B$44:$B$100=TRIM(SUBSTITUTE($A47,"TOTAL","",1)),Dashboard!$A$44:$A$100),$B$3:$B$8,$B47)) -> 0 | AY47: 0 | BA47: 0 | BB47: 0 | BD47: =SUM(SUMIFS(BD$3:BD$8,$A$3:$A$8,IF(Dashboard!$B$44:$B$100=TRIM(SUBSTITUTE($A47,"TOTAL","",1)),Dashboard!$A$44:$A$100),$B$3:$B$8,$B47)) -> 0 | BE47: =SUM(SUMIFS(BE$3:BE$8,$A$3:$A$8,IF(Dashboard!$B$44:$B$100=TRIM(SUBSTITUTE($A47,"TOTAL","",1)),Dashboard!$A$44:$A$100),$B$3:$B$8,$B47)) -> 0 | BF47: 0 | BH47: =SUM(SUMIFS(BH$3:BH$8,$A$3:$A$8,IF(Dashboard!$B$44:$B$100=TRIM(SUBSTITUTE($A47,"TOTAL","",1)),Dashboard!$A$44:$A$100),$B$3:$B$8,$B47)) -> 0 | BI47: =SUM(SUMIFS(BI$3:BI$8,$A$3:$A$8,IF(Dashboard!$B$44:$B$100=TRIM(SUBSTITUTE($A47,"TOTAL","",1)),Dashboard!$A$44:$A$100),$B$3:$B$8,$B47)) -> 0 | BJ47: 0 | BL47: =SUM(SUMIFS(BL$3:BL$8,$A$3:$A$8,IF(Dashboard!$B$44:$B$100=TRIM(SUBSTITUTE($A47,"TOTAL","",1)),Dashboard!$A$44:$A$100),$B$3:$B$8,$B47)) -> 0
A48: P2 TOTAL | B48: Salt Lake City | C48: =SUM(SUMIFS(C$3:C$8,$A$3:$A$8,IF(Dashboard!$B$44:$B$100=TRIM(SUBSTITUTE($A48,"TOTAL","",1)),Dashboard!$A$44:$A$100),$B$3:$B$8,$B48)) -> 0 | D48: =SUM(SUMIFS(D$3:D$8,$A$3:$A$8,IF(Dashboard!$B$44:$B$100=TRIM(SUBSTITUTE($A48,"TOTAL","",1)),Dashboard!$A$44:$A$100),$B$3:$B$8,$B48)) -> 0 | E48: =SUM(SUMIFS(E$3:E$8,$A$3:$A$8,IF(Dashboard!$B$44:$B$100=TRIM(SUBSTITUTE($A48,"TOTAL","",1)),Dashboard!$A$44:$A$100),$B$3:$B$8,$B48)) -> 0 | F48: 0 | G48: =SUM(SUMIFS(G$3:G$8,$A$3:$A$8,IF(Dashboard!$B$44:$B$100=TRIM(SUBSTITUTE($A48,"TOTAL","",1)),Dashboard!$A$44:$A$100),$B$3:$B$8,$B48)) -> 0 | H48: 0 | I48: =SUM(SUMIFS(I$3:I$8,$A$3:$A$8,IF(Dashboard!$B$44:$B$100=TRIM(SUBSTITUTE($A48,"TOTAL","",1)),Dashboard!$A$44:$A$100),$B$3:$B$8,$B48)) -> 0 | J48: =SUM(SUMIFS(J$3:J$8,$A$3:$A$8,IF(Dashboard!$B$44:$B$100=TRIM(SUBSTITUTE($A48,"TOTAL","",1)),Dashboard!$A$44:$A$100),$B$3:$B$8,$B48)) -> 0 | K48: =SUM(SUMIFS(K$3:K$8,$A$3:$A$8,IF(Dashboard!$B$44:$B$100=TRIM(SUBSTITUTE($A48,"TOTAL","",1)),Dashboard!$A$44:$A$100),$B$3:$B$8,$B48)) -> 0 | L48: =SUM(SUMIFS(L$3:L$8,$A$3:$A$8,IF(Dashboard!$B$44:$B$100=TRIM(SUBSTITUTE($A48,"TOTAL","",1)),Dashboard!$A$44:$A$100),$B$3:$B$8,$B48)) -> 0 | M48: =SUM(SUMIFS(M$3:M$8,$A$3:$A$8,IF(Dashboard!$B$44:$B$100=TRIM(SUBSTITUTE($A48,"TOTAL","",1)),Dashboard!$A$44:$A$100),$B$3:$B$8,$B48)) -> 0 | N48: =SUM(SUMIFS(N$3:N$8,$A$3:$A$8,IF(Dashboard!$B$44:$B$100=TRIM(SUBSTITUTE($A48,"TOTAL","",1)),Dashboard!$A$44:$A$100),$B$3:$B$8,$B48)) -> 0 | O48: =SUM(SUMIFS(O$3:O$8,$A$3:$A$8,IF(Dashboard!$B$44:$B$100=TRIM(SUBSTITUTE($A48,"TOTAL","",1)),Dashboard!$A$44:$A$100),$B$3:$B$8,$B48)) -> 0 | P48: =SUM(SUMIFS(P$3:P$8,$A$3:$A$8,IF(Dashboard!$B$44:$B$100=TRIM(SUBSTITUTE($A48,"TOTAL","",1)),Dashboard!$A$44:$A$100),$B$3:$B$8,$B48)) -> 0 | Q48: 0 | R48: 0 | S48: 0 | T48: 0 | V48: =SUM(SUMIFS(V$3:V$8,$A$3:$A$8,IF(Dashboard!$B$44:$B$100=TRIM(SUBSTITUTE($A48,"TOTAL","",1)),Dashboard!$A$44:$A$100),$B$3:$B$8,$B48)) -> 0 | W48: =SUM(SUMIFS(W$3:W$8,$A$3:$A$8,IF(Dashboard!$B$44:$B$100=TRIM(SUBSTITUTE($A48,"TOTAL","",1)),Dashboard!$A$44:$A$100),$B$3:$B$8,$B48)) -> 0 | X48: =SUM(SUMIFS(X$3:X$8,$A$3:$A$8,IF(Dashboard!$B$44:$B$100=TRIM(SUBSTITUTE($A48,"TOTAL","",1)),Dashboard!$A$44:$A$100),$B$3:$B$8,$B48)) -> 0 | Y48: 0 | Z48: =SUM(SUMIFS(Z$3:Z$8,$A$3:$A$8,IF(Dashboard!$B$44:$B$100=TRIM(SUBSTITUTE($A48,"TOTAL","",1)),Dashboard!$A$44:$A$100),$B$3:$B$8,$B48)) -> 0 | AA48: 0 | AB48: =SUM(SUMIFS(AB$3:AB$8,$A$3:$A$8,IF(Dashboard!$B$44:$B$100=TRIM(SUBSTITUTE($A48,"TOTAL","",1)),Dashboard!$A$44:$A$100),$B$3:$B$8,$B48)) -> 0 | AC48: =SUM(SUMIFS(AC$3:AC$8,$A$3:$A$8,IF(Dashboard!$B$44:$B$100=TRIM(SUBSTITUTE($A48,"TOTAL","",1)),Dashboard!$A$44:$A$100),$B$3:$B$8,$B48)) -> 0 | AD48: =SUM(SUMIFS(AD$3:AD$8,$A$3:$A$8,IF(Dashboard!$B$44:$B$100=TRIM(SUBSTITUTE($A48,"TOTAL","",1)),Dashboard!$A$44:$A$100),$B$3:$B$8,$B48)) -> 0 | AE48: =SUM(SUMIFS(AE$3:AE$8,$A$3:$A$8,IF(Dashboard!$B$44:$B$100=TRIM(SUBSTITUTE($A48,"TOTAL","",1)),Dashboard!$A$44:$A$100),$B$3:$B$8,$B48)) -> 0 | AF48: =SUM(SUMIFS(AF$3:AF$8,$A$3:$A$8,IF(Dashboard!$B$44:$B$100=TRIM(SUBSTITUTE($A48,"TOTAL","",1)),Dashboard!$A$44:$A$100),$B$3:$B$8,$B48)) -> 0 | AG48: =SUM(SUMIFS(AG$3:AG$8,$A$3:$A$8,IF(Dashboard!$B$44:$B$100=TRIM(SUBSTITUTE($A48,"TOTAL","",1)),Dashboard!$A$44:$A$100),$B$3:$B$8,$B48)) -> 0 | AH48: =SUM(SUMIFS(AH$3:AH$8,$A$3:$A$8,IF(Dashboard!$B$44:$B$100=TRIM(SUBSTITUTE($A48,"TOTAL","",1)),Dashboard!$A$44:$A$100),$B$3:$B$8,$B48)) -> 0 | AI48: =SUM(SUMIFS(AI$3:AI$8,$A$3:$A$8,IF(Dashboard!$B$44:$B$100=TRIM(SUBSTITUTE($A48,"TOTAL","",1)),Dashboard!$A$44:$A$100),$B$3:$B$8,$B48)) -> 0 | AJ48: 0 | AK48: 0 | AM48: =SUM(SUMIFS(AM$3:AM$8,$A$3:$A$8,IF(Dashboard!$B$44:$B$100=TRIM(SUBSTITUTE($A48,"TOTAL","",1)),Dashboard!$A$44:$A$100),$B$3:$B$8,$B48)) -> 0 | AN48: =SUM(SUMIFS(AN$3:AN$8,$A$3:$A$8,IF(Dashboard!$B$44:$B$100=TRIM(SUBSTITUTE($A48,"TOTAL","",1)),Dashboard!$A$44:$A$100),$B$3:$B$8,$B48)) -> 0 | AO48: =SUM(SUMIFS(AO$3:AO$8,$A$3:$A$8,IF(Dashboard!$B$44:$B$100=TRIM(SUBSTITUTE($A48,"TOTAL","",1)),Dashboard!$A$44:$A$100),$B$3:$B$8,$B48)) -> 0 | AP48: =SUM(SUMIFS(AP$3:AP$8,$A$3:$A$8,IF(Dashboard!$B$44:$B$100=TRIM(SUBSTITUTE($A48,"TOTAL","",1)),Dashboard!$A$44:$A$100),$B$3:$B$8,$B48)) -> 0 | AQ48: =SUM(SUMIFS(AQ$3:AQ$8,$A$3:$A$8,IF(Dashboard!$B$44:$B$100=TRIM(SUBSTITUTE($A48,"TOTAL","",1)),Dashboard!$A$44:$A$100),$B$3:$B$8,$B48)) -> 0 | AR48: =SUM(SUMIFS(AR$3:AR$8,$A$3:$A$8,IF(Dashboard!$B$44:$B$100=TRIM(SUBSTITUTE($A48,"TOTAL","",1)),Dashboard!$A$44:$A$100),$B$3:$B$8,$B48)) -> 0 | AT48: =SUM(SUMIFS(AT$3:AT$8,$A$3:$A$8,IF(Dashboard!$B$44:$B$100=TRIM(SUBSTITUTE($A48,"TOTAL","",1)),Dashboard!$A$44:$A$100),$B$3:$B$8,$B48)) -> 0 | AV48: =SUM(SUMIFS(AV$3:AV$8,$A$3:$A$8,IF(Dashboard!$B$44:$B$100=TRIM(SUBSTITUTE($A48,"TOTAL","",1)),Dashboard!$A$44:$A$100),$B$3:$B$8,$B48)) -> 0 | AW48: =SUM(SUMIFS(AW$3:AW$8,$A$3:$A$8,IF(Dashboard!$B$44:$B$100=TRIM(SUBSTITUTE($A48,"TOTAL","",1)),Dashboard!$A$44:$A$100),$B$3:$B$8,$B48)) -> 0 | AX48: =SUM(SUMIFS(AX$3:AX$8,$A$3:$A$8,IF(Dashboard!$B$44:$B$100=TRIM(SUBSTITUTE($A48,"TOTAL","",1)),Dashboard!$A$44:$A$100),$B$3:$B$8,$B48)) -> 0 | AY48: 0 | BA48: 0 | BB48: 0 | BD48: =SUM(SUMIFS(BD$3:BD$8,$A$3:$A$8,IF(Dashboard!$B$44:$B$100=TRIM(SUBSTITUTE($A48,"TOTAL","",1)),Dashboard!$A$44:$A$100),$B$3:$B$8,$B48)) -> 0 | BE48: =SUM(SUMIFS(BE$3:BE$8,$A$3:$A$8,IF(Dashboard!$B$44:$B$100=TRIM(SUBSTITUTE($A48,"TOTAL","",1)),Dashboard!$A$44:$A$100),$B$3:$B$8,$B48)) -> 0 | BF48: 0 | BH48: =SUM(SUMIFS(BH$3:BH$8,$A$3:$A$8,IF(Dashboard!$B$44:$B$100=TRIM(SUBSTITUTE($A48,"TOTAL","",1)),Dashboard!$A$44:$A$100),$B$3:$B$8,$B48)) -> 0 | BI48: =SUM(SUMIFS(BI$3:BI$8,$A$3:$A$8,IF(Dashboard!$B$44:$B$100=TRIM(SUBSTITUTE($A48,"TOTAL","",1)),Dashboard!$A$44:$A$100),$B$3:$B$8,$B48)) -> 0 | BJ48: 0 | BL48: =SUM(SUMIFS(BL$3:BL$8,$A$3:$A$8,IF(Dashboard!$B$44:$B$100=TRIM(SUBSTITUTE($A48,"TOTAL","",1)),Dashboard!$A$44:$A$100),$B$3:$B$8,$B48)) -> 0
A49: P2 TOTAL | B49: Toronto | C49: =SUM(SUMIFS(C$3:C$8,$A$3:$A$8,IF(Dashboard!$B$44:$B$100=TRIM(SUBSTITUTE($A49,"TOTAL","",1)),Dashboard!$A$44:$A$100),$B$3:$B$8,$B49)) -> 0 | D49: =SUM(SUMIFS(D$3:D$8,$A$3:$A$8,IF(Dashboard!$B$44:$B$100=TRIM(SUBSTITUTE($A49,"TOTAL","",1)),Dashboard!$A$44:$A$100),$B$3:$B$8,$B49)) -> 0 | E49: =SUM(SUMIFS(E$3:E$8,$A$3:$A$8,IF(Dashboard!$B$44:$B$100=TRIM(SUBSTITUTE($A49,"TOTAL","",1)),Dashboard!$A$44:$A$100),$B$3:$B$8,$B49)) -> 0 | F49: 0 | G49: =SUM(SUMIFS(G$3:G$8,$A$3:$A$8,IF(Dashboard!$B$44:$B$100=TRIM(SUBSTITUTE($A49,"TOTAL","",1)),Dashboard!$A$44:$A$100),$B$3:$B$8,$B49)) -> 0 | H49: 0 | I49: =SUM(SUMIFS(I$3:I$8,$A$3:$A$8,IF(Dashboard!$B$44:$B$100=TRIM(SUBSTITUTE($A49,"TOTAL","",1)),Dashboard!$A$44:$A$100),$B$3:$B$8,$B49)) -> 0 | J49: =SUM(SUMIFS(J$3:J$8,$A$3:$A$8,IF(Dashboard!$B$44:$B$100=TRIM(SUBSTITUTE($A49,"TOTAL","",1)),Dashboard!$A$44:$A$100),$B$3:$B$8,$B49)) -> 0 | K49: =SUM(SUMIFS(K$3:K$8,$A$3:$A$8,IF(Dashboard!$B$44:$B$100=TRIM(SUBSTITUTE($A49,"TOTAL","",1)),Dashboard!$A$44:$A$100),$B$3:$B$8,$B49)) -> 0 | L49: =SUM(SUMIFS(L$3:L$8,$A$3:$A$8,IF(Dashboard!$B$44:$B$100=TRIM(SUBSTITUTE($A49,"TOTAL","",1)),Dashboard!$A$44:$A$100),$B$3:$B$8,$B49)) -> 0 | M49: =SUM(SUMIFS(M$3:M$8,$A$3:$A$8,IF(Dashboard!$B$44:$B$100=TRIM(SUBSTITUTE($A49,"TOTAL","",1)),Dashboard!$A$44:$A$100),$B$3:$B$8,$B49)) -> 0 | N49: =SUM(SUMIFS(N$3:N$8,$A$3:$A$8,IF(Dashboard!$B$44:$B$100=TRIM(SUBSTITUTE($A49,"TOTAL","",1)),Dashboard!$A$44:$A$100),$B$3:$B$8,$B49)) -> 0 | O49: =SUM(SUMIFS(O$3:O$8,$A$3:$A$8,IF(Dashboard!$B$44:$B$100=TRIM(SUBSTITUTE($A49,"TOTAL","",1)),Dashboard!$A$44:$A$100),$B$3:$B$8,$B49)) -> 0 | P49: =SUM(SUMIFS(P$3:P$8,$A$3:$A$8,IF(Dashboard!$B$44:$B$100=TRIM(SUBSTITUTE($A49,"TOTAL","",1)),Dashboard!$A$44:$A$100),$B$3:$B$8,$B49)) -> 0 | Q49: 0 | R49: 0 | S49: 0 | T49: 0 | V49: =SUM(SUMIFS(V$3:V$8,$A$3:$A$8,IF(Dashboard!$B$44:$B$100=TRIM(SUBSTITUTE($A49,"TOTAL","",1)),Dashboard!$A$44:$A$100),$B$3:$B$8,$B49)) -> 0 | W49: =SUM(SUMIFS(W$3:W$8,$A$3:$A$8,IF(Dashboard!$B$44:$B$100=TRIM(SUBSTITUTE($A49,"TOTAL","",1)),Dashboard!$A$44:$A$100),$B$3:$B$8,$B49)) -> 0 | X49: =SUM(SUMIFS(X$3:X$8,$A$3:$A$8,IF(Dashboard!$B$44:$B$100=TRIM(SUBSTITUTE($A49,"TOTAL","",1)),Dashboard!$A$44:$A$100),$B$3:$B$8,$B49)) -> 0 | Y49: 0 | Z49: =SUM(SUMIFS(Z$3:Z$8,$A$3:$A$8,IF(Dashboard!$B$44:$B$100=TRIM(SUBSTITUTE($A49,"TOTAL","",1)),Dashboard!$A$44:$A$100),$B$3:$B$8,$B49)) -> 0 | AA49: 0 | AB49: =SUM(SUMIFS(AB$3:AB$8,$A$3:$A$8,IF(Dashboard!$B$44:$B$100=TRIM(SUBSTITUTE($A49,"TOTAL","",1)),Dashboard!$A$44:$A$100),$B$3:$B$8,$B49)) -> 0 | AC49: =SUM(SUMIFS(AC$3:AC$8,$A$3:$A$8,IF(Dashboard!$B$44:$B$100=TRIM(SUBSTITUTE($A49,"TOTAL","",1)),Dashboard!$A$44:$A$100),$B$3:$B$8,$B49)) -> 0 | AD49: =SUM(SUMIFS(AD$3:AD$8,$A$3:$A$8,IF(Dashboard!$B$44:$B$100=TRIM(SUBSTITUTE($A49,"TOTAL","",1)),Dashboard!$A$44:$A$100),$B$3:$B$8,$B49)) -> 0 | AE49: =SUM(SUMIFS(AE$3:AE$8,$A$3:$A$8,IF(Dashboard!$B$44:$B$100=TRIM(SUBSTITUTE($A49,"TOTAL","",1)),Dashboard!$A$44:$A$100),$B$3:$B$8,$B49)) -> 0 | AF49: =SUM(SUMIFS(AF$3:AF$8,$A$3:$A$8,IF(Dashboard!$B$44:$B$100=TRIM(SUBSTITUTE($A49,"TOTAL","",1)),Dashboard!$A$44:$A$100),$B$3:$B$8,$B49)) -> 0 | AG49: =SUM(SUMIFS(AG$3:AG$8,$A$3:$A$8,IF(Dashboard!$B$44:$B$100=TRIM(SUBSTITUTE($A49,"TOTAL","",1)),Dashboard!$A$44:$A$100),$B$3:$B$8,$B49)) -> 0 | AH49: =SUM(SUMIFS(AH$3:AH$8,$A$3:$A$8,IF(Dashboard!$B$44:$B$100=TRIM(SUBSTITUTE($A49,"TOTAL","",1)),Dashboard!$A$44:$A$100),$B$3:$B$8,$B49)) -> 0 | AI49: =SUM(SUMIFS(AI$3:AI$8,$A$3:$A$8,IF(Dashboard!$B$44:$B$100=TRIM(SUBSTITUTE($A49,"TOTAL","",1)),Dashboard!$A$44:$A$100),$B$3:$B$8,$B49)) -> 0 | AJ49: 0 | AK49: 0 | AM49: =SUM(SUMIFS(AM$3:AM$8,$A$3:$A$8,IF(Dashboard!$B$44:$B$100=TRIM(SUBSTITUTE($A49,"TOTAL","",1)),Dashboard!$A$44:$A$100),$B$3:$B$8,$B49)) -> 0 | AN49: =SUM(SUMIFS(AN$3:AN$8,$A$3:$A$8,IF(Dashboard!$B$44:$B$100=TRIM(SUBSTITUTE($A49,"TOTAL","",1)),Dashboard!$A$44:$A$100),$B$3:$B$8,$B49)) -> 0 | AO49: =SUM(SUMIFS(AO$3:AO$8,$A$3:$A$8,IF(Dashboard!$B$44:$B$100=TRIM(SUBSTITUTE($A49,"TOTAL","",1)),Dashboard!$A$44:$A$100),$B$3:$B$8,$B49)) -> 0 | AP49: =SUM(SUMIFS(AP$3:AP$8,$A$3:$A$8,IF(Dashboard!$B$44:$B$100=TRIM(SUBSTITUTE($A49,"TOTAL","",1)),Dashboard!$A$44:$A$100),$B$3:$B$8,$B49)) -> 0 | AQ49: =SUM(SUMIFS(AQ$3:AQ$8,$A$3:$A$8,IF(Dashboard!$B$44:$B$100=TRIM(SUBSTITUTE($A49,"TOTAL","",1)),Dashboard!$A$44:$A$100),$B$3:$B$8,$B49)) -> 0 | AR49: =SUM(SUMIFS(AR$3:AR$8,$A$3:$A$8,IF(Dashboard!$B$44:$B$100=TRIM(SUBSTITUTE($A49,"TOTAL","",1)),Dashboard!$A$44:$A$100),$B$3:$B$8,$B49)) -> 0 | AT49: =SUM(SUMIFS(AT$3:AT$8,$A$3:$A$8,IF(Dashboard!$B$44:$B$100=TRIM(SUBSTITUTE($A49,"TOTAL","",1)),Dashboard!$A$44:$A$100),$B$3:$B$8,$B49)) -> 0 | AV49: =SUM(SUMIFS(AV$3:AV$8,$A$3:$A$8,IF(Dashboard!$B$44:$B$100=TRIM(SUBSTITUTE($A49,"TOTAL","",1)),Dashboard!$A$44:$A$100),$B$3:$B$8,$B49)) -> 0 | AW49: =SUM(SUMIFS(AW$3:AW$8,$A$3:$A$8,IF(Dashboard!$B$44:$B$100=TRIM(SUBSTITUTE($A49,"TOTAL","",1)),Dashboard!$A$44:$A$100),$B$3:$B$8,$B49)) -> 0 | AX49: =SUM(SUMIFS(AX$3:AX$8,$A$3:$A$8,IF(Dashboard!$B$44:$B$100=TRIM(SUBSTITUTE($A49,"TOTAL","",1)),Dashboard!$A$44:$A$100),$B$3:$B$8,$B49)) -> 0 | AY49: 0 | BA49: 0 | BB49: 0 | BD49: =SUM(SUMIFS(BD$3:BD$8,$A$3:$A$8,IF(Dashboard!$B$44:$B$100=TRIM(SUBSTITUTE($A49,"TOTAL","",1)),Dashboard!$A$44:$A$100),$B$3:$B$8,$B49)) -> 0 | BE49: =SUM(SUMIFS(BE$3:BE$8,$A$3:$A$8,IF(Dashboard!$B$44:$B$100=TRIM(SUBSTITUTE($A49,"TOTAL","",1)),Dashboard!$A$44:$A$100),$B$3:$B$8,$B49)) -> 0 | BF49: 0 | BH49: =SUM(SUMIFS(BH$3:BH$8,$A$3:$A$8,IF(Dashboard!$B$44:$B$100=TRIM(SUBSTITUTE($A49,"TOTAL","",1)),Dashboard!$A$44:$A$100),$B$3:$B$8,$B49)) -> 0 | BI49: =SUM(SUMIFS(BI$3:BI$8,$A$3:$A$8,IF(Dashboard!$B$44:$B$100=TRIM(SUBSTITUTE($A49,"TOTAL","",1)),Dashboard!$A$44:$A$100),$B$3:$B$8,$B49)) -> 0 | BJ49: 0 | BL49: =SUM(SUMIFS(BL$3:BL$8,$A$3:$A$8,IF(Dashboard!$B$44:$B$100=TRIM(SUBSTITUTE($A49,"TOTAL","",1)),Dashboard!$A$44:$A$100),$B$3:$B$8,$B49)) -> 0
A50: P2 TOTAL | B50: Vancouver | C50: =SUM(SUMIFS(C$3:C$8,$A$3:$A$8,IF(Dashboard!$B$44:$B$100=TRIM(SUBSTITUTE($A50,"TOTAL","",1)),Dashboard!$A$44:$A$100),$B$3:$B$8,$B50)) -> 0 | D50: =SUM(SUMIFS(D$3:D$8,$A$3:$A$8,IF(Dashboard!$B$44:$B$100=TRIM(SUBSTITUTE($A50,"TOTAL","",1)),Dashboard!$A$44:$A$100),$B$3:$B$8,$B50)) -> 0 | E50: =SUM(SUMIFS(E$3:E$8,$A$3:$A$8,IF(Dashboard!$B$44:$B$100=TRIM(SUBSTITUTE($A50,"TOTAL","",1)),Dashboard!$A$44:$A$100),$B$3:$B$8,$B50)) -> 0 | F50: 0 | G50: =SUM(SUMIFS(G$3:G$8,$A$3:$A$8,IF(Dashboard!$B$44:$B$100=TRIM(SUBSTITUTE($A50,"TOTAL","",1)),Dashboard!$A$44:$A$100),$B$3:$B$8,$B50)) -> 0 | H50: 0 | I50: =SUM(SUMIFS(I$3:I$8,$A$3:$A$8,IF(Dashboard!$B$44:$B$100=TRIM(SUBSTITUTE($A50,"TOTAL","",1)),Dashboard!$A$44:$A$100),$B$3:$B$8,$B50)) -> 0 | J50: =SUM(SUMIFS(J$3:J$8,$A$3:$A$8,IF(Dashboard!$B$44:$B$100=TRIM(SUBSTITUTE($A50,"TOTAL","",1)),Dashboard!$A$44:$A$100),$B$3:$B$8,$B50)) -> 0 | K50: =SUM(SUMIFS(K$3:K$8,$A$3:$A$8,IF(Dashboard!$B$44:$B$100=TRIM(SUBSTITUTE($A50,"TOTAL","",1)),Dashboard!$A$44:$A$100),$B$3:$B$8,$B50)) -> 0 | L50: =SUM(SUMIFS(L$3:L$8,$A$3:$A$8,IF(Dashboard!$B$44:$B$100=TRIM(SUBSTITUTE($A50,"TOTAL","",1)),Dashboard!$A$44:$A$100),$B$3:$B$8,$B50)) -> 0 | M50: =SUM(SUMIFS(M$3:M$8,$A$3:$A$8,IF(Dashboard!$B$44:$B$100=TRIM(SUBSTITUTE($A50,"TOTAL","",1)),Dashboard!$A$44:$A$100),$B$3:$B$8,$B50)) -> 0 | N50: =SUM(SUMIFS(N$3:N$8,$A$3:$A$8,IF(Dashboard!$B$44:$B$100=TRIM(SUBSTITUTE($A50,"TOTAL","",1)),Dashboard!$A$44:$A$100),$B$3:$B$8,$B50)) -> 0 | O50: =SUM(SUMIFS(O$3:O$8,$A$3:$A$8,IF(Dashboard!$B$44:$B$100=TRIM(SUBSTITUTE($A50,"TOTAL","",1)),Dashboard!$A$44:$A$100),$B$3:$B$8,$B50)) -> 0 | P50: =SUM(SUMIFS(P$3:P$8,$A$3:$A$8,IF(Dashboard!$B$44:$B$100=TRIM(SUBSTITUTE($A50,"TOTAL","",1)),Dashboard!$A$44:$A$100),$B$3:$B$8,$B50)) -> 0 | Q50: 0 | R50: 0 | S50: 0 | T50: 0 | V50: =SUM(SUMIFS(V$3:V$8,$A$3:$A$8,IF(Dashboard!$B$44:$B$100=TRIM(SUBSTITUTE($A50,"TOTAL","",1)),Dashboard!$A$44:$A$100),$B$3:$B$8,$B50)) -> 0 | W50: =SUM(SUMIFS(W$3:W$8,$A$3:$A$8,IF(Dashboard!$B$44:$B$100=TRIM(SUBSTITUTE($A50,"TOTAL","",1)),Dashboard!$A$44:$A$100),$B$3:$B$8,$B50)) -> 0 | X50: =SUM(SUMIFS(X$3:X$8,$A$3:$A$8,IF(Dashboard!$B$44:$B$100=TRIM(SUBSTITUTE($A50,"TOTAL","",1)),Dashboard!$A$44:$A$100),$B$3:$B$8,$B50)) -> 0 | Y50: 0 | Z50: =SUM(SUMIFS(Z$3:Z$8,$A$3:$A$8,IF(Dashboard!$B$44:$B$100=TRIM(SUBSTITUTE($A50,"TOTAL","",1)),Dashboard!$A$44:$A$100),$B$3:$B$8,$B50)) -> 0 | AA50: 0 | AB50: =SUM(SUMIFS(AB$3:AB$8,$A$3:$A$8,IF(Dashboard!$B$44:$B$100=TRIM(SUBSTITUTE($A50,"TOTAL","",1)),Dashboard!$A$44:$A$100),$B$3:$B$8,$B50)) -> 0 | AC50: =SUM(SUMIFS(AC$3:AC$8,$A$3:$A$8,IF(Dashboard!$B$44:$B$100=TRIM(SUBSTITUTE($A50,"TOTAL","",1)),Dashboard!$A$44:$A$100),$B$3:$B$8,$B50)) -> 0 | AD50: =SUM(SUMIFS(AD$3:AD$8,$A$3:$A$8,IF(Dashboard!$B$44:$B$100=TRIM(SUBSTITUTE($A50,"TOTAL","",1)),Dashboard!$A$44:$A$100),$B$3:$B$8,$B50)) -> 0 | AE50: =SUM(SUMIFS(AE$3:AE$8,$A$3:$A$8,IF(Dashboard!$B$44:$B$100=TRIM(SUBSTITUTE($A50,"TOTAL","",1)),Dashboard!$A$44:$A$100),$B$3:$B$8,$B50)) -> 0 | AF50: =SUM(SUMIFS(AF$3:AF$8,$A$3:$A$8,IF(Dashboard!$B$44:$B$100=TRIM(SUBSTITUTE($A50,"TOTAL","",1)),Dashboard!$A$44:$A$100),$B$3:$B$8,$B50)) -> 0 | AG50: =SUM(SUMIFS(AG$3:AG$8,$A$3:$A$8,IF(Dashboard!$B$44:$B$100=TRIM(SUBSTITUTE($A50,"TOTAL","",1)),Dashboard!$A$44:$A$100),$B$3:$B$8,$B50)) -> 0 | AH50: =SUM(SUMIFS(AH$3:AH$8,$A$3:$A$8,IF(Dashboard!$B$44:$B$100=TRIM(SUBSTITUTE($A50,"TOTAL","",1)),Dashboard!$A$44:$A$100),$B$3:$B$8,$B50)) -> 0 | AI50: =SUM(SUMIFS(AI$3:AI$8,$A$3:$A$8,IF(Dashboard!$B$44:$B$100=TRIM(SUBSTITUTE($A50,"TOTAL","",1)),Dashboard!$A$44:$A$100),$B$3:$B$8,$B50)) -> 0 | AJ50: 0 | AK50: 0 | AM50: =SUM(SUMIFS(AM$3:AM$8,$A$3:$A$8,IF(Dashboard!$B$44:$B$100=TRIM(SUBSTITUTE($A50,"TOTAL","",1)),Dashboard!$A$44:$A$100),$B$3:$B$8,$B50)) -> 0 | AN50: =SUM(SUMIFS(AN$3:AN$8,$A$3:$A$8,IF(Dashboard!$B$44:$B$100=TRIM(SUBSTITUTE($A50,"TOTAL","",1)),Dashboard!$A$44:$A$100),$B$3:$B$8,$B50)) -> 0 | AO50: =SUM(SUMIFS(AO$3:AO$8,$A$3:$A$8,IF(Dashboard!$B$44:$B$100=TRIM(SUBSTITUTE($A50,"TOTAL","",1)),Dashboard!$A$44:$A$100),$B$3:$B$8,$B50)) -> 0 | AP50: =SUM(SUMIFS(AP$3:AP$8,$A$3:$A$8,IF(Dashboard!$B$44:$B$100=TRIM(SUBSTITUTE($A50,"TOTAL","",1)),Dashboard!$A$44:$A$100),$B$3:$B$8,$B50)) -> 0 | AQ50: =SUM(SUMIFS(AQ$3:AQ$8,$A$3:$A$8,IF(Dashboard!$B$44:$B$100=TRIM(SUBSTITUTE($A50,"TOTAL","",1)),Dashboard!$A$44:$A$100),$B$3:$B$8,$B50)) -> 0 | AR50: =SUM(SUMIFS(AR$3:AR$8,$A$3:$A$8,IF(Dashboard!$B$44:$B$100=TRIM(SUBSTITUTE($A50,"TOTAL","",1)),Dashboard!$A$44:$A$100),$B$3:$B$8,$B50)) -> 0 | AT50: =SUM(SUMIFS(AT$3:AT$8,$A$3:$A$8,IF(Dashboard!$B$44:$B$100=TRIM(SUBSTITUTE($A50,"TOTAL","",1)),Dashboard!$A$44:$A$100),$B$3:$B$8,$B50)) -> 0 | AV50: =SUM(SUMIFS(AV$3:AV$8,$A$3:$A$8,IF(Dashboard!$B$44:$B$100=TRIM(SUBSTITUTE($A50,"TOTAL","",1)),Dashboard!$A$44:$A$100),$B$3:$B$8,$B50)) -> 0 | AW50: =SUM(SUMIFS(AW$3:AW$8,$A$3:$A$8,IF(Dashboard!$B$44:$B$100=TRIM(SUBSTITUTE($A50,"TOTAL","",1)),Dashboard!$A$44:$A$100),$B$3:$B$8,$B50)) -> 0 | AX50: =SUM(SUMIFS(AX$3:AX$8,$A$3:$A$8,IF(Dashboard!$B$44:$B$100=TRIM(SUBSTITUTE($A50,"TOTAL","",1)),Dashboard!$A$44:$A$100),$B$3:$B$8,$B50)) -> 0 | AY50: 0 | BA50: 0 | BB50: 0 | BD50: =SUM(SUMIFS(BD$3:BD$8,$A$3:$A$8,IF(Dashboard!$B$44:$B$100=TRIM(SUBSTITUTE($A50,"TOTAL","",1)),Dashboard!$A$44:$A$100),$B$3:$B$8,$B50)) -> 0 | BE50: =SUM(SUMIFS(BE$3:BE$8,$A$3:$A$8,IF(Dashboard!$B$44:$B$100=TRIM(SUBSTITUTE($A50,"TOTAL","",1)),Dashboard!$A$44:$A$100),$B$3:$B$8,$B50)) -> 0 | BF50: 0 | BH50: =SUM(SUMIFS(BH$3:BH$8,$A$3:$A$8,IF(Dashboard!$B$44:$B$100=TRIM(SUBSTITUTE($A50,"TOTAL","",1)),Dashboard!$A$44:$A$100),$B$3:$B$8,$B50)) -> 0 | BI50: =SUM(SUMIFS(BI$3:BI$8,$A$3:$A$8,IF(Dashboard!$B$44:$B$100=TRIM(SUBSTITUTE($A50,"TOTAL","",1)),Dashboard!$A$44:$A$100),$B$3:$B$8,$B50)) -> 0 | BJ50: 0 | BL50: =SUM(SUMIFS(BL$3:BL$8,$A$3:$A$8,IF(Dashboard!$B$44:$B$100=TRIM(SUBSTITUTE($A50,"TOTAL","",1)),Dashboard!$A$44:$A$100),$B$3:$B$8,$B50)) -> 0
A52: P3 TOTAL | B52: Atlanta | C52: =SUM(SUMIFS(C$3:C$8,$A$3:$A$8,IF(Dashboard!$B$44:$B$100=TRIM(SUBSTITUTE($A52,"TOTAL","",1)),Dashboard!$A$44:$A$100),$B$3:$B$8,$B52)) -> 0 | D52: =SUM(SUMIFS(D$3:D$8,$A$3:$A$8,IF(Dashboard!$B$44:$B$100=TRIM(SUBSTITUTE($A52,"TOTAL","",1)),Dashboard!$A$44:$A$100),$B$3:$B$8,$B52)) -> 0 | E52: =SUM(SUMIFS(E$3:E$8,$A$3:$A$8,IF(Dashboard!$B$44:$B$100=TRIM(SUBSTITUTE($A52,"TOTAL","",1)),Dashboard!$A$44:$A$100),$B$3:$B$8,$B52)) -> 0 | F52: 0 | G52: =SUM(SUMIFS(G$3:G$8,$A$3:$A$8,IF(Dashboard!$B$44:$B$100=TRIM(SUBSTITUTE($A52,"TOTAL","",1)),Dashboard!$A$44:$A$100),$B$3:$B$8,$B52)) -> 0 | H52: 0 | I52: =SUM(SUMIFS(I$3:I$8,$A$3:$A$8,IF(Dashboard!$B$44:$B$100=TRIM(SUBSTITUTE($A52,"TOTAL","",1)),Dashboard!$A$44:$A$100),$B$3:$B$8,$B52)) -> 0 | J52: =SUM(SUMIFS(J$3:J$8,$A$3:$A$8,IF(Dashboard!$B$44:$B$100=TRIM(SUBSTITUTE($A52,"TOTAL","",1)),Dashboard!$A$44:$A$100),$B$3:$B$8,$B52)) -> 0 | K52: =SUM(SUMIFS(K$3:K$8,$A$3:$A$8,IF(Dashboard!$B$44:$B$100=TRIM(SUBSTITUTE($A52,"TOTAL","",1)),Dashboard!$A$44:$A$100),$B$3:$B$8,$B52)) -> 0 | L52: =SUM(SUMIFS(L$3:L$8,$A$3:$A$8,IF(Dashboard!$B$44:$B$100=TRIM(SUBSTITUTE($A52,"TOTAL","",1)),Dashboard!$A$44:$A$100),$B$3:$B$8,$B52)) -> 0 | M52: =SUM(SUMIFS(M$3:M$8,$A$3:$A$8,IF(Dashboard!$B$44:$B$100=TRIM(SUBSTITUTE($A52,"TOTAL","",1)),Dashboard!$A$44:$A$100),$B$3:$B$8,$B52)) -> 0 | N52: =SUM(SUMIFS(N$3:N$8,$A$3:$A$8,IF(Dashboard!$B$44:$B$100=TRIM(SUBSTITUTE($A52,"TOTAL","",1)),Dashboard!$A$44:$A$100),$B$3:$B$8,$B52)) -> 0 | O52: =SUM(SUMIFS(O$3:O$8,$A$3:$A$8,IF(Dashboard!$B$44:$B$100=TRIM(SUBSTITUTE($A52,"TOTAL","",1)),Dashboard!$A$44:$A$100),$B$3:$B$8,$B52)) -> 0 | P52: =SUM(SUMIFS(P$3:P$8,$A$3:$A$8,IF(Dashboard!$B$44:$B$100=TRIM(SUBSTITUTE($A52,"TOTAL","",1)),Dashboard!$A$44:$A$100),$B$3:$B$8,$B52)) -> 0 | Q52: 0 | R52: 0 | S52: 0 | T52: 0 | V52: =SUM(SUMIFS(V$3:V$8,$A$3:$A$8,IF(Dashboard!$B$44:$B$100=TRIM(SUBSTITUTE($A52,"TOTAL","",1)),Dashboard!$A$44:$A$100),$B$3:$B$8,$B52)) -> 0 | W52: =SUM(SUMIFS(W$3:W$8,$A$3:$A$8,IF(Dashboard!$B$44:$B$100=TRIM(SUBSTITUTE($A52,"TOTAL","",1)),Dashboard!$A$44:$A$100),$B$3:$B$8,$B52)) -> 0 | X52: =SUM(SUMIFS(X$3:X$8,$A$3:$A$8,IF(Dashboard!$B$44:$B$100=TRIM(SUBSTITUTE($A52,"TOTAL","",1)),Dashboard!$A$44:$A$100),$B$3:$B$8,$B52)) -> 0 | Y52: 0 | Z52: =SUM(SUMIFS(Z$3:Z$8,$A$3:$A$8,IF(Dashboard!$B$44:$B$100=TRIM(SUBSTITUTE($A52,"TOTAL","",1)),Dashboard!$A$44:$A$100),$B$3:$B$8,$B52)) -> 0 | AA52: 0 | AB52: =SUM(SUMIFS(AB$3:AB$8,$A$3:$A$8,IF(Dashboard!$B$44:$B$100=TRIM(SUBSTITUTE($A52,"TOTAL","",1)),Dashboard!$A$44:$A$100),$B$3:$B$8,$B52)) -> 0 | AC52: =SUM(SUMIFS(AC$3:AC$8,$A$3:$A$8,IF(Dashboard!$B$44:$B$100=TRIM(SUBSTITUTE($A52,"TOTAL","",1)),Dashboard!$A$44:$A$100),$B$3:$B$8,$B52)) -> 0 | AD52: =SUM(SUMIFS(AD$3:AD$8,$A$3:$A$8,IF(Dashboard!$B$44:$B$100=TRIM(SUBSTITUTE($A52,"TOTAL","",1)),Dashboard!$A$44:$A$100),$B$3:$B$8,$B52)) -> 0 | AE52: =SUM(SUMIFS(AE$3:AE$8,$A$3:$A$8,IF(Dashboard!$B$44:$B$100=TRIM(SUBSTITUTE($A52,"TOTAL","",1)),Dashboard!$A$44:$A$100),$B$3:$B$8,$B52)) -> 0 | AF52: =SUM(SUMIFS(AF$3:AF$8,$A$3:$A$8,IF(Dashboard!$B$44:$B$100=TRIM(SUBSTITUTE($A52,"TOTAL","",1)),Dashboard!$A$44:$A$100),$B$3:$B$8,$B52)) -> 0 | AG52: =SUM(SUMIFS(AG$3:AG$8,$A$3:$A$8,IF(Dashboard!$B$44:$B$100=TRIM(SUBSTITUTE($A52,"TOTAL","",1)),Dashboard!$A$44:$A$100),$B$3:$B$8,$B52)) -> 0 | AH52: =SUM(SUMIFS(AH$3:AH$8,$A$3:$A$8,IF(Dashboard!$B$44:$B$100=TRIM(SUBSTITUTE($A52,"TOTAL","",1)),Dashboard!$A$44:$A$100),$B$3:$B$8,$B52)) -> 0 | AI52: =SUM(SUMIFS(AI$3:AI$8,$A$3:$A$8,IF(Dashboard!$B$44:$B$100=TRIM(SUBSTITUTE($A52,"TOTAL","",1)),Dashboard!$A$44:$A$100),$B$3:$B$8,$B52)) -> 0 | AJ52: 0 | AK52: 0 | AM52: =SUM(SUMIFS(AM$3:AM$8,$A$3:$A$8,IF(Dashboard!$B$44:$B$100=TRIM(SUBSTITUTE($A52,"TOTAL","",1)),Dashboard!$A$44:$A$100),$B$3:$B$8,$B52)) -> 0 | AN52: =SUM(SUMIFS(AN$3:AN$8,$A$3:$A$8,IF(Dashboard!$B$44:$B$100=TRIM(SUBSTITUTE($A52,"TOTAL","",1)),Dashboard!$A$44:$A$100),$B$3:$B$8,$B52)) -> 0 | AO52: =SUM(SUMIFS(AO$3:AO$8,$A$3:$A$8,IF(Dashboard!$B$44:$B$100=TRIM(SUBSTITUTE($A52,"TOTAL","",1)),Dashboard!$A$44:$A$100),$B$3:$B$8,$B52)) -> 0 | AP52: =SUM(SUMIFS(AP$3:AP$8,$A$3:$A$8,IF(Dashboard!$B$44:$B$100=TRIM(SUBSTITUTE($A52,"TOTAL","",1)),Dashboard!$A$44:$A$100),$B$3:$B$8,$B52)) -> 0 | AQ52: =SUM(SUMIFS(AQ$3:AQ$8,$A$3:$A$8,IF(Dashboard!$B$44:$B$100=TRIM(SUBSTITUTE($A52,"TOTAL","",1)),Dashboard!$A$44:$A$100),$B$3:$B$8,$B52)) -> 0 | AR52: =SUM(SUMIFS(AR$3:AR$8,$A$3:$A$8,IF(Dashboard!$B$44:$B$100=TRIM(SUBSTITUTE($A52,"TOTAL","",1)),Dashboard!$A$44:$A$100),$B$3:$B$8,$B52)) -> 0 | AT52: =SUM(SUMIFS(AT$3:AT$8,$A$3:$A$8,IF(Dashboard!$B$44:$B$100=TRIM(SUBSTITUTE($A52,"TOTAL","",1)),Dashboard!$A$44:$A$100),$B$3:$B$8,$B52)) -> 0 | AV52: =SUM(SUMIFS(AV$3:AV$8,$A$3:$A$8,IF(Dashboard!$B$44:$B$100=TRIM(SUBSTITUTE($A52,"TOTAL","",1)),Dashboard!$A$44:$A$100),$B$3:$B$8,$B52)) -> 0 | AW52: =SUM(SUMIFS(AW$3:AW$8,$A$3:$A$8,IF(Dashboard!$B$44:$B$100=TRIM(SUBSTITUTE($A52,"TOTAL","",1)),Dashboard!$A$44:$A$100),$B$3:$B$8,$B52)) -> 0 | AX52: =SUM(SUMIFS(AX$3:AX$8,$A$3:$A$8,IF(Dashboard!$B$44:$B$100=TRIM(SUBSTITUTE($A52,"TOTAL","",1)),Dashboard!$A$44:$A$100),$B$3:$B$8,$B52)) -> 0 | AY52: 0 | BA52: 0 | BB52: 0 | BD52: =SUM(SUMIFS(BD$3:BD$8,$A$3:$A$8,IF(Dashboard!$B$44:$B$100=TRIM(SUBSTITUTE($A52,"TOTAL","",1)),Dashboard!$A$44:$A$100),$B$3:$B$8,$B52)) -> 0 | BE52: =SUM(SUMIFS(BE$3:BE$8,$A$3:$A$8,IF(Dashboard!$B$44:$B$100=TRIM(SUBSTITUTE($A52,"TOTAL","",1)),Dashboard!$A$44:$A$100),$B$3:$B$8,$B52)) -> 0 | BF52: 0 | BH52: =SUM(SUMIFS(BH$3:BH$8,$A$3:$A$8,IF(Dashboard!$B$44:$B$100=TRIM(SUBSTITUTE($A52,"TOTAL","",1)),Dashboard!$A$44:$A$100),$B$3:$B$8,$B52)) -> 0 | BI52: =SUM(SUMIFS(BI$3:BI$8,$A$3:$A$8,IF(Dashboard!$B$44:$B$100=TRIM(SUBSTITUTE($A52,"TOTAL","",1)),Dashboard!$A$44:$A$100),$B$3:$B$8,$B52)) -> 0 | BJ52: 0 | BL52: =SUM(SUMIFS(BL$3:BL$8,$A$3:$A$8,IF(Dashboard!$B$44:$B$100=TRIM(SUBSTITUTE($A52,"TOTAL","",1)),Dashboard!$A$44:$A$100),$B$3:$B$8,$B52)) -> 0
A53: P3 TOTAL | B53: Calgary | C53: =SUM(SUMIFS(C$3:C$8,$A$3:$A$8,IF(Dashboard!$B$44:$B$100=TRIM(SUBSTITUTE($A53,"TOTAL","",1)),Dashboard!$A$44:$A$100),$B$3:$B$8,$B53)) -> 0 | D53: =SUM(SUMIFS(D$3:D$8,$A$3:$A$8,IF(Dashboard!$B$44:$B$100=TRIM(SUBSTITUTE($A53,"TOTAL","",1)),Dashboard!$A$44:$A$100),$B$3:$B$8,$B53)) -> 0 | E53: =SUM(SUMIFS(E$3:E$8,$A$3:$A$8,IF(Dashboard!$B$44:$B$100=TRIM(SUBSTITUTE($A53,"TOTAL","",1)),Dashboard!$A$44:$A$100),$B$3:$B$8,$B53)) -> 0 | F53: 0 | G53: =SUM(SUMIFS(G$3:G$8,$A$3:$A$8,IF(Dashboard!$B$44:$B$100=TRIM(SUBSTITUTE($A53,"TOTAL","",1)),Dashboard!$A$44:$A$100),$B$3:$B$8,$B53)) -> 0 | H53: 0 | I53: =SUM(SUMIFS(I$3:I$8,$A$3:$A$8,IF(Dashboard!$B$44:$B$100=TRIM(SUBSTITUTE($A53,"TOTAL","",1)),Dashboard!$A$44:$A$100),$B$3:$B$8,$B53)) -> 0 | J53: =SUM(SUMIFS(J$3:J$8,$A$3:$A$8,IF(Dashboard!$B$44:$B$100=TRIM(SUBSTITUTE($A53,"TOTAL","",1)),Dashboard!$A$44:$A$100),$B$3:$B$8,$B53)) -> 0 | K53: =SUM(SUMIFS(K$3:K$8,$A$3:$A$8,IF(Dashboard!$B$44:$B$100=TRIM(SUBSTITUTE($A53,"TOTAL","",1)),Dashboard!$A$44:$A$100),$B$3:$B$8,$B53)) -> 0 | L53: =SUM(SUMIFS(L$3:L$8,$A$3:$A$8,IF(Dashboard!$B$44:$B$100=TRIM(SUBSTITUTE($A53,"TOTAL","",1)),Dashboard!$A$44:$A$100),$B$3:$B$8,$B53)) -> 0 | M53: =SUM(SUMIFS(M$3:M$8,$A$3:$A$8,IF(Dashboard!$B$44:$B$100=TRIM(SUBSTITUTE($A53,"TOTAL","",1)),Dashboard!$A$44:$A$100),$B$3:$B$8,$B53)) -> 0 | N53: =SUM(SUMIFS(N$3:N$8,$A$3:$A$8,IF(Dashboard!$B$44:$B$100=TRIM(SUBSTITUTE($A53,"TOTAL","",1)),Dashboard!$A$44:$A$100),$B$3:$B$8,$B53)) -> 0 | O53: =SUM(SUMIFS(O$3:O$8,$A$3:$A$8,IF(Dashboard!$B$44:$B$100=TRIM(SUBSTITUTE($A53,"TOTAL","",1)),Dashboard!$A$44:$A$100),$B$3:$B$8,$B53)) -> 0 | P53: =SUM(SUMIFS(P$3:P$8,$A$3:$A$8,IF(Dashboard!$B$44:$B$100=TRIM(SUBSTITUTE($A53,"TOTAL","",1)),Dashboard!$A$44:$A$100),$B$3:$B$8,$B53)) -> 0 | Q53: 0 | R53: 0 | S53: 0 | T53: 0 | V53: =SUM(SUMIFS(V$3:V$8,$A$3:$A$8,IF(Dashboard!$B$44:$B$100=TRIM(SUBSTITUTE($A53,"TOTAL","",1)),Dashboard!$A$44:$A$100),$B$3:$B$8,$B53)) -> 0 | W53: =SUM(SUMIFS(W$3:W$8,$A$3:$A$8,IF(Dashboard!$B$44:$B$100=TRIM(SUBSTITUTE($A53,"TOTAL","",1)),Dashboard!$A$44:$A$100),$B$3:$B$8,$B53)) -> 0 | X53: =SUM(SUMIFS(X$3:X$8,$A$3:$A$8,IF(Dashboard!$B$44:$B$100=TRIM(SUBSTITUTE($A53,"TOTAL","",1)),Dashboard!$A$44:$A$100),$B$3:$B$8,$B53)) -> 0 | Y53: 0 | Z53: =SUM(SUMIFS(Z$3:Z$8,$A$3:$A$8,IF(Dashboard!$B$44:$B$100=TRIM(SUBSTITUTE($A53,"TOTAL","",1)),Dashboard!$A$44:$A$100),$B$3:$B$8,$B53)) -> 0 | AA53: 0 | AB53: =SUM(SUMIFS(AB$3:AB$8,$A$3:$A$8,IF(Dashboard!$B$44:$B$100=TRIM(SUBSTITUTE($A53,"TOTAL","",1)),Dashboard!$A$44:$A$100),$B$3:$B$8,$B53)) -> 0 | AC53: =SUM(SUMIFS(AC$3:AC$8,$A$3:$A$8,IF(Dashboard!$B$44:$B$100=TRIM(SUBSTITUTE($A53,"TOTAL","",1)),Dashboard!$A$44:$A$100),$B$3:$B$8,$B53)) -> 0 | AD53: =SUM(SUMIFS(AD$3:AD$8,$A$3:$A$8,IF(Dashboard!$B$44:$B$100=TRIM(SUBSTITUTE($A53,"TOTAL","",1)),Dashboard!$A$44:$A$100),$B$3:$B$8,$B53)) -> 0 | AE53: =SUM(SUMIFS(AE$3:AE$8,$A$3:$A$8,IF(Dashboard!$B$44:$B$100=TRIM(SUBSTITUTE($A53,"TOTAL","",1)),Dashboard!$A$44:$A$100),$B$3:$B$8,$B53)) -> 0 | AF53: =SUM(SUMIFS(AF$3:AF$8,$A$3:$A$8,IF(Dashboard!$B$44:$B$100=TRIM(SUBSTITUTE($A53,"TOTAL","",1)),Dashboard!$A$44:$A$100),$B$3:$B$8,$B53)) -> 0 | AG53: =SUM(SUMIFS(AG$3:AG$8,$A$3:$A$8,IF(Dashboard!$B$44:$B$100=TRIM(SUBSTITUTE($A53,"TOTAL","",1)),Dashboard!$A$44:$A$100),$B$3:$B$8,$B53)) -> 0 | AH53: =SUM(SUMIFS(AH$3:AH$8,$A$3:$A$8,IF(Dashboard!$B$44:$B$100=TRIM(SUBSTITUTE($A53,"TOTAL","",1)),Dashboard!$A$44:$A$100),$B$3:$B$8,$B53)) -> 0 | AI53: =SUM(SUMIFS(AI$3:AI$8,$A$3:$A$8,IF(Dashboard!$B$44:$B$100=TRIM(SUBSTITUTE($A53,"TOTAL","",1)),Dashboard!$A$44:$A$100),$B$3:$B$8,$B53)) -> 0 | AJ53: 0 | AK53: 0 | AM53: =SUM(SUMIFS(AM$3:AM$8,$A$3:$A$8,IF(Dashboard!$B$44:$B$100=TRIM(SUBSTITUTE($A53,"TOTAL","",1)),Dashboard!$A$44:$A$100),$B$3:$B$8,$B53)) -> 0 | AN53: =SUM(SUMIFS(AN$3:AN$8,$A$3:$A$8,IF(Dashboard!$B$44:$B$100=TRIM(SUBSTITUTE($A53,"TOTAL","",1)),Dashboard!$A$44:$A$100),$B$3:$B$8,$B53)) -> 0 | AO53: =SUM(SUMIFS(AO$3:AO$8,$A$3:$A$8,IF(Dashboard!$B$44:$B$100=TRIM(SUBSTITUTE($A53,"TOTAL","",1)),Dashboard!$A$44:$A$100),$B$3:$B$8,$B53)) -> 0 | AP53: =SUM(SUMIFS(AP$3:AP$8,$A$3:$A$8,IF(Dashboard!$B$44:$B$100=TRIM(SUBSTITUTE($A53,"TOTAL","",1)),Dashboard!$A$44:$A$100),$B$3:$B$8,$B53)) -> 0 | AQ53: =SUM(SUMIFS(AQ$3:AQ$8,$A$3:$A$8,IF(Dashboard!$B$44:$B$100=TRIM(SUBSTITUTE($A53,"TOTAL","",1)),Dashboard!$A$44:$A$100),$B$3:$B$8,$B53)) -> 0 | AR53: =SUM(SUMIFS(AR$3:AR$8,$A$3:$A$8,IF(Dashboard!$B$44:$B$100=TRIM(SUBSTITUTE($A53,"TOTAL","",1)),Dashboard!$A$44:$A$100),$B$3:$B$8,$B53)) -> 0 | AT53: =SUM(SUMIFS(AT$3:AT$8,$A$3:$A$8,IF(Dashboard!$B$44:$B$100=TRIM(SUBSTITUTE($A53,"TOTAL","",1)),Dashboard!$A$44:$A$100),$B$3:$B$8,$B53)) -> 0 | AV53: =SUM(SUMIFS(AV$3:AV$8,$A$3:$A$8,IF(Dashboard!$B$44:$B$100=TRIM(SUBSTITUTE($A53,"TOTAL","",1)),Dashboard!$A$44:$A$100),$B$3:$B$8,$B53)) -> 0 | AW53: =SUM(SUMIFS(AW$3:AW$8,$A$3:$A$8,IF(Dashboard!$B$44:$B$100=TRIM(SUBSTITUTE($A53,"TOTAL","",1)),Dashboard!$A$44:$A$100),$B$3:$B$8,$B53)) -> 0 | AX53: =SUM(SUMIFS(AX$3:AX$8,$A$3:$A$8,IF(Dashboard!$B$44:$B$100=TRIM(SUBSTITUTE($A53,"TOTAL","",1)),Dashboard!$A$44:$A$100),$B$3:$B$8,$B53)) -> 0 | AY53: 0 | BA53: 0 | BB53: 0 | BD53: =SUM(SUMIFS(BD$3:BD$8,$A$3:$A$8,IF(Dashboard!$B$44:$B$100=TRIM(SUBSTITUTE($A53,"TOTAL","",1)),Dashboard!$A$44:$A$100),$B$3:$B$8,$B53)) -> 0 | BE53: =SUM(SUMIFS(BE$3:BE$8,$A$3:$A$8,IF(Dashboard!$B$44:$B$100=TRIM(SUBSTITUTE($A53,"TOTAL","",1)),Dashboard!$A$44:$A$100),$B$3:$B$8,$B53)) -> 0 | BF53: 0 | BH53: =SUM(SUMIFS(BH$3:BH$8,$A$3:$A$8,IF(Dashboard!$B$44:$B$100=TRIM(SUBSTITUTE($A53,"TOTAL","",1)),Dashboard!$A$44:$A$100),$B$3:$B$8,$B53)) -> 0 | BI53: =SUM(SUMIFS(BI$3:BI$8,$A$3:$A$8,IF(Dashboard!$B$44:$B$100=TRIM(SUBSTITUTE($A53,"TOTAL","",1)),Dashboard!$A$44:$A$100),$B$3:$B$8,$B53)) -> 0 | BJ53: 0 | BL53: =SUM(SUMIFS(BL$3:BL$8,$A$3:$A$8,IF(Dashboard!$B$44:$B$100=TRIM(SUBSTITUTE($A53,"TOTAL","",1)),Dashboard!$A$44:$A$100),$B$3:$B$8,$B53)) -> 0
A54: P3 TOTAL | B54: Chicago | C54: =SUM(SUMIFS(C$3:C$8,$A$3:$A$8,IF(Dashboard!$B$44:$B$100=TRIM(SUBSTITUTE($A54,"TOTAL","",1)),Dashboard!$A$44:$A$100),$B$3:$B$8,$B54)) -> 0 | D54: =SUM(SUMIFS(D$3:D$8,$A$3:$A$8,IF(Dashboard!$B$44:$B$100=TRIM(SUBSTITUTE($A54,"TOTAL","",1)),Dashboard!$A$44:$A$100),$B$3:$B$8,$B54)) -> 0 | E54: =SUM(SUMIFS(E$3:E$8,$A$3:$A$8,IF(Dashboard!$B$44:$B$100=TRIM(SUBSTITUTE($A54,"TOTAL","",1)),Dashboard!$A$44:$A$100),$B$3:$B$8,$B54)) -> 0 | F54: 0 | G54: =SUM(SUMIFS(G$3:G$8,$A$3:$A$8,IF(Dashboard!$B$44:$B$100=TRIM(SUBSTITUTE($A54,"TOTAL","",1)),Dashboard!$A$44:$A$100),$B$3:$B$8,$B54)) -> 0 | H54: 0 | I54: =SUM(SUMIFS(I$3:I$8,$A$3:$A$8,IF(Dashboard!$B$44:$B$100=TRIM(SUBSTITUTE($A54,"TOTAL","",1)),Dashboard!$A$44:$A$100),$B$3:$B$8,$B54)) -> 0 | J54: =SUM(SUMIFS(J$3:J$8,$A$3:$A$8,IF(Dashboard!$B$44:$B$100=TRIM(SUBSTITUTE($A54,"TOTAL","",1)),Dashboard!$A$44:$A$100),$B$3:$B$8,$B54)) -> 0 | K54: =SUM(SUMIFS(K$3:K$8,$A$3:$A$8,IF(Dashboard!$B$44:$B$100=TRIM(SUBSTITUTE($A54,"TOTAL","",1)),Dashboard!$A$44:$A$100),$B$3:$B$8,$B54)) -> 0 | L54: =SUM(SUMIFS(L$3:L$8,$A$3:$A$8,IF(Dashboard!$B$44:$B$100=TRIM(SUBSTITUTE($A54,"TOTAL","",1)),Dashboard!$A$44:$A$100),$B$3:$B$8,$B54)) -> 0 | M54: =SUM(SUMIFS(M$3:M$8,$A$3:$A$8,IF(Dashboard!$B$44:$B$100=TRIM(SUBSTITUTE($A54,"TOTAL","",1)),Dashboard!$A$44:$A$100),$B$3:$B$8,$B54)) -> 0 | N54: =SUM(SUMIFS(N$3:N$8,$A$3:$A$8,IF(Dashboard!$B$44:$B$100=TRIM(SUBSTITUTE($A54,"TOTAL","",1)),Dashboard!$A$44:$A$100),$B$3:$B$8,$B54)) -> 0 | O54: =SUM(SUMIFS(O$3:O$8,$A$3:$A$8,IF(Dashboard!$B$44:$B$100=TRIM(SUBSTITUTE($A54,"TOTAL","",1)),Dashboard!$A$44:$A$100),$B$3:$B$8,$B54)) -> 0 | P54: =SUM(SUMIFS(P$3:P$8,$A$3:$A$8,IF(Dashboard!$B$44:$B$100=TRIM(SUBSTITUTE($A54,"TOTAL","",1)),Dashboard!$A$44:$A$100),$B$3:$B$8,$B54)) -> 0 | Q54: 0 | R54: 0 | S54: 0 | T54: 0 | V54: =SUM(SUMIFS(V$3:V$8,$A$3:$A$8,IF(Dashboard!$B$44:$B$100=TRIM(SUBSTITUTE($A54,"TOTAL","",1)),Dashboard!$A$44:$A$100),$B$3:$B$8,$B54)) -> 0 | W54: =SUM(SUMIFS(W$3:W$8,$A$3:$A$8,IF(Dashboard!$B$44:$B$100=TRIM(SUBSTITUTE($A54,"TOTAL","",1)),Dashboard!$A$44:$A$100),$B$3:$B$8,$B54)) -> 0 | X54: =SUM(SUMIFS(X$3:X$8,$A$3:$A$8,IF(Dashboard!$B$44:$B$100=TRIM(SUBSTITUTE($A54,"TOTAL","",1)),Dashboard!$A$44:$A$100),$B$3:$B$8,$B54)) -> 0 | Y54: 0 | Z54: =SUM(SUMIFS(Z$3:Z$8,$A$3:$A$8,IF(Dashboard!$B$44:$B$100=TRIM(SUBSTITUTE($A54,"TOTAL","",1)),Dashboard!$A$44:$A$100),$B$3:$B$8,$B54)) -> 0 | AA54: 0 | AB54: =SUM(SUMIFS(AB$3:AB$8,$A$3:$A$8,IF(Dashboard!$B$44:$B$100=TRIM(SUBSTITUTE($A54,"TOTAL","",1)),Dashboard!$A$44:$A$100),$B$3:$B$8,$B54)) -> 0 | AC54: =SUM(SUMIFS(AC$3:AC$8,$A$3:$A$8,IF(Dashboard!$B$44:$B$100=TRIM(SUBSTITUTE($A54,"TOTAL","",1)),Dashboard!$A$44:$A$100),$B$3:$B$8,$B54)) -> 0 | AD54: =SUM(SUMIFS(AD$3:AD$8,$A$3:$A$8,IF(Dashboard!$B$44:$B$100=TRIM(SUBSTITUTE($A54,"TOTAL","",1)),Dashboard!$A$44:$A$100),$B$3:$B$8,$B54)) -> 0 | AE54: =SUM(SUMIFS(AE$3:AE$8,$A$3:$A$8,IF(Dashboard!$B$44:$B$100=TRIM(SUBSTITUTE($A54,"TOTAL","",1)),Dashboard!$A$44:$A$100),$B$3:$B$8,$B54)) -> 0 | AF54: =SUM(SUMIFS(AF$3:AF$8,$A$3:$A$8,IF(Dashboard!$B$44:$B$100=TRIM(SUBSTITUTE($A54,"TOTAL","",1)),Dashboard!$A$44:$A$100),$B$3:$B$8,$B54)) -> 0 | AG54: =SUM(SUMIFS(AG$3:AG$8,$A$3:$A$8,IF(Dashboard!$B$44:$B$100=TRIM(SUBSTITUTE($A54,"TOTAL","",1)),Dashboard!$A$44:$A$100),$B$3:$B$8,$B54)) -> 0 | AH54: =SUM(SUMIFS(AH$3:AH$8,$A$3:$A$8,IF(Dashboard!$B$44:$B$100=TRIM(SUBSTITUTE($A54,"TOTAL","",1)),Dashboard!$A$44:$A$100),$B$3:$B$8,$B54)) -> 0 | AI54: =SUM(SUMIFS(AI$3:AI$8,$A$3:$A$8,IF(Dashboard!$B$44:$B$100=TRIM(SUBSTITUTE($A54,"TOTAL","",1)),Dashboard!$A$44:$A$100),$B$3:$B$8,$B54)) -> 0 | AJ54: 0 | AK54: 0 | AM54: =SUM(SUMIFS(AM$3:AM$8,$A$3:$A$8,IF(Dashboard!$B$44:$B$100=TRIM(SUBSTITUTE($A54,"TOTAL","",1)),Dashboard!$A$44:$A$100),$B$3:$B$8,$B54)) -> 0 | AN54: =SUM(SUMIFS(AN$3:AN$8,$A$3:$A$8,IF(Dashboard!$B$44:$B$100=TRIM(SUBSTITUTE($A54,"TOTAL","",1)),Dashboard!$A$44:$A$100),$B$3:$B$8,$B54)) -> 0 | AO54: =SUM(SUMIFS(AO$3:AO$8,$A$3:$A$8,IF(Dashboard!$B$44:$B$100=TRIM(SUBSTITUTE($A54,"TOTAL","",1)),Dashboard!$A$44:$A$100),$B$3:$B$8,$B54)) -> 0 | AP54: =SUM(SUMIFS(AP$3:AP$8,$A$3:$A$8,IF(Dashboard!$B$44:$B$100=TRIM(SUBSTITUTE($A54,"TOTAL","",1)),Dashboard!$A$44:$A$100),$B$3:$B$8,$B54)) -> 0 | AQ54: =SUM(SUMIFS(AQ$3:AQ$8,$A$3:$A$8,IF(Dashboard!$B$44:$B$100=TRIM(SUBSTITUTE($A54,"TOTAL","",1)),Dashboard!$A$44:$A$100),$B$3:$B$8,$B54)) -> 0 | AR54: =SUM(SUMIFS(AR$3:AR$8,$A$3:$A$8,IF(Dashboard!$B$44:$B$100=TRIM(SUBSTITUTE($A54,"TOTAL","",1)),Dashboard!$A$44:$A$100),$B$3:$B$8,$B54)) -> 0 | AT54: =SUM(SUMIFS(AT$3:AT$8,$A$3:$A$8,IF(Dashboard!$B$44:$B$100=TRIM(SUBSTITUTE($A54,"TOTAL","",1)),Dashboard!$A$44:$A$100),$B$3:$B$8,$B54)) -> 0 | AV54: =SUM(SUMIFS(AV$3:AV$8,$A$3:$A$8,IF(Dashboard!$B$44:$B$100=TRIM(SUBSTITUTE($A54,"TOTAL","",1)),Dashboard!$A$44:$A$100),$B$3:$B$8,$B54)) -> 0 | AW54: =SUM(SUMIFS(AW$3:AW$8,$A$3:$A$8,IF(Dashboard!$B$44:$B$100=TRIM(SUBSTITUTE($A54,"TOTAL","",1)),Dashboard!$A$44:$A$100),$B$3:$B$8,$B54)) -> 0 | AX54: =SUM(SUMIFS(AX$3:AX$8,$A$3:$A$8,IF(Dashboard!$B$44:$B$100=TRIM(SUBSTITUTE($A54,"TOTAL","",1)),Dashboard!$A$44:$A$100),$B$3:$B$8,$B54)) -> 0 | AY54: 0 | BA54: 0 | BB54: 0 | BD54: =SUM(SUMIFS(BD$3:BD$8,$A$3:$A$8,IF(Dashboard!$B$44:$B$100=TRIM(SUBSTITUTE($A54,"TOTAL","",1)),Dashboard!$A$44:$A$100),$B$3:$B$8,$B54)) -> 0 | BE54: =SUM(SUMIFS(BE$3:BE$8,$A$3:$A$8,IF(Dashboard!$B$44:$B$100=TRIM(SUBSTITUTE($A54,"TOTAL","",1)),Dashboard!$A$44:$A$100),$B$3:$B$8,$B54)) -> 0 | BF54: 0 | BH54: =SUM(SUMIFS(BH$3:BH$8,$A$3:$A$8,IF(Dashboard!$B$44:$B$100=TRIM(SUBSTITUTE($A54,"TOTAL","",1)),Dashboard!$A$44:$A$100),$B$3:$B$8,$B54)) -> 0 | BI54: =SUM(SUMIFS(BI$3:BI$8,$A$3:$A$8,IF(Dashboard!$B$44:$B$100=TRIM(SUBSTITUTE($A54,"TOTAL","",1)),Dashboard!$A$44:$A$100),$B$3:$B$8,$B54)) -> 0 | BJ54: 0 | BL54: =SUM(SUMIFS(BL$3:BL$8,$A$3:$A$8,IF(Dashboard!$B$44:$B$100=TRIM(SUBSTITUTE($A54,"TOTAL","",1)),Dashboard!$A$44:$A$100),$B$3:$B$8,$B54)) -> 0
A55: P3 TOTAL | B55: Dallas | C55: =SUM(SUMIFS(C$3:C$8,$A$3:$A$8,IF(Dashboard!$B$44:$B$100=TRIM(SUBSTITUTE($A55,"TOTAL","",1)),Dashboard!$A$44:$A$100),$B$3:$B$8,$B55)) -> 0 | D55: =SUM(SUMIFS(D$3:D$8,$A$3:$A$8,IF(Dashboard!$B$44:$B$100=TRIM(SUBSTITUTE($A55,"TOTAL","",1)),Dashboard!$A$44:$A$100),$B$3:$B$8,$B55)) -> 0 | E55: =SUM(SUMIFS(E$3:E$8,$A$3:$A$8,IF(Dashboard!$B$44:$B$100=TRIM(SUBSTITUTE($A55,"TOTAL","",1)),Dashboard!$A$44:$A$100),$B$3:$B$8,$B55)) -> 0 | F55: 0 | G55: =SUM(SUMIFS(G$3:G$8,$A$3:$A$8,IF(Dashboard!$B$44:$B$100=TRIM(SUBSTITUTE($A55,"TOTAL","",1)),Dashboard!$A$44:$A$100),$B$3:$B$8,$B55)) -> 0 | H55: 0 | I55: =SUM(SUMIFS(I$3:I$8,$A$3:$A$8,IF(Dashboard!$B$44:$B$100=TRIM(SUBSTITUTE($A55,"TOTAL","",1)),Dashboard!$A$44:$A$100),$B$3:$B$8,$B55)) -> 0 | J55: =SUM(SUMIFS(J$3:J$8,$A$3:$A$8,IF(Dashboard!$B$44:$B$100=TRIM(SUBSTITUTE($A55,"TOTAL","",1)),Dashboard!$A$44:$A$100),$B$3:$B$8,$B55)) -> 0 | K55: =SUM(SUMIFS(K$3:K$8,$A$3:$A$8,IF(Dashboard!$B$44:$B$100=TRIM(SUBSTITUTE($A55,"TOTAL","",1)),Dashboard!$A$44:$A$100),$B$3:$B$8,$B55)) -> 0 | L55: =SUM(SUMIFS(L$3:L$8,$A$3:$A$8,IF(Dashboard!$B$44:$B$100=TRIM(SUBSTITUTE($A55,"TOTAL","",1)),Dashboard!$A$44:$A$100),$B$3:$B$8,$B55)) -> 0 | M55: =SUM(SUMIFS(M$3:M$8,$A$3:$A$8,IF(Dashboard!$B$44:$B$100=TRIM(SUBSTITUTE($A55,"TOTAL","",1)),Dashboard!$A$44:$A$100),$B$3:$B$8,$B55)) -> 0 | N55: =SUM(SUMIFS(N$3:N$8,$A$3:$A$8,IF(Dashboard!$B$44:$B$100=TRIM(SUBSTITUTE($A55,"TOTAL","",1)),Dashboard!$A$44:$A$100),$B$3:$B$8,$B55)) -> 0 | O55: =SUM(SUMIFS(O$3:O$8,$A$3:$A$8,IF(Dashboard!$B$44:$B$100=TRIM(SUBSTITUTE($A55,"TOTAL","",1)),Dashboard!$A$44:$A$100),$B$3:$B$8,$B55)) -> 0 | P55: =SUM(SUMIFS(P$3:P$8,$A$3:$A$8,IF(Dashboard!$B$44:$B$100=TRIM(SUBSTITUTE($A55,"TOTAL","",1)),Dashboard!$A$44:$A$100),$B$3:$B$8,$B55)) -> 0 | Q55: 0 | R55: 0 | S55: 0 | T55: 0 | V55: =SUM(SUMIFS(V$3:V$8,$A$3:$A$8,IF(Dashboard!$B$44:$B$100=TRIM(SUBSTITUTE($A55,"TOTAL","",1)),Dashboard!$A$44:$A$100),$B$3:$B$8,$B55)) -> 0 | W55: =SUM(SUMIFS(W$3:W$8,$A$3:$A$8,IF(Dashboard!$B$44:$B$100=TRIM(SUBSTITUTE($A55,"TOTAL","",1)),Dashboard!$A$44:$A$100),$B$3:$B$8,$B55)) -> 0 | X55: =SUM(SUMIFS(X$3:X$8,$A$3:$A$8,IF(Dashboard!$B$44:$B$100=TRIM(SUBSTITUTE($A55,"TOTAL","",1)),Dashboard!$A$44:$A$100),$B$3:$B$8,$B55)) -> 0 | Y55: 0 | Z55: =SUM(SUMIFS(Z$3:Z$8,$A$3:$A$8,IF(Dashboard!$B$44:$B$100=TRIM(SUBSTITUTE($A55,"TOTAL","",1)),Dashboard!$A$44:$A$100),$B$3:$B$8,$B55)) -> 0 | AA55: 0 | AB55: =SUM(SUMIFS(AB$3:AB$8,$A$3:$A$8,IF(Dashboard!$B$44:$B$100=TRIM(SUBSTITUTE($A55,"TOTAL","",1)),Dashboard!$A$44:$A$100),$B$3:$B$8,$B55)) -> 0 | AC55: =SUM(SUMIFS(AC$3:AC$8,$A$3:$A$8,IF(Dashboard!$B$44:$B$100=TRIM(SUBSTITUTE($A55,"TOTAL","",1)),Dashboard!$A$44:$A$100),$B$3:$B$8,$B55)) -> 0 | AD55: =SUM(SUMIFS(AD$3:AD$8,$A$3:$A$8,IF(Dashboard!$B$44:$B$100=TRIM(SUBSTITUTE($A55,"TOTAL","",1)),Dashboard!$A$44:$A$100),$B$3:$B$8,$B55)) -> 0 | AE55: =SUM(SUMIFS(AE$3:AE$8,$A$3:$A$8,IF(Dashboard!$B$44:$B$100=TRIM(SUBSTITUTE($A55,"TOTAL","",1)),Dashboard!$A$44:$A$100),$B$3:$B$8,$B55)) -> 0 | AF55: =SUM(SUMIFS(AF$3:AF$8,$A$3:$A$8,IF(Dashboard!$B$44:$B$100=TRIM(SUBSTITUTE($A55,"TOTAL","",1)),Dashboard!$A$44:$A$100),$B$3:$B$8,$B55)) -> 0 | AG55: =SUM(SUMIFS(AG$3:AG$8,$A$3:$A$8,IF(Dashboard!$B$44:$B$100=TRIM(SUBSTITUTE($A55,"TOTAL","",1)),Dashboard!$A$44:$A$100),$B$3:$B$8,$B55)) -> 0 | AH55: =SUM(SUMIFS(AH$3:AH$8,$A$3:$A$8,IF(Dashboard!$B$44:$B$100=TRIM(SUBSTITUTE($A55,"TOTAL","",1)),Dashboard!$A$44:$A$100),$B$3:$B$8,$B55)) -> 0 | AI55: =SUM(SUMIFS(AI$3:AI$8,$A$3:$A$8,IF(Dashboard!$B$44:$B$100=TRIM(SUBSTITUTE($A55,"TOTAL","",1)),Dashboard!$A$44:$A$100),$B$3:$B$8,$B55)) -> 0 | AJ55: 0 | AK55: 0 | AM55: =SUM(SUMIFS(AM$3:AM$8,$A$3:$A$8,IF(Dashboard!$B$44:$B$100=TRIM(SUBSTITUTE($A55,"TOTAL","",1)),Dashboard!$A$44:$A$100),$B$3:$B$8,$B55)) -> 0 | AN55: =SUM(SUMIFS(AN$3:AN$8,$A$3:$A$8,IF(Dashboard!$B$44:$B$100=TRIM(SUBSTITUTE($A55,"TOTAL","",1)),Dashboard!$A$44:$A$100),$B$3:$B$8,$B55)) -> 0 | AO55: =SUM(SUMIFS(AO$3:AO$8,$A$3:$A$8,IF(Dashboard!$B$44:$B$100=TRIM(SUBSTITUTE($A55,"TOTAL","",1)),Dashboard!$A$44:$A$100),$B$3:$B$8,$B55)) -> 0 | AP55: =SUM(SUMIFS(AP$3:AP$8,$A$3:$A$8,IF(Dashboard!$B$44:$B$100=TRIM(SUBSTITUTE($A55,"TOTAL","",1)),Dashboard!$A$44:$A$100),$B$3:$B$8,$B55)) -> 0 | AQ55: =SUM(SUMIFS(AQ$3:AQ$8,$A$3:$A$8,IF(Dashboard!$B$44:$B$100=TRIM(SUBSTITUTE($A55,"TOTAL","",1)),Dashboard!$A$44:$A$100),$B$3:$B$8,$B55)) -> 0 | AR55: =SUM(SUMIFS(AR$3:AR$8,$A$3:$A$8,IF(Dashboard!$B$44:$B$100=TRIM(SUBSTITUTE($A55,"TOTAL","",1)),Dashboard!$A$44:$A$100),$B$3:$B$8,$B55)) -> 0 | AT55: =SUM(SUMIFS(AT$3:AT$8,$A$3:$A$8,IF(Dashboard!$B$44:$B$100=TRIM(SUBSTITUTE($A55,"TOTAL","",1)),Dashboard!$A$44:$A$100),$B$3:$B$8,$B55)) -> 0 | AV55: =SUM(SUMIFS(AV$3:AV$8,$A$3:$A$8,IF(Dashboard!$B$44:$B$100=TRIM(SUBSTITUTE($A55,"TOTAL","",1)),Dashboard!$A$44:$A$100),$B$3:$B$8,$B55)) -> 0 | AW55: =SUM(SUMIFS(AW$3:AW$8,$A$3:$A$8,IF(Dashboard!$B$44:$B$100=TRIM(SUBSTITUTE($A55,"TOTAL","",1)),Dashboard!$A$44:$A$100),$B$3:$B$8,$B55)) -> 0 | AX55: =SUM(SUMIFS(AX$3:AX$8,$A$3:$A$8,IF(Dashboard!$B$44:$B$100=TRIM(SUBSTITUTE($A55,"TOTAL","",1)),Dashboard!$A$44:$A$100),$B$3:$B$8,$B55)) -> 0 | AY55: 0 | BA55: 0 | BB55: 0 | BD55: =SUM(SUMIFS(BD$3:BD$8,$A$3:$A$8,IF(Dashboard!$B$44:$B$100=TRIM(SUBSTITUTE($A55,"TOTAL","",1)),Dashboard!$A$44:$A$100),$B$3:$B$8,$B55)) -> 0 | BE55: =SUM(SUMIFS(BE$3:BE$8,$A$3:$A$8,IF(Dashboard!$B$44:$B$100=TRIM(SUBSTITUTE($A55,"TOTAL","",1)),Dashboard!$A$44:$A$100),$B$3:$B$8,$B55)) -> 0 | BF55: 0 | BH55: =SUM(SUMIFS(BH$3:BH$8,$A$3:$A$8,IF(Dashboard!$B$44:$B$100=TRIM(SUBSTITUTE($A55,"TOTAL","",1)),Dashboard!$A$44:$A$100),$B$3:$B$8,$B55)) -> 0 | BI55: =SUM(SUMIFS(BI$3:BI$8,$A$3:$A$8,IF(Dashboard!$B$44:$B$100=TRIM(SUBSTITUTE($A55,"TOTAL","",1)),Dashboard!$A$44:$A$100),$B$3:$B$8,$B55)) -> 0 | BJ55: 0 | BL55: =SUM(SUMIFS(BL$3:BL$8,$A$3:$A$8,IF(Dashboard!$B$44:$B$100=TRIM(SUBSTITUTE($A55,"TOTAL","",1)),Dashboard!$A$44:$A$100),$B$3:$B$8,$B55)) -> 0
A56: P3 TOTAL | B56: Denver | C56: =SUM(SUMIFS(C$3:C$8,$A$3:$A$8,IF(Dashboard!$B$44:$B$100=TRIM(SUBSTITUTE($A56,"TOTAL","",1)),Dashboard!$A$44:$A$100),$B$3:$B$8,$B56)) -> 0 | D56: =SUM(SUMIFS(D$3:D$8,$A$3:$A$8,IF(Dashboard!$B$44:$B$100=TRIM(SUBSTITUTE($A56,"TOTAL","",1)),Dashboard!$A$44:$A$100),$B$3:$B$8,$B56)) -> 0 | E56: =SUM(SUMIFS(E$3:E$8,$A$3:$A$8,IF(Dashboard!$B$44:$B$100=TRIM(SUBSTITUTE($A56,"TOTAL","",1)),Dashboard!$A$44:$A$100),$B$3:$B$8,$B56)) -> 0 | F56: 0 | G56: =SUM(SUMIFS(G$3:G$8,$A$3:$A$8,IF(Dashboard!$B$44:$B$100=TRIM(SUBSTITUTE($A56,"TOTAL","",1)),Dashboard!$A$44:$A$100),$B$3:$B$8,$B56)) -> 0 | H56: 0 | I56: =SUM(SUMIFS(I$3:I$8,$A$3:$A$8,IF(Dashboard!$B$44:$B$100=TRIM(SUBSTITUTE($A56,"TOTAL","",1)),Dashboard!$A$44:$A$100),$B$3:$B$8,$B56)) -> 0 | J56: =SUM(SUMIFS(J$3:J$8,$A$3:$A$8,IF(Dashboard!$B$44:$B$100=TRIM(SUBSTITUTE($A56,"TOTAL","",1)),Dashboard!$A$44:$A$100),$B$3:$B$8,$B56)) -> 0 | K56: =SUM(SUMIFS(K$3:K$8,$A$3:$A$8,IF(Dashboard!$B$44:$B$100=TRIM(SUBSTITUTE($A56,"TOTAL","",1)),Dashboard!$A$44:$A$100),$B$3:$B$8,$B56)) -> 0 | L56: =SUM(SUMIFS(L$3:L$8,$A$3:$A$8,IF(Dashboard!$B$44:$B$100=TRIM(SUBSTITUTE($A56,"TOTAL","",1)),Dashboard!$A$44:$A$100),$B$3:$B$8,$B56)) -> 0 | M56: =SUM(SUMIFS(M$3:M$8,$A$3:$A$8,IF(Dashboard!$B$44:$B$100=TRIM(SUBSTITUTE($A56,"TOTAL","",1)),Dashboard!$A$44:$A$100),$B$3:$B$8,$B56)) -> 0 | N56: =SUM(SUMIFS(N$3:N$8,$A$3:$A$8,IF(Dashboard!$B$44:$B$100=TRIM(SUBSTITUTE($A56,"TOTAL","",1)),Dashboard!$A$44:$A$100),$B$3:$B$8,$B56)) -> 0 | O56: =SUM(SUMIFS(O$3:O$8,$A$3:$A$8,IF(Dashboard!$B$44:$B$100=TRIM(SUBSTITUTE($A56,"TOTAL","",1)),Dashboard!$A$44:$A$100),$B$3:$B$8,$B56)) -> 0 | P56: =SUM(SUMIFS(P$3:P$8,$A$3:$A$8,IF(Dashboard!$B$44:$B$100=TRIM(SUBSTITUTE($A56,"TOTAL","",1)),Dashboard!$A$44:$A$100),$B$3:$B$8,$B56)) -> 0 | Q56: 0 | R56: 0 | S56: 0 | T56: 0 | V56: =SUM(SUMIFS(V$3:V$8,$A$3:$A$8,IF(Dashboard!$B$44:$B$100=TRIM(SUBSTITUTE($A56,"TOTAL","",1)),Dashboard!$A$44:$A$100),$B$3:$B$8,$B56)) -> 0 | W56: =SUM(SUMIFS(W$3:W$8,$A$3:$A$8,IF(Dashboard!$B$44:$B$100=TRIM(SUBSTITUTE($A56,"TOTAL","",1)),Dashboard!$A$44:$A$100),$B$3:$B$8,$B56)) -> 0 | X56: =SUM(SUMIFS(X$3:X$8,$A$3:$A$8,IF(Dashboard!$B$44:$B$100=TRIM(SUBSTITUTE($A56,"TOTAL","",1)),Dashboard!$A$44:$A$100),$B$3:$B$8,$B56)) -> 0 | Y56: 0 | Z56: =SUM(SUMIFS(Z$3:Z$8,$A$3:$A$8,IF(Dashboard!$B$44:$B$100=TRIM(SUBSTITUTE($A56,"TOTAL","",1)),Dashboard!$A$44:$A$100),$B$3:$B$8,$B56)) -> 0 | AA56: 0 | AB56: =SUM(SUMIFS(AB$3:AB$8,$A$3:$A$8,IF(Dashboard!$B$44:$B$100=TRIM(SUBSTITUTE($A56,"TOTAL","",1)),Dashboard!$A$44:$A$100),$B$3:$B$8,$B56)) -> 0 | AC56: =SUM(SUMIFS(AC$3:AC$8,$A$3:$A$8,IF(Dashboard!$B$44:$B$100=TRIM(SUBSTITUTE($A56,"TOTAL","",1)),Dashboard!$A$44:$A$100),$B$3:$B$8,$B56)) -> 0 | AD56: =SUM(SUMIFS(AD$3:AD$8,$A$3:$A$8,IF(Dashboard!$B$44:$B$100=TRIM(SUBSTITUTE($A56,"TOTAL","",1)),Dashboard!$A$44:$A$100),$B$3:$B$8,$B56)) -> 0 | AE56: =SUM(SUMIFS(AE$3:AE$8,$A$3:$A$8,IF(Dashboard!$B$44:$B$100=TRIM(SUBSTITUTE($A56,"TOTAL","",1)),Dashboard!$A$44:$A$100),$B$3:$B$8,$B56)) -> 0 | AF56: =SUM(SUMIFS(AF$3:AF$8,$A$3:$A$8,IF(Dashboard!$B$44:$B$100=TRIM(SUBSTITUTE($A56,"TOTAL","",1)),Dashboard!$A$44:$A$100),$B$3:$B$8,$B56)) -> 0 | AG56: =SUM(SUMIFS(AG$3:AG$8,$A$3:$A$8,IF(Dashboard!$B$44:$B$100=TRIM(SUBSTITUTE($A56,"TOTAL","",1)),Dashboard!$A$44:$A$100),$B$3:$B$8,$B56)) -> 0 | AH56: =SUM(SUMIFS(AH$3:AH$8,$A$3:$A$8,IF(Dashboard!$B$44:$B$100=TRIM(SUBSTITUTE($A56,"TOTAL","",1)),Dashboard!$A$44:$A$100),$B$3:$B$8,$B56)) -> 0 | AI56: =SUM(SUMIFS(AI$3:AI$8,$A$3:$A$8,IF(Dashboard!$B$44:$B$100=TRIM(SUBSTITUTE($A56,"TOTAL","",1)),Dashboard!$A$44:$A$100),$B$3:$B$8,$B56)) -> 0 | AJ56: 0 | AK56: 0 | AM56: =SUM(SUMIFS(AM$3:AM$8,$A$3:$A$8,IF(Dashboard!$B$44:$B$100=TRIM(SUBSTITUTE($A56,"TOTAL","",1)),Dashboard!$A$44:$A$100),$B$3:$B$8,$B56)) -> 0 | AN56: =SUM(SUMIFS(AN$3:AN$8,$A$3:$A$8,IF(Dashboard!$B$44:$B$100=TRIM(SUBSTITUTE($A56,"TOTAL","",1)),Dashboard!$A$44:$A$100),$B$3:$B$8,$B56)) -> 0 | AO56: =SUM(SUMIFS(AO$3:AO$8,$A$3:$A$8,IF(Dashboard!$B$44:$B$100=TRIM(SUBSTITUTE($A56,"TOTAL","",1)),Dashboard!$A$44:$A$100),$B$3:$B$8,$B56)) -> 0 | AP56: =SUM(SUMIFS(AP$3:AP$8,$A$3:$A$8,IF(Dashboard!$B$44:$B$100=TRIM(SUBSTITUTE($A56,"TOTAL","",1)),Dashboard!$A$44:$A$100),$B$3:$B$8,$B56)) -> 0 | AQ56: =SUM(SUMIFS(AQ$3:AQ$8,$A$3:$A$8,IF(Dashboard!$B$44:$B$100=TRIM(SUBSTITUTE($A56,"TOTAL","",1)),Dashboard!$A$44:$A$100),$B$3:$B$8,$B56)) -> 0 | AR56: =SUM(SUMIFS(AR$3:AR$8,$A$3:$A$8,IF(Dashboard!$B$44:$B$100=TRIM(SUBSTITUTE($A56,"TOTAL","",1)),Dashboard!$A$44:$A$100),$B$3:$B$8,$B56)) -> 0 | AT56: =SUM(SUMIFS(AT$3:AT$8,$A$3:$A$8,IF(Dashboard!$B$44:$B$100=TRIM(SUBSTITUTE($A56,"TOTAL","",1)),Dashboard!$A$44:$A$100),$B$3:$B$8,$B56)) -> 0 | AV56: =SUM(SUMIFS(AV$3:AV$8,$A$3:$A$8,IF(Dashboard!$B$44:$B$100=TRIM(SUBSTITUTE($A56,"TOTAL","",1)),Dashboard!$A$44:$A$100),$B$3:$B$8,$B56)) -> 0 | AW56: =SUM(SUMIFS(AW$3:AW$8,$A$3:$A$8,IF(Dashboard!$B$44:$B$100=TRIM(SUBSTITUTE($A56,"TOTAL","",1)),Dashboard!$A$44:$A$100),$B$3:$B$8,$B56)) -> 0 | AX56: =SUM(SUMIFS(AX$3:AX$8,$A$3:$A$8,IF(Dashboard!$B$44:$B$100=TRIM(SUBSTITUTE($A56,"TOTAL","",1)),Dashboard!$A$44:$A$100),$B$3:$B$8,$B56)) -> 0 | AY56: 0 | BA56: 0 | BB56: 0 | BD56: =SUM(SUMIFS(BD$3:BD$8,$A$3:$A$8,IF(Dashboard!$B$44:$B$100=TRIM(SUBSTITUTE($A56,"TOTAL","",1)),Dashboard!$A$44:$A$100),$B$3:$B$8,$B56)) -> 0 | BE56: =SUM(SUMIFS(BE$3:BE$8,$A$3:$A$8,IF(Dashboard!$B$44:$B$100=TRIM(SUBSTITUTE($A56,"TOTAL","",1)),Dashboard!$A$44:$A$100),$B$3:$B$8,$B56)) -> 0 | BF56: 0 | BH56: =SUM(SUMIFS(BH$3:BH$8,$A$3:$A$8,IF(Dashboard!$B$44:$B$100=TRIM(SUBSTITUTE($A56,"TOTAL","",1)),Dashboard!$A$44:$A$100),$B$3:$B$8,$B56)) -> 0 | BI56: =SUM(SUMIFS(BI$3:BI$8,$A$3:$A$8,IF(Dashboard!$B$44:$B$100=TRIM(SUBSTITUTE($A56,"TOTAL","",1)),Dashboard!$A$44:$A$100),$B$3:$B$8,$B56)) -> 0 | BJ56: 0 | BL56: =SUM(SUMIFS(BL$3:BL$8,$A$3:$A$8,IF(Dashboard!$B$44:$B$100=TRIM(SUBSTITUTE($A56,"TOTAL","",1)),Dashboard!$A$44:$A$100),$B$3:$B$8,$B56)) -> 0
A57: P3 TOTAL | B57: Detroit | C57: =SUM(SUMIFS(C$3:C$8,$A$3:$A$8,IF(Dashboard!$B$44:$B$100=TRIM(SUBSTITUTE($A57,"TOTAL","",1)),Dashboard!$A$44:$A$100),$B$3:$B$8,$B57)) -> 0 | D57: =SUM(SUMIFS(D$3:D$8,$A$3:$A$8,IF(Dashboard!$B$44:$B$100=TRIM(SUBSTITUTE($A57,"TOTAL","",1)),Dashboard!$A$44:$A$100),$B$3:$B$8,$B57)) -> 0 | E57: =SUM(SUMIFS(E$3:E$8,$A$3:$A$8,IF(Dashboard!$B$44:$B$100=TRIM(SUBSTITUTE($A57,"TOTAL","",1)),Dashboard!$A$44:$A$100),$B$3:$B$8,$B57)) -> 0 | F57: 0 | G57: =SUM(SUMIFS(G$3:G$8,$A$3:$A$8,IF(Dashboard!$B$44:$B$100=TRIM(SUBSTITUTE($A57,"TOTAL","",1)),Dashboard!$A$44:$A$100),$B$3:$B$8,$B57)) -> 0 | H57: 0 | I57: =SUM(SUMIFS(I$3:I$8,$A$3:$A$8,IF(Dashboard!$B$44:$B$100=TRIM(SUBSTITUTE($A57,"TOTAL","",1)),Dashboard!$A$44:$A$100),$B$3:$B$8,$B57)) -> 0 | J57: =SUM(SUMIFS(J$3:J$8,$A$3:$A$8,IF(Dashboard!$B$44:$B$100=TRIM(SUBSTITUTE($A57,"TOTAL","",1)),Dashboard!$A$44:$A$100),$B$3:$B$8,$B57)) -> 0 | K57: =SUM(SUMIFS(K$3:K$8,$A$3:$A$8,IF(Dashboard!$B$44:$B$100=TRIM(SUBSTITUTE($A57,"TOTAL","",1)),Dashboard!$A$44:$A$100),$B$3:$B$8,$B57)) -> 0 | L57: =SUM(SUMIFS(L$3:L$8,$A$3:$A$8,IF(Dashboard!$B$44:$B$100=TRIM(SUBSTITUTE($A57,"TOTAL","",1)),Dashboard!$A$44:$A$100),$B$3:$B$8,$B57)) -> 0 | M57: =SUM(SUMIFS(M$3:M$8,$A$3:$A$8,IF(Dashboard!$B$44:$B$100=TRIM(SUBSTITUTE($A57,"TOTAL","",1)),Dashboard!$A$44:$A$100),$B$3:$B$8,$B57)) -> 0 | N57: =SUM(SUMIFS(N$3:N$8,$A$3:$A$8,IF(Dashboard!$B$44:$B$100=TRIM(SUBSTITUTE($A57,"TOTAL","",1)),Dashboard!$A$44:$A$100),$B$3:$B$8,$B57)) -> 0 | O57: =SUM(SUMIFS(O$3:O$8,$A$3:$A$8,IF(Dashboard!$B$44:$B$100=TRIM(SUBSTITUTE($A57,"TOTAL","",1)),Dashboard!$A$44:$A$100),$B$3:$B$8,$B57)) -> 0 | P57: =SUM(SUMIFS(P$3:P$8,$A$3:$A$8,IF(Dashboard!$B$44:$B$100=TRIM(SUBSTITUTE($A57,"TOTAL","",1)),Dashboard!$A$44:$A$100),$B$3:$B$8,$B57)) -> 0 | Q57: 0 | R57: 0 | S57: 0 | T57: 0 | V57: =SUM(SUMIFS(V$3:V$8,$A$3:$A$8,IF(Dashboard!$B$44:$B$100=TRIM(SUBSTITUTE($A57,"TOTAL","",1)),Dashboard!$A$44:$A$100),$B$3:$B$8,$B57)) -> 0 | W57: =SUM(SUMIFS(W$3:W$8,$A$3:$A$8,IF(Dashboard!$B$44:$B$100=TRIM(SUBSTITUTE($A57,"TOTAL","",1)),Dashboard!$A$44:$A$100),$B$3:$B$8,$B57)) -> 0 | X57: =SUM(SUMIFS(X$3:X$8,$A$3:$A$8,IF(Dashboard!$B$44:$B$100=TRIM(SUBSTITUTE($A57,"TOTAL","",1)),Dashboard!$A$44:$A$100),$B$3:$B$8,$B57)) -> 0 | Y57: 0 | Z57: =SUM(SUMIFS(Z$3:Z$8,$A$3:$A$8,IF(Dashboard!$B$44:$B$100=TRIM(SUBSTITUTE($A57,"TOTAL","",1)),Dashboard!$A$44:$A$100),$B$3:$B$8,$B57)) -> 0 | AA57: 0 | AB57: =SUM(SUMIFS(AB$3:AB$8,$A$3:$A$8,IF(Dashboard!$B$44:$B$100=TRIM(SUBSTITUTE($A57,"TOTAL","",1)),Dashboard!$A$44:$A$100),$B$3:$B$8,$B57)) -> 0 | AC57: =SUM(SUMIFS(AC$3:AC$8,$A$3:$A$8,IF(Dashboard!$B$44:$B$100=TRIM(SUBSTITUTE($A57,"TOTAL","",1)),Dashboard!$A$44:$A$100),$B$3:$B$8,$B57)) -> 0 | AD57: =SUM(SUMIFS(AD$3:AD$8,$A$3:$A$8,IF(Dashboard!$B$44:$B$100=TRIM(SUBSTITUTE($A57,"TOTAL","",1)),Dashboard!$A$44:$A$100),$B$3:$B$8,$B57)) -> 0 | AE57: =SUM(SUMIFS(AE$3:AE$8,$A$3:$A$8,IF(Dashboard!$B$44:$B$100=TRIM(SUBSTITUTE($A57,"TOTAL","",1)),Dashboard!$A$44:$A$100),$B$3:$B$8,$B57)) -> 0 | AF57: =SUM(SUMIFS(AF$3:AF$8,$A$3:$A$8,IF(Dashboard!$B$44:$B$100=TRIM(SUBSTITUTE($A57,"TOTAL","",1)),Dashboard!$A$44:$A$100),$B$3:$B$8,$B57)) -> 0 | AG57: =SUM(SUMIFS(AG$3:AG$8,$A$3:$A$8,IF(Dashboard!$B$44:$B$100=TRIM(SUBSTITUTE($A57,"TOTAL","",1)),Dashboard!$A$44:$A$100),$B$3:$B$8,$B57)) -> 0 | AH57: =SUM(SUMIFS(AH$3:AH$8,$A$3:$A$8,IF(Dashboard!$B$44:$B$100=TRIM(SUBSTITUTE($A57,"TOTAL","",1)),Dashboard!$A$44:$A$100),$B$3:$B$8,$B57)) -> 0 | AI57: =SUM(SUMIFS(AI$3:AI$8,$A$3:$A$8,IF(Dashboard!$B$44:$B$100=TRIM(SUBSTITUTE($A57,"TOTAL","",1)),Dashboard!$A$44:$A$100),$B$3:$B$8,$B57)) -> 0 | AJ57: 0 | AK57: 0 | AM57: =SUM(SUMIFS(AM$3:AM$8,$A$3:$A$8,IF(Dashboard!$B$44:$B$100=TRIM(SUBSTITUTE($A57,"TOTAL","",1)),Dashboard!$A$44:$A$100),$B$3:$B$8,$B57)) -> 0 | AN57: =SUM(SUMIFS(AN$3:AN$8,$A$3:$A$8,IF(Dashboard!$B$44:$B$100=TRIM(SUBSTITUTE($A57,"TOTAL","",1)),Dashboard!$A$44:$A$100),$B$3:$B$8,$B57)) -> 0 | AO57: =SUM(SUMIFS(AO$3:AO$8,$A$3:$A$8,IF(Dashboard!$B$44:$B$100=TRIM(SUBSTITUTE($A57,"TOTAL","",1)),Dashboard!$A$44:$A$100),$B$3:$B$8,$B57)) -> 0 | AP57: =SUM(SUMIFS(AP$3:AP$8,$A$3:$A$8,IF(Dashboard!$B$44:$B$100=TRIM(SUBSTITUTE($A57,"TOTAL","",1)),Dashboard!$A$44:$A$100),$B$3:$B$8,$B57)) -> 0 | AQ57: =SUM(SUMIFS(AQ$3:AQ$8,$A$3:$A$8,IF(Dashboard!$B$44:$B$100=TRIM(SUBSTITUTE($A57,"TOTAL","",1)),Dashboard!$A$44:$A$100),$B$3:$B$8,$B57)) -> 0 | AR57: =SUM(SUMIFS(AR$3:AR$8,$A$3:$A$8,IF(Dashboard!$B$44:$B$100=TRIM(SUBSTITUTE($A57,"TOTAL","",1)),Dashboard!$A$44:$A$100),$B$3:$B$8,$B57)) -> 0 | AT57: =SUM(SUMIFS(AT$3:AT$8,$A$3:$A$8,IF(Dashboard!$B$44:$B$100=TRIM(SUBSTITUTE($A57,"TOTAL","",1)),Dashboard!$A$44:$A$100),$B$3:$B$8,$B57)) -> 0 | AV57: =SUM(SUMIFS(AV$3:AV$8,$A$3:$A$8,IF(Dashboard!$B$44:$B$100=TRIM(SUBSTITUTE($A57,"TOTAL","",1)),Dashboard!$A$44:$A$100),$B$3:$B$8,$B57)) -> 0 | AW57: =SUM(SUMIFS(AW$3:AW$8,$A$3:$A$8,IF(Dashboard!$B$44:$B$100=TRIM(SUBSTITUTE($A57,"TOTAL","",1)),Dashboard!$A$44:$A$100),$B$3:$B$8,$B57)) -> 0 | AX57: =SUM(SUMIFS(AX$3:AX$8,$A$3:$A$8,IF(Dashboard!$B$44:$B$100=TRIM(SUBSTITUTE($A57,"TOTAL","",1)),Dashboard!$A$44:$A$100),$B$3:$B$8,$B57)) -> 0 | AY57: 0 | BA57: 0 | BB57: 0 | BD57: =SUM(SUMIFS(BD$3:BD$8,$A$3:$A$8,IF(Dashboard!$B$44:$B$100=TRIM(SUBSTITUTE($A57,"TOTAL","",1)),Dashboard!$A$44:$A$100),$B$3:$B$8,$B57)) -> 0 | BE57: =SUM(SUMIFS(BE$3:BE$8,$A$3:$A$8,IF(Dashboard!$B$44:$B$100=TRIM(SUBSTITUTE($A57,"TOTAL","",1)),Dashboard!$A$44:$A$100),$B$3:$B$8,$B57)) -> 0 | BF57: 0 | BH57: =SUM(SUMIFS(BH$3:BH$8,$A$3:$A$8,IF(Dashboard!$B$44:$B$100=TRIM(SUBSTITUTE($A57,"TOTAL","",1)),Dashboard!$A$44:$A$100),$B$3:$B$8,$B57)) -> 0 | BI57: =SUM(SUMIFS(BI$3:BI$8,$A$3:$A$8,IF(Dashboard!$B$44:$B$100=TRIM(SUBSTITUTE($A57,"TOTAL","",1)),Dashboard!$A$44:$A$100),$B$3:$B$8,$B57)) -> 0 | BJ57: 0 | BL57: =SUM(SUMIFS(BL$3:BL$8,$A$3:$A$8,IF(Dashboard!$B$44:$B$100=TRIM(SUBSTITUTE($A57,"TOTAL","",1)),Dashboard!$A$44:$A$100),$B$3:$B$8,$B57)) -> 0
A58: P3 TOTAL | B58: Houston | C58: =SUM(SUMIFS(C$3:C$8,$A$3:$A$8,IF(Dashboard!$B$44:$B$100=TRIM(SUBSTITUTE($A58,"TOTAL","",1)),Dashboard!$A$44:$A$100),$B$3:$B$8,$B58)) -> 0 | D58: =SUM(SUMIFS(D$3:D$8,$A$3:$A$8,IF(Dashboard!$B$44:$B$100=TRIM(SUBSTITUTE($A58,"TOTAL","",1)),Dashboard!$A$44:$A$100),$B$3:$B$8,$B58)) -> 0 | E58: =SUM(SUMIFS(E$3:E$8,$A$3:$A$8,IF(Dashboard!$B$44:$B$100=TRIM(SUBSTITUTE($A58,"TOTAL","",1)),Dashboard!$A$44:$A$100),$B$3:$B$8,$B58)) -> 0 | F58: 0 | G58: =SUM(SUMIFS(G$3:G$8,$A$3:$A$8,IF(Dashboard!$B$44:$B$100=TRIM(SUBSTITUTE($A58,"TOTAL","",1)),Dashboard!$A$44:$A$100),$B$3:$B$8,$B58)) -> 0 | H58: 0 | I58: =SUM(SUMIFS(I$3:I$8,$A$3:$A$8,IF(Dashboard!$B$44:$B$100=TRIM(SUBSTITUTE($A58,"TOTAL","",1)),Dashboard!$A$44:$A$100),$B$3:$B$8,$B58)) -> 0 | J58: =SUM(SUMIFS(J$3:J$8,$A$3:$A$8,IF(Dashboard!$B$44:$B$100=TRIM(SUBSTITUTE($A58,"TOTAL","",1)),Dashboard!$A$44:$A$100),$B$3:$B$8,$B58)) -> 0 | K58: =SUM(SUMIFS(K$3:K$8,$A$3:$A$8,IF(Dashboard!$B$44:$B$100=TRIM(SUBSTITUTE($A58,"TOTAL","",1)),Dashboard!$A$44:$A$100),$B$3:$B$8,$B58)) -> 0 | L58: =SUM(SUMIFS(L$3:L$8,$A$3:$A$8,IF(Dashboard!$B$44:$B$100=TRIM(SUBSTITUTE($A58,"TOTAL","",1)),Dashboard!$A$44:$A$100),$B$3:$B$8,$B58)) -> 0 | M58: =SUM(SUMIFS(M$3:M$8,$A$3:$A$8,IF(Dashboard!$B$44:$B$100=TRIM(SUBSTITUTE($A58,"TOTAL","",1)),Dashboard!$A$44:$A$100),$B$3:$B$8,$B58)) -> 0 | N58: =SUM(SUMIFS(N$3:N$8,$A$3:$A$8,IF(Dashboard!$B$44:$B$100=TRIM(SUBSTITUTE($A58,"TOTAL","",1)),Dashboard!$A$44:$A$100),$B$3:$B$8,$B58)) -> 0 | O58: =SUM(SUMIFS(O$3:O$8,$A$3:$A$8,IF(Dashboard!$B$44:$B$100=TRIM(SUBSTITUTE($A58,"TOTAL","",1)),Dashboard!$A$44:$A$100),$B$3:$B$8,$B58)) -> 0 | P58: =SUM(SUMIFS(P$3:P$8,$A$3:$A$8,IF(Dashboard!$B$44:$B$100=TRIM(SUBSTITUTE($A58,"TOTAL","",1)),Dashboard!$A$44:$A$100),$B$3:$B$8,$B58)) -> 0 | Q58: 0 | R58: 0 | S58: 0 | T58: 0 | V58: =SUM(SUMIFS(V$3:V$8,$A$3:$A$8,IF(Dashboard!$B$44:$B$100=TRIM(SUBSTITUTE($A58,"TOTAL","",1)),Dashboard!$A$44:$A$100),$B$3:$B$8,$B58)) -> 0 | W58: =SUM(SUMIFS(W$3:W$8,$A$3:$A$8,IF(Dashboard!$B$44:$B$100=TRIM(SUBSTITUTE($A58,"TOTAL","",1)),Dashboard!$A$44:$A$100),$B$3:$B$8,$B58)) -> 0 | X58: =SUM(SUMIFS(X$3:X$8,$A$3:$A$8,IF(Dashboard!$B$44:$B$100=TRIM(SUBSTITUTE($A58,"TOTAL","",1)),Dashboard!$A$44:$A$100),$B$3:$B$8,$B58)) -> 0 | Y58: 0 | Z58: =SUM(SUMIFS(Z$3:Z$8,$A$3:$A$8,IF(Dashboard!$B$44:$B$100=TRIM(SUBSTITUTE($A58,"TOTAL","",1)),Dashboard!$A$44:$A$100),$B$3:$B$8,$B58)) -> 0 | AA58: 0 | AB58: =SUM(SUMIFS(AB$3:AB$8,$A$3:$A$8,IF(Dashboard!$B$44:$B$100=TRIM(SUBSTITUTE($A58,"TOTAL","",1)),Dashboard!$A$44:$A$100),$B$3:$B$8,$B58)) -> 0 | AC58: =SUM(SUMIFS(AC$3:AC$8,$A$3:$A$8,IF(Dashboard!$B$44:$B$100=TRIM(SUBSTITUTE($A58,"TOTAL","",1)),Dashboard!$A$44:$A$100),$B$3:$B$8,$B58)) -> 0 | AD58: =SUM(SUMIFS(AD$3:AD$8,$A$3:$A$8,IF(Dashboard!$B$44:$B$100=TRIM(SUBSTITUTE($A58,"TOTAL","",1)),Dashboard!$A$44:$A$100),$B$3:$B$8,$B58)) -> 0 | AE58: =SUM(SUMIFS(AE$3:AE$8,$A$3:$A$8,IF(Dashboard!$B$44:$B$100=TRIM(SUBSTITUTE($A58,"TOTAL","",1)),Dashboard!$A$44:$A$100),$B$3:$B$8,$B58)) -> 0 | AF58: =SUM(SUMIFS(AF$3:AF$8,$A$3:$A$8,IF(Dashboard!$B$44:$B$100=TRIM(SUBSTITUTE($A58,"TOTAL","",1)),Dashboard!$A$44:$A$100),$B$3:$B$8,$B58)) -> 0 | AG58: =SUM(SUMIFS(AG$3:AG$8,$A$3:$A$8,IF(Dashboard!$B$44:$B$100=TRIM(SUBSTITUTE($A58,"TOTAL","",1)),Dashboard!$A$44:$A$100),$B$3:$B$8,$B58)) -> 0 | AH58: =SUM(SUMIFS(AH$3:AH$8,$A$3:$A$8,IF(Dashboard!$B$44:$B$100=TRIM(SUBSTITUTE($A58,"TOTAL","",1)),Dashboard!$A$44:$A$100),$B$3:$B$8,$B58)) -> 0 | AI58: =SUM(SUMIFS(AI$3:AI$8,$A$3:$A$8,IF(Dashboard!$B$44:$B$100=TRIM(SUBSTITUTE($A58,"TOTAL","",1)),Dashboard!$A$44:$A$100),$B$3:$B$8,$B58)) -> 0 | AJ58: 0 | AK58: 0 | AM58: =SUM(SUMIFS(AM$3:AM$8,$A$3:$A$8,IF(Dashboard!$B$44:$B$100=TRIM(SUBSTITUTE($A58,"TOTAL","",1)),Dashboard!$A$44:$A$100),$B$3:$B$8,$B58)) -> 0 | AN58: =SUM(SUMIFS(AN$3:AN$8,$A$3:$A$8,IF(Dashboard!$B$44:$B$100=TRIM(SUBSTITUTE($A58,"TOTAL","",1)),Dashboard!$A$44:$A$100),$B$3:$B$8,$B58)) -> 0 | AO58: =SUM(SUMIFS(AO$3:AO$8,$A$3:$A$8,IF(Dashboard!$B$44:$B$100=TRIM(SUBSTITUTE($A58,"TOTAL","",1)),Dashboard!$A$44:$A$100),$B$3:$B$8,$B58)) -> 0 | AP58: =SUM(SUMIFS(AP$3:AP$8,$A$3:$A$8,IF(Dashboard!$B$44:$B$100=TRIM(SUBSTITUTE($A58,"TOTAL","",1)),Dashboard!$A$44:$A$100),$B$3:$B$8,$B58)) -> 0 | AQ58: =SUM(SUMIFS(AQ$3:AQ$8,$A$3:$A$8,IF(Dashboard!$B$44:$B$100=TRIM(SUBSTITUTE($A58,"TOTAL","",1)),Dashboard!$A$44:$A$100),$B$3:$B$8,$B58)) -> 0 | AR58: =SUM(SUMIFS(AR$3:AR$8,$A$3:$A$8,IF(Dashboard!$B$44:$B$100=TRIM(SUBSTITUTE($A58,"TOTAL","",1)),Dashboard!$A$44:$A$100),$B$3:$B$8,$B58)) -> 0 | AT58: =SUM(SUMIFS(AT$3:AT$8,$A$3:$A$8,IF(Dashboard!$B$44:$B$100=TRIM(SUBSTITUTE($A58,"TOTAL","",1)),Dashboard!$A$44:$A$100),$B$3:$B$8,$B58)) -> 0 | AV58: =SUM(SUMIFS(AV$3:AV$8,$A$3:$A$8,IF(Dashboard!$B$44:$B$100=TRIM(SUBSTITUTE($A58,"TOTAL","",1)),Dashboard!$A$44:$A$100),$B$3:$B$8,$B58)) -> 0 | AW58: =SUM(SUMIFS(AW$3:AW$8,$A$3:$A$8,IF(Dashboard!$B$44:$B$100=TRIM(SUBSTITUTE($A58,"TOTAL","",1)),Dashboard!$A$44:$A$100),$B$3:$B$8,$B58)) -> 0 | AX58: =SUM(SUMIFS(AX$3:AX$8,$A$3:$A$8,IF(Dashboard!$B$44:$B$100=TRIM(SUBSTITUTE($A58,"TOTAL","",1)),Dashboard!$A$44:$A$100),$B$3:$B$8,$B58)) -> 0 | AY58: 0 | BA58: 0 | BB58: 0 | BD58: =SUM(SUMIFS(BD$3:BD$8,$A$3:$A$8,IF(Dashboard!$B$44:$B$100=TRIM(SUBSTITUTE($A58,"TOTAL","",1)),Dashboard!$A$44:$A$100),$B$3:$B$8,$B58)) -> 0 | BE58: =SUM(SUMIFS(BE$3:BE$8,$A$3:$A$8,IF(Dashboard!$B$44:$B$100=TRIM(SUBSTITUTE($A58,"TOTAL","",1)),Dashboard!$A$44:$A$100),$B$3:$B$8,$B58)) -> 0 | BF58: 0 | BH58: =SUM(SUMIFS(BH$3:BH$8,$A$3:$A$8,IF(Dashboard!$B$44:$B$100=TRIM(SUBSTITUTE($A58,"TOTAL","",1)),Dashboard!$A$44:$A$100),$B$3:$B$8,$B58)) -> 0 | BI58: =SUM(SUMIFS(BI$3:BI$8,$A$3:$A$8,IF(Dashboard!$B$44:$B$100=TRIM(SUBSTITUTE($A58,"TOTAL","",1)),Dashboard!$A$44:$A$100),$B$3:$B$8,$B58)) -> 0 | BJ58: 0 | BL58: =SUM(SUMIFS(BL$3:BL$8,$A$3:$A$8,IF(Dashboard!$B$44:$B$100=TRIM(SUBSTITUTE($A58,"TOTAL","",1)),Dashboard!$A$44:$A$100),$B$3:$B$8,$B58)) -> 0
A59: P3 TOTAL | B59: Kansas City | C59: =SUM(SUMIFS(C$3:C$8,$A$3:$A$8,IF(Dashboard!$B$44:$B$100=TRIM(SUBSTITUTE($A59,"TOTAL","",1)),Dashboard!$A$44:$A$100),$B$3:$B$8,$B59)) -> 0 | D59: =SUM(SUMIFS(D$3:D$8,$A$3:$A$8,IF(Dashboard!$B$44:$B$100=TRIM(SUBSTITUTE($A59,"TOTAL","",1)),Dashboard!$A$44:$A$100),$B$3:$B$8,$B59)) -> 0 | E59: =SUM(SUMIFS(E$3:E$8,$A$3:$A$8,IF(Dashboard!$B$44:$B$100=TRIM(SUBSTITUTE($A59,"TOTAL","",1)),Dashboard!$A$44:$A$100),$B$3:$B$8,$B59)) -> 0 | F59: 0 | G59: =SUM(SUMIFS(G$3:G$8,$A$3:$A$8,IF(Dashboard!$B$44:$B$100=TRIM(SUBSTITUTE($A59,"TOTAL","",1)),Dashboard!$A$44:$A$100),$B$3:$B$8,$B59)) -> 0 | H59: 0 | I59: =SUM(SUMIFS(I$3:I$8,$A$3:$A$8,IF(Dashboard!$B$44:$B$100=TRIM(SUBSTITUTE($A59,"TOTAL","",1)),Dashboard!$A$44:$A$100),$B$3:$B$8,$B59)) -> 0 | J59: =SUM(SUMIFS(J$3:J$8,$A$3:$A$8,IF(Dashboard!$B$44:$B$100=TRIM(SUBSTITUTE($A59,"TOTAL","",1)),Dashboard!$A$44:$A$100),$B$3:$B$8,$B59)) -> 0 | K59: =SUM(SUMIFS(K$3:K$8,$A$3:$A$8,IF(Dashboard!$B$44:$B$100=TRIM(SUBSTITUTE($A59,"TOTAL","",1)),Dashboard!$A$44:$A$100),$B$3:$B$8,$B59)) -> 0 | L59: =SUM(SUMIFS(L$3:L$8,$A$3:$A$8,IF(Dashboard!$B$44:$B$100=TRIM(SUBSTITUTE($A59,"TOTAL","",1)),Dashboard!$A$44:$A$100),$B$3:$B$8,$B59)) -> 0 | M59: =SUM(SUMIFS(M$3:M$8,$A$3:$A$8,IF(Dashboard!$B$44:$B$100=TRIM(SUBSTITUTE($A59,"TOTAL","",1)),Dashboard!$A$44:$A$100),$B$3:$B$8,$B59)) -> 0 | N59: =SUM(SUMIFS(N$3:N$8,$A$3:$A$8,IF(Dashboard!$B$44:$B$100=TRIM(SUBSTITUTE($A59,"TOTAL","",1)),Dashboard!$A$44:$A$100),$B$3:$B$8,$B59)) -> 0 | O59: =SUM(SUMIFS(O$3:O$8,$A$3:$A$8,IF(Dashboard!$B$44:$B$100=TRIM(SUBSTITUTE($A59,"TOTAL","",1)),Dashboard!$A$44:$A$100),$B$3:$B$8,$B59)) -> 0 | P59: =SUM(SUMIFS(P$3:P$8,$A$3:$A$8,IF(Dashboard!$B$44:$B$100=TRIM(SUBSTITUTE($A59,"TOTAL","",1)),Dashboard!$A$44:$A$100),$B$3:$B$8,$B59)) -> 0 | Q59: 0 | R59: 0 | S59: 0 | T59: 0 | V59: =SUM(SUMIFS(V$3:V$8,$A$3:$A$8,IF(Dashboard!$B$44:$B$100=TRIM(SUBSTITUTE($A59,"TOTAL","",1)),Dashboard!$A$44:$A$100),$B$3:$B$8,$B59)) -> 0 | W59: =SUM(SUMIFS(W$3:W$8,$A$3:$A$8,IF(Dashboard!$B$44:$B$100=TRIM(SUBSTITUTE($A59,"TOTAL","",1)),Dashboard!$A$44:$A$100),$B$3:$B$8,$B59)) -> 0 | X59: =SUM(SUMIFS(X$3:X$8,$A$3:$A$8,IF(Dashboard!$B$44:$B$100=TRIM(SUBSTITUTE($A59,"TOTAL","",1)),Dashboard!$A$44:$A$100),$B$3:$B$8,$B59)) -> 0 | Y59: 0 | Z59: =SUM(SUMIFS(Z$3:Z$8,$A$3:$A$8,IF(Dashboard!$B$44:$B$100=TRIM(SUBSTITUTE($A59,"TOTAL","",1)),Dashboard!$A$44:$A$100),$B$3:$B$8,$B59)) -> 0 | AA59: 0 | AB59: =SUM(SUMIFS(AB$3:AB$8,$A$3:$A$8,IF(Dashboard!$B$44:$B$100=TRIM(SUBSTITUTE($A59,"TOTAL","",1)),Dashboard!$A$44:$A$100),$B$3:$B$8,$B59)) -> 0 | AC59: =SUM(SUMIFS(AC$3:AC$8,$A$3:$A$8,IF(Dashboard!$B$44:$B$100=TRIM(SUBSTITUTE($A59,"TOTAL","",1)),Dashboard!$A$44:$A$100),$B$3:$B$8,$B59)) -> 0 | AD59: =SUM(SUMIFS(AD$3:AD$8,$A$3:$A$8,IF(Dashboard!$B$44:$B$100=TRIM(SUBSTITUTE($A59,"TOTAL","",1)),Dashboard!$A$44:$A$100),$B$3:$B$8,$B59)) -> 0 | AE59: =SUM(SUMIFS(AE$3:AE$8,$A$3:$A$8,IF(Dashboard!$B$44:$B$100=TRIM(SUBSTITUTE($A59,"TOTAL","",1)),Dashboard!$A$44:$A$100),$B$3:$B$8,$B59)) -> 0 | AF59: =SUM(SUMIFS(AF$3:AF$8,$A$3:$A$8,IF(Dashboard!$B$44:$B$100=TRIM(SUBSTITUTE($A59,"TOTAL","",1)),Dashboard!$A$44:$A$100),$B$3:$B$8,$B59)) -> 0 | AG59: =SUM(SUMIFS(AG$3:AG$8,$A$3:$A$8,IF(Dashboard!$B$44:$B$100=TRIM(SUBSTITUTE($A59,"TOTAL","",1)),Dashboard!$A$44:$A$100),$B$3:$B$8,$B59)) -> 0 | AH59: =SUM(SUMIFS(AH$3:AH$8,$A$3:$A$8,IF(Dashboard!$B$44:$B$100=TRIM(SUBSTITUTE($A59,"TOTAL","",1)),Dashboard!$A$44:$A$100),$B$3:$B$8,$B59)) -> 0 | AI59: =SUM(SUMIFS(AI$3:AI$8,$A$3:$A$8,IF(Dashboard!$B$44:$B$100=TRIM(SUBSTITUTE($A59,"TOTAL","",1)),Dashboard!$A$44:$A$100),$B$3:$B$8,$B59)) -> 0 | AJ59: 0 | AK59: 0 | AM59: =SUM(SUMIFS(AM$3:AM$8,$A$3:$A$8,IF(Dashboard!$B$44:$B$100=TRIM(SUBSTITUTE($A59,"TOTAL","",1)),Dashboard!$A$44:$A$100),$B$3:$B$8,$B59)) -> 0 | AN59: =SUM(SUMIFS(AN$3:AN$8,$A$3:$A$8,IF(Dashboard!$B$44:$B$100=TRIM(SUBSTITUTE($A59,"TOTAL","",1)),Dashboard!$A$44:$A$100),$B$3:$B$8,$B59)) -> 0 | AO59: =SUM(SUMIFS(AO$3:AO$8,$A$3:$A$8,IF(Dashboard!$B$44:$B$100=TRIM(SUBSTITUTE($A59,"TOTAL","",1)),Dashboard!$A$44:$A$100),$B$3:$B$8,$B59)) -> 0 | AP59: =SUM(SUMIFS(AP$3:AP$8,$A$3:$A$8,IF(Dashboard!$B$44:$B$100=TRIM(SUBSTITUTE($A59,"TOTAL","",1)),Dashboard!$A$44:$A$100),$B$3:$B$8,$B59)) -> 0 | AQ59: =SUM(SUMIFS(AQ$3:AQ$8,$A$3:$A$8,IF(Dashboard!$B$44:$B$100=TRIM(SUBSTITUTE($A59,"TOTAL","",1)),Dashboard!$A$44:$A$100),$B$3:$B$8,$B59)) -> 0 | AR59: =SUM(SUMIFS(AR$3:AR$8,$A$3:$A$8,IF(Dashboard!$B$44:$B$100=TRIM(SUBSTITUTE($A59,"TOTAL","",1)),Dashboard!$A$44:$A$100),$B$3:$B$8,$B59)) -> 0 | AT59: =SUM(SUMIFS(AT$3:AT$8,$A$3:$A$8,IF(Dashboard!$B$44:$B$100=TRIM(SUBSTITUTE($A59,"TOTAL","",1)),Dashboard!$A$44:$A$100),$B$3:$B$8,$B59)) -> 0 | AV59: =SUM(SUMIFS(AV$3:AV$8,$A$3:$A$8,IF(Dashboard!$B$44:$B$100=TRIM(SUBSTITUTE($A59,"TOTAL","",1)),Dashboard!$A$44:$A$100),$B$3:$B$8,$B59)) -> 0 | AW59: =SUM(SUMIFS(AW$3:AW$8,$A$3:$A$8,IF(Dashboard!$B$44:$B$100=TRIM(SUBSTITUTE($A59,"TOTAL","",1)),Dashboard!$A$44:$A$100),$B$3:$B$8,$B59)) -> 0 | AX59: =SUM(SUMIFS(AX$3:AX$8,$A$3:$A$8,IF(Dashboard!$B$44:$B$100=TRIM(SUBSTITUTE($A59,"TOTAL","",1)),Dashboard!$A$44:$A$100),$B$3:$B$8,$B59)) -> 0 | AY59: 0 | BA59: 0 | BB59: 0 | BD59: =SUM(SUMIFS(BD$3:BD$8,$A$3:$A$8,IF(Dashboard!$B$44:$B$100=TRIM(SUBSTITUTE($A59,"TOTAL","",1)),Dashboard!$A$44:$A$100),$B$3:$B$8,$B59)) -> 0 | BE59: =SUM(SUMIFS(BE$3:BE$8,$A$3:$A$8,IF(Dashboard!$B$44:$B$100=TRIM(SUBSTITUTE($A59,"TOTAL","",1)),Dashboard!$A$44:$A$100),$B$3:$B$8,$B59)) -> 0 | BF59: 0 | BH59: =SUM(SUMIFS(BH$3:BH$8,$A$3:$A$8,IF(Dashboard!$B$44:$B$100=TRIM(SUBSTITUTE($A59,"TOTAL","",1)),Dashboard!$A$44:$A$100),$B$3:$B$8,$B59)) -> 0 | BI59: =SUM(SUMIFS(BI$3:BI$8,$A$3:$A$8,IF(Dashboard!$B$44:$B$100=TRIM(SUBSTITUTE($A59,"TOTAL","",1)),Dashboard!$A$44:$A$100),$B$3:$B$8,$B59)) -> 0 | BJ59: 0 | BL59: =SUM(SUMIFS(BL$3:BL$8,$A$3:$A$8,IF(Dashboard!$B$44:$B$100=TRIM(SUBSTITUTE($A59,"TOTAL","",1)),Dashboard!$A$44:$A$100),$B$3:$B$8,$B59)) -> 0
A60: P3 TOTAL | B60: Los Angeles | C60: =SUM(SUMIFS(C$3:C$8,$A$3:$A$8,IF(Dashboard!$B$44:$B$100=TRIM(SUBSTITUTE($A60,"TOTAL","",1)),Dashboard!$A$44:$A$100),$B$3:$B$8,$B60)) -> 0 | D60: =SUM(SUMIFS(D$3:D$8,$A$3:$A$8,IF(Dashboard!$B$44:$B$100=TRIM(SUBSTITUTE($A60,"TOTAL","",1)),Dashboard!$A$44:$A$100),$B$3:$B$8,$B60)) -> 0 | E60: =SUM(SUMIFS(E$3:E$8,$A$3:$A$8,IF(Dashboard!$B$44:$B$100=TRIM(SUBSTITUTE($A60,"TOTAL","",1)),Dashboard!$A$44:$A$100),$B$3:$B$8,$B60)) -> 0 | F60: 0 | G60: =SUM(SUMIFS(G$3:G$8,$A$3:$A$8,IF(Dashboard!$B$44:$B$100=TRIM(SUBSTITUTE($A60,"TOTAL","",1)),Dashboard!$A$44:$A$100),$B$3:$B$8,$B60)) -> 0 | H60: 0 | I60: =SUM(SUMIFS(I$3:I$8,$A$3:$A$8,IF(Dashboard!$B$44:$B$100=TRIM(SUBSTITUTE($A60,"TOTAL","",1)),Dashboard!$A$44:$A$100),$B$3:$B$8,$B60)) -> 0 | J60: =SUM(SUMIFS(J$3:J$8,$A$3:$A$8,IF(Dashboard!$B$44:$B$100=TRIM(SUBSTITUTE($A60,"TOTAL","",1)),Dashboard!$A$44:$A$100),$B$3:$B$8,$B60)) -> 0 | K60: =SUM(SUMIFS(K$3:K$8,$A$3:$A$8,IF(Dashboard!$B$44:$B$100=TRIM(SUBSTITUTE($A60,"TOTAL","",1)),Dashboard!$A$44:$A$100),$B$3:$B$8,$B60)) -> 0 | L60: =SUM(SUMIFS(L$3:L$8,$A$3:$A$8,IF(Dashboard!$B$44:$B$100=TRIM(SUBSTITUTE($A60,"TOTAL","",1)),Dashboard!$A$44:$A$100),$B$3:$B$8,$B60)) -> 0 | M60: =SUM(SUMIFS(M$3:M$8,$A$3:$A$8,IF(Dashboard!$B$44:$B$100=TRIM(SUBSTITUTE($A60,"TOTAL","",1)),Dashboard!$A$44:$A$100),$B$3:$B$8,$B60)) -> 0 | N60: =SUM(SUMIFS(N$3:N$8,$A$3:$A$8,IF(Dashboard!$B$44:$B$100=TRIM(SUBSTITUTE($A60,"TOTAL","",1)),Dashboard!$A$44:$A$100),$B$3:$B$8,$B60)) -> 0 | O60: =SUM(SUMIFS(O$3:O$8,$A$3:$A$8,IF(Dashboard!$B$44:$B$100=TRIM(SUBSTITUTE($A60,"TOTAL","",1)),Dashboard!$A$44:$A$100),$B$3:$B$8,$B60)) -> 0 | P60: =SUM(SUMIFS(P$3:P$8,$A$3:$A$8,IF(Dashboard!$B$44:$B$100=TRIM(SUBSTITUTE($A60,"TOTAL","",1)),Dashboard!$A$44:$A$100),$B$3:$B$8,$B60)) -> 0 | Q60: 0 | R60: 0 | S60: 0 | T60: 0 | V60: =SUM(SUMIFS(V$3:V$8,$A$3:$A$8,IF(Dashboard!$B$44:$B$100=TRIM(SUBSTITUTE($A60,"TOTAL","",1)),Dashboard!$A$44:$A$100),$B$3:$B$8,$B60)) -> 0 | W60: =SUM(SUMIFS(W$3:W$8,$A$3:$A$8,IF(Dashboard!$B$44:$B$100=TRIM(SUBSTITUTE($A60,"TOTAL","",1)),Dashboard!$A$44:$A$100),$B$3:$B$8,$B60)) -> 0 | X60: =SUM(SUMIFS(X$3:X$8,$A$3:$A$8,IF(Dashboard!$B$44:$B$100=TRIM(SUBSTITUTE($A60,"TOTAL","",1)),Dashboard!$A$44:$A$100),$B$3:$B$8,$B60)) -> 0 | Y60: 0 | Z60: =SUM(SUMIFS(Z$3:Z$8,$A$3:$A$8,IF(Dashboard!$B$44:$B$100=TRIM(SUBSTITUTE($A60,"TOTAL","",1)),Dashboard!$A$44:$A$100),$B$3:$B$8,$B60)) -> 0 | AA60: 0 | AB60: =SUM(SUMIFS(AB$3:AB$8,$A$3:$A$8,IF(Dashboard!$B$44:$B$100=TRIM(SUBSTITUTE($A60,"TOTAL","",1)),Dashboard!$A$44:$A$100),$B$3:$B$8,$B60)) -> 0 | AC60: =SUM(SUMIFS(AC$3:AC$8,$A$3:$A$8,IF(Dashboard!$B$44:$B$100=TRIM(SUBSTITUTE($A60,"TOTAL","",1)),Dashboard!$A$44:$A$100),$B$3:$B$8,$B60)) -> 0 | AD60: =SUM(SUMIFS(AD$3:AD$8,$A$3:$A$8,IF(Dashboard!$B$44:$B$100=TRIM(SUBSTITUTE($A60,"TOTAL","",1)),Dashboard!$A$44:$A$100),$B$3:$B$8,$B60)) -> 0 | AE60: =SUM(SUMIFS(AE$3:AE$8,$A$3:$A$8,IF(Dashboard!$B$44:$B$100=TRIM(SUBSTITUTE($A60,"TOTAL","",1)),Dashboard!$A$44:$A$100),$B$3:$B$8,$B60)) -> 0 | AF60: =SUM(SUMIFS(AF$3:AF$8,$A$3:$A$8,IF(Dashboard!$B$44:$B$100=TRIM(SUBSTITUTE($A60,"TOTAL","",1)),Dashboard!$A$44:$A$100),$B$3:$B$8,$B60)) -> 0 | AG60: =SUM(SUMIFS(AG$3:AG$8,$A$3:$A$8,IF(Dashboard!$B$44:$B$100=TRIM(SUBSTITUTE($A60,"TOTAL","",1)),Dashboard!$A$44:$A$100),$B$3:$B$8,$B60)) -> 0 | AH60: =SUM(SUMIFS(AH$3:AH$8,$A$3:$A$8,IF(Dashboard!$B$44:$B$100=TRIM(SUBSTITUTE($A60,"TOTAL","",1)),Dashboard!$A$44:$A$100),$B$3:$B$8,$B60)) -> 0 | AI60: =SUM(SUMIFS(AI$3:AI$8,$A$3:$A$8,IF(Dashboard!$B$44:$B$100=TRIM(SUBSTITUTE($A60,"TOTAL","",1)),Dashboard!$A$44:$A$100),$B$3:$B$8,$B60)) -> 0 | AJ60: 0 | AK60: 0 | AM60: =SUM(SUMIFS(AM$3:AM$8,$A$3:$A$8,IF(Dashboard!$B$44:$B$100=TRIM(SUBSTITUTE($A60,"TOTAL","",1)),Dashboard!$A$44:$A$100),$B$3:$B$8,$B60)) -> 0 | AN60: =SUM(SUMIFS(AN$3:AN$8,$A$3:$A$8,IF(Dashboard!$B$44:$B$100=TRIM(SUBSTITUTE($A60,"TOTAL","",1)),Dashboard!$A$44:$A$100),$B$3:$B$8,$B60)) -> 0 | AO60: =SUM(SUMIFS(AO$3:AO$8,$A$3:$A$8,IF(Dashboard!$B$44:$B$100=TRIM(SUBSTITUTE($A60,"TOTAL","",1)),Dashboard!$A$44:$A$100),$B$3:$B$8,$B60)) -> 0 | AP60: =SUM(SUMIFS(AP$3:AP$8,$A$3:$A$8,IF(Dashboard!$B$44:$B$100=TRIM(SUBSTITUTE($A60,"TOTAL","",1)),Dashboard!$A$44:$A$100),$B$3:$B$8,$B60)) -> 0 | AQ60: =SUM(SUMIFS(AQ$3:AQ$8,$A$3:$A$8,IF(Dashboard!$B$44:$B$100=TRIM(SUBSTITUTE($A60,"TOTAL","",1)),Dashboard!$A$44:$A$100),$B$3:$B$8,$B60)) -> 0 | AR60: =SUM(SUMIFS(AR$3:AR$8,$A$3:$A$8,IF(Dashboard!$B$44:$B$100=TRIM(SUBSTITUTE($A60,"TOTAL","",1)),Dashboard!$A$44:$A$100),$B$3:$B$8,$B60)) -> 0 | AT60: =SUM(SUMIFS(AT$3:AT$8,$A$3:$A$8,IF(Dashboard!$B$44:$B$100=TRIM(SUBSTITUTE($A60,"TOTAL","",1)),Dashboard!$A$44:$A$100),$B$3:$B$8,$B60)) -> 0 | AV60: =SUM(SUMIFS(AV$3:AV$8,$A$3:$A$8,IF(Dashboard!$B$44:$B$100=TRIM(SUBSTITUTE($A60,"TOTAL","",1)),Dashboard!$A$44:$A$100),$B$3:$B$8,$B60)) -> 0 | AW60: =SUM(SUMIFS(AW$3:AW$8,$A$3:$A$8,IF(Dashboard!$B$44:$B$100=TRIM(SUBSTITUTE($A60,"TOTAL","",1)),Dashboard!$A$44:$A$100),$B$3:$B$8,$B60)) -> 0 | AX60: =SUM(SUMIFS(AX$3:AX$8,$A$3:$A$8,IF(Dashboard!$B$44:$B$100=TRIM(SUBSTITUTE($A60,"TOTAL","",1)),Dashboard!$A$44:$A$100),$B$3:$B$8,$B60)) -> 0 | AY60: 0 | BA60: 0 | BB60: 0 | BD60: =SUM(SUMIFS(BD$3:BD$8,$A$3:$A$8,IF(Dashboard!$B$44:$B$100=TRIM(SUBSTITUTE($A60,"TOTAL","",1)),Dashboard!$A$44:$A$100),$B$3:$B$8,$B60)) -> 0 | BE60: =SUM(SUMIFS(BE$3:BE$8,$A$3:$A$8,IF(Dashboard!$B$44:$B$100=TRIM(SUBSTITUTE($A60,"TOTAL","",1)),Dashboard!$A$44:$A$100),$B$3:$B$8,$B60)) -> 0 | BF60: 0 | BH60: =SUM(SUMIFS(BH$3:BH$8,$A$3:$A$8,IF(Dashboard!$B$44:$B$100=TRIM(SUBSTITUTE($A60,"TOTAL","",1)),Dashboard!$A$44:$A$100),$B$3:$B$8,$B60)) -> 0 | BI60: =SUM(SUMIFS(BI$3:BI$8,$A$3:$A$8,IF(Dashboard!$B$44:$B$100=TRIM(SUBSTITUTE($A60,"TOTAL","",1)),Dashboard!$A$44:$A$100),$B$3:$B$8,$B60)) -> 0 | BJ60: 0 | BL60: =SUM(SUMIFS(BL$3:BL$8,$A$3:$A$8,IF(Dashboard!$B$44:$B$100=TRIM(SUBSTITUTE($A60,"TOTAL","",1)),Dashboard!$A$44:$A$100),$B$3:$B$8,$B60)) -> 0
